Workbook

Sheet INDEX
A1: SUPPLEMENTARY TABLES
A2: Supplementary Data 1: Replication of previously established GWS regions outside of the HLA in Sjogren's disease.
A3: Supplementary Data 2: Summary of samples contributed by each collaborating institution/cohort
A4: Supplementary Data 3: Suggestive GWS regions in Sjogren's disease of European Ancestry
A5: Supplementary Data 4: Epigenetic Enrichment Analysis of GWS Sjögren-SNPs in different cells and tissues
A6: Supplementary Data 5: Association analysis in CRHR1 locus.
A7: Supplementary Data 6: Bayesian Analysis in CRHR1 locus.
A8: Supplementary Data 7: CRHR1 Blood Traits
A9: Supplementary Data 8: Association analysis in CD247 locus.
A10: Supplementary Data 9: Bayesian Analysis in CD247 locus.
A11: Supplementary Data 10: eQTL, Looping and Regulatory chromatin states for functional variants in CD247 locus.
A12: Supplementary Data 11: Association analysis in XKR6 locus.
A13: Supplementary Data 12: Bayesian Analysis in XKR6 locus.
A14: Supplementary Data 13: eQTL, Looping and Regulatory chromatin states for functional variants in XKR6 locus.
A15: Supplementary Data 14: Association analysis in SYNGR1 locus.
A16: Supplementary Data 15: Bayesian Analysis in SYNGR1 locus.
A17: Supplementary Data 16: eQTL, Looping and Regulatory chromatin states for functional variants in SYNGR1 locus.
A18: Supplementary Data 17: Association analysis in NAB1 locus.
A19: Supplementary Data 18: Bayesian Analysis in NAB1 locus.
A20: Supplementary Data 19: eQTL, Looping and Regulatory chromatin states for functional variants in NAB1 locus.
A21: Supplementary Data 20: Association analysis in CHMP6 locus.
A22: Supplementary Data 21: Bayesian Analysis in CHMP6 locus.
A23: Supplementary Data 22: eQTL, Looping and Regulatory chromatin states for functional variants in CHMP6 locus.
A24: Supplementary Data 23: Association analysis in PRDM1-ATG5 locus.
A25: Supplementary Data 24: Bayesian Analysis in PRDM1-ATG5 locus.
A26: Supplementary Data 25: eQTL, Looping and Regulatory chromatin states for functional variants in PRDM1-ATG5 locus.
A27: Supplementary Data 26: Association analysis in MIR146A-PTTG1 locus.
A28: Supplementary Data 27: Bayesian Analysis in MIR146A-PTTG1 locus.
A29: Supplementary Data 28: eQTL, Looping and Regulatory chromatin states for functional variants in MIR146A-PTTG1 locus.
A30: Supplementary Data 29: Association analysis in TNFAIP3 locus.
A31: Supplementary Data 30: Bayesian Analysis in TNFAIP3 locus.
A32: Supplementary Data 31: eQTL, Looping and Regulatory chromatin states for functional variants in TNFAIP3 locus.
A33: Supplementary Data 32: Association analysis in TYK2 locus.
A34: Supplementary Data 33: Bayesian Analysis in TYK2 locus.
A35: Supplementary Data 34: eQTL, Looping and Regulatory chromatin states for functional variants in TYK2 locus.

Sheet Suppl Data 1
A1: Supplementary Data 1: Replication of previously established GWS regions outside of the HLA in Sjogren's disease.
B3: Previously established GWS locus | H3: Replication in current European Sjogren's GWAS | L3: Replication in European Sjogren's after meta-analysis
A4: Gene | B4: rsID | C4: OR (95% CI) | D4: P-value | E4: Population | F4: Study Type | G4: Citation | H4: rsID | I4: CHR | J4: OR (95% CI) | K4: P-value | L4: rsID | M4: CHR | N4: OR (95% CI) | O4: Pmeta
A5: IRF5-TNPO3 | B5: rs3757387 | C5: 1.44 (1.29, 1.62) | D5: 2.73E-19 | E5: European | F5: Immunochip; Meta-analysis | G5: Lessard, et al. 2013 (PMID: 24097067) | H5: rs3757387 | I5: 7 | J5: 1.47 (1.39, 1.56) | K5: 9.77E-40 | L5: rs3757387 | M5: 7 | N5: 1.47 (1.39, 1.56) | O5: 3.275e-41
A6: IRF5-TNPO3 | B6: rs17339836 | C6: 1.58 (1.36, 1.84) | D6: 2.43e-16 | E6: European | F6: Immunochip; Meta-analysis | G6: Lessard, et al. 2013 (PMID: 24097067) | H6: rs3778754 | I6: 7 | J6: 1.46 (1.38, 1.55) | K6: 1.30E-38 | L6: rs3823536 | M6: 7 | N6: 1.46 (1.37, 1.54) | O6: 1.222e-38
A7: IRF5-TNPO3 | B7: rs3823536 | C7: 1.49 (1.34, 1.65) | D7: 3.00E-14 | E7: Multi-ethnic | F7: GWAS | G7: Taylor, et al. 2017 (PMID: 28076899) | H7: rs3823536 | I7: 7 | J7: 1.46 (1.37, 1.54) | K7: 1.26E-37 | L7: rs3778754 | M7: 7 | N7: 1.46 (1.38, 1.55) | O7: 1.637e-38
A8: IRF5-TNPO3 | B8: rs3823536 | C8: 1.54 (1.36, 1.76) | D8: 7.00E-11 | E8: European | F8: GWAS | G8: Taylor, et al. 2017 (PMID: 28076899) | H8: rs3778753 | I8: 7 | J8: 1.45 (1.37, 1.54) | K8: 2.33E-37 | L8: rs3778751 | M8: 7 | N8: 1.45 (1.37, 1.54) | O8: 2.689e-38
A9: IRF5-TNPO3 | B9: rs59110799 | C9: 1.72 (1.49, 1.99) | D9: 3.00E-13 | E9: Multi-ethnic | F9: GWAS | G9: Taylor, et al. 2017 (PMID: 28076899) | H9: rs3778751 | I9: 7 | J9: 1.45 (1.37, 1.54) | K9: 3.08E-37 | L9: rs3778752 | M9: 7 | N9: 1.45 (1.37, 1.54) | O9: 2.697e-38
A10: IRF5-TNPO3 | B10: rs3807306 | C10: 1.50 (1.32, 1.71) | D10: 6.00E-10 | E10: European | F10: GWAS | G10: Taylor, et al. 2017 (PMID: 28076899) | H10: rs3778752 | I10: 7 | J10: 1.45 (1.37, 1.54) | K10: 3.08E-37 | L10: rs3778753 | M10: 7 | N10: 1.45 (1.37, 1.54) | O10: 2.881e-38
A11: STAT4 | B11: rs10553577 | C11: 1.43 (1.26, 1.62) | D11: 6.80E-15 | E11: European | F11: Immunochip; Meta-analysis | G11: Lessard, et al. 2013 (PMID: 24097067) | H11: rs4274624 | I11: 2 | J11: 1.41 (1.32, 1.51) | K11: 1.66E-26 | L11: rs4274624 | M11: 2 | N11: 1.41 (1.32, 1.51) | O11: 1.495e-30
A12: STAT4 | B12: rs10168266 | C12: 1.44 (1.32, 1.57) | D12: 1.77E-17 | E12: Han Chinese | F12: GWAS | G12: Li, et al. 2013 (PMID: 24097066) | H12: rs4853458 | I12: 2 | J12: 1.41 (1.32, 1.50) | K12: 4.48E-26 | L12: rs4853458 | M12: 2 | N12: 1.41 (1.32, 1.50) | O12: 2.135e-30
A13: STAT4 | B13: rs11889341 | C13: 1.40 (1.26, 1.56) | D13: 9.00E-10 | E13: Multi-ethnic | F13: GWAS | G13: Taylor, et al. 2017 (PMID: 28076899) | H13: rs11889341 | I13: 2 | J13: 1.41 (1.31, 1.50) | K13: 7.64E-26 | L13: rs11889341 | M13: 2 | N13: 1.41 (1.31, 1.50) | O13: 3.713e-30
A14: STAT4 | B14: rs7574865 | C14: 1.51 (1.31, 1.75) | D14: 2.00E-08 | E14: European | F14: GWAS | G14: Taylor, et al. 2017 (PMID: 28076899) | H14: rs10178640 | I14: 2 | J14: 1.40 (1.31, 1.49) | K14: 4.17E-25 | L14: rs8179673 | M14: 2 | N14: 1.40 (1.31,,1,49) | O14: 2.379e-29
A15: IL12A | B15: rs485497 | C15: 1.30 (1.16, 1.46) | D15: 1.17E-10 | E15: European | F15: Immunochip; Meta-analysis | G15: Lessard, et al. 2013 (PMID: 24097067) | H15: rs145826364 | I15: 3 | J15: 0.78 (0.71, 0.86) | K15: 8.69E-07 | L15: rs485499 | M15: 3 | N15: 0.86 (0.81, 0.91) | O15: 6.561e-08
A16: BLK | B16: rs2736345 | C16: 1.30 (1.16, 1.47) | D16: 4.97E-10 | E16: European | F16: Immunochip; Meta-analysis | G16: Lessard, et al. 2013 (PMID: 24097067) | H16: rs2409780 | I16: 8 | J16: 1.18 (1.10, 1.25) | K16: 3.57E-07 | L16: rs4840565 | M16: 8 | N16: 1.16 (1.09, 1.24) | O16: 4.036e-13
A17: CXCR5 | B17: rs7119038 | C17: 0.74 (0.64, 0.86) | D17: 1.10E-08 | E17: European | F17: Immunochip; Meta-analysis | G17: Lessard, et al. 2013 (PMID: 24097067) | H17: rs7123726 | I17: 11 | J17: 0.83 (0.77, 0.89) | K17: 6.80E-07 | L17: rs7481819 | M17: 11 | N17: 0.83 (0.77, 0.89) | O17: 2.977e-09
A18: TNIP1 | B18: rs6579837 | C18: 1.43 (1.20, 1.71) | D18: 3.30E-08 | E18: European | F18: Immunochip; Meta-analysis | G18: Lessard, et al. 2013 (PMID: 24097067) | H18: rs1422673 | I18: 5 | J18: 1.24 (1.16, 1.33) | K18: 4.29E-10 | L18: rs1422673 | M18: 5 | N18: 1.24 (1.16, 1.33) | O18: 5.935e-10
A19: OAS1 | B19: rs10774671 | C19: 0.75 (0.66, 0.86) | D19: 2.59E-09 | E19: European | F19: Candidate Gene Study | G19: Li, et al. 2017 (PMID: 28640813) | H19: rs10774671 | I19: 12 | J19: 0.98 (0.93, 1.05) | K19: 0.7056 | L19: - | M19: - | N19: - | O19: -
A20: TNFAIP3 | B20: rs5029939 | C20: 1.67 (1.40, 1.99) | D20: 7.75E-09 | E20: Han Chinese | F20: GWAS | G20: Li, et al. 2013 (PMID: 24097066) | H20: rs61117627 | I20: 6 | J20: 1.45 (1.26, 1.67) | K20: 2.52E-07 | L20: rs61117627 | M20: 6 | N20: 1.45 (1.26, 1.67) | O20: 3.323e-08
A21: GTF21RD1-NCF1 | B21: rs117026326 | C21: 2.20 (1.99, 2.43) | D21: 1.31E-53 | E21: Han Chinese | F21: GWAS | G21: Li, et al. 2013 (PMID: 24097066) | H21: rs118104623 | I21: 7 | J21: 1.18 (1.03, 1.34) | K21: 1.20E-02 | L21: rs118104623 | M21: 7 | N21: 1.18 (1.03, 1.34) | O21: 0.01925
A22: GTF21RD1-NCF1 | B22: rs117026326 | C22: 1.98 (1.67, 2.35) | D22: 1.10E-15 | E22: Han Chinese, Females | F22: GWAS | G22: Song, et al. 2016 (PMID: 27503288) | H22: rs116874762 | I22: 7 | J22: 1.17 (1.02, 1.33) | K22: 0.01684 | L22: rs116874762 | M22: 7 | N22: 1.17 (1.02, 1.33) | O22: 0.02519
A23: GTF21RD1-NCF1 | B23: rs117026326 | C23: 2.03 (1.06, 2.57) | D23: 4.60E-09 | E23: Chinese | F23: Candidate Gene Study | G23: Zhao, et al. 2017 (PMID: | H23: rs73137172 | I23: 7 | J23: 0.905 (0.82, 0.99) | K23: 0.03114 | L23: rs73137172 | M23: 7 | N23: 0.905 (0.82, 0.99) | O23: 0.1315
A24: IKZF1 | B24: rs4917129 | C24: 0.70 (0.61, 0.79) | D24: 4.24E-08 | E24: Han Chinese | F24: Candidate Gene Study | G24: Qu, et al. 2017 (PMID: 28552951) | H24: rs1456894 | I24: 7 | J24: 1.09 (1.03, 1.16) | K24: 0.003423 | L24: rs1456894 | M24: 7 | N24: 1.09 (1.03, 1.16) | O24: 0.02019
A25: MICA | B25: MICA*008 | C25: 1.90 (1.56, 2.31) | D25: 9.37E-09 | E25: European | F25: Candidate Gene Study | G25: Carapito, et al. 2017 (PMID: 28379387) | H25: - | I25: - | J25: - | K25: - | L25: - | M25: - | N25: - | O25: -

Sheet Suppl Data 2
A1: Supplementary Data 2: Summary of samples contributed by each collaborating institution/cohort
A2: PRE-QC | X2: POST-QC
C3: Dataset 1 (Omni1) | E3: Dataset 2 (OmniExp) | G3: Dataset 3 (OmniExp) | I3: Dataset 4 (Omni2.5) | K3: Dataset 5 (OmniExp) | M3: Dataset 6 (GSA) | O3: Dataset 7 (ImmunoChIP) | T3: TOTAL | Z3: Dataset 1 (Omni1) | AB3: Dataset 2 (OmniExp) | AD3: Dataset 3 (OmniExp) | AF3: Dataset 4 (Omni2.5) | AH3: Dataset 5 (OmniExp) | AJ3: Dataset 6 (GSA) | AL3: Dataset 7 (ImmunoChIP) | AP3: TOTAL
C4: Phase 1 | E4: Scandinavian-1 | G4: Non-Scandinavian | I4: SICCA | K4: Scandinavian-2 | M4: PRECISESADS | O4: ImmunoChip | S4: Case | T4: =SUM(D6,F6,H6,J6,L6,N6,P6) -> 3885 | Z4: Phase 1 | AB4: Scandinavian | AD4: Non-Scandinavian | AF4: SICCA | AH4: Scandinavian-2 | AJ4: PRECISESADS | AL4: ImmunoChip | AO4: Cases | AP4: =SUM(AA6,AC6,AE6,AG6,AI6,AK6) -> 3232
A5: Cohort | B5: Investigator | C5: Control | D5: Case | E5: Control | F5: Case | G5: Control | H5: Case | I5: Control | J5: Case | K5: Control | L5: Case | M5: Control | N5: Case | O5: Control | P5: Case | Q5: TOTAL | S5: Control | T5: =SUM(C6,E6,G6,I6,K6,M6,O6) -> 23725 | X5: Cohort | Y5: Primary Investigator | Z5: Control | AA5: Case | AB5: Control | AC5: Case | AD5: Control | AE5: Case | AF5: Control | AG5: Case | AH5: Control | AI5: Case | AJ5: Control | AK5: Case | AL5: Control | AM5: Case | AO5: Controls | AP5: =SUM(Z6,AB6,AD6,AF6,AH6,AJ6) -> 17481
B6: Sum | C6: =SUM(C9:C34) -> 1975 | D6: 395 | E6: 6676 | F6: 817 | G6: 5112 | H6: 930 | I6: 3334 | J6: 668 | K6: 0 | L6: 195 | M6: 457 | N6: 261 | O6: 6171 | P6: 619 | Q6: =SUM(C6:P6) -> 27610 | Y6: Sum | Z6: 1974 | AA6: =SUM(AA9:AA34) -> 394 | AB6: =SUM(AB9:AB34) -> 6663 | AC6: =SUM(AC9:AC34) -> 814 | AD6: =SUM(AD9:AD34) -> 5090 | AE6: 922 | AF6: =SUM(AF9:AF34) -> 3310 | AG6: 657 | AH6: 0 | AI6: 188 | AJ6: 444 | AK6: 257 | AL6: 6171 | AM6: 619 | AO6: Total GWAS Subjects post-QC
Y7: Sex | Z7: Female | AA7: Male | AB7: Female | AC7: Male | AD7: Female | AE7: Male | AF7: Female | AG7: Male | AH7: Female | AI7: Male | AJ7: Female | AK7: Male | AL7: Female | AM7: Male
Z8: 1464 | AA8: 905 | AB8: 4405 | AC8: 3072 | AD8: 5551 | AE8: 491 | AF8: 1103 | AG8: 2864 | AH8: 173 | AI8: 15 | AJ8: 586 | AK8: 115 | AL8: 5047 | AM8: 1743
A9: dbGaP (phs000428) | E9: 186 | G9: 5050 | I9: 3334 | Q9: =SUM(C9:P9) -> 8570 | X9: dbGap (phs000428) | AB9: 186 | AD9: 5023 | AF9: 3310
A10: OSLO | B10: Nordmark | E10: 6490 | G10: 62 | K10: 0 | L10: 136 | Q10: =SUM(C10:P10) -> 6688 | X10: OSLO | Y10: Nordmark | AB10: 6477 | AD10: 62 | AI10: 130
A11: OMRF | B11: Farris | D11: 266 | F11: 1 | H11: 173 | O11: 11 | P11: 51 | Q11: 502 | X11: OMRF | Y11: Farris | AA11: 265 | AC11: 1 | AD11: 5 | AL11: 11 | AM11: 51
A12: UCSF | B12: Criswell (dbGaP) | J12: 668 | Q12: 668 | X12: UCSF | Y12: Criswell (dbGaP) | AG12: 657
A13: Malmo | B13: Theander | F13: 144 | H13: 18 | K13: 0 | L13: 19 | P13: 3 | Q13: 184 | X13: Malmo | Y13: Theander | AC13: 144 | AI13: 19 | AM13: 3
A14: Stockholm | B14: Wahren-Herlenius | F14: 167 | H14: 19 | K14: 0 | L14: 28 | O14: 56 | P14: 17 | Q14: 287 | X14: Stockholm | Y14: Wahren-Herlenius | AC14: 166 | AI14: 27 | AL14: 56 | AM14: 17
A15: Uppsala | B15: Nordmark | F15: 101 | H15: 4 | K15: 0 | L15: 12 | O15: 63 | P15: 18 | Q15: 198 | X15: Uppsala | Y15: Nordmark | AC15: 101 | AI15: 12 | AL15: 63 | AM15: 18
A16: Granada | B16: Alarcon-Riquelme | M16: 457 | N16: 261 | Q16: 718 | X16: Granada | Y16: Alarcon-Riquelme | AJ16: 444 | AK16: 257
A17: SLEGEN | B17: Gaffney | O17: 933 | Q17: 933 | X17: SLEGEN | Y17: Gaffney | AL17: 933
A18: HUNTS | B18: Omdal | O18: 1988 | Q18: 1988 | X18: HUNTS | Y18: Omdal | AL18: 1988
A19: ORDRCC | B19: James | O19: 864 | Q19: 864 | X19: ORDRCC | Y19: James | AL19: 864
A20: UK | B20: Wan-Fai Ng | D20: 129 | H20: 464 | O20: 4 | P20: 30 | Q20: 627 | X20: UK | Y20: Wan-Fai Ng | AA20: 129 | AL20: 4 | AM20: 30
A21: Stavanger | B21: Omdal | F21: 85 | H21: 5 | O21: 50 | P21: 5 | Q21: 145 | X21: Adelaide | Y21: Rischmueller | AL21: 74 | AM21: 19
A22: Adelaide | B22: Rischmueller | H22: 121 | O22: 74 | P22: 19 | Q22: 214 | X22: UMN Sjogrens | Y22: Lessard | AL22: 987
A23: UMN Sjogrens | B23: Lessard | O23: 987 | Q23: 987 | X23: Swedish Control | Y23: Rönnblom | AL23: 901
A24: Swedish Control | B24: Rönnblom | O24: 901 | Q24: 901 | X24: Hannover | Y24: Witte | AC24: 3 | AL24: 108 | AM24: 26
A25: Hannover | B25: Witte | F25: 3 | H25: 98 | O25: 108 | P25: 26 | Q25: 235 | X25: FRE | Y25: Mariette | AM25: 295
A26: Linkoping | B26: Nordmark | F26: 119 | H26: 3 | P26: 3 | Q26: 125 | X26: NIH/NIDCR | Y26: Warner | AM26: 132
A27: FRE | B27: Mariette | P27: 295 | Q27: 295 | X27: Goteborg | Y27: Nordmark | AC27: 48 | AM27: 3
A28: NIH/NIDCR | B28: Warner | P28: 132 | Q28: 132 | X28: UMN | Y28: Lessard | AM28: 6
A29: Goteborg | B29: Gunnel | F29: 48 | H29: 5 | P29: 3 | Q29: 56 | X29: Bergen | Y29: Appel | AC29: 120 | AL29: 132 | AM29: 11
A30: UMN | B30: Lessard | P30: 6 | Q30: 6 | X30: Autolymphoma | Y30: Nordmark | AC30: 9
A31: Bergen | B31: Appel | F31: 121 | H31: 17 | O31: 132 | P31: 11 | Q31: 281 | X31: Linkoping | Y31: Nordmark | AC31: 119 | AM31: 3
A32: Autolymphoma | B32: Nordmark | F32: 9 | Q32: 9 | X32: Orbro | Y32: Nordmark | AC32: 19
A33: Orbro | B33: Nordmark | F33: 19 | H33: 3 | Q33: 22 | X33: Stavanger | Y33: Omdal | AC33: 84 | AL33: 50 | AM33: 5
A34: Lessard et al 2013 (NatGen) | B34: Lessard | C34: 1975 | Q34: 1975 | X34: Lessard et al 2013 (NatGen) | Y34: Lessard | Z34: 1974

Sheet Suppl Data 3
A1: Supplementary Data 3: Suggestive GWS regions in Sjogren's disease of European Ancestry
A2: Note: CHR=Chromosome; BP=Basepair; A1=Major allele; A2=Minor allele; MAF=Minor allele frequency; OR=Odd ratio; P=P value
D3: Alleles | F3: MAF | H3: GWAS | I3: GWAS dataset
A4: rsID | B4: CHR | C4: BP (GRCh37/hg19) | D4: A1 | E4: A2 | F4: Cases | G4: Controls | H4: Genotyped or Imputed | I4: OR (95% CI) | J4: P | K4: Gene Symbol
A5: rs4949166 | B5: 1 | C5: 5183812 | D5: T | E5: C | F5: 0.1382 | G5: 0.1608 | H5: Imputed | I5: 0.84(0.77-0.91) | J5: 2.64E-05 | K5: AJAP1
A6: rs113818148 | B6: 1 | C6: 20083582 | D6: A | E6: G | F6: 0.06592 | G6: 0.0836 | H6: Imputed | I6: 0.75(0.67-0.84) | J6: 1.26E-06 | K6: TMCO4
A7: rs4261159 | B7: 1 | C7: 92629326 | D7: C | E7: T | F7: 0.4155 | G7: 0.3904 | H7: Imputed | I7: 1.13(1.07-1.2) | J7: 3.36E-05 | K7: KIAA1107
A8: rs12023260 | B8: 1 | C8: 99268804 | D8: A | E8: G | F8: 0.1546 | G8: 0.1377 | H8: Imputed | I8: 1.19(1.1-1.29) | J8: 1.71E-05 | K8: SNX7
A9: rs9662345 | B9: 1 | C9: 112357306 | D9: C | E9: T | F9: 0.5051 | G9: 0.4783 | H9: Imputed | I9: 1.13(1.07-1.2) | J9: 2.00E-05 | K9: KCND3
A10: rs56661631 | B10: 1 | C10: 150587388 | D10: T | E10: C | F10: 0.304 | G10: 0.3357 | H10: Imputed | I10: 0.88(0.83-0.94) | J10: 4.43E-05 | K10: ENSA
A11: rs6669223 | B11: 1 | C11: 157540981 | D11: T | E11: A | F11: 0.3596 | G11: 0.395 | H11: Imputed | I11: 0.88(0.82-0.93) | J11: 1.07E-05 | K11: FCRL4
A12: rs6658353 | B12: 1 | C12: 161469054 | D12: G | E12: C | F12: 0.4538 | G12: 0.4855 | H12: Imputed | I12: 0.88(0.83-0.93) | J12: 5.63E-06 | K12: FCGR2A
A13: rs2056626 | B13: 1 | C13: 167420425 | D13: G | E13: T | F13: 0.3773 | G13: 0.404 | H13: Genotyped | I13: 0.87(0.82-0.92) | J13: 1.65E-06 | K13: CD247
A14: rs7523907 | B14: 1 | C14: 167427247 | D14: C | E14: T | F14: 0.4014 | G14: 0.4325 | H14: Imputed | I14: 0.86(0.81-0.91) | J14: 2.35E-07 | K14: CD247
A15: rs12145681 | B15: 1 | C15: 171784759 | D15: T | E15: C | F15: 0.02509 | G15: 0.03524 | H15: Imputed | I15: 0.68(0.56-0.81) | J15: 2.33E-05 | K15: METTL13
A16: rs3024493 | B16: 1 | C16: 206943968 | D16: A | E16: C | F16: 0.1797 | G16: 0.1548 | H16: Genotyped | I16: 1.19(1.1-1.28) | J16: 6.85E-06 | K16: IL10
A17: rs1173658 | B17: 1 | C17: 245626920 | D17: T | E17: C | F17: 0.3372 | G17: 0.3117 | H17: Imputed | I17: 1.13(1.07-1.21) | J17: 4.41E-05 | K17: KIF26B
A18: rs35030383 | B18: 2 | C18: 20242825 | D18: A | E18: G | F18: 0.3419 | G18: 0.3703 | H18: Imputed | I18: 0.87(0.82-0.93) | J18: 1.02E-05 | K18: LAPTM4A
A19: rs6726893 | B19: 2 | C19: 52693904 | D19: C | E19: T | F19: 0.2763 | G19: 0.3037 | H19: Imputed | I19: 0.87(0.81-0.92) | J19: 1.19E-05 | K19: ASB3
A20: rs2589064 | B20: 2 | C20: 55509306 | D20: T | E20: G | F20: 0.03788 | G20: 0.02963 | H20: Imputed | I20: 1.39(1.2-1.61) | J20: 1.54E-05 | K20: PRORSD1P
A21: rs2678900 | B21: 2 | C21: 58177683 | D21: G | E21: T | F21: 0.4479 | G21: 0.4185 | H21: Imputed | I21: 1.13(1.07-1.2) | J21: 2.91E-05 | K21: VRK2
A22: rs76611642 | B22: 2 | C22: 82296654 | D22: T | E22: C | F22: 0.296 | G22: 0.3131 | H22: Imputed | I22: 0.84(0.79-0.9) | J22: 7.89E-08 | K22: LOC1720
A23: rs12712090 | B23: 2 | C23: 101826225 | D23: A | E23: G | F23: 0.47 | G23: 0.4437 | H23: Imputed | I23: 1.13(1.07-1.19) | J23: 3.29E-05 | K23: C2orf29
A24: rs1918877 | B24: 2 | C24: 145643334 | D24: A | E24: T | F24: 0.4 | G24: 0.4255 | H24: Imputed | I24: 0.88(0.83-0.94) | J24: 3.22E-05 | K24: DKFZp686O1327
A25: rs4286272 | B25: 2 | C25: 198535678 | D25: T | E25: C | F25: 0.5059 | G25: 0.4759 | H25: Imputed | I25: 1.13(1.06-1.19) | J25: 4.85E-05 | K25: RFTN2
A26: rs11889326 | B26: 2 | C26: 198899275 | D26: A | E26: C | F26: 0.4636 | G26: 0.4949 | H26: Imputed | I26: 0.88(0.84-0.94) | J26: 2.49E-05 | K26: PLCL1
A27: rs58478831 | B27: 2 | C27: 204262626 | D27: C | E27: G | F27: 0.3729 | G27: 0.3523 | H27: Imputed | I27: 1.13(1.07-1.2) | J27: 4.54E-05 | K27: ABI2
A28: rs1179724 | B28: 2 | C28: 217732382 | D28: C | E28: T | F28: 0.4495 | G28: 0.4229 | H28: Imputed | I28: 1.14(1.07-1.2) | J28: 1.73E-05 | K28: TNP1
A29: rs4854005 | B29: 2 | C29: 241105245 | D29: C | E29: G | F29: 0.4488 | G29: 0.4208 | H29: Imputed | I29: 1.13(1.07-1.2) | J29: 2.33E-05 | K29: OTOS
A30: rs712772 | B30: 3 | C30: 7447256 | D30: C | E30: T | F30: 0.1692 | G30: 0.1514 | H30: Imputed | I30: 1.18(1.09-1.27) | J30: 3.10E-05 | K30: GRM7
A31: rs2968493 | B31: 3 | C31: 28057550 | D31: A | E31: G | F31: 0.471 | G31: 0.4433 | H31: Imputed | I31: 1.14(1.07-1.2) | J31: 1.42E-05 | K31: CMC1
A32: rs282543 | B32: 3 | C32: 56635192 | D32: G | E32: A | F32: 0.2111 | G32: 0.1836 | H32: Imputed | I32: 1.18(1.1-1.27) | J32: 3.32E-06 | K32: CCDC66
A33: rs34423355 | B33: 3 | C33: 64688474 | D33: G | E33: T | F33: 0.1332 | G33: 0.1545 | H33: Imputed | I33: 0.83(0.76-0.9) | J33: 1.10E-05 | K33: LOC100507098
A34: rs9834628 | B34: 3 | C34: 102016965 | D34: A | E34: G | F34: 0.3086 | G34: 0.277 | H34: Imputed | I34: 1.16(1.09-1.24) | J34: 1.46E-06 | K34: ZPLD1
A35: rs111622151 | B35: 3 | C35: 105672113 | D35: A | E35: G | F35: 0.1933 | G35: 0.2139 | H35: Imputed | I35: 0.86(0.8-0.92) | J35: 3.57E-05 | K35: CBLB
A36: rs115312099 | B36: 3 | C36: 112414223 | D36: A | E36: G | F36: 0.06363 | G36: 0.07971 | H36: Imputed | I36: 0.76(0.67-0.85) | J36: 4.44E-06 | K36: LOC100630917
A37: rs6779801 | B37: 3 | C37: 116189380 | D37: G | E37: A | F37: 0.1164 | G37: 0.09952 | H37: Imputed | I37: 1.23(1.13-1.35) | J37: 4.23E-06 | K37: LSAMP
A38: rs75631262 | B38: 3 | C38: 121503455 | D38: C | E38: T | F38: 0.05034 | G38: 0.06456 | H38: Imputed | I38: 0.74(0.65-0.85) | J38: 9.56E-06 | K38: IQCB1
A39: rs9882812 | B39: 3 | C39: 133506127 | D39: G | E39: A | F39: 0.2916 | G39: 0.3191 | H39: Imputed | I39: 0.87(0.82-0.92) | J39: 1.19E-05 | K39: SRPRB
A40: rs13327370 | B40: 3 | C40: 197744198 | D40: G | E40: A | F40: 0.2089 | G40: 0.2343 | H40: Genotyped | I40: 0.84(0.78-0.9) | J40: 1.38E-06 | K40: LMLN
A41: rs71608210 | B41: 4 | C41: 2599559 | D41: C | E41: T | F41: 0.09413 | G41: 0.07641 | H41: Imputed | I41: 1.23(1.12-1.36) | J41: 3.71E-05 | K41: FAM193A
A42: rs36116957 | B42: 4 | C42: 2604990 | D42: C | E42: T | F42: 0.09462 | G42: 0.07684 | H42: Imputed | I42: 1.24(1.12-1.37) | J42: 2.75E-05 | K42: FAM193A
A43: rs12510356 | B43: 4 | C43: 7142927 | D43: G | E43: C | F43: 0.4337 | G43: 0.4654 | H43: Imputed | I43: 0.88(0.83-0.94) | J43: 2.46E-05 | K43: FLJ36777
A44: rs1478519849 | B44: 4 | C44: 17152123 | D44: T | E44: C | F44: 0.1446 | G44: 0.1617 | H44: Imputed | I44: 0.84(0.77-0.91) | J44: 1.68E-05
A45: rs28668622 | B45: 4 | C45: 27029173 | D45: C | E45: T | F45: 0.2963 | G45: 0.3204 | H45: Imputed | I45: 0.88(0.82-0.93) | J45: 2.91E-05 | K45: STIM2
A46: rs59885107 | B46: 4 | C46: 37678138 | D46: T | E46: C | F46: 0.0633 | G46: 0.05059 | H46: Imputed | I46: 1.28(1.14-1.45) | J46: 3.54E-05 | K46: RELL1
A47: rs4432731 | B47: 4 | C47: 155080330 | D47: T | E47: C | F47: 0.06658 | G47: 0.05222 | H47: Genotyped | I47: 1.28(1.14-1.44) | J47: 4.12E-05 | K47: DCHS2
A48: rs10016251 | B48: 4 | C48: 188073901 | D48: C | E48: G | F48: 0.07593 | G48: 0.06256 | H48: Imputed | I48: 1.27(1.14-1.42) | J48: 2.28E-05 | K48: LOC339975
A49: rs324446 | B49: 5 | C49: 32454038 | D49: T | E49: C | F49: 0.3311 | G49: 0.356 | H49: Imputed | I49: 0.87(0.82-0.93) | J49: 8.13E-06 | K49: ZFR
A50: rs116834412 | B50: 5 | C50: 61003632 | D50: G | E50: A | F50: 0.02968 | G50: 0.02222 | H50: Imputed | I50: 1.43(1.21-1.69) | J50: 2.93E-05 | K50: C5orf64
A51: rs490319 | B51: 5 | C51: 103096061 | D51: G | E51: C | F51: 0.2268 | G51: 0.2521 | H51: Imputed | I51: 0.86(0.81-0.92) | J51: 2.32E-05 | K51: NUDT12
A52: rs526531 | B52: 6 | C52: 106570056 | D52: A | E52: G | F52: 0.3521 | G52: 0.3251 | H52: Genotyped | I52: 1.14(1.07-1.21) | J52: 2.10E-05 | K52: PRDM1
A53: rs529038 | B53: 6 | C53: 117622233 | D53: T | E53: C | F53: 0.2996 | G53: 0.2711 | H53: Imputed | I53: 1.18(1.11-1.25) | J53: 2.80E-07 | K53: ROS1
A54: rs61117627 | B54: 6 | C54: 138243700 | D54: A | E54: G | F54: 0.04395 | G54: 0.03192 | H54: Genotyped | I54: 1.46(1.26-1.68) | J54: 2.52E-07 | K54: TNFAIP3
A55: rs13213664 | B55: 6 | C55: 141269508 | D55: C | E55: A | F55: 0.1666 | G55: 0.1479 | H55: Imputed | I55: 1.21(1.12-1.3) | J55: 1.26E-06 | K55: 95kb_5_of_RP3-460G2.2
A56: rs117532170 | B56: 6 | C56: 159143722 | D56: T | E56: C | F56: 0.01607 | G56: 0.01062 | H56: Imputed | I56: 1.63(1.31-2.04) | J56: 1.46E-05 | K56: SYTL3
A57: rs6903540 | B57: 6 | C57: 160410331 | D57: C | E57: T | F57: 0.07871 | G57: 0.09983 | H57: Imputed | I57: 0.77(0.7-0.86) | J57: 1.69E-06 | K57: IGF2R
A58: rs12702508 | B58: 7 | C58: 1280952 | D58: G | E58: C | F58: 0.2725 | G58: 0.2475 | H58: Imputed | I58: 1.17(1.1-1.25) | J58: 1.30E-06 | K58: UNCX
A59: rs75171064 | B59: 7 | C59: 20702562 | D59: G | E59: T | F59: 0.09216 | G59: 0.07845 | H59: Imputed | I59: 1.3(1.18-1.44) | J59: 1.04E-07 | K59: ABCB5
A60: rs66786410 | B60: 7 | C60: 73380092 | D60: G | E60: A | F60: 0.1901 | G60: 0.1657 | H60: Imputed | I60: 1.2(1.12-1.29) | J60: 1.16E-06 | K60: ELN
A61: rs2012739 | B61: 8 | C61: 1297437 | D61: C | E61: T | F61: 0.4283 | G61: 0.4179 | H61: Imputed | I61: 1.15(1.08-1.22) | J61: 3.13E-06 | K61: LOC286083
A62: rs7823898 | B62: 8 | C62: 8803487 | D62: G | E62: T | F62: 0.427 | G62: 0.396 | H62: Imputed | I62: 1.14(1.08-1.21) | J62: 6.78E-06 | K62: MFHAS1
A63: rs10453113 | B63: 8 | C63: 75867758 | D63: A | E63: T | F63: 0.1538 | G63: 0.1802 | H63: Imputed | I63: 0.84(0.77-0.9) | J63: 7.54E-06 | K63: CRISPLD1
A64: rs1491396984 | B64: 9 | C64: 10261096 | D64: G | E64: T | F64: 0.2545 | G64: 0.26 | H64: Imputed | I64: 0.86(0.8-0.92) | J64: 7.94E-06 | K64: PTPRD
A65: rs10979737 | B65: 9 | C65: 111951795 | D65: T | E65: A | F65: 0.03411 | G65: 0.02651 | H65: Imputed | I65: 1.44(1.23-1.68) | J65: 3.68E-06 | K65: EPB41L4B
A66: rs11497294 | B66: 9 | C66: 136411231 | D66: A | E66: G | F66: 0.4929 | G66: 0.467 | H66: Imputed | I66: 1.15(1.08-1.21) | J66: 4.00E-06 | K66: ADAMTSL2
A67: rs117015001 | B67: 10 | C67: 26467961 | D67: T | E67: C | F67: 0.06133 | G67: 0.04773 | H67: Imputed | I67: 1.33(1.18-1.5) | J67: 2.17E-06 | K67: MYO3A
A68: rs898548 | B68: 10 | C68: 44396631 | D68: A | E68: G | F68: 0.345 | G68: 0.3184 | H68: Imputed | I68: 1.16(1.09-1.23) | J68: 2.17E-06 | K68: LOC100506835
A69: rs80037982 | B69: 10 | C69: 91669794 | D69: T | E69: C | F69: 0.06281 | G69: 0.0479 | H69: Imputed | I69: 1.33(1.18-1.5) | J69: 3.12E-06 | K69: LOC643529
A70: rs4963140 | B70: 11 | C70: 588654 | D70: C | E70: T | F70: 0.367 | G70: 0.3915 | H70: Imputed | I70: 0.87(0.82-0.92) | J70: 4.05E-06 | K70: PHRF1
A71: rs174478 | B71: 11 | C71: 61678576 | D71: G | E71: T | F71: 0.3829 | G71: 0.4212 | H71: Imputed | I71: 0.84(0.8-0.89) | J71: 1.12E-08 | K71: RAB3IL1
A72: rs7950382 | B72: 11 | C72: 90300804 | D72: A | E72: G | F72: 0.3431 | G72: 0.338 | H72: Imputed | I72: 1.15(1.08-1.22) | J72: 7.23E-06 | K72: MIR4490
A73: rs450565 | B73: 13 | C73: 111299061 | D73: T | E73: C | F73: 0.3667 | G73: 0.3409 | H73: Imputed | I73: 1.15(1.08-1.22) | J73: 7.77E-06 | K73: CARS2
A74: rs75536233 | B74: 15 | C74: 57677252 | D74: A | E74: C | F74: 0.1063 | G74: 0.1274 | H74: Imputed | I74: 0.79(0.72-0.86) | J74: 4.59E-07 | K74: CGNL1
A75: rs56757736 | B75: 16 | C75: 26951095 | D75: A | E75: G | F75: 0.3391 | G75: 0.3757 | H75: Imputed | I75: 0.86(0.81-0.92) | J75: 1.42E-06 | K75: C16orf82
A76: rs17445836 | B76: 16 | C76: 86017663 | D76: A | E76: G | F76: 0.2038 | G76: 0.2352 | H76: Imputed | I76: 0.85(0.8-0.92) | J76: 9.04E-06 | K76: IRF8
A77: rs11644935 | B77: 16 | C77: 89917235 | D77: T | E77: G | F77: 0.03198 | G77: 0.03063 | H77: Imputed | I77: 0.63(0.51-0.76) | J77: 3.65E-06 | K77: SPIRE2
A78: rs4538126 | B78: 19 | C78: 16398369 | D78: T | E78: C | F78: 0.366 | G78: 0.3341 | H78: Imputed | I78: 1.15(1.08-1.22) | J78: 3.97E-06 | K78: KLF2
A79: rs146827176 | B79: 20 | C79: 35169916 | D79: T | E79: C | F79: 0.06215 | G79: 0.05202 | H79: Imputed | I79: 1.31(1.17-1.48) | J79: 5.03E-06 | K79: MYL9
A80: rs9625166 | B80: 22 | C80: 27557735 | D80: T | E80: G | F80: 0.09101 | G80: 0.07664 | H80: Imputed | I80: 1.26(1.14-1.39) | J80: 5.19E-06 | K80: MIAT

Sheet Suppl Data 4
A1: Supplementary Data 4: Epigenetic Enrichment Analysis of GWS Sjögren-SNPs in different cells and tissues
A2: Epigenome ID (EID) | B2: Group | C2: Mnemonic | D2: Description | E2: Bed_File | F2: Marks | G2: InBed_Index_SNP | H2: ExpectNum_of_InBed_SNP | I2: PValue
A3: E001 | B3: ESC | C3: ESC.I3 | D3: ES-I3 Cells | E3: H4K5ac.imputed.narrowPeak.bed.nPk | F3: H4K5ac | G3: 247 | H3: 176.3805894 | I3: 8.71E-14
A4: E001 | B4: ESC | C4: ESC.I3 | D4: ES-I3 Cells | E4: H3K23ac.imputed.narrowPeak.bed.nPk | F4: H3K23ac | G4: 176 | H4: 95.16472006 | I4: 6.33E-21
A5: E001 | B5: ESC | C5: ESC.I3 | D5: ES-I3 Cells | E5: H3K9ac.imputed.narrowPeak.bed.nPk | F5: H3K9ac | G5: 251 | H5: 198.7402371 | I5: 2.45E-08
A6: E001 | B6: ESC | C6: ESC.I3 | D6: ES-I3 Cells | E6: H3K18ac.imputed.narrowPeak.bed.nPk | F6: H3K18ac | G6: 251 | H6: 206.6496872 | I6: 2.09E-06
A7: E001 | B7: ESC | C7: ESC.I3 | D7: ES-I3 Cells | E7: H3K79me1.imputed.narrowPeak.bed.nPk | F7: H3K79me1 | G7: 175 | H7: 97.14317075 | I7: 1.97E-19
A8: E001 | B8: ESC | C8: ESC.I3 | D8: ES-I3 Cells | E8: H2BK15ac.imputed.narrowPeak.bed.nPk | F8: H2BK15ac | G8: 51 | H8: 1.158997408 | I8: 2.98E-69
A9: E001 | B9: ESC | C9: ESC.I3 | D9: ES-I3 Cells | E9: H3K79me2.imputed.narrowPeak.bed.nPk | F9: H3K79me2 | G9: 265 | H9: 152.0048508 | I9: 2.52E-33
A10: E001 | B10: ESC | C10: ESC.I3 | D10: ES-I3 Cells | E10: H4K12ac.imputed.narrowPeak.bed.nPk | F10: H4K12ac | G10: 219 | H10: 184.754283 | I10: 0.000200597
A11: E001 | B11: ESC | C11: ESC.I3 | D11: ES-I3 Cells | E11: H3K4me1.imputed.narrowPeak.bed.nPk | F11: H3K4me1 | G11: 366 | H11: 320.8620394 | I11: 1.08E-11
A12: E001 | B12: ESC | C12: ESC.I3 | D12: ES-I3 Cells | E12: H3T11ph.imputed.narrowPeak.bed.nPk | F12: H3T11ph | G12: 222 | H12: 153.3196743 | I12: 2.26e-13
A13: E001 | B13: ESC | C13: ESC.I3 | D13: ES-I3 Cells | E13: H2BK120ac.imputed.narrowPeak.bed.nPk | F13: H2BK120ac | G13: 192 | H13: 147.4276635 | I13: 1.57E-06
A14: E001 | B14: ESC | C14: ESC.I3 | D14: ES-I3 Cells | E14: H3K27ac.imputed.narrowPeak.bed.nPk | F14: H3K27ac | G14: 267 | H14: 248.1969493 | I14: 0.022631614
A15: E001 | B15: ESC | C15: ESC.I3 | D15: ES-I3 Cells | E15: DNase.imputed.narrowPeak.bed.nPk | F15: DNase | G15: 320 | H15: 253.9716974 | I15: 3.95E-14
A16: E001 | B16: ESC | C16: ESC.I3 | D16: ES-I3 Cells | E16: H4K91ac.imputed.narrowPeak.bed.nPk | F16: H4K91ac | G16: 187 | H16: 169.3470045 | I16: 0.036550853
A17: E001 | B17: ESC | C17: ESC.I3 | D17: ES-I3 Cells | E17: H3K56ac.imputed.narrowPeak.bed.nPk | F17: H3K56ac | G17: 216 | H17: 138.1579957 | I17: 1.96e-17
A18: E001 | B18: ESC | C18: ESC.I3 | D18: ES-I3 Cells | E18: H3K4me3.imputed.narrowPeak.bed.nPk | F18: H3K4me3 | G18: 311 | H18: 207.8174648 | I18: 1.27E-29
A19: E001 | B19: ESC | C19: ESC.I3 | D19: ES-I3 Cells | E19: H2AK5ac.imputed.narrowPeak.bed.nPk | F19: H2AK5ac | G19: 109 | H19: 49.70244578 | I19: 3.29E-16
A20: E001 | B20: ESC | C20: ESC.I3 | D20: ES-I3 Cells | E20: H3K14ac.imputed.narrowPeak.bed.nPk | F20: H3K14ac | G20: 186 | H20: 154.1299313 | I20: 0.000440292
A21: E001 | B21: ESC | C21: ESC.I3 | D21: ES-I3 Cells | E21: H4K8ac.imputed.narrowPeak.bed.nPk | F21: H4K8ac | G21: 200 | H21: 162.629395 | I21: 5.33E-05
A22: E001 | B22: ESC | C22: ESC.I3 | D22: ES-I3 Cells | E22: H3K4me2.imputed.narrowPeak.bed.nPk | F22: H3K4me2 | G22: 367 | H22: 276.5167461 | I22: 5.94E-32
A23: E001 | B23: ESC | C23: ESC.I3 | D23: ES-I3 Cells | E23: H2AK9ac.imputed.narrowPeak.bed.nPk | F23: H2AK9ac | G23: 176 | H23: 80.15029534 | I23: 2.55E-30
A24: E001 | B24: ESC | C24: ESC.I3 | D24: ES-I3 Cells | E24: H2A.Z.imputed.narrowPeak.bed.nPk | F24: H2A.Z | G24: 342 | H24: 220.5483973 | I24: 4.92E-43
A25: E001 | B25: ESC | C25: ESC.I3 | D25: ES-I3 Cells | E25: H3K4ac.imputed.narrowPeak.bed.nPk | F25: H3K4ac | G25: 235 | H25: 156.6423408 | I25: 1.52e-16
A26: E001 | B26: ESC | C26: ESC.I3 | D26: ES-I3 Cells | E26: H2BK12ac.imputed.narrowPeak.bed.nPk | F26: H2BK12ac | G26: 149 | H26: 93.8806036 | I26: 2.25e-10
A27: E001 | B27: ESC | C27: ESC.I3 | D27: ES-I3 Cells | E27: H3K9me3.imputed.narrowPeak.bed.nPk | F27: H3K9me3 | G27: 181 | H27: 203.8247219 | I27: 0.994382892
A28: E001 | B28: ESC | C28: ESC.I3 | D28: ES-I3 Cells | E28: H2BK5ac.imputed.narrowPeak.bed.nPk | F28: H2BK5ac | G28: 182 | H28: 168.9394829 | I28: 0.093444629
A29: E001 | B29: ESC | C29: ESC.I3 | D29: ES-I3 Cells | E29: H3K36me3.imputed.narrowPeak.bed.nPk | F29: H3K36me3 | G29: 292 | H29: 153.0290657 | I29: 3.29E-50
A30: E001 | B30: ESC | C30: ESC.I3 | D30: ES-I3 Cells | E30: H3K27me3.imputed.narrowPeak.bed.nPk | F30: H3K27me3 | G30: 236 | H30: 143.6191998 | I30: 1.92e-22
A31: E001 | B31: ESC | C31: ESC.I3 | D31: ES-I3 Cells | E31: H4K20me1.imputed.narrowPeak.bed.nPk | F31: H4K20me1 | G31: 253 | H31: 84.86338119 | I31: 3.89E-79
A32: E001 | B32: ESC | C32: ESC.I3 | D32: ES-I3 Cells | E32: H3K23me2.imputed.narrowPeak.bed.nPk | F32: H3K23me2 | G32: 158 | H32: 131.2045312 | I32: 0.002069156
A33: E002 | B33: ESC | C33: ESC.WA7 | D33: ES-WA7 Cells | E33: H3K27ac.imputed.narrowPeak.bed.nPk | F33: H3K27ac | G33: 222 | H33: 162.902844 | I33: 3.34E-10
A34: E002 | B34: ESC | C34: ESC.WA7 | D34: ES-WA7 Cells | E34: H4K20me1.imputed.narrowPeak.bed.nPk | F34: H4K20me1 | G34: 216 | H34: 81.45062326 | I34: 2.88E-53
A35: E002 | B35: ESC | C35: ESC.WA7 | D35: ES-WA7 Cells | E35: DNase.imputed.narrowPeak.bed.nPk | F35: DNase | G35: 296 | H35: 214.5948021 | I35: 6.95E-19
A36: E002 | B36: ESC | C36: ESC.WA7 | D36: ES-WA7 Cells | E36: H3K56ac.imputed.narrowPeak.bed.nPk | F36: H3K56ac | G36: 21 | H36: 6.181040551 | I36: 8.23E-07
A37: E002 | B37: ESC | C37: ESC.WA7 | D37: ES-WA7 Cells | E37: H3K4me2.imputed.narrowPeak.bed.nPk | F37: H3K4me2 | G37: 304 | H37: 179.6745373 | I37: 1.50E-40
A38: E002 | B38: ESC | C38: ESC.WA7 | D38: ES-WA7 Cells | E38: H4K12ac.imputed.narrowPeak.bed.nPk | F38: H4K12ac | G38: 4 | H38: 2.154451933 | I38: 0.170870192
A39: E002 | B39: ESC | C39: ESC.WA7 | D39: ES-WA7 Cells | E39: H2BK120ac.imputed.narrowPeak.bed.nPk | F39: H2BK120ac | G39: 73 | H39: 22.6241706 | I39: 2.37E-20
A40: E002 | B40: ESC | C40: ESC.WA7 | D40: ES-WA7 Cells | E40: H3K18ac.imputed.narrowPeak.bed.nPk | F40: H3K18ac | G40: 151 | H40: 68.89202428 | I40: 2.02E-24
A41: E002 | B41: ESC | C41: ESC.WA7 | D41: ES-WA7 Cells | E41: H3K4ac.imputed.narrowPeak.bed.nPk | F41: H3K4ac | G41: 90 | H41: 22.83553542 | I41: 1.75E-31
A42: E002 | B42: ESC | C42: ESC.WA7 | D42: ES-WA7 Cells | E42: H2A.Z.imputed.narrowPeak.bed.nPk | F42: H2A.Z | G42: 236 | H42: 162.9170827 | I42: 1.03E-14
A43: E002 | B43: ESC | C43: ESC.WA7 | D43: ES-WA7 Cells | E43: H3K36me3.imputed.narrowPeak.bed.nPk | F43: H3K36me3 | G43: 292 | H43: 153.5415138 | I43: 7.61E-50
A44: E002 | B44: ESC | C44: ESC.WA7 | D44: ES-WA7 Cells | E44: H3K79me1.imputed.narrowPeak.bed.nPk | F44: H3K79me1 | G44: 90 | H44: 39.39721377 | I44: 1.48E-14
A45: E002 | B45: ESC | C45: ESC.WA7 | D45: ES-WA7 Cells | E45: H3K79me2.imputed.narrowPeak.bed.nPk | F45: H3K79me2 | G45: 256 | H45: 137.2652439 | I45: 4.41E-37
A46: E002 | B46: ESC | C46: ESC.WA7 | D46: ES-WA7 Cells | E46: H4K5ac.imputed.narrowPeak.bed.nPk | F46: H4K5ac | G46: 73 | H46: 17.97983543 | I46: 1.96E-26
A47: E002 | B47: ESC | C47: ESC.WA7 | D47: ES-WA7 Cells | E47: H3K14ac.imputed.narrowPeak.bed.nPk | F47: H3K14ac | G47: 73 | H47: 13.072497 | I47: 2.66E-35
A48: E002 | B48: ESC | C48: ESC.WA7 | D48: ES-WA7 Cells | E48: H3K23me2.imputed.narrowPeak.bed.nPk | F48: H3K23me2 | G48: 76 | H48: 6.004913897 | I48: 1.63E-60
A49: E002 | B49: ESC | C49: ESC.WA7 | D49: ES-WA7 Cells | E49: H3K4me3.imputed.narrowPeak.bed.nPk | F49: H3K4me3 | G49: 311 | H49: 191.325298 | I49: 1.99e-38
A50: E002 | B50: ESC | C50: ESC.WA7 | D50: ES-WA7 Cells | E50: H3T11ph.imputed.narrowPeak.bed.nPk | F50: H3T11ph | G50: 11 | H50: 4.266944061 | I50: 0.003283097
A51: E002 | B51: ESC | C51: ESC.WA7 | D51: ES-WA7 Cells | E51: H2BK5ac.imputed.narrowPeak.bed.nPk | F51: H2BK5ac | G51: 90 | H51: 21.9805197 | I51: 1.05e-32
A52: E002 | B52: ESC | C52: ESC.WA7 | D52: ES-WA7 Cells | E52: H3K27me3.imputed.narrowPeak.bed.nPk | F52: H3K27me3 | G52: 236 | H52: 146.0303294 | I52: 2.71e-21
A53: E002 | B53: ESC | C53: ESC.WA7 | D53: ES-WA7 Cells | E53: H3K9ac.imputed.narrowPeak.bed.nPk | F53: H3K9ac | G53: 247 | H53: 162.6851024 | I53: 1.39E-19
A54: E002 | B54: ESC | C54: ESC.WA7 | D54: ES-WA7 Cells | E54: H3K9me3.imputed.narrowPeak.bed.nPk | F54: H3K9me3 | G54: 148 | H54: 206.367472 | I54: 1
A55: E002 | B55: ESC | C55: ESC.WA7 | D55: ES-WA7 Cells | E55: H3K4me1.imputed.narrowPeak.bed.nPk | F55: H3K4me1 | G55: 353 | H55: 318.8955368 | I55: 7.75E-07
A56: E002 | B56: ESC | C56: ESC.WA7 | D56: ES-WA7 Cells | E56: H4K91ac.imputed.narrowPeak.bed.nPk | F56: H4K91ac | G56: 90 | H56: 19.87227913 | I56: 4.85E-36
A57: E002 | B57: ESC | C57: ESC.WA7 | D57: ES-WA7 Cells | E57: H4K8ac.imputed.narrowPeak.bed.nPk | F57: H4K8ac | G57: 119 | H57: 45.50939905 | I57: 2.79E-25
A58: E003 | B58: ESC | C58: ESC.H1 | D58: H1 Cells | E58: H2BK20ac.imputed.narrowPeak.bed.nPk | F58: H2BK20ac | G58: 16 | H58: 16.75406891 | I58: 0.61188727
A59: E003 | B59: ESC | C59: ESC.H1 | D59: H1 Cells | E59: H4K20me1.imputed.narrowPeak.bed.nPk | F59: H4K20me1 | G59: 76 | H59: 40.71293226 | I59: 4.72E-08
A60: E003 | B60: ESC | C60: ESC.H1 | D60: H1 Cells | E60: H3K9ac.imputed.narrowPeak.bed.nPk | F60: H3K9ac | G60: 247 | H60: 180.9556441 | I60: 2.74e-12
A61: E003 | B61: ESC | C61: ESC.H1 | D61: H1 Cells | E61: H3K4ac.imputed.narrowPeak.bed.nPk | F61: H3K4ac | G61: 142 | H61: 68.7602418 | I61: 4.81E-20
A62: E003 | B62: ESC | C62: ESC.H1 | D62: H1 Cells | E62: H2A.Z.imputed.narrowPeak.bed.nPk | F62: H2A.Z | G62: 280 | H62: 202.3317926 | I62: 1.47e-16
A63: E003 | B63: ESC | C63: ESC.H1 | D63: H1 Cells | E63: H2AK5ac.imputed.narrowPeak.bed.nPk | F63: H2AK5ac | G63: 88 | H63: 33.62905289 | I63: 5.22e-18
A64: E003 | B64: ESC | C64: ESC.H1 | D64: H1 Cells | E64: H3T11ph.imputed.narrowPeak.bed.nPk | F64: H3T11ph | G64: 110 | H64: 51.60665931 | I64: 1.16E-15
A65: E003 | B65: ESC | C65: ESC.H1 | D65: H1 Cells | E65: H2BK12ac.imputed.narrowPeak.bed.nPk | F65: H2BK12ac | G65: 77 | H65: 47.98168214 | I65: 1.42E-05
A66: E003 | B66: ESC | C66: ESC.H1 | D66: H1 Cells | E66: H2BK5ac.imputed.narrowPeak.bed.nPk | F66: H2BK5ac | G66: 110 | H66: 56.95199869 | I66: 9.30E-13
A67: E003 | B67: ESC | C67: ESC.H1 | D67: H1 Cells | E67: H4K12ac.imputed.narrowPeak.bed.nPk | F67: H4K12ac | G67: 81 | H67: 58.82232304 | I67: 0.001201154
A68: E003 | B68: ESC | C68: ESC.H1 | D68: H1 Cells | E68: H4K91ac.imputed.narrowPeak.bed.nPk | F68: H4K91ac | G68: 88 | H68: 40.27737022 | I68: 6.23E-13
A69: E003 | B69: ESC | C69: ESC.H1 | D69: H1 Cells | E69: H3K14ac.imputed.narrowPeak.bed.nPk | F69: H3K14ac | G69: 146 | H69: 71.94578433 | I69: 3.78E-20
A70: E003 | B70: ESC | C70: ESC.H1 | D70: H1 Cells | E70: H3K23me2.imputed.narrowPeak.bed.nPk | F70: H3K23me2 | G70: 241 | H70: 165.0804165 | I70: 1.02e-15
A71: E003 | B71: ESC | C71: ESC.H1 | D71: H1 Cells | E71: H2AK9ac.imputed.narrowPeak.bed.nPk | F71: H2AK9ac | G71: 72 | H71: 18.54042385 | I71: 7.50E-25
A72: E003 | B72: ESC | C72: ESC.H1 | D72: H1 Cells | E72: H4K8ac.imputed.narrowPeak.bed.nPk | F72: H4K8ac | G72: 156 | H72: 74.89908309 | I72: 4.10E-23
A73: E003 | B73: ESC | C73: ESC.H1 | D73: H1 Cells | E73: H3K79me2.imputed.narrowPeak.bed.nPk | F73: H3K79me2 | G73: 265 | H73: 148.173817 | I73: 1.46E-35
A74: E003 | B74: ESC | C74: ESC.H1 | D74: H1 Cells | E74: H3K36me3.imputed.narrowPeak.bed.nPk | F74: H3K36me3 | G74: 292 | H74: 150.9281468 | I74: 1.15e-51
A75: E003 | B75: ESC | C75: ESC.H1 | D75: H1 Cells | E75: H3K4me3.imputed.narrowPeak.bed.nPk | F75: H3K4me3 | G75: 311 | H75: 197.3812231 | I75: 5.23E-35
A76: E003 | B76: ESC | C76: ESC.H1 | D76: H1 Cells | E76: H3K56ac.imputed.narrowPeak.bed.nPk | F76: H3K56ac | G76: 119 | H76: 49.02108728 | I76: 1.81E-22
A77: E003 | B77: ESC | C77: ESC.H1 | D77: H1 Cells | E77: DNase.imputed.narrowPeak.bed.nPk | F77: DNase | G77: 310 | H77: 226.9705565 | I77: 2.57E-20
A78: E003 | B78: ESC | C78: ESC.H1 | D78: H1 Cells | E78: H3K4me1.imputed.narrowPeak.bed.nPk | F78: H3K4me1 | G78: 329 | H78: 302.4407971 | I78: 0.000410502
A79: E003 | B79: ESC | C79: ESC.H1 | D79: H1 Cells | E79: H3K18ac.imputed.narrowPeak.bed.nPk | F79: H3K18ac | G79: 146 | H79: 102.1841068 | I79: 4.15E-07
A80: E003 | B80: ESC | C80: ESC.H1 | D80: H1 Cells | E80: H3K27me3.imputed.narrowPeak.bed.nPk | F80: H3K27me3 | G80: 232 | H80: 135.5834254 | I80: 2.09e-24
A81: E003 | B81: ESC | C81: ESC.H1 | D81: H1 Cells | E81: H3K4me2.imputed.narrowPeak.bed.nPk | F81: H3K4me2 | G81: 311 | H81: 203.2598864 | I81: 8.53E-32
A82: E003 | B82: ESC | C82: ESC.H1 | D82: H1 Cells | E82: H3K23ac.imputed.narrowPeak.bed.nPk | F82: H3K23ac | G82: 73 | H82: 18.47725359 | I82: 3.33E-25
A83: E003 | B83: ESC | C83: ESC.H1 | D83: H1 Cells | E83: H3K9me3.imputed.narrowPeak.bed.nPk | F83: H3K9me3 | G83: 145 | H83: 178.2287443 | I83: 0.999896164
A84: E003 | B84: ESC | C84: ESC.H1 | D84: H1 Cells | E84: H2BK120ac.imputed.narrowPeak.bed.nPk | F84: H2BK120ac | G84: 88 | H84: 46.33709667 | I84: 1.12E-09
A85: E003 | B85: ESC | C85: ESC.H1 | D85: H1 Cells | E85: H4K5ac.imputed.narrowPeak.bed.nPk | F85: H4K5ac | G85: 142 | H85: 116.8375833 | I85: 0.002881724
A86: E003 | B86: ESC | C86: ESC.H1 | D86: H1 Cells | E86: H3K27ac.imputed.narrowPeak.bed.nPk | F86: H3K27ac | G86: 281 | H86: 195.9919912 | I86: 6.28E-20
A87: E003 | B87: ESC | C87: ESC.H1 | D87: H1 Cells | E87: H2BK15ac.imputed.narrowPeak.bed.nPk | F87: H2BK15ac | G87: 16 | H87: 11.87587687 | I87: 0.139678768
A88: E003 | B88: ESC | C88: ESC.H1 | D88: H1 Cells | E88: H3K79me1.imputed.narrowPeak.bed.nPk | F88: H3K79me1 | G88: 197 | H88: 63.28235071 | I88: 4.72E-59
A89: E004 | B89: ES-deriv | C89: ESDR.H1.BMP4.MESO | D89: H1 BMP4 Derived Mesendoderm Cultured Cells | E89: H3K36me3.imputed.narrowPeak.bed.nPk | F89: H3K36me3 | G89: 292 | H89: 154.6272012 | I89: 3.88E-49
A90: E004 | B90: ES-deriv | C90: ESDR.H1.BMP4.MESO | D90: H1 BMP4 Derived Mesendoderm Cultured Cells | E90: H3K56ac.imputed.narrowPeak.bed.nPk | F90: H3K56ac | G90: 113 | H90: 63.08949633 | I90: 4.69E-11
A91: E004 | B91: ES-deriv | C91: ESDR.H1.BMP4.MESO | D91: H1 BMP4 Derived Mesendoderm Cultured Cells | E91: H2BK20ac.imputed.narrowPeak.bed.nPk | F91: H2BK20ac | G91: 94 | H91: 51.13931925 | I91: 1.46E-09
A92: E004 | B92: ES-deriv | C92: ESDR.H1.BMP4.MESO | D92: H1 BMP4 Derived Mesendoderm Cultured Cells | E92: H3K9ac.imputed.narrowPeak.bed.nPk | F92: H3K9ac | G92: 232 | H92: 157.966037 | I92: 3.97E-15
A93: E004 | B93: ES-deriv | C93: ESDR.H1.BMP4.MESO | D93: H1 BMP4 Derived Mesendoderm Cultured Cells | E93: H3T11ph.imputed.narrowPeak.bed.nPk | F93: H3T11ph | G93: 140 | H93: 91.82732791 | I93: 1.27E-08
A94: E004 | B94: ES-deriv | C94: ESDR.H1.BMP4.MESO | D94: H1 BMP4 Derived Mesendoderm Cultured Cells | E94: H3K18ac.imputed.narrowPeak.bed.nPk | F94: H3K18ac | G94: 173 | H94: 136.9312536 | I94: 6.37E-05
A95: E004 | B95: ES-deriv | C95: ESDR.H1.BMP4.MESO | D95: H1 BMP4 Derived Mesendoderm Cultured Cells | E95: H3K4me1.imputed.narrowPeak.bed.nPk | F95: H3K4me1 | G95: 315 | H95: 296.9716857 | I95: 0.015261858
A96: E004 | B96: ES-deriv | C96: ESDR.H1.BMP4.MESO | D96: H1 BMP4 Derived Mesendoderm Cultured Cells | E96: H3K27ac.imputed.narrowPeak.bed.nPk | F96: H3K27ac | G96: 248 | H96: 184.484551 | I96: 1.82E-11
A97: E004 | B97: ES-deriv | C97: ESDR.H1.BMP4.MESO | D97: H1 BMP4 Derived Mesendoderm Cultured Cells | E97: H3K9me3.imputed.narrowPeak.bed.nPk | F97: H3K9me3 | G97: 145 | H97: 187.5289797 | I97: 0.999998697
A98: E004 | B98: ES-deriv | C98: ESDR.H1.BMP4.MESO | D98: H1 BMP4 Derived Mesendoderm Cultured Cells | E98: H3K23ac.imputed.narrowPeak.bed.nPk | F98: H3K23ac | G98: 72 | H98: 21.01178292 | I98: 1.15e-21
A99: E004 | B99: ES-deriv | C99: ESDR.H1.BMP4.MESO | D99: H1 BMP4 Derived Mesendoderm Cultured Cells | E99: H2AK5ac.imputed.narrowPeak.bed.nPk | F99: H2AK5ac | G99: 88 | H99: 55.68823729 | I99: 5.19E-06
A100: E004 | B100: ES-deriv | C100: ESDR.H1.BMP4.MESO | D100: H1 BMP4 Derived Mesendoderm Cultured Cells | E100: H4K20me1.imputed.narrowPeak.bed.nPk | F100: H4K20me1 | G100: 203 | H100: 61.49201056 | I100: 1.21E-65
A101: E004 | B101: ES-deriv | C101: ESDR.H1.BMP4.MESO | D101: H1 BMP4 Derived Mesendoderm Cultured Cells | E101: H4K8ac.imputed.narrowPeak.bed.nPk | F101: H4K8ac | G101: 168 | H101: 120.4555871 | I101: 1.14E-07
A102: E004 | B102: ES-deriv | C102: ESDR.H1.BMP4.MESO | D102: H1 BMP4 Derived Mesendoderm Cultured Cells | E102: H4K91ac.imputed.narrowPeak.bed.nPk | F102: H4K91ac | G102: 137 | H102: 95.66856462 | I102: 1.02E-06
A103: E004 | B103: ES-deriv | C103: ESDR.H1.BMP4.MESO | D103: H1 BMP4 Derived Mesendoderm Cultured Cells | E103: H3K4ac.imputed.narrowPeak.bed.nPk | F103: H3K4ac | G103: 225 | H103: 125.3843502 | I103: 5.35E-27
A104: E004 | B104: ES-deriv | C104: ESDR.H1.BMP4.MESO | D104: H1 BMP4 Derived Mesendoderm Cultured Cells | E104: H2BK12ac.imputed.narrowPeak.bed.nPk | F104: H2BK12ac | G104: 98 | H104: 79.5495893 | I104: 0.012256575
A105: E004 | B105: ES-deriv | C105: ESDR.H1.BMP4.MESO | D105: H1 BMP4 Derived Mesendoderm Cultured Cells | E105: H2AK9ac.imputed.narrowPeak.bed.nPk | F105: H2AK9ac | G105: 21 | H105: 5.212472079 | I105: 2.69E-08
A106: E004 | B106: ES-deriv | C106: ESDR.H1.BMP4.MESO | D106: H1 BMP4 Derived Mesendoderm Cultured Cells | E106: H2BK5ac.imputed.narrowPeak.bed.nPk | F106: H2BK5ac | G106: 146 | H106: 109.8437655 | I106: 2.83E-05
A107: E004 | B107: ES-deriv | C107: ESDR.H1.BMP4.MESO | D107: H1 BMP4 Derived Mesendoderm Cultured Cells | E107: H2A.Z.imputed.narrowPeak.bed.nPk | F107: H2A.Z | G107: 277 | H107: 167.8815705 | I107: 3.00E-31
A108: E004 | B108: ES-deriv | C108: ESDR.H1.BMP4.MESO | D108: H1 BMP4 Derived Mesendoderm Cultured Cells | E108: H2BK15ac.imputed.narrowPeak.bed.nPk | F108: H2BK15ac | G108: 62 | H108: 8.809058233 | I108: 1.72E-34
A109: E004 | B109: ES-deriv | C109: ESDR.H1.BMP4.MESO | D109: H1 BMP4 Derived Mesendoderm Cultured Cells | E109: H3K23me2.imputed.narrowPeak.bed.nPk | F109: H3K23me2 | G109: 69 | H109: 29.35687941 | I109: 1.24e-11
A110: E004 | B110: ES-deriv | C110: ESDR.H1.BMP4.MESO | D110: H1 BMP4 Derived Mesendoderm Cultured Cells | E110: H3K4me2.imputed.narrowPeak.bed.nPk | F110: H3K4me2 | G110: 251 | H110: 197.0300463 | I110: 8.77E-09
A111: E004 | B111: ES-deriv | C111: ESDR.H1.BMP4.MESO | D111: H1 BMP4 Derived Mesendoderm Cultured Cells | E111: DNase.imputed.narrowPeak.bed.nPk | F111: DNase | G111: 299 | H111: 224.7759662 | I111: 5.65E-16
A112: E004 | B112: ES-deriv | C112: ESDR.H1.BMP4.MESO | D112: H1 BMP4 Derived Mesendoderm Cultured Cells | E112: H4K12ac.imputed.narrowPeak.bed.nPk | F112: H4K12ac | G112: 98 | H112: 50.00157439 | I112: 7.67E-12
A113: E004 | B113: ES-deriv | C113: ESDR.H1.BMP4.MESO | D113: H1 BMP4 Derived Mesendoderm Cultured Cells | E113: H4K5ac.imputed.narrowPeak.bed.nPk | F113: H4K5ac | G113: 166 | H113: 130.8394385 | I113: 8.47E-05
A114: E004 | B114: ES-deriv | C114: ESDR.H1.BMP4.MESO | D114: H1 BMP4 Derived Mesendoderm Cultured Cells | E114: H3K14ac.imputed.narrowPeak.bed.nPk | F114: H3K14ac | G114: 137 | H114: 91.24405527 | I114: 4.99E-08
A115: E004 | B115: ES-deriv | C115: ESDR.H1.BMP4.MESO | D115: H1 BMP4 Derived Mesendoderm Cultured Cells | E115: H2BK120ac.imputed.narrowPeak.bed.nPk | F115: H2BK120ac | G115: 141 | H115: 84.38597272 | I115: 1.37e-11
A116: E004 | B116: ES-deriv | C116: ESDR.H1.BMP4.MESO | D116: H1 BMP4 Derived Mesendoderm Cultured Cells | E116: H3K27me3.imputed.narrowPeak.bed.nPk | F116: H3K27me3 | G116: 235 | H116: 135.1135513 | I116: 4.32E-26
A117: E004 | B117: ES-deriv | C117: ESDR.H1.BMP4.MESO | D117: H1 BMP4 Derived Mesendoderm Cultured Cells | E117: H3K79me2.imputed.narrowPeak.bed.nPk | F117: H3K79me2 | G117: 254 | H117: 130.7358378 | I117: 3.84E-40
A118: E004 | B118: ES-deriv | C118: ESDR.H1.BMP4.MESO | D118: H1 BMP4 Derived Mesendoderm Cultured Cells | E118: H3K79me1.imputed.narrowPeak.bed.nPk | F118: H3K79me1 | G118: 152 | H118: 84.61767483 | I118: 1.14e-15
A119: E004 | B119: ES-deriv | C119: ESDR.H1.BMP4.MESO | D119: H1 BMP4 Derived Mesendoderm Cultured Cells | E119: H3K4me3.imputed.narrowPeak.bed.nPk | F119: H3K4me3 | G119: 311 | H119: 192.8241441 | I119: 1.39E-37
A120: E005 | B120: ES-deriv | C120: ESDR.H1.BMP4.TROP | D120: H1 BMP4 Derived Trophoblast Cultured Cells | E120: H3K14ac.imputed.narrowPeak.bed.nPk | F120: H3K14ac | G120: 162 | H120: 115.6674204 | I120: 2.08E-07
A121: E005 | B121: ES-deriv | C121: ESDR.H1.BMP4.TROP | D121: H1 BMP4 Derived Trophoblast Cultured Cells | E121: DNase.imputed.narrowPeak.bed.nPk | F121: DNase | G121: 341 | H121: 239.2629037 | I121: 1.98e-31
A122: E005 | B122: ES-deriv | C122: ESDR.H1.BMP4.TROP | D122: H1 BMP4 Derived Trophoblast Cultured Cells | E122: H2A.Z.imputed.narrowPeak.bed.nPk | F122: H2A.Z | G122: 242 | H122: 171.361646 | I122: 9.44E-14
A123: E005 | B123: ES-deriv | C123: ESDR.H1.BMP4.TROP | D123: H1 BMP4 Derived Trophoblast Cultured Cells | E123: H2BK120ac.imputed.narrowPeak.bed.nPk | F123: H2BK120ac | G123: 205 | H123: 146.0850401 | I123: 4.03e-10
A124: E005 | B124: ES-deriv | C124: ESDR.H1.BMP4.TROP | D124: H1 BMP4 Derived Trophoblast Cultured Cells | E124: H2BK5ac.imputed.narrowPeak.bed.nPk | F124: H2BK5ac | G124: 197 | H124: 129.9457861 | I124: 6.22E-13
A125: E005 | B125: ES-deriv | C125: ESDR.H1.BMP4.TROP | D125: H1 BMP4 Derived Trophoblast Cultured Cells | E125: H3K9me3.imputed.narrowPeak.bed.nPk | F125: H3K9me3 | G125: 50 | H125: 145.8962865 | I125: 1
A126: E005 | B126: ES-deriv | C126: ESDR.H1.BMP4.TROP | D126: H1 BMP4 Derived Trophoblast Cultured Cells | E126: H3K56ac.imputed.narrowPeak.bed.nPk | F126: H3K56ac | G126: 189 | H126: 93.6070849 | I126: 2.14E-27
A127: E005 | B127: ES-deriv | C127: ESDR.H1.BMP4.TROP | D127: H1 BMP4 Derived Trophoblast Cultured Cells | E127: H4K8ac.imputed.narrowPeak.bed.nPk | F127: H4K8ac | G127: 204 | H127: 152.5553844 | I127: 4.59E-08
A128: E005 | B128: ES-deriv | C128: ESDR.H1.BMP4.TROP | D128: H1 BMP4 Derived Trophoblast Cultured Cells | E128: H2BK12ac.imputed.narrowPeak.bed.nPk | F128: H2BK12ac | G128: 208 | H128: 169.6096315 | I128: 4.28E-05
A129: E005 | B129: ES-deriv | C129: ESDR.H1.BMP4.TROP | D129: H1 BMP4 Derived Trophoblast Cultured Cells | E129: H3K36me3.imputed.narrowPeak.bed.nPk | F129: H3K36me3 | G129: 293 | H129: 145.8997244 | I129: 3.29E-56
A130: E005 | B130: ES-deriv | C130: ESDR.H1.BMP4.TROP | D130: H1 BMP4 Derived Trophoblast Cultured Cells | E130: H3K27ac.imputed.narrowPeak.bed.nPk | F130: H3K27ac | G130: 281 | H130: 206.3734046 | I130: 2.27E-15
A131: E005 | B131: ES-deriv | C131: ESDR.H1.BMP4.TROP | D131: H1 BMP4 Derived Trophoblast Cultured Cells | E131: H4K20me1.imputed.narrowPeak.bed.nPk | F131: H4K20me1 | G131: 142 | H131: 55.90103625 | I131: 5.79E-29
A132: E005 | B132: ES-deriv | C132: ESDR.H1.BMP4.TROP | D132: H1 BMP4 Derived Trophoblast Cultured Cells | E132: H3K23me2.imputed.narrowPeak.bed.nPk | F132: H3K23me2 | G132: 170 | H132: 125.9242349 | I132: 1.12E-06
A133: E005 | B133: ES-deriv | C133: ESDR.H1.BMP4.TROP | D133: H1 BMP4 Derived Trophoblast Cultured Cells | E133: H3K4me1.imputed.narrowPeak.bed.nPk | F133: H3K4me1 | G133: 292 | H133: 230.1570094 | I133: 2.37e-11
A134: E005 | B134: ES-deriv | C134: ESDR.H1.BMP4.TROP | D134: H1 BMP4 Derived Trophoblast Cultured Cells | E134: H4K5ac.imputed.narrowPeak.bed.nPk | F134: H4K5ac | G134: 198 | H134: 168.7166025 | I134: 0.001353164
A135: E005 | B135: ES-deriv | C135: ESDR.H1.BMP4.TROP | D135: H1 BMP4 Derived Trophoblast Cultured Cells | E135: H3T11ph.imputed.narrowPeak.bed.nPk | F135: H3T11ph | G135: 165 | H135: 123.2368147 | I135: 3.73E-06
A136: E005 | B136: ES-deriv | C136: ESDR.H1.BMP4.TROP | D136: H1 BMP4 Derived Trophoblast Cultured Cells | E136: H3K27me3.imputed.narrowPeak.bed.nPk | F136: H3K27me3 | G136: 150 | H136: 99.90654654 | I136: 1.18E-08
A137: E005 | B137: ES-deriv | C137: ESDR.H1.BMP4.TROP | D137: H1 BMP4 Derived Trophoblast Cultured Cells | E137: H2BK20ac.imputed.narrowPeak.bed.nPk | F137: H2BK20ac | G137: 205 | H137: 153.3754075 | I137: 4.69E-08
A138: E005 | B138: ES-deriv | C138: ESDR.H1.BMP4.TROP | D138: H1 BMP4 Derived Trophoblast Cultured Cells | E138: H3K4ac.imputed.narrowPeak.bed.nPk | F138: H3K4ac | G138: 217 | H138: 174.924118 | I138: 8.39E-06
A139: E005 | B139: ES-deriv | C139: ESDR.H1.BMP4.TROP | D139: H1 BMP4 Derived Trophoblast Cultured Cells | E139: H3K9ac.imputed.narrowPeak.bed.nPk | F139: H3K9ac | G139: 231 | H139: 157.2886534 | I139: 7.44E-15
A140: E005 | B140: ES-deriv | C140: ESDR.H1.BMP4.TROP | D140: H1 BMP4 Derived Trophoblast Cultured Cells | E140: H4K91ac.imputed.narrowPeak.bed.nPk | F140: H4K91ac | G140: 216 | H140: 166.2361268 | I140: 1.56E-07
A141: E005 | B141: ES-deriv | C141: ESDR.H1.BMP4.TROP | D141: H1 BMP4 Derived Trophoblast Cultured Cells | E141: H3K18ac.imputed.narrowPeak.bed.nPk | F141: H3K18ac | G141: 224 | H141: 206.4065033 | I141: 0.038254756
A142: E005 | B142: ES-deriv | C142: ESDR.H1.BMP4.TROP | D142: H1 BMP4 Derived Trophoblast Cultured Cells | E142: H3K4me2.imputed.narrowPeak.bed.nPk | F142: H3K4me2 | G142: 276 | H142: 213.7047011 | I142: 2.52E-11
A143: E005 | B143: ES-deriv | C143: ESDR.H1.BMP4.TROP | D143: H1 BMP4 Derived Trophoblast Cultured Cells | E143: H3K4me3.imputed.narrowPeak.bed.nPk | F143: H3K4me3 | G143: 251 | H143: 171.3503408 | I143: 1.34e-17
A144: E005 | B144: ES-deriv | C144: ESDR.H1.BMP4.TROP | D144: H1 BMP4 Derived Trophoblast Cultured Cells | E144: H2BK15ac.imputed.narrowPeak.bed.nPk | F144: H2BK15ac | G144: 204 | H144: 117.6029023 | I144: 5.07E-21
A145: E005 | B145: ES-deriv | C145: ESDR.H1.BMP4.TROP | D145: H1 BMP4 Derived Trophoblast Cultured Cells | E145: H3K23ac.imputed.narrowPeak.bed.nPk | F145: H3K23ac | G145: 196 | H145: 132.4590696 | I145: 8.24E-12
A146: E005 | B146: ES-deriv | C146: ESDR.H1.BMP4.TROP | D146: H1 BMP4 Derived Trophoblast Cultured Cells | E146: H2AK9ac.imputed.narrowPeak.bed.nPk | F146: H2AK9ac | G146: 49 | H146: 19.40356392 | I146: 2.08E-09
A147: E005 | B147: ES-deriv | C147: ESDR.H1.BMP4.TROP | D147: H1 BMP4 Derived Trophoblast Cultured Cells | E147: H3K79me2.imputed.narrowPeak.bed.nPk | F147: H3K79me2 | G147: 264 | H147: 145.2655963 | I147: 1.34e-36
A148: E005 | B148: ES-deriv | C148: ESDR.H1.BMP4.TROP | D148: H1 BMP4 Derived Trophoblast Cultured Cells | E148: H2AK5ac.imputed.narrowPeak.bed.nPk | F148: H2AK5ac | G148: 205 | H148: 137.3980252 | I148: 7.25E-13
A149: E005 | B149: ES-deriv | C149: ESDR.H1.BMP4.TROP | D149: H1 BMP4 Derived Trophoblast Cultured Cells | E149: H3K79me1.imputed.narrowPeak.bed.nPk | F149: H3K79me1 | G149: 252 | H149: 106.7487726 | I149: 1.22e-56
A150: E006 | B150: ES-deriv | C150: ESDR.H1.MSC | D150: H1 Derived Mesenchymal Stem Cells | E150: H4K8ac.imputed.narrowPeak.bed.nPk | F150: H4K8ac | G150: 123 | H150: 122.6379486 | I150: 0.503659396
A151: E006 | B151: ES-deriv | C151: ESDR.H1.MSC | D151: H1 Derived Mesenchymal Stem Cells | E151: H2BK20ac.imputed.narrowPeak.bed.nPk | F151: H2BK20ac | G151: 139 | H151: 87.65643494 | I151: 1.45E-09
A152: E006 | B152: ES-deriv | C152: ESDR.H1.MSC | D152: H1 Derived Mesenchymal Stem Cells | E152: H3K56ac.imputed.narrowPeak.bed.nPk | F152: H3K56ac | G152: 115 | H152: 64.41192977 | I152: 4.71E-11
A153: E006 | B153: ES-deriv | C153: ESDR.H1.MSC | D153: H1 Derived Mesenchymal Stem Cells | E153: H2AK5ac.imputed.narrowPeak.bed.nPk | F153: H2AK5ac | G153: 131 | H153: 89.2497954 | I153: 6.84E-07
A154: E006 | B154: ES-deriv | C154: ESDR.H1.MSC | D154: H1 Derived Mesenchymal Stem Cells | E154: H3K4me3.imputed.narrowPeak.bed.nPk | F154: H3K4me3 | G154: 268 | H154: 177.1695951 | I154: 3.48E-22
A155: E006 | B155: ES-deriv | C155: ESDR.H1.MSC | D155: H1 Derived Mesenchymal Stem Cells | E155: H2AK9ac.imputed.narrowPeak.bed.nPk | F155: H2AK9ac | G155: 10 | H155: 6.560291205 | I155: 0.123109454
A156: E006 | B156: ES-deriv | C156: ESDR.H1.MSC | D156: H1 Derived Mesenchymal Stem Cells | E156: H2BK5ac.imputed.narrowPeak.bed.nPk | F156: H2BK5ac | G156: 192 | H156: 122.5275247 | I156: 5.25E-14
A157: E006 | B157: ES-deriv | C157: ESDR.H1.MSC | D157: H1 Derived Mesenchymal Stem Cells | E157: H2BK15ac.imputed.narrowPeak.bed.nPk | F157: H2BK15ac | G157: 114 | H157: 63.28567814 | I157: 5.63E-11
A158: E006 | B158: ES-deriv | C158: ESDR.H1.MSC | D158: H1 Derived Mesenchymal Stem Cells | E158: DNase.imputed.narrowPeak.bed.nPk | F158: DNase | G158: 345 | H158: 236.3601822 | I158: 8.52E-36
A159: E006 | B159: ES-deriv | C159: ESDR.H1.MSC | D159: H1 Derived Mesenchymal Stem Cells | E159: H4K20me1.imputed.narrowPeak.bed.nPk | F159: H4K20me1 | G159: 229 | H159: 80.57177879 | I159: 9.29E-64
A160: E006 | B160: ES-deriv | C160: ESDR.H1.MSC | D160: H1 Derived Mesenchymal Stem Cells | E160: H3K4me1.imputed.narrowPeak.bed.nPk | F160: H3K4me1 | G160: 369 | H160: 258.7293957 | I160: 1.76e-42
A161: E006 | B161: ES-deriv | C161: ESDR.H1.MSC | D161: H1 Derived Mesenchymal Stem Cells | E161: H3T11ph.imputed.narrowPeak.bed.nPk | F161: H3T11ph | G161: 139 | H161: 108.4120794 | I161: 0.000345711
A162: E006 | B162: ES-deriv | C162: ESDR.H1.MSC | D162: H1 Derived Mesenchymal Stem Cells | E162: H4K5ac.imputed.narrowPeak.bed.nPk | F162: H4K5ac | G162: 222 | H162: 157.1150282 | I162: 8.05E-12
A163: E006 | B163: ES-deriv | C163: ESDR.H1.MSC | D163: H1 Derived Mesenchymal Stem Cells | E163: H3K4ac.imputed.narrowPeak.bed.nPk | F163: H3K4ac | G163: 179 | H163: 131.7654992 | I163: 2.77E-07
A164: E006 | B164: ES-deriv | C164: ESDR.H1.MSC | D164: H1 Derived Mesenchymal Stem Cells | E164: H4K91ac.imputed.narrowPeak.bed.nPk | F164: H4K91ac | G164: 150 | H164: 132.0686871 | I164: 0.029528166
A165: E006 | B165: ES-deriv | C165: ESDR.H1.MSC | D165: H1 Derived Mesenchymal Stem Cells | E165: H3K4me2.imputed.narrowPeak.bed.nPk | F165: H3K4me2 | G165: 344 | H165: 226.1258664 | I165: 5.12E-41
A166: E006 | B166: ES-deriv | C166: ESDR.H1.MSC | D166: H1 Derived Mesenchymal Stem Cells | E166: H3K27me3.imputed.narrowPeak.bed.nPk | F166: H3K27me3 | G166: 232 | H166: 122.2529721 | I166: 1.85E-31
A167: E006 | B167: ES-deriv | C167: ESDR.H1.MSC | D167: H1 Derived Mesenchymal Stem Cells | E167: H3K18ac.imputed.narrowPeak.bed.nPk | F167: H3K18ac | G167: 179 | H167: 153.1192841 | I167: 0.003750229
A168: E006 | B168: ES-deriv | C168: ESDR.H1.MSC | D168: H1 Derived Mesenchymal Stem Cells | E168: H3K9ac.imputed.narrowPeak.bed.nPk | F168: H3K9ac | G168: 276 | H168: 170.58664 | I168: 3.98E-29
A169: E006 | B169: ES-deriv | C169: ESDR.H1.MSC | D169: H1 Derived Mesenchymal Stem Cells | E169: H3K23me2.imputed.narrowPeak.bed.nPk | F169: H3K23me2 | G169: 195 | H169: 80.77419987 | I169: 9.35E-40
A170: E006 | B170: ES-deriv | C170: ESDR.H1.MSC | D170: H1 Derived Mesenchymal Stem Cells | E170: H3K79me2.imputed.narrowPeak.bed.nPk | F170: H3K79me2 | G170: 256 | H170: 149.2157248 | I170: 7.25E-30
A171: E006 | B171: ES-deriv | C171: ESDR.H1.MSC | D171: H1 Derived Mesenchymal Stem Cells | E171: H3K23ac.imputed.narrowPeak.bed.nPk | F171: H3K23ac | G171: 109 | H171: 43.1866365 | I171: 1.66E-21
A172: E006 | B172: ES-deriv | C172: ESDR.H1.MSC | D172: H1 Derived Mesenchymal Stem Cells | E172: H2BK12ac.imputed.narrowPeak.bed.nPk | F172: H2BK12ac | G172: 134 | H172: 105.8147015 | I172: 0.000840468
A173: E006 | B173: ES-deriv | C173: ESDR.H1.MSC | D173: H1 Derived Mesenchymal Stem Cells | E173: H2A.Z.imputed.narrowPeak.bed.nPk | F173: H2A.Z | G173: 287 | H173: 186.9374053 | I173: 1.26e-26
A174: E006 | B174: ES-deriv | C174: ESDR.H1.MSC | D174: H1 Derived Mesenchymal Stem Cells | E174: H2BK120ac.imputed.narrowPeak.bed.nPk | F174: H2BK120ac | G174: 139 | H174: 122.7020594 | I174: 0.040940728
A175: E006 | B175: ES-deriv | C175: ESDR.H1.MSC | D175: H1 Derived Mesenchymal Stem Cells | E175: H3K36me3.imputed.narrowPeak.bed.nPk | F175: H3K36me3 | G175: 293 | H175: 149.7713614 | I175: 3.28E-53
A176: E006 | B176: ES-deriv | C176: ESDR.H1.MSC | D176: H1 Derived Mesenchymal Stem Cells | E176: H3K14ac.imputed.narrowPeak.bed.nPk | F176: H3K14ac | G176: 179 | H176: 134.3508377 | I176: 1.12E-06
A177: E006 | B177: ES-deriv | C177: ESDR.H1.MSC | D177: H1 Derived Mesenchymal Stem Cells | E177: H4K12ac.imputed.narrowPeak.bed.nPk | F177: H4K12ac | G177: 121 | H177: 107.4856674 | I177: 0.065894517
A178: E006 | B178: ES-deriv | C178: ESDR.H1.MSC | D178: H1 Derived Mesenchymal Stem Cells | E178: H3K9me3.imputed.narrowPeak.bed.nPk | F178: H3K9me3 | G178: 51 | H178: 127.8492989 | I178: 1
A179: E006 | B179: ES-deriv | C179: ESDR.H1.MSC | D179: H1 Derived Mesenchymal Stem Cells | E179: H3K79me1.imputed.narrowPeak.bed.nPk | F179: H3K79me1 | G179: 176 | H179: 95.14889069 | I179: 1.36e-20
A180: E006 | B180: ES-deriv | C180: ESDR.H1.MSC | D180: H1 Derived Mesenchymal Stem Cells | E180: H3K27ac.imputed.narrowPeak.bed.nPk | F180: H3K27ac | G180: 296 | H180: 211.0404918 | I180: 4.33E-20
A181: E007 | B181: ES-deriv | C181: ESDR.H1.NEUR.PROG | D181: H1 Derived Neuronal Progenitor Cultured Cells | E181: H3K79me2.imputed.narrowPeak.bed.nPk | F181: H3K79me2 | G181: 278 | H181: 139.5273481 | I181: 1.48e-49
A182: E007 | B182: ES-deriv | C182: ESDR.H1.NEUR.PROG | D182: H1 Derived Neuronal Progenitor Cultured Cells | E182: H3T11ph.imputed.narrowPeak.bed.nPk | F182: H3T11ph | G182: 67 | H182: 31.43187279 | I182: 1.89E-09
A183: E007 | B183: ES-deriv | C183: ESDR.H1.NEUR.PROG | D183: H1 Derived Neuronal Progenitor Cultured Cells | E183: H3K18ac.imputed.narrowPeak.bed.nPk | F183: H3K18ac | G183: 146 | H183: 101.2025509 | I183: 2.33E-07
A184: E007 | B184: ES-deriv | C184: ESDR.H1.NEUR.PROG | D184: H1 Derived Neuronal Progenitor Cultured Cells | E184: H3K27me3.imputed.narrowPeak.bed.nPk | F184: H3K27me3 | G184: 212 | H184: 123.0736001 | I184: 1.14E-21
A185: E007 | B185: ES-deriv | C185: ESDR.H1.NEUR.PROG | D185: H1 Derived Neuronal Progenitor Cultured Cells | E185: H4K5ac.imputed.narrowPeak.bed.nPk | F185: H4K5ac | G185: 186 | H185: 82.3584195 | I185: 3.12E-33
A186: E007 | B186: ES-deriv | C186: ESDR.H1.NEUR.PROG | D186: H1 Derived Neuronal Progenitor Cultured Cells | E186: H2BK5ac.imputed.narrowPeak.bed.nPk | F186: H2BK5ac | G186: 147 | H186: 44.85661167 | I186: 2.93E-43
A187: E007 | B187: ES-deriv | C187: ESDR.H1.NEUR.PROG | D187: H1 Derived Neuronal Progenitor Cultured Cells | E187: H2A.Z.imputed.narrowPeak.bed.nPk | F187: H2A.Z | G187: 281 | H187: 172.8733649 | I187: 1.48E-30
A188: E007 | B188: ES-deriv | C188: ESDR.H1.NEUR.PROG | D188: H1 Derived Neuronal Progenitor Cultured Cells | E188: H3K4me3.imputed.narrowPeak.bed.nPk | F188: H3K4me3 | G188: 258 | H188: 175.6599756 | I188: 1.15e-18
A189: E007 | B189: ES-deriv | C189: ESDR.H1.NEUR.PROG | D189: H1 Derived Neuronal Progenitor Cultured Cells | E189: H3K14ac.imputed.narrowPeak.bed.nPk | F189: H3K14ac | G189: 151 | H189: 73.05179131 | I189: 1.13e-21
A190: E007 | B190: ES-deriv | C190: ESDR.H1.NEUR.PROG | D190: H1 Derived Neuronal Progenitor Cultured Cells | E190: H3K4me1.imputed.narrowPeak.bed.nPk | F190: H3K4me1 | G190: 350 | H190: 257.2050346 | I190: 2.50E-28
A191: E007 | B191: ES-deriv | C191: ESDR.H1.NEUR.PROG | D191: H1 Derived Neuronal Progenitor Cultured Cells | E191: H2AK9ac.imputed.narrowPeak.bed.nPk | F191: H2AK9ac | G191: 10 | H191: 3.194242245 | I191: 0.001082396
A192: E007 | B192: ES-deriv | C192: ESDR.H1.NEUR.PROG | D192: H1 Derived Neuronal Progenitor Cultured Cells | E192: H4K8ac.imputed.narrowPeak.bed.nPk | F192: H4K8ac | G192: 162 | H192: 98.32333191 | I192: 3.57E-13
A193: E007 | B193: ES-deriv | C193: ESDR.H1.NEUR.PROG | D193: H1 Derived Neuronal Progenitor Cultured Cells | E193: H3K79me1.imputed.narrowPeak.bed.nPk | F193: H3K79me1 | G193: 207 | H193: 66.27158415 | I193: 6.77E-63
A194: E007 | B194: ES-deriv | C194: ESDR.H1.NEUR.PROG | D194: H1 Derived Neuronal Progenitor Cultured Cells | E194: H2BK15ac.imputed.narrowPeak.bed.nPk | F194: H2BK15ac | G194: 10 | H194: 7.372377678 | I194: 0.202740224
A195: E007 | B195: ES-deriv | C195: ESDR.H1.NEUR.PROG | D195: H1 Derived Neuronal Progenitor Cultured Cells | E195: H3K4ac.imputed.narrowPeak.bed.nPk | F195: H3K4ac | G195: 153 | H195: 100.1308709 | I195: 1.46E-09
A196: E007 | B196: ES-deriv | C196: ESDR.H1.NEUR.PROG | D196: H1 Derived Neuronal Progenitor Cultured Cells | E196: H3K4me2.imputed.narrowPeak.bed.nPk | F196: H3K4me2 | G196: 315 | H196: 195.6903827 | I196: 3.32E-38
A197: E007 | B197: ES-deriv | C197: ESDR.H1.NEUR.PROG | D197: H1 Derived Neuronal Progenitor Cultured Cells | E197: H3K9ac.imputed.narrowPeak.bed.nPk | F197: H3K9ac | G197: 235 | H197: 143.4462152 | I197: 7.18E-23
A198: E007 | B198: ES-deriv | C198: ESDR.H1.NEUR.PROG | D198: H1 Derived Neuronal Progenitor Cultured Cells | E198: H4K91ac.imputed.narrowPeak.bed.nPk | F198: H4K91ac | G198: 82 | H198: 47.07320028 | I198: 2.98E-07
A199: E007 | B199: ES-deriv | C199: ESDR.H1.NEUR.PROG | D199: H1 Derived Neuronal Progenitor Cultured Cells | E199: H3K56ac.imputed.narrowPeak.bed.nPk | F199: H3K56ac | G199: 82 | H199: 31.99090338 | I199: 5.19E-16
A200: E007 | B200: ES-deriv | C200: ESDR.H1.NEUR.PROG | D200: H1 Derived Neuronal Progenitor Cultured Cells | E200: H2BK12ac.imputed.narrowPeak.bed.nPk | F200: H2BK12ac | G200: 80 | H200: 53.18455325 | I200: 0.000100668
... 3674 more rows

Sheet Suppl Data 5
A1: Supplementary Data 5: Association analysis in CRHR1 locus.
A2: Note: CHR=Chromosome; BP=Basepair; A1=Major allele; A2=Minor allele; MAF=Minor allele frequency; OR=Odd ratio; P=P value
D3: Alleles | F3: MAF | H3: GWAS | I3: GWAS dataset
A4: SNP | B4: CHR | C4: BP (GRCh37/hg19) | D4: A1 | E4: A2 | F4: Cases | G4: Controls | H4: Genotyped or Imputed | I4: OR (95% CI) | J4: P
A5: 17:44212782 | B5: 17 | C5: 44212782 | D5: C | E5: T | F5: 0.1801 | G5: 0.2062 | H5: Imputed | I5: 0.79(0.73-0.85) | J5: 3.75E-10
A6: 17:44215859 | B6: 17 | C6: 44215859 | D6: G | E6: A | F6: 0.1551 | G6: 0.1442 | H6: Imputed | I6: 1.07(0.99-1.16) | J6: 9.89E-02
A7: 17:44216322 | B7: 17 | C7: 44216322 | D7: A | E7: C | F7: 0.1551 | G7: 0.1442 | H7: Imputed | I7: 1.07(0.99-1.16) | J7: 9.76E-02
A8: 17:44219457 | B8: 17 | C8: 44219457 | D8: C | E8: T | F8: 0.1807 | G8: 0.1752 | H8: Imputed | I8: 1.1(1.02-1.19) | J8: 9.72E-03
A9: 17:44219555 | B9: 17 | C9: 44219555 | D9: G | E9: A | F9: 0.1922 | G9: 0.1881 | H9: Imputed | I9: 1.1(1.02-1.18) | J9: 9.87E-03
A10: 17:44219831 | B10: 17 | C10: 44219831 | D10: A | E10: T | F10: 0.1769 | G10: 0.2018 | H10: Imputed | I10: 0.79(0.73-0.85) | J10: 1.58E-09
A11: 17:44221350 | B11: 17 | C11: 44221350 | D11: A | E11: G | F11: 0.1756 | G11: 0.201 | H11: Imputed | I11: 0.79(0.73-0.85) | J11: 1.13E-09
A12: 17:44221843 | B12: 17 | C12: 44221843 | D12: G | E12: A | F12: 0.4206 | G12: 0.4064 | H12: Imputed | I12: 1.07(1.01-1.13) | J12: 2.28E-02
A13: 17:44222424 | B13: 17 | C13: 44222424 | D13: G | E13: C | F13: 0.4772 | G13: 0.465 | H13: Imputed | I13: 1.06(1-1.13) | J13: 3.74E-02
A14: 17:44224272 | B14: 17 | C14: 44224272 | D14: G | E14: A | F14: 0.4774 | G14: 0.465 | H14: Imputed | I14: 1.06(1-1.13) | J14: 3.58E-02
A15: 17:44225231 | B15: 17 | C15: 44225231 | D15: A | E15: G | F15: 0.1807 | G15: 0.1751 | H15: Imputed | I15: 1.1(1.02-1.19) | J15: 9.46E-03
A16: 17:44228894 | B16: 17 | C16: 44228894 | D16: C | E16: T | F16: 0.1548 | G16: 0.1439 | H16: Imputed | I16: 1.07(0.99-1.16) | J16: 9.37E-02
A17: 17:44229559 | B17: 17 | C17: 44229559 | D17: T | E17: C | F17: 0.1548 | G17: 0.144 | H17: Imputed | I17: 1.07(0.99-1.16) | J17: 9.69E-02
A18: 17:44230598 | B18: 17 | C18: 44230598 | D18: A | E18: G | F18: 0.1807 | G18: 0.175 | H18: Imputed | I18: 1.1(1.02-1.19) | J18: 9.15E-03
A19: 17:44235827 | B19: 17 | C19: 44235827 | D19: A | E19: C | F19: 0.4196 | G19: 0.4062 | H19: Imputed | I19: 1.07(1.01-1.13) | J19: 2.82E-02
A20: 17:44236005 | B20: 17 | C20: 44236005 | D20: T | E20: C | F20: 0.42 | G20: 0.4064 | H20: Imputed | I20: 1.07(1.01-1.13) | J20: 2.66E-02
A21: 17:44237744 | B21: 17 | C21: 44237744 | D21: C | E21: A | F21: 0.1546 | G21: 0.144 | H21: Imputed | I21: 1.07(0.99-1.16) | J21: 1.04E-01
A22: 17:44241530 | B22: 17 | C22: 44241530 | D22: A | E22: T | F22: 0.1548 | G22: 0.144 | H22: Imputed | I22: 1.07(0.99-1.16) | J22: 9.98E-02
A23: 17:44241726 | B23: 17 | C23: 44241726 | D23: G | E23: A | F23: 0.192 | G23: 0.1879 | H23: Imputed | I23: 1.1(1.02-1.18) | J23: 9.95E-03
A24: 17:44243312 | B24: 17 | C24: 44243312 | D24: G | E24: C | F24: 0.192 | G24: 0.1879 | H24: Imputed | I24: 1.1(1.02-1.18) | J24: 9.95E-03
A25: 17:44246624 | B25: 17 | C25: 44246624 | D25: A | E25: C | F25: 0.1758 | G25: 0.2013 | H25: Imputed | I25: 0.79(0.73-0.85) | J25: 8.84E-10
A26: 17:44247415 | B26: 17 | C26: 44247415 | D26: T | E26: C | F26: 0.1543 | G26: 0.1437 | H26: Imputed | I26: 1.07(0.99-1.16) | J26: 1.06E-01
A27: 17:44248499 | B27: 17 | C27: 44248499 | D27: C | E27: G | F27: 0.192 | G27: 0.1879 | H27: Imputed | I27: 1.1(1.02-1.18) | J27: 9.76E-03
A28: 17:44248848 | B28: 17 | C28: 44248848 | D28: A | E28: G | F28: 0.1804 | G28: 0.175 | H28: Imputed | I28: 1.1(1.02-1.18) | J28: 1.08E-02
A29: 17:44250433 | B29: 17 | C29: 44250433 | D29: C | E29: T | F29: 0.1537 | G29: 0.1434 | H29: Imputed | I29: 1.07(0.99-1.16) | J29: 1.10E-01
A30: 17:44259690 | B30: 17 | C30: 44259690 | D30: G | E30: T | F30: 0.192 | G30: 0.1878 | H30: Imputed | I30: 1.1(1.02-1.18) | J30: 9.60E-03
A31: 17:44262950 | B31: 17 | C31: 44262950 | D31: G | E31: A | F31: 0.478 | G31: 0.4657 | H31: Imputed | I31: 1.06(1-1.13) | J31: 3.74E-02
A32: 17:44265839 | B32: 17 | C32: 44265839 | D32: T | E32: C | F32: 0.3724 | G32: 0.394 | H32: Imputed | I32: 0.91(0.86-0.97) | J32: 2.30E-03
A33: 17:44266531 | B33: 17 | C33: 44266531 | D33: A | E33: G | F33: 0.1756 | G33: 0.2012 | H33: Imputed | I33: 0.79(0.73-0.85) | J33: 7.85E-10
A34: 17:44268488 | B34: 17 | C34: 44268488 | D34: T | E34: C | F34: 0.1756 | G34: 0.2011 | H34: Imputed | I34: 0.79(0.73-0.85) | J34: 8.48E-10
A35: 17:44269922 | B35: 17 | C35: 44269922 | D35: C | E35: T | F35: 0.1594 | G35: 0.1835 | H35: Imputed | I35: 0.78(0.72-0.85) | J35: 1.05E-09
A36: 17:44269964 | B36: 17 | C36: 44269964 | D36: A | E36: T | F36: 0.1756 | G36: 0.201 | H36: Imputed | I36: 0.79(0.73-0.85) | J36: 8.96E-10
A37: 17:44270059 | B37: 17 | C37: 44270059 | D37: T | E37: A | F37: 0.1756 | G37: 0.201 | H37: Imputed | I37: 0.79(0.73-0.85) | J37: 8.96E-10
A38: 17:44273218 | B38: 17 | C38: 44273218 | D38: T | E38: C | F38: 0.1756 | G38: 0.201 | H38: Imputed | I38: 0.79(0.73-0.85) | J38: 8.96E-10
A39: 17:44277265 | B39: 17 | C39: 44277265 | D39: C | E39: A | F39: 0.1756 | G39: 0.201 | H39: Imputed | I39: 0.79(0.73-0.85) | J39: 8.93E-10
A40: 17:44278742 | B40: 17 | C40: 44278742 | D40: G | E40: A | F40: 0.1755 | G40: 0.201 | H40: Imputed | I40: 0.79(0.73-0.85) | J40: 7.05E-10
A41: 17:44288281 | B41: 17 | C41: 44288281 | D41: T | E41: C | F41: 0.1587 | G41: 0.1831 | H41: Imputed | I41: 0.78(0.72-0.85) | J41: 1.38E-09
A42: 17:44288579 | B42: 17 | C42: 44288579 | D42: C | E42: T | F42: 0.1753 | G42: 0.2011 | H42: Imputed | I42: 0.79(0.73-0.85) | J42: 5.38E-10
A43: 17:44289832 | B43: 17 | C43: 44289832 | D43: G | E43: A | F43: 0.3723 | G43: 0.3936 | H43: Imputed | I43: 0.91(0.86-0.97) | J43: 2.77E-03
A44: 17:44291365 | B44: 17 | C44: 44291365 | D44: T | E44: C | F44: 0.1753 | G44: 0.2011 | H44: Imputed | I44: 0.79(0.73-0.85) | J44: 5.38E-10
A45: 17:44291381 | B45: 17 | C45: 44291381 | D45: G | E45: A | F45: 0.1753 | G45: 0.2011 | H45: Imputed | I45: 0.79(0.73-0.85) | J45: 5.38E-10
A46: 17:44292126 | B46: 17 | C46: 44292126 | D46: C | E46: T | F46: 0.1753 | G46: 0.2011 | H46: Imputed | I46: 0.79(0.73-0.85) | J46: 5.54E-10
A47: rs1000232 | B47: 17 | C47: 45356561 | D47: C | E47: T | F47: 0.3204 | G47: 0.3259 | H47: Imputed | I47: 0.97(0.91-1.03) | J47: 3.68E-01
A48: rs1000354 | B48: 17 | C48: 43413451 | D48: A | E48: G | F48: 0.2578 | G48: 0.2733 | H48: Imputed | I48: 0.93(0.87-1) | J48: 3.87E-02
A49: rs1001945 | B49: 17 | C49: 44005821 | D49: C | E49: G | F49: 0.4552 | G49: 0.4397 | H49: Imputed | I49: 1.08(1.02-1.14) | J49: 1.24E-02
A50: rs1002330 | B50: 17 | C50: 46253515 | D50: T | E50: C | F50: 0.4006 | G50: 0.3953 | H50: Imputed | I50: 1(0.94-1.06) | J50: 9.49E-01
A51: rs1003591 | B51: 17 | C51: 42884566 | D51: A | E51: T | F51: 0.2327 | G51: 0.2373 | H51: Imputed | I51: 1(0.93-1.07) | J51: 9.86E-01
A52: rs1004357 | B52: 17 | C52: 41691526 | D52: G | E52: A | F52: 0.3268 | G52: 0.3252 | H52: Imputed | I52: 1.03(0.97-1.1) | J52: 3.07E-01
A53: rs1004485 | B53: 17 | C53: 45053997 | D53: A | E53: G | F53: 0.1804 | G53: 0.1898 | H53: Imputed | I53: 0.9(0.84-0.97) | J53: 7.86E-03
A54: rs1004770 | B54: 17 | C54: 45917147 | D54: G | E54: C | F54: 0.388 | G54: 0.3803 | H54: Imputed | I54: 1.04(0.98-1.11) | J54: 1.53E-01
A55: rs10048175 | B55: 17 | C55: 43028509 | D55: T | E55: A | F55: 0.132 | G55: 0.1396 | H55: Imputed | I55: 0.97(0.89-1.05) | J55: 4.54E-01
A56: rs1005136 | B56: 17 | C56: 43164246 | D56: T | E56: G | F56: 0.4415 | G56: 0.4403 | H56: Imputed | I56: 0.98(0.92-1.04) | J56: 4.30E-01
A57: rs1005655 | B57: 17 | C57: 45919465 | D57: T | E57: C | F57: 0.3582 | G57: 0.3607 | H57: Imputed | I57: 0.97(0.92-1.03) | J57: 3.77E-01
A58: rs1006215891 | B58: 17 | C58: 43099624 | D58: T | E58: C | F58: 0.1932 | G58: 0.1873 | H58: Imputed | I58: 0.99(0.92-1.07) | J58: 8.50E-01
A59: rs1006786816 | B59: 17 | C59: 45427951 | D59: G | E59: T | F59: 0.06117 | G59: 0.05995 | H59: Imputed | I59: 1.03(0.92-1.16) | J59: 6.14E-01
A60: rs1007190 | B60: 17 | C60: 43038209 | D60: T | E60: C | F60: 0.1294 | G60: 0.1327 | H60: Imputed | I60: 1(0.92-1.09) | J60: 9.29E-01
A61: rs1007200614 | B61: 17 | C61: 45186924 | D61: T | E61: G | F61: 0.08232 | G61: 0.08643 | H61: Imputed | I61: 0.94(0.85-1.04) | J61: 2.52E-01
A62: rs10083843 | B62: 17 | C62: 42674912 | D62: A | E62: G | F62: 0.3419 | G62: 0.3343 | H62: Imputed | I62: 1.04(0.97-1.1) | J62: 2.58E-01
A63: rs1008934 | B63: 17 | C63: 45884846 | D63: G | E63: C | F63: 0.04788 | G63: 0.04879 | H63: Imputed | I63: 0.96(0.84-1.1) | J63: 5.92E-01
A64: rs1009007037 | B64: 17 | C64: 42627902 | D64: T | E64: G | F64: 0.2639 | G64: 0.2661 | H64: Imputed | I64: 1.02(0.96-1.09) | J64: 4.91E-01
A65: rs1009312 | B65: 17 | C65: 45332140 | D65: A | E65: G | F65: 0.1674 | G65: 0.1663 | H65: Imputed | I65: 1.02(0.94-1.1) | J65: 6.94E-01
A66: rs1009358879 | B66: 17 | C66: 45614763 | D66: T | E66: A | F66: 0.4805 | G66: 0.475 | H66: Imputed | I66: 1(0.94-1.06) | J66: 9.11E-01
A67: rs1010049 | B67: 17 | C67: 41655679 | D67: G | E67: A | F67: 0.3203 | G67: 0.3308 | H67: Imputed | I67: 0.95(0.9-1.02) | J67: 1.37E-01
A68: rs1010228 | B68: 17 | C68: 46200348 | D68: A | E68: C | F68: 0.2215 | G68: 0.2183 | H68: Imputed | I68: 1.01(0.94-1.08) | J68: 8.83E-01
A69: rs1011619573 | B69: 17 | C69: 43466654 | D69: G | E69: C | F69: 0.4628 | G69: 0.4614 | H69: Imputed | I69: 0.96(0.9-1.01) | J69: 1.18E-01
A70: rs10163469 | B70: 17 | C70: 45687767 | D70: G | E70: A | F70: 0.4951 | G70: 0.4893 | H70: Imputed | I70: 1(0.94-1.06) | J70: 9.87E-01
A71: rs1017270568 | B71: 17 | C71: 43254231 | D71: C | E71: T | F71: 0.08675 | G71: 0.08947 | H71: Imputed | I71: 1(0.91-1.11) | J71: 9.64E-01
A72: rs1018358 | B72: 17 | C72: 42472588 | D72: C | E72: T | F72: 0.3923 | G72: 0.3983 | H72: Imputed | I72: 1(0.94-1.06) | J72: 9.72E-01
A73: rs1018903 | B73: 17 | C73: 45889840 | D73: G | E73: A | F73: 0.4687 | G73: 0.4629 | H73: Imputed | I73: 1.02(0.97-1.08) | J73: 4.51E-01
A74: rs10208 | B74: 17 | C74: 42300278 | D74: T | E74: C | F74: 0.3153 | G74: 0.31 | H74: Imputed | I74: 1.01(0.95-1.07) | J74: 7.90E-01
A75: rs10221243 | B75: 17 | C75: 44212310 | D75: A | E75: G | F75: 0.1791 | G75: 0.2055 | H75: Imputed | I75: 0.79(0.73-0.85) | J75: 3.38E-10
A76: rs1023995 | B76: 17 | C76: 43316520 | D76: T | E76: C | F76: 0.2991 | G76: 0.278 | H76: Imputed | I76: 1.1(1.03-1.17) | J76: 3.03E-03
A77: rs1024288751 | B77: 17 | C77: 46072229 | D77: A | E77: G | F77: 0.2639 | G77: 0.2616 | H77: Imputed | I77: 1.03(0.97-1.1) | J77: 3.53E-01
A78: rs1024662177 | B78: 17 | C78: 42126559 | D78: C | E78: A | F78: 0.2009 | G78: 0.2097 | H78: Imputed | I78: 0.93(0.87-1) | J78: 5.81E-02
A79: rs1026769882 | B79: 17 | C79: 45686126 | D79: G | E79: A | F79: 0.01378 | G79: 0.01403 | H79: Imputed | I79: 1.05(0.82-1.34) | J79: 6.85E-01
A80: rs1027895 | B80: 17 | C80: 46510697 | D80: G | E80: A | F80: 0.3232 | G80: 0.3221 | H80: Imputed | I80: 1.03(0.96-1.09) | J80: 4.20E-01
A81: rs1028179254 | B81: 17 | C81: 46033854 | D81: A | E81: C | F81: 0.3226 | G81: 0.3181 | H81: Imputed | I81: 1.03(0.97-1.09) | J81: 3.92E-01
A82: rs1032780909 | B82: 17 | C82: 42415583 | D82: T | E82: A | F82: 0.1038 | G82: 0.1014 | H82: Imputed | I82: 1.07(0.97-1.17) | J82: 1.64E-01
A83: rs1034801500 | B83: 17 | C83: 41590928 | D83: T | E83: C | F83: 0.2437 | G83: 0.2496 | H83: Imputed | I83: 0.95(0.89-1.02) | J83: 1.27E-01
A84: rs1035281 | B84: 17 | C84: 41994120 | D84: C | E84: G | F84: 0.05707 | G84: 0.05523 | H84: Imputed | I84: 1.01(0.9-1.15) | J84: 8.42E-01
A85: rs1035282 | B85: 17 | C85: 41994096 | D85: G | E85: C | F85: 0.05707 | G85: 0.05523 | H85: Imputed | I85: 1.01(0.9-1.15) | J85: 8.42E-01
A86: rs1035283 | B86: 17 | C86: 41994054 | D86: A | E86: G | F86: 0.05707 | G86: 0.05523 | H86: Imputed | I86: 1.01(0.9-1.15) | J86: 8.42E-01
A87: rs1035284 | B87: 17 | C87: 41993881 | D87: G | E87: C | F87: 0.05707 | G87: 0.05529 | H87: Imputed | I87: 1.02(0.9-1.15) | J87: 8.09E-01
A88: rs1035936570 | B88: 17 | C88: 45070614 | D88: A | E88: G | F88: 0.04165 | G88: 0.0412 | H88: Imputed | I88: 0.97(0.84-1.13) | J88: 7.21E-01
A89: rs1039840 | B89: 17 | C89: 46420472 | D89: A | E89: G | F89: 0.1745 | G89: 0.1827 | H89: Imputed | I89: 0.96(0.89-1.03) | J89: 2.57E-01
A90: rs1039934760 | B90: 17 | C90: 46415342 | D90: A | E90: T | F90: 0.2852 | G90: 0.279 | H90: Imputed | I90: 1.06(1-1.13) | J90: 5.64E-02
A91: rs10401005 | B91: 17 | C91: 43557805 | D91: G | E91: A | F91: 0.2729 | G91: 0.2597 | H91: Imputed | I91: 1.07(1.01-1.15) | J91: 2.91E-02
A92: rs1042329 | B92: 17 | C92: 42983714 | D92: T | E92: C | F92: 0.1169 | G92: 0.1154 | H92: Imputed | I92: 1(0.92-1.1) | J92: 9.48E-01
A93: rs10428 | B93: 17 | C93: 45915086 | D93: A | E93: G | F93: 0.1312 | G93: 0.1306 | H93: Imputed | I93: 1.03(0.95-1.12) | J93: 4.53E-01
A94: rs1042874660 | B94: 17 | C94: 45474385 | D94: C | E94: T | F94: 0.0451 | G94: 0.04166 | H94: Imputed | I94: 1.05(0.91-1.21) | J94: 5.30E-01
A95: rs10432034 | B95: 17 | C95: 43565690 | D95: C | E95: T | F95: 0.2256 | G95: 0.2271 | H95: Imputed | I95: 1.02(0.95-1.09) | J95: 6.22E-01
A96: rs10432035 | B96: 17 | C96: 45624913 | D96: G | E96: C | F96: 0.4951 | G96: 0.4894 | H96: Imputed | I96: 1(0.94-1.06) | J96: 9.91E-01
A97: rs10432043 | B97: 17 | C97: 44869567 | D97: T | E97: C | F97: 0.3495 | G97: 0.3361 | H97: Imputed | I97: 1.08(1.02-1.15) | J97: 8.84E-03
A98: rs1043603 | B98: 17 | C98: 46059110 | D98: T | E98: C | F98: 0.03181 | G98: 0.03164 | H98: Imputed | I98: 1(0.85-1.18) | J98: 9.72E-01
A99: rs1043709075 | B99: 17 | C99: 45468296 | D99: G | E99: A | F99: 0.385 | G99: 0.3946 | H99: Imputed | I99: 0.99(0.93-1.05) | J99: 7.29E-01
A100: rs10438761 | B100: 17 | C100: 41613294 | D100: A | E100: C | F100: 0.2435 | G100: 0.2492 | H100: Imputed | I100: 0.95(0.89-1.02) | J100: 1.36E-01
A101: rs10438778 | B101: 17 | C101: 43467987 | D101: G | E101: A | F101: 0.4636 | G101: 0.4624 | H101: Imputed | I101: 0.96(0.9-1.01) | J101: 1.22E-01
A102: rs10438781 | B102: 17 | C102: 45323819 | D102: G | E102: A | F102: 0.1681 | G102: 0.1671 | H102: Imputed | I102: 1.01(0.94-1.1) | J102: 7.15E-01
A103: rs10438782 | B103: 17 | C103: 45323892 | D103: A | E103: G | F103: 0.1681 | G103: 0.167 | H103: Imputed | I103: 1.02(0.94-1.1) | J103: 7.11E-01
A104: rs10445333 | B104: 17 | C104: 43916509 | D104: G | E104: A | F104: 0.176 | G104: 0.201 | H104: Imputed | I104: 0.79(0.74-0.86) | J104: 2.09E-09
A105: rs10445334 | B105: 17 | C105: 43934826 | D105: G | E105: T | F105: 0.176 | G105: 0.2012 | H105: Imputed | I105: 0.79(0.74-0.86) | J105: 2.13E-09
A106: rs10445335 | B106: 17 | C106: 43934896 | D106: A | E106: T | F106: 0.176 | G106: 0.2012 | H106: Imputed | I106: 0.79(0.74-0.86) | J106: 2.18E-09
A107: rs10445336 | B107: 17 | C107: 43934948 | D107: G | E107: A | F107: 0.176 | G107: 0.2012 | H107: Imputed | I107: 0.79(0.74-0.86) | J107: 2.18E-09
A108: rs10445337 | B108: 17 | C108: 44067400 | D108: C | E108: T | F108: 0.1753 | G108: 0.2009 | H108: Imputed | I108: 0.79(0.73-0.85) | J108: 8.44E-10
A109: rs10445338 | B109: 17 | C109: 44067682 | D109: A | E109: G | F109: 0.1753 | G109: 0.201 | H109: Imputed | I109: 0.79(0.73-0.85) | J109: 8.16E-10
A110: rs10445339 | B110: 17 | C110: 46216314 | D110: A | E110: G | F110: 0.3996 | G110: 0.3953 | H110: Imputed | I110: 1(0.94-1.06) | J110: 9.48E-01
A111: rs10445362 | B111: 17 | C111: 43914554 | D111: A | E111: C | F111: 0.176 | G111: 0.201 | H111: Imputed | I111: 0.79(0.74-0.86) | J111: 2.09E-09
A112: rs10445363 | B112: 17 | C112: 43914558 | D112: A | E112: G | F112: 0.176 | G112: 0.201 | H112: Imputed | I112: 0.79(0.74-0.86) | J112: 2.09E-09
A113: rs10445364 | B113: 17 | C113: 43916356 | D113: A | E113: G | F113: 0.176 | G113: 0.201 | H113: Imputed | I113: 0.79(0.74-0.86) | J113: 2.09E-09
A114: rs10445367 | B114: 17 | C114: 43932798 | D114: T | E114: G | F114: 0.1427 | G114: 0.1664 | H114: Imputed | I114: 0.78(0.72-0.85) | J114: 3.43E-09
A115: rs10445369 | B115: 17 | C115: 43934776 | D115: G | E115: A | F115: 0.176 | G115: 0.2012 | H115: Imputed | I115: 0.79(0.74-0.86) | J115: 2.13E-09
A116: rs10445370 | B116: 17 | C116: 43935118 | D116: A | E116: G | F116: 0.176 | G116: 0.2011 | H116: Imputed | I116: 0.79(0.74-0.86) | J116: 2.30E-09
A117: rs10445373 | B117: 17 | C117: 41709281 | D117: A | E117: T | F117: 0.1587 | G117: 0.1692 | H117: Imputed | I117: 0.92(0.85-0.99) | J117: 3.50E-02
A118: rs10445375 | B118: 17 | C118: 45864314 | D118: C | E118: T | F118: 0.2963 | G118: 0.2952 | H118: Imputed | I118: 1(0.94-1.07) | J118: 9.66E-01
A119: rs10445376 | B119: 17 | C119: 45864539 | D119: C | E119: T | F119: 0.2965 | G119: 0.2954 | H119: Imputed | I119: 1(0.94-1.07) | J119: 9.64E-01
A120: rs10445377 | B120: 17 | C120: 46214168 | D120: C | E120: T | F120: 0.4006 | G120: 0.3958 | H120: Imputed | I120: 1(0.94-1.06) | J120: 9.91E-01
A121: rs1044977 | B121: 17 | C121: 43227214 | D121: C | E121: T | F121: 0.257 | G121: 0.2447 | H121: Imputed | I121: 1.06(1-1.13) | J121: 6.95E-02
A122: rs10451262 | B122: 17 | C122: 42702056 | D122: T | E122: C | F122: 0.0897 | G122: 0.08518 | H122: Imputed | I122: 1.07(0.97-1.18) | J122: 2.07E-01
A123: rs10451271 | B123: 17 | C123: 43111154 | D123: G | E123: A | F123: 0.4082 | G123: 0.4053 | H123: Imputed | I123: 0.99(0.93-1.05) | J123: 6.49E-01
A124: rs10451282 | B124: 17 | C124: 43787903 | D124: T | E124: C | F124: 0.04133 | G124: 0.03719 | H124: Imputed | I124: 1.15(0.99-1.32) | J124: 6.10E-02
A125: rs10451283 | B125: 17 | C125: 43814020 | D125: C | E125: T | F125: 0.1761 | G125: 0.2015 | H125: Imputed | I125: 0.79(0.73-0.86) | J125: 1.85E-09
A126: rs10459927 | B126: 17 | C126: 45981536 | D126: C | E126: T | F126: 0.4172 | G126: 0.425 | H126: Imputed | I126: 0.97(0.91-1.03) | J126: 2.55E-01
A127: rs1046233406 | B127: 17 | C127: 41915767 | D127: A | E127: G | F127: 0.2083 | G127: 0.2063 | H127: Imputed | I127: 1(0.94-1.08) | J127: 9.31E-01
A128: rs1046770 | B128: 17 | C128: 42153562 | D128: C | E128: G | F128: 0.1989 | G128: 0.2059 | H128: Imputed | I128: 0.94(0.88-1.02) | J128: 1.17E-01
A129: rs10468514 | B129: 17 | C129: 43456240 | D129: G | E129: A | F129: 0.4282 | G129: 0.4063 | H129: Imputed | I129: 1.05(0.99-1.11) | J129: 9.47E-02
A130: rs10468557 | B130: 17 | C130: 41523079 | D130: G | E130: A | F130: 0.1392 | G130: 0.1283 | H130: Imputed | I130: 1.12(1.03-1.22) | J130: 6.70E-03
A131: rs1047293208 | B131: 17 | C131: 43040958 | D131: G | E131: A | F131: 0.4447 | G131: 0.4479 | H131: Imputed | I131: 0.98(0.93-1.04) | J131: 5.04E-01
A132: rs1047779 | B132: 17 | C132: 45019243 | D132: G | E132: T | F132: 0.4992 | G132: 0.49 | H132: Imputed | I132: 1.05(1-1.12) | J132: 6.99E-02
A133: rs1047833 | B133: 17 | C133: 43342141 | D133: G | E133: C | F133: 0.2926 | G133: 0.2757 | H133: Imputed | I133: 1.07(1-1.14) | J133: 4.82E-02
A134: rs1047841 | B134: 17 | C134: 43340631 | D134: T | E134: C | F134: 0.05428 | G134: 0.05122 | H134: Imputed | I134: 1.03(0.91-1.17) | J134: 6.50E-01
A135: rs10491141 | B135: 17 | C135: 44792632 | D135: G | E135: C | F135: 0.03362 | G135: 0.03209 | H135: Imputed | I135: 1.06(0.91-1.25) | J135: 4.52E-01
A136: rs10491142 | B136: 17 | C136: 43167863 | D136: C | E136: G | F136: 0.1325 | G136: 0.1365 | H136: Imputed | I136: 1.03(0.95-1.12) | J136: 5.27E-01
A137: rs10491143 | B137: 17 | C137: 43773248 | D137: T | E137: A | F137: 0.1763 | G137: 0.2009 | H137: Imputed | I137: 0.79(0.74-0.86) | J137: 2.82E-09
A138: rs10491144 | B138: 17 | C138: 43773124 | D138: C | E138: A | F138: 0.1763 | G138: 0.2009 | H138: Imputed | I138: 0.79(0.74-0.86) | J138: 2.82E-09
A139: rs10491149 | B139: 17 | C139: 45034021 | D139: A | E139: C | F139: 0.1094 | G139: 0.1133 | H139: Imputed | I139: 0.97(0.88-1.06) | J139: 4.75E-01
A140: rs10491182 | B140: 17 | C140: 46120767 | D140: C | E140: T | F140: 0.07773 | G140: 0.07719 | H140: Imputed | I140: 1.01(0.9-1.12) | J140: 8.91E-01
A141: rs10491183 | B141: 17 | C141: 46122125 | D141: T | E141: G | F141: 0.07789 | G141: 0.07722 | H141: Imputed | I141: 1.01(0.91-1.12) | J141: 8.60E-01
A142: rs1050025 | B142: 17 | C142: 46148155 | D142: T | E142: C | F142: 0.2092 | G142: 0.2109 | H142: Imputed | I142: 1(0.94-1.08) | J142: 9.16E-01
A143: rs105025 | B143: 17 | C143: 41987441 | D143: A | E143: G | F143: 0.3588 | G143: 0.3668 | H143: Imputed | I143: 0.98(0.93-1.04) | J143: 5.96E-01
A144: rs1050748960 | B144: 17 | C144: 43036001 | D144: A | E144: G | F144: 0.1553 | G144: 0.1409 | H144: Imputed | I144: 1.08(1-1.17) | J144: 5.66E-02
A145: rs1051001 | B145: 17 | C145: 46137905 | D145: T | E145: C | F145: 0.07724 | G145: 0.07524 | H145: Imputed | I145: 1.03(0.92-1.15) | J145: 5.89E-01
A146: rs10512490 | B146: 17 | C146: 42106765 | D146: A | E146: G | F146: 0.2012 | G146: 0.2091 | H146: Imputed | I146: 0.94(0.87-1.01) | J146: 8.39E-02
A147: rs10514854 | B147: 17 | C147: 42513449 | D147: C | E147: T | F147: 0.06068 | G147: 0.0627 | H147: Imputed | I147: 1.01(0.9-1.14) | J147: 8.87E-01
A148: rs10514879 | B148: 17 | C148: 43802971 | D148: T | E148: C | F148: 0.176 | G148: 0.2008 | H148: Imputed | I148: 0.79(0.74-0.86) | J148: 2.47E-09
A149: rs10514897 | B149: 17 | C149: 44117397 | D149: G | E149: A | F149: 0.1755 | G149: 0.201 | H149: Imputed | I149: 0.79(0.73-0.85) | J149: 9.65E-10
A150: rs10514898 | B150: 17 | C150: 44119636 | D150: C | E150: A | F150: 0.1755 | G150: 0.201 | H150: Imputed | I150: 0.79(0.73-0.85) | J150: 9.65E-10
A151: rs10514899 | B151: 17 | C151: 44119987 | D151: G | E151: C | F151: 0.4136 | G151: 0.4018 | H151: Imputed | I151: 1.06(1-1.12) | J151: 6.80E-02
A152: rs10514901 | B152: 17 | C152: 44194735 | D152: T | E152: G | F152: 0.1756 | G152: 0.201 | H152: Imputed | I152: 0.79(0.73-0.85) | J152: 1.17E-09
A153: rs10514903 | B153: 17 | C153: 44206646 | D153: G | E153: C | F153: 0.1756 | G153: 0.201 | H153: Imputed | I153: 0.79(0.73-0.85) | J153: 1.21E-09
A154: rs10514904 | B154: 17 | C154: 44207887 | D154: T | E154: C | F154: 0.1755 | G154: 0.2016 | H154: Imputed | I154: 0.79(0.73-0.85) | J154: 5.98E-10
A155: rs10514915 | B155: 17 | C155: 45166126 | D155: A | E155: G | F155: 0.3317 | G155: 0.336 | H155: Genotyped | I155: 0.98(0.92-1.04) | J155: 4.35E-01
A156: rs10514919 | B156: 17 | C156: 45342129 | D156: T | E156: G | F156: 0.2388 | G156: 0.2483 | H156: Imputed | I156: 0.95(0.89-1.01) | J156: 1.21E-01
A157: rs10514925 | B157: 17 | C157: 45444868 | D157: C | E157: G | F157: 0.07084 | G157: 0.06662 | H157: Imputed | I157: 1.05(0.93-1.17) | J157: 4.35E-01
A158: rs10514928 | B158: 17 | C158: 45503539 | D158: C | E158: T | F158: 0.05592 | G158: 0.05242 | H158: Imputed | I158: 1.05(0.93-1.2) | J158: 4.23E-01
A159: rs10514929 | B159: 17 | C159: 45504870 | D159: T | E159: C | F159: 0.07117 | G159: 0.06654 | H159: Imputed | I159: 1.05(0.94-1.18) | J159: 3.65E-01
A160: rs10514934 | B160: 17 | C160: 45812124 | D160: C | E160: T | F160: 0.1337 | G160: 0.1363 | H160: Imputed | I160: 1(0.92-1.09) | J160: 9.78E-01
A161: rs10514935 | B161: 17 | C161: 46260674 | D161: C | E161: T | F161: 0.1109 | G161: 0.1192 | H161: Imputed | I161: 0.91(0.83-1) | J161: 4.81E-02
A162: rs10514938 | B162: 17 | C162: 46322604 | D162: T | E162: A | F162: 0.2078 | G162: 0.2102 | H162: Imputed | I162: 1(0.93-1.07) | J162: 9.52E-01
A163: rs10514943 | B163: 17 | C163: 46372573 | D163: G | E163: A | F163: 0.04264 | G163: 0.04578 | H163: Imputed | I163: 0.99(0.86-1.13) | J163: 8.56E-01
A164: rs10514944 | B164: 17 | C164: 46398352 | D164: A | E164: G | F164: 0.09724 | G164: 0.09972 | H164: Imputed | I164: 0.94(0.85-1.04) | J164: 2.22E-01
A165: rs1052060313 | B165: 17 | C165: 46288649 | D165: T | E165: A | F165: 0.1433 | G165: 0.1426 | H165: Imputed | I165: 1(0.92-1.08) | J165: 9.21E-01
A166: rs1052169 | B166: 17 | C166: 43189049 | D166: C | E166: A | F166: 0.1855 | G166: 0.1863 | H166: Imputed | I166: 1.03(0.96-1.11) | J166: 4.21E-01
A167: rs1052390249 | B167: 17 | C167: 42750518 | D167: A | E167: C | F167: 0.09298 | G167: 0.09651 | H167: Imputed | I167: 0.99(0.9-1.09) | J167: 8.06E-01
A168: rs1052504 | B168: 17 | C168: 44993828 | D168: T | E168: C | F168: 0.3757 | G168: 0.3799 | H168: Imputed | I168: 0.96(0.91-1.02) | J168: 2.04E-01
A169: rs1052551 | B169: 17 | C169: 44068924 | D169: A | E169: G | F169: 0.1756 | G169: 0.2009 | H169: Imputed | I169: 0.79(0.73-0.85) | J169: 1.26E-09
A170: rs1052553 | B170: 17 | C170: 44073889 | D170: G | E170: A | F170: 0.1756 | G170: 0.2011 | H170: Imputed | I170: 0.79(0.73-0.85) | J170: 1.05E-09
A171: rs1052586 | B171: 17 | C171: 45018463 | D171: T | E171: C | F171: 0.4861 | G171: 0.495 | H171: Imputed | I171: 0.95(0.9-1.01) | J171: 8.27E-02
A172: rs1052587 | B172: 17 | C172: 44102604 | D172: C | E172: T | F172: 0.1755 | G172: 0.201 | H172: Genotyped | I172: 0.79(0.73-0.85) | J172: 9.65E-10
A173: rs1052590 | B173: 17 | C173: 44102638 | D173: G | E173: A | F173: 0.1755 | G173: 0.201 | H173: Imputed | I173: 0.79(0.73-0.85) | J173: 9.65E-10
A174: rs1052594 | B174: 17 | C174: 44102689 | D174: C | E174: G | F174: 0.1755 | G174: 0.201 | H174: Imputed | I174: 0.79(0.73-0.85) | J174: 9.65E-10
A175: rs1053487525 | B175: 17 | C175: 43156023 | D175: C | E175: T | F175: 0.2912 | G175: 0.2773 | H175: Imputed | I175: 1.07(1-1.14) | J175: 4.54E-02
A176: rs1053578 | B176: 17 | C176: 43221285 | D176: C | E176: T | F176: 0.05822 | G176: 0.06093 | H176: Imputed | I176: 0.91(0.8-1.03) | J176: 1.29E-01
A177: rs1053733 | B177: 17 | C177: 43183028 | D177: A | E177: G | F177: 0.4196 | G177: 0.4128 | H177: Imputed | I177: 1.02(0.97-1.09) | J177: 4.29E-01
A178: rs1053739 | B178: 17 | C178: 43183108 | D178: A | E178: G | F178: 0.3511 | G178: 0.3413 | H178: Imputed | I178: 1.05(0.99-1.12) | J178: 1.03E-01
A179: rs1053800 | B179: 17 | C179: 45884973 | D179: A | E179: G | F179: 0.3887 | G179: 0.3803 | H179: Imputed | I179: 1.04(0.98-1.11) | J179: 1.60E-01
A180: rs1055646 | B180: 17 | C180: 43037191 | D180: G | E180: C | F180: 0.4641 | G180: 0.469 | H180: Imputed | I180: 0.97(0.92-1.03) | J180: 3.41E-01
A181: rs1056116 | B181: 17 | C181: 44987261 | D181: C | E181: T | F181: 0.3242 | G181: 0.3311 | H181: Imputed | I181: 0.97(0.91-1.03) | J181: 2.83E-01
A182: rs1056619 | B182: 17 | C182: 43209727 | D182: T | E182: C | F182: 0.2424 | G182: 0.2451 | H182: Imputed | I182: 0.99(0.93-1.06) | J182: 8.36E-01
A183: rs1058046 | B183: 17 | C183: 42030531 | D183: G | E183: C | F183: 0.3262 | G183: 0.3228 | H183: Imputed | I183: 1.02(0.96-1.09) | J183: 4.63E-01
A184: rs1059504 | B184: 17 | C184: 43472321 | D184: G | E184: A | F184: 0.4423 | G184: 0.4476 | H184: Imputed | I184: 0.94(0.89-1) | J184: 5.33E-02
A185: rs1059555 | B185: 17 | C185: 42402119 | D185: C | E185: T | F185: 0.4014 | G185: 0.4038 | H185: Imputed | I185: 1.02(0.96-1.08) | J185: 5.22E-01
A186: rs1071682 | B186: 17 | C186: 42927721 | D186: A | E186: G | F186: 0.3791 | G186: 0.3676 | H186: Imputed | I186: 1.05(0.99-1.11) | J186: 1.16E-01
A187: rs1072235 | B187: 17 | C187: 41950577 | D187: T | E187: C | F187: 0.1179 | G187: 0.1264 | H187: Imputed | I187: 0.95(0.87-1.04) | J187: 2.56E-01
A188: rs1076222 | B188: 17 | C188: 44109769 | D188: G | E188: C | F188: 0.1755 | G188: 0.201 | H188: Imputed | I188: 0.79(0.73-0.85) | J188: 9.65E-10
A189: rs1076236 | B189: 17 | C189: 46091444 | D189: C | E189: T | F189: 0.3747 | G189: 0.3654 | H189: Imputed | I189: 1.05(0.99-1.11) | J189: 1.30E-01
A190: rs10775392 | B190: 17 | C190: 42730474 | D190: C | E190: T | F190: 0.4467 | G190: 0.4411 | H190: Imputed | I190: 1.04(0.98-1.1) | J190: 2.01E-01
A191: rs10775404 | B191: 17 | C191: 44167366 | D191: C | E191: A | F191: 0.1925 | G191: 0.1881 | H191: Imputed | I191: 1.1(1.03-1.18) | J191: 8.49E-03
A192: rs10775405 | B192: 17 | C192: 45188090 | D192: T | E192: C | F192: 0.2965 | G192: 0.3105 | H192: Imputed | I192: 0.92(0.86-0.98) | J192: 6.24E-03
A193: rs10775406 | B193: 17 | C193: 46197755 | D193: A | E193: G | F193: 0.2609 | G193: 0.2552 | H193: Imputed | I193: 1.02(0.96-1.09) | J193: 4.87E-01
A194: rs1078268 | B194: 17 | C194: 44075901 | D194: G | E194: A | F194: 0.1758 | G194: 0.2015 | H194: Imputed | I194: 0.79(0.73-0.85) | J194: 8.18E-10
A195: rs1078269 | B195: 17 | C195: 44075837 | D195: C | E195: T | F195: 0.1758 | G195: 0.2015 | H195: Imputed | I195: 0.79(0.73-0.85) | J195: 8.18E-10
A196: rs1078830 | B196: 17 | C196: 43946112 | D196: C | E196: T | F196: 0.1758 | G196: 0.2011 | H196: Imputed | I196: 0.79(0.73-0.85) | J196: 1.58E-09
A197: rs1078997 | B197: 17 | C197: 44109843 | D197: G | E197: A | F197: 0.1561 | G197: 0.1446 | H197: Imputed | I197: 1.08(0.99-1.17) | J197: 7.16E-02
A198: rs10852959 | B198: 17 | C198: 42378198 | D198: G | E198: C | F198: 0.3821 | G198: 0.3848 | H198: Imputed | I198: 1.01(0.95-1.07) | J198: 6.91E-01
A199: rs10852960 | B199: 17 | C199: 42379953 | D199: G | E199: A | F199: 0.3816 | G199: 0.3846 | H199: Imputed | I199: 1.01(0.95-1.07) | J199: 6.89E-01
A200: rs10852995 | B200: 17 | C200: 42730274 | D200: T | E200: C | F200: 0.4469 | G200: 0.4411 | H200: Imputed | I200: 1.04(0.98-1.1) | J200: 1.94E-01
... 9570 more rows

Sheet Suppl Data 6
A1: Supplementary Data 6: Bayesian Analysis in CRHR1 locus.
A2: Note: CHROM=chromosome; POS=basepair position; A1=major allele; A2=minor allele; OR=odd ratio; L+P0=The log null marginal likelihood; L+P1=The log alternative marginal likelihood; BF=Bayes factor; P_CAUSAL=The probability that this variant is the causal variant at this locus;
A4: FINEMAP | L4: CREDIBLE SET
A5: CHROM | B5: POS (GRCh37/hg19) | C5: RSID | D5: A1 | E5: A2 | F5: OR_Disease | G5: L+P0 | H5: L+P1 | I5: logBF | J5: P_CAUSAL | L5: CHROM | M5: POS (GRCh37/hg19) | N5: RSID | O5: A1 | P5: A2 | Q5: BestModel | R5: BestModelProb | S5: CredibleSet
A6: 17 | B6: 44018519 | C6: rs7210219 | D6: C | E6: T | F6: 1.26 | G6: -7977.388 | H6: -7959.663 | I6: 17.725 | J6: 0.002766560981 | L6: 17 | M6: 44018519 | N6: rs7210219 | O6: C | P6: T | Q6: M_Disease | R6: 0.9998587729 | S6: M_Disease
A7: 17 | B7: 44293205 | C7: rs2696609 | D7: G | E7: A | F7: 1.258 | G7: -7977.388 | H7: -7959.81 | I7: 17.579 | J7: 0.002390744983 | L7: 17 | M7: 44293205 | N7: rs2696609 | O7: G | P7: A | Q7: M_Disease | R7: 0.9998477752 | S7: M_Disease
A8: 17 | B8: 44110271 | C8: rs7350980 | D8: A | E8: G | F8: 1.257 | G8: -7977.388 | H8: -7959.84 | I8: 17.548 | J8: 0.002317768862 | L8: 17 | M8: 44110271 | N8: rs7350980 | O8: A | P8: G | Q8: M_Disease | R8: 0.999845475 | S8: M_Disease
A9: 17 | B9: 44110670 | C9: rs4597358 | D9: G | E9: C | F9: 1.257 | G9: -7977.388 | H9: -7959.84 | I9: 17.548 | J9: 0.002317768862 | L9: 17 | M9: 44110670 | N9: rs4597358 | O9: G | P9: C | Q9: M_Disease | R9: 0.999845475 | S9: M_Disease
A10: 17 | B10: 44186063 | C10: rs16940904 | D10: T | E10: C | F10: 1.257 | G10: -7977.388 | H10: -7959.871 | I10: 17.517 | J10: 0.002247020296 | L10: 17 | M10: 44186063 | N10: rs16940904 | O10: T | P10: C | Q10: M_Disease | R10: 0.99984314 | S10: M_Disease
A11: 17 | B11: 44091886 | C11: rs9891103 | D11: T | E11: C | F11: 1.257 | G11: -7977.388 | H11: -7959.899 | I11: 17.489 | J11: 0.002184976396 | L11: 17 | M11: 44091886 | N11: rs9891103 | O11: T | P11: C | Q11: M_Disease | R11: 0.9998407697 | S11: M_Disease
A12: 17 | B12: 44208312 | C12: rs6503457 | D12: T | E12: G | F12: 1.257 | G12: -7977.388 | H12: -7959.953 | I12: 17.436 | J12: 0.002072187942 | L12: 17 | M12: 44208312 | N12: rs6503457 | O12: T | P12: G | Q12: M_Disease | R12: 0.9998367395 | S12: M_Disease
A13: 17 | B13: 44208674 | C13: rs8070942 | D13: T | E13: G | F13: 1.257 | G13: -7977.388 | H13: -7959.953 | I13: 17.436 | J13: 0.002072187942 | L13: 17 | M13: 44208674 | N13: rs8070942 | O13: T | P13: G | Q13: M_Disease | R13: 0.9998367395 | S13: M_Disease
A14: 17 | B14: 44326245 | C14: rs2463524 | D14: G | E14: A | F14: 1.264 | G14: -7977.388 | H14: -7959.984 | I14: 17.405 | J14: 0.002008935592 | L14: 17 | M14: 44326245 | N14: rs2463524 | O14: G | P14: A | Q14: M_Disease | R14: 0.9998342725 | S14: M_Disease
A15: 17 | B15: 44210933 | C15: rs7207582 | D15: G | E15: A | F15: 1.256 | G15: -7977.388 | H15: -7960.008 | I15: 17.38 | J15: 0.001959334796 | L15: 17 | M15: 44210933 | N15: rs7207582 | O15: G | P15: A | Q15: M_Disease | R15: 0.9998317683 | S15: M_Disease
A16: 17 | B16: 44212310 | C16: rs10221243 | D16: A | E16: G | F16: 1.256 | G16: -7977.388 | H16: -7960.008 | I16: 17.38 | J16: 0.001959334796 | L16: 17 | M16: 44212310 | N16: rs10221243 | O16: A | P16: G | Q16: M_Disease | R16: 0.9998317683 | S16: M_Disease
A17: 17 | B17: 44138201 | C17: rs7220752 | D17: C | E17: T | F17: 1.256 | G17: -7977.388 | H17: -7960.063 | I17: 17.325 | J17: 0.001854481284 | L17: 17 | M17: 44138201 | N17: rs7220752 | O17: C | P17: T | Q17: M_Disease | R17: 0.9998275102 | S17: M_Disease
A18: 17 | B18: 44151546 | C18: rs9907738 | D18: G | E18: T | F18: 1.256 | G18: -7977.388 | H18: -7960.063 | I18: 17.325 | J18: 0.001854481284 | L18: 17 | M18: 44151546 | N18: rs9907738 | O18: G | P18: T | Q18: M_Disease | R18: 0.9998275102 | S18: M_Disease
A19: 17 | B19: 44155732 | C19: rs2066899 | D19: T | E19: C | F19: 1.256 | G19: -7977.388 | H19: -7960.063 | I19: 17.325 | J19: 0.001854481284 | L19: 17 | M19: 44155732 | N19: rs2066899 | O19: T | P19: C | Q19: M_Disease | R19: 0.9998275102 | S19: M_Disease
A20: 17 | B20: 44162597 | C20: rs8080583 | D20: A | E20: C | F20: 1.256 | G20: -7977.388 | H20: -7960.063 | I20: 17.325 | J20: 0.001854481284 | L20: 17 | M20: 44162597 | N20: rs8080583 | O20: A | P20: C | Q20: M_Disease | R20: 0.9998275102 | S20: M_Disease
A21: 17 | B21: 44168677 | C21: rs2097760 | D21: G | E21: A | F21: 1.256 | G21: -7977.388 | H21: -7960.063 | I21: 17.325 | J21: 0.001854481284 | L21: 17 | M21: 44168677 | N21: rs2097760 | O21: G | P21: A | Q21: M_Disease | R21: 0.9998275102 | S21: M_Disease
A22: 17 | B22: 44115440 | C22: rs8077487 | D22: C | E22: T | F22: 1.256 | G22: -7977.388 | H22: -7960.085 | I22: 17.304 | J22: 0.001815943243 | L22: 17 | M22: 44115440 | N22: rs8077487 | O22: C | P22: T | Q22: M_Disease | R22: 0.999825777 | S22: M_Disease
A23: 17 | B23: 44116950 | C23: rs7221390 | D23: G | E23: T | F23: 1.256 | G23: -7977.388 | H23: -7960.085 | I23: 17.304 | J23: 0.001815943243 | L23: 17 | M23: 44116950 | N23: rs7221390 | O23: G | P23: T | Q23: M_Disease | R23: 0.999825777 | S23: M_Disease
A24: 17 | B24: 44212782 | C24: 17:44212782 | D24: C | E24: T | F24: 1.255 | G24: -7977.388 | H24: -7960.109 | I24: 17.279 | J24: 0.001771107444 | L24: 17 | M24: 44126365 | N24: rs7218319 | O24: T | P24: C | Q24: M_Disease | R24: 0.9998231444 | S24: M_Disease
A25: 17 | B25: 44126365 | C25: rs7218319 | D25: T | E25: C | F25: 1.255 | G25: -7977.388 | H25: -7960.116 | I25: 17.273 | J25: 0.001760512616 | L25: 17 | M25: 44212782 | N25: 17:44212782 | O25: C | P25: T | Q25: M_Disease | R25: 0.9998231444 | S25: M_Disease
A26: 17 | B26: 44187257 | C26: rs9303525 | D26: G | E26: A | F26: 1.255 | G26: -7977.388 | H26: -7960.125 | I26: 17.264 | J26: 0.00174473909 | L26: 17 | M26: 44187257 | N26: rs9303525 | O26: G | P26: A | Q26: M_Disease | R26: 0.999822258 | S26: M_Disease
A27: 17 | B27: 44297148 | C27: rs2696689 | D27: A | E27: G | F27: 1.257 | G27: -7977.388 | H27: -7960.157 | I27: 17.231 | J27: 0.001688102346 | L27: 17 | M27: 44297148 | N27: rs2696689 | O27: A | P27: G | Q27: M_Disease | R27: 0.9998186681 | S27: M_Disease
A28: 17 | B28: 44227623 | C28: rs2696578 | D28: C | E28: T | F28: 1.255 | G28: -7977.388 | H28: -7960.202 | I28: 17.186 | J28: 0.001613821592 | L28: 17 | M28: 44227623 | N28: rs2696578 | O28: C | P28: T | Q28: M_Disease | R28: 0.9998150056 | S28: M_Disease
A29: 17 | B29: 44283139 | C29: rs2732671 | D29: A | E29: C | F29: 1.256 | G29: -7977.388 | H29: -7960.26 | I29: 17.128 | J29: 0.00152288266 | L29: 17 | M29: 44283139 | N29: rs2732671 | O29: A | P29: C | Q29: M_Disease | R29: 0.9998093728 | S29: M_Disease
A30: 17 | B30: 44284057 | C30: rs1469183577 | D30: T | E30: C | F30: 1.256 | G30: -7977.388 | H30: -7960.267 | I30: 17.122 | J30: 0.001513772721 | L30: 17 | M30: 44284057 | N30: rs1469183577 | O30: T | P30: C | Q30: M_Disease | R30: 0.9998084174 | S30: M_Disease
A31: 17 | B31: 44285531 | C31: rs2469933 | D31: A | E31: G | F31: 1.256 | G31: -7977.388 | H31: -7960.292 | I31: 17.096 | J31: 0.00147492188 | L31: 17 | M31: 44285531 | N31: rs2469933 | O31: A | P31: G | Q31: M_Disease | R31: 0.9998064924 | S31: M_Disease
A32: 17 | B32: 44238571 | C32: rs2532289 | D32: G | E32: C | F32: 1.254 | G32: -7977.388 | H32: -7960.348 | I32: 17.04 | J32: 0.00139459636 | L32: 17 | M32: 44238571 | N32: rs2532289 | O32: G | P32: C | Q32: M_Disease | R32: 0.9998006003 | S32: M_Disease
A33: 17 | B33: 44247164 | C33: rs2532274 | D33: G | E33: A | F33: 1.254 | G33: -7977.388 | H33: -7960.348 | I33: 17.04 | J33: 0.00139459636 | L33: 17 | M33: 44247164 | N33: rs2532274 | O33: G | P33: A | Q33: M_Disease | R33: 0.9998006003 | S33: M_Disease
A34: 17 | B34: 44287310 | C34: rs2696464 | D34: G | E34: A | F34: 1.255 | G34: -7977.388 | H34: -7960.457 | I34: 16.931 | J34: 0.001250576976 | L34: 17 | M34: 44287310 | N34: rs2696464 | O34: G | P34: A | Q34: M_Disease | R34: 0.9997893285 | S34: M_Disease
A35: 17 | B35: 44288579 | C35: 17:44288579 | D35: C | E35: T | F35: 1.255 | G35: -7977.388 | H35: -7960.457 | I35: 16.931 | J35: 0.001250576976 | L35: 17 | M35: 44288579 | N35: 17:44288579 | O35: C | P35: T | Q35: M_Disease | R35: 0.9997893285 | S35: M_Disease
A36: 17 | B36: 44289101 | C36: rs2732629 | D36: G | E36: A | F36: 1.255 | G36: -7977.388 | H36: -7960.457 | I36: 16.931 | J36: 0.001250576976 | L36: 17 | M36: 44289101 | N36: rs2732629 | O36: G | P36: A | Q36: M_Disease | R36: 0.9997893285 | S36: M_Disease
A37: 17 | B37: 44289628 | C37: rs2668670 | D37: C | E37: A | F37: 1.255 | G37: -7977.388 | H37: -7960.457 | I37: 16.931 | J37: 0.001250576976 | L37: 17 | M37: 44289628 | N37: rs2668670 | O37: C | P37: A | Q37: M_Disease | R37: 0.9997893285 | S37: M_Disease
A38: 17 | B38: 44290047 | C38: rs2668665 | D38: A | E38: G | F38: 1.255 | G38: -7977.388 | H38: -7960.457 | I38: 16.931 | J38: 0.001250576976 | L38: 17 | M38: 44290047 | N38: rs2668665 | O38: A | P38: G | Q38: M_Disease | R38: 0.9997893285 | S38: M_Disease
A39: 17 | B39: 44290759 | C39: rs2668662 | D39: C | E39: T | F39: 1.255 | G39: -7977.388 | H39: -7960.457 | I39: 16.931 | J39: 0.001250576976 | L39: 17 | M39: 44290759 | N39: rs2668662 | O39: C | P39: T | Q39: M_Disease | R39: 0.9997893285 | S39: M_Disease
A40: 17 | B40: 44291365 | C40: 17:44291365 | D40: T | E40: C | F40: 1.255 | G40: -7977.388 | H40: -7960.457 | I40: 16.931 | J40: 0.001250576976 | L40: 17 | M40: 44291365 | N40: 17:44291365 | O40: T | P40: C | Q40: M_Disease | R40: 0.9997893285 | S40: M_Disease
A41: 17 | B41: 44291381 | C41: 17:44291381 | D41: G | E41: A | F41: 1.255 | G41: -7977.388 | H41: -7960.457 | I41: 16.931 | J41: 0.001250576976 | L41: 17 | M41: 44291381 | N41: 17:44291381 | O41: G | P41: A | Q41: M_Disease | R41: 0.9997893285 | S41: M_Disease
A42: 17 | B42: 44291479 | C42: rs2732601 | D42: A | E42: G | F42: 1.255 | G42: -7977.388 | H42: -7960.457 | I42: 16.931 | J42: 0.001250576976 | L42: 17 | M42: 44291479 | N42: rs2732601 | O42: A | P42: G | Q42: M_Disease | R42: 0.9997893285 | S42: M_Disease
A43: 17 | B43: 44291820 | C43: rs2696610 | D43: G | E43: A | F43: 1.255 | G43: -7977.388 | H43: -7960.457 | I43: 16.931 | J43: 0.001250576976 | L43: 17 | M43: 44291820 | N43: rs2696610 | O43: G | P43: A | Q43: M_Disease | R43: 0.9997893285 | S43: M_Disease
A44: 17 | B44: 44065901 | C44: rs919464 | D44: T | E44: C | F44: 1.255 | G44: -7977.388 | H44: -7960.478 | I44: 16.91 | J44: 0.001224588692 | L44: 17 | M44: 44065901 | N44: rs919464 | O44: T | P44: C | Q44: M_Disease | R44: 0.9997872117 | S44: M_Disease
A45: 17 | B45: 44286128 | C45: rs2696463 | D45: G | E45: A | F45: 1.255 | G45: -7977.388 | H45: -7960.485 | I45: 16.904 | J45: 0.001217263158 | L45: 17 | M45: 44283022 | N45: rs2668656 | O45: G | P45: A | Q45: M_Disease | R45: 0.9997872117 | S45: M_Disease
A46: 17 | B46: 44283022 | C46: rs2668656 | D46: G | E46: A | F46: 1.254 | G46: -7977.388 | H46: -7960.486 | I46: 16.902 | J46: 0.001214831065 | L46: 17 | M46: 44286128 | N46: rs2696463 | O46: G | P46: A | Q46: M_Disease | R46: 0.9997872117 | S46: M_Disease
A47: 17 | B47: 44292126 | C47: 17:44292126 | D47: C | E47: T | F47: 1.254 | G47: -7977.388 | H47: -7960.487 | I47: 16.902 | J47: 0.001214831065 | L47: 17 | M47: 44280523 | N47: rs2668660 | O47: G | P47: A | Q47: M_Disease | R47: 0.9997861453 | S47: M_Disease
A48: 17 | B48: 44292319 | C48: rs2668694 | D48: C | E48: T | F48: 1.254 | G48: -7977.388 | H48: -7960.487 | I48: 16.902 | J48: 0.001214831065 | L48: 17 | M48: 44292126 | N48: 17:44292126 | O48: C | P48: T | Q48: M_Disease | R48: 0.9997861453 | S48: M_Disease
A49: 17 | B49: 44280523 | C49: rs2668660 | D49: G | E49: A | F49: 1.254 | G49: -7977.388 | H49: -7960.493 | I49: 16.895 | J49: 0.001206356941 | L49: 17 | M49: 44292319 | N49: rs2668694 | O49: C | P49: T | Q49: M_Disease | R49: 0.9997861453 | S49: M_Disease
A50: 17 | B50: 44281588 | C50: rs2696451 | D50: C | E50: T | F50: 1.254 | G50: -7977.388 | H50: -7960.52 | I50: 16.869 | J50: 0.001175395898 | L50: 17 | M50: 44281588 | N50: rs2696451 | O50: C | P50: T | Q50: M_Disease | R50: 0.999782914 | S50: M_Disease
A51: 17 | B51: 44281722 | C51: rs2696453 | D51: C | E51: T | F51: 1.254 | G51: -7977.388 | H51: -7960.52 | I51: 16.869 | J51: 0.001175395898 | L51: 17 | M51: 44281722 | N51: rs2696453 | O51: C | P51: T | Q51: M_Disease | R51: 0.999782914 | S51: M_Disease
A52: 17 | B52: 43964539 | C52: rs62055544 | D52: G | E52: A | F52: 1.254 | G52: -7977.388 | H52: -7960.532 | I52: 16.856 | J52: 0.001160214644 | L52: 17 | M52: 43964539 | N52: rs62055544 | O52: G | P52: A | Q52: M_Disease | R52: 0.9997818261 | S52: M_Disease
A53: 17 | B53: 44228169 | C53: rs1918793 | D53: T | E53: C | F53: 1.252 | G53: -7977.388 | H53: -7960.534 | I53: 16.854 | J53: 0.001157896533 | L53: 17 | M53: 44228169 | N53: rs1918793 | O53: T | P53: C | Q53: M_Disease | R53: 0.9997818261 | S53: M_Disease
A54: 17 | B54: 44280902 | C54: rs2732673 | D54: C | E54: G | F54: 1.254 | G54: -7977.388 | H54: -7960.548 | I54: 16.84 | J54: 0.001141798928 | L54: 17 | M54: 44279760 | N54: rs1358438 | O54: A | P54: G | Q54: M_Disease | R54: 0.9997796339 | S54: M_Disease
A55: 17 | B55: 44279760 | C55: rs1358438 | D55: A | E55: G | F55: 1.254 | G55: -7977.388 | H55: -7960.556 | I55: 16.832 | J55: 0.001132700977 | L55: 17 | M55: 44280188 | N55: rs2732675 | O55: A | P55: T | Q55: M_Disease | R55: 0.9997796339 | S55: M_Disease
A56: 17 | B56: 44280188 | C56: rs2732675 | D56: A | E56: T | F56: 1.254 | G56: -7977.388 | H56: -7960.556 | I56: 16.832 | J56: 0.001132700977 | L56: 17 | M56: 44280902 | N56: rs2732673 | O56: C | P56: G | Q56: M_Disease | R56: 0.9997796339 | S56: M_Disease
A57: 17 | B57: 44207887 | C57: rs10514904 | D57: T | E57: C | F57: 1.254 | G57: -7977.388 | H57: -7960.564 | I57: 16.825 | J57: 0.001124799757 | L57: 17 | M57: 44207887 | N57: rs10514904 | O57: T | P57: C | Q57: M_Disease | R57: 0.9997785296 | S57: M_Disease
A58: 17 | B58: 44302881 | C58: rs2532404 | D58: T | E58: C | F58: 1.254 | G58: -7977.388 | H58: -7960.57 | I58: 16.818 | J58: 0.001116953652 | L58: 17 | M58: 44066172 | N58: rs112385572 | O58: G | P58: A | Q58: M_Disease | R58: 0.9997774197 | S58: M_Disease
A59: 17 | B59: 44066172 | C59: rs112385572 | D59: G | E59: A | F59: 1.254 | G59: -7977.388 | H59: -7960.574 | I59: 16.814 | J59: 0.001112494761 | L59: 17 | M59: 44302881 | N59: rs2532404 | O59: T | P59: C | Q59: M_Disease | R59: 0.9997774197 | S59: M_Disease
A60: 17 | B60: 44281452 | C60: rs2668659 | D60: G | E60: A | F60: 1.254 | G60: -7977.388 | H60: -7960.593 | I60: 16.795 | J60: 0.0010915569 | L60: 17 | M60: 44281452 | N60: rs2668659 | O60: G | P60: A | Q60: M_Disease | R60: 0.9997751832 | S60: M_Disease
A61: 17 | B61: 44066088 | C61: rs62063794 | D61: A | E61: T | F61: 1.253 | G61: -7977.388 | H61: -7960.607 | I61: 16.781 | J61: 0.001076381578 | L61: 17 | M61: 44066088 | N61: rs62063794 | O61: A | P61: T | Q61: M_Disease | R61: 0.9997729243 | S61: M_Disease
A62: 17 | B62: 44331214 | C62: rs2957316 | D62: C | E62: T | F62: 1.258 | G62: -7977.388 | H62: -7960.631 | I62: 16.758 | J62: 0.001051907335 | L62: 17 | M62: 44331214 | N62: rs2957316 | O62: C | P62: T | Q62: M_Disease | R62: 0.9997706427 | S62: M_Disease
A63: 17 | B63: 44072984 | C63: rs112572874 | D63: G | E63: A | F63: 1.252 | G63: -7977.388 | H63: -7960.642 | I63: 16.747 | J63: 0.001040399762 | L63: 17 | M63: 44072984 | N63: rs112572874 | O63: G | P63: A | Q63: M_Disease | R63: 0.9997694933 | S63: M_Disease
A64: 17 | B64: 44316449 | C64: rs62073098 | D64: C | E64: A | F64: 1.253 | G64: -7977.388 | H64: -7960.669 | I64: 16.719 | J64: 0.001011672625 | L64: 17 | M64: 44316449 | N64: rs62073098 | O64: C | P64: A | Q64: M_Disease | R64: 0.9997660104 | S64: M_Disease
A65: 17 | B65: 44027383 | C65: rs62062798 | D65: G | E65: A | F65: 1.253 | G65: -7977.388 | H65: -7960.677 | I65: 16.711 | J65: 0.001003611532 | L65: 17 | M65: 44027383 | N65: rs62062798 | O65: G | P65: A | Q65: M_Disease | R65: 0.9997648378 | S65: M_Disease
A66: 17 | B66: 44205690 | C66: rs4471723 | D66: T | E66: C | F66: 1.252 | G66: -7977.388 | H66: -7960.68 | I66: 16.709 | J66: 0.001001606314 | L66: 17 | M66: 44205690 | N66: rs4471723 | O66: T | P66: C | Q66: M_Disease | R66: 0.9997648378 | S66: M_Disease
A67: 17 | B67: 44316076 | C67: rs55653937 | D67: T | E67: G | F67: 1.253 | G67: -7977.388 | H67: -7960.701 | I67: 16.687 | J67: 0.0009798115964 | L67: 17 | M67: 44316076 | N67: rs55653937 | O67: T | P67: G | Q67: M_Disease | R67: 0.999762475 | S67: M_Disease
A68: 17 | B68: 44278742 | C68: 17:44278742 | D68: G | E68: A | F68: 1.253 | G68: -7977.388 | H68: -7960.723 | I68: 16.665 | J68: 0.0009584911264 | L68: 17 | M68: 44278742 | N68: 17:44278742 | O68: G | P68: A | Q68: M_Disease | R68: 0.9997600884 | S68: M_Disease
A69: 17 | B69: 44279252 | C69: rs1918787 | D69: G | E69: A | F69: 1.253 | G69: -7977.388 | H69: -7960.723 | I69: 16.665 | J69: 0.0009584911264 | L69: 17 | M69: 44279252 | N69: rs1918787 | O69: G | P69: A | Q69: M_Disease | R69: 0.9997600884 | S69: M_Disease
A70: 17 | B70: 44318184 | C70: rs2696668 | D70: G | E70: A | F70: 1.253 | G70: -7977.388 | H70: -7960.726 | I70: 16.662 | J70: 0.0009556199619 | L70: 17 | M70: 44318184 | N70: rs2696668 | O70: G | P70: A | Q70: M_Disease | R70: 0.9997600884 | S70: M_Disease
A71: 17 | B71: 44313757 | C71: rs2532386 | D71: A | E71: G | F71: 1.253 | G71: -7977.388 | H71: -7960.734 | I71: 16.654 | J71: 0.0009480055007 | L71: 17 | M71: 44313757 | N71: rs2532386 | O71: A | P71: G | Q71: M_Disease | R71: 0.9997588861 | S71: M_Disease
A72: 17 | B72: 43927290 | C72: rs17769552 | D72: A | E72: G | F72: 1.252 | G72: -7977.388 | H72: -7960.749 | I72: 16.639 | J72: 0.0009338915375 | L72: 17 | M72: 43927290 | N72: rs17769552 | O72: A | P72: G | Q72: M_Disease | R72: 0.9997564635 | S72: M_Disease
A73: 17 | B73: 44279101 | C73: rs1918786 | D73: G | E73: A | F73: 1.252 | G73: -7977.388 | H73: -7960.749 | I73: 16.639 | J73: 0.0009338915375 | L73: 17 | M73: 44279101 | N73: rs1918786 | O73: G | P73: A | Q73: M_Disease | R73: 0.9997564635 | S73: M_Disease
A74: 17 | B74: 44277691 | C74: rs2732665 | D74: C | E74: T | F74: 1.252 | G74: -7977.388 | H74: -7960.759 | I74: 16.629 | J74: 0.0009245991615 | L74: 17 | M74: 44264045 | N74: rs2696706 | O74: C | P74: T | Q74: M_Disease | R74: 0.999755243 | S74: M_Disease
A75: 17 | B75: 44277818 | C75: rs2532228 | D75: G | E75: A | F75: 1.252 | G75: -7977.388 | H75: -7960.759 | I75: 16.629 | J75: 0.0009245991615 | L75: 17 | M75: 44277691 | N75: rs2732665 | O75: C | P75: T | Q75: M_Disease | R75: 0.999755243 | S75: M_Disease
A76: 17 | B76: 44277867 | C76: rs2532226 | D76: A | E76: G | F76: 1.252 | G76: -7977.388 | H76: -7960.759 | I76: 16.629 | J76: 0.0009245991615 | L76: 17 | M76: 44277818 | N76: rs2532228 | O76: G | P76: A | Q76: M_Disease | R76: 0.999755243 | S76: M_Disease
A77: 17 | B77: 44264045 | C77: rs2696706 | D77: C | E77: T | F77: 1.252 | G77: -7977.388 | H77: -7960.766 | I77: 16.622 | J77: 0.0009181495672 | L77: 17 | M77: 44277867 | N77: rs2532226 | O77: A | P77: G | Q77: M_Disease | R77: 0.999755243 | S77: M_Disease
A78: 17 | B78: 44018488 | C78: rs62061734 | D78: C | E78: T | F78: 1.253 | G78: -7977.388 | H78: -7960.789 | I78: 16.599 | J78: 0.0008972731266 | L78: 17 | M78: 44018488 | N78: rs62061734 | O78: C | P78: T | Q78: M_Disease | R78: 0.9997515449 | S78: M_Disease
A79: 17 | B79: 44079721 | C79: rs62064662 | D79: G | E79: A | F79: 1.252 | G79: -7977.388 | H79: -7960.792 | I79: 16.596 | J79: 0.0008945853409 | L79: 17 | M79: 44079721 | N79: rs62064662 | O79: G | P79: A | Q79: M_Disease | R79: 0.9997515449 | S79: M_Disease
A80: 17 | B80: 44277923 | C80: rs2532225 | D80: A | E80: G | F80: 1.252 | G80: -7977.388 | H80: -7960.797 | I80: 16.591 | J80: 0.0008901235779 | L80: 17 | M80: 44277923 | N80: rs2532225 | O80: A | P80: G | Q80: M_Disease | R80: 0.9997502998 | S80: M_Disease
A81: 17 | B81: 43848761 | C81: rs62055936 | D81: A | E81: T | F81: 1.252 | G81: -7977.388 | H81: -7960.81 | I81: 16.578 | J81: 0.0008786268619 | L81: 17 | M81: 43848761 | N81: rs62055936 | O81: A | P81: T | Q81: M_Disease | R81: 0.9997490485 | S81: M_Disease
A82: 17 | B82: 44083081 | C82: rs17573607 | D82: A | E82: G | F82: 1.252 | G82: -7977.388 | H82: -7960.82 | I82: 16.569 | J82: 0.000870754698 | L82: 17 | M82: 44083081 | N82: rs17573607 | O82: A | P82: G | Q82: M_Disease | R82: 0.9997477909 | S82: M_Disease
A83: 17 | B83: 44264717 | C83: rs2696707 | D83: C | E83: A | F83: 1.252 | G83: -7977.388 | H83: -7960.823 | I83: 16.566 | J83: 0.0008681463484 | L83: 17 | M83: 44264717 | N83: rs2696707 | O83: C | P83: A | Q83: M_Disease | R83: 0.9997477909 | S83: M_Disease
A84: 17 | B84: 44264943 | C84: rs2696708 | D84: C | E84: T | F84: 1.252 | G84: -7977.388 | H84: -7960.828 | I84: 16.56 | J84: 0.0008629530658 | L84: 17 | M84: 44264943 | N84: rs2696708 | O84: C | P84: T | Q84: M_Disease | R84: 0.9997465271 | S84: M_Disease
A85: 17 | B85: 44265328 | C85: rs2532243 | D85: G | E85: A | F85: 1.252 | G85: -7977.388 | H85: -7960.828 | I85: 16.56 | J85: 0.0008629530658 | L85: 17 | M85: 44265328 | N85: rs2532243 | O85: G | P85: A | Q85: M_Disease | R85: 0.9997465271 | S85: M_Disease
A86: 17 | B86: 44265702 | C86: rs2532241 | D86: T | E86: A | F86: 1.252 | G86: -7977.388 | H86: -7960.828 | I86: 16.56 | J86: 0.0008629530658 | L86: 17 | M86: 44265702 | N86: rs2532241 | O86: T | P86: A | Q86: M_Disease | R86: 0.9997465271 | S86: M_Disease
A87: 17 | B87: 44266022 | C87: rs2732589 | D87: G | E87: A | F87: 1.252 | G87: -7977.388 | H87: -7960.828 | I87: 16.56 | J87: 0.0008629530658 | L87: 17 | M87: 44266022 | N87: rs2732589 | O87: G | P87: A | Q87: M_Disease | R87: 0.9997465271 | S87: M_Disease
A88: 17 | B88: 44266531 | C88: 17:44266531 | D88: A | E88: G | F88: 1.252 | G88: -7977.388 | H88: -7960.828 | I88: 16.56 | J88: 0.0008629530658 | L88: 17 | M88: 44266531 | N88: 17:44266531 | O88: A | P88: G | Q88: M_Disease | R88: 0.9997465271 | S88: M_Disease
A89: 17 | B89: 44249621 | C89: rs2696662 | D89: G | E89: A | F89: 1.252 | G89: -7977.388 | H89: -7960.84 | I89: 16.548 | J89: 0.0008526595138 | L89: 17 | M89: 43848750 | N89: rs62055935 | O89: C | P89: T | Q89: M_Disease | R89: 0.9997452569 | S89: M_Disease
A90: 17 | B90: 43848750 | C90: rs62055935 | D90: C | E90: T | F90: 1.252 | G90: -7977.388 | H90: -7960.844 | I90: 16.544 | J90: 0.0008492556879 | L90: 17 | M90: 44249621 | N90: rs2696662 | O90: G | P90: A | Q90: M_Disease | R90: 0.9997452569 | S90: M_Disease
A91: 17 | B91: 44080408 | C91: rs113894932 | D91: C | E91: G | F91: 1.251 | G91: -7977.388 | H91: -7960.848 | I91: 16.54 | J91: 0.0008458654502 | L91: 17 | M91: 44080408 | N91: rs113894932 | O91: C | P91: G | Q91: M_Disease | R91: 0.9997439803 | S91: M_Disease
A92: 17 | B92: 44096553 | C92: rs62062288 | D92: A | E92: G | F92: 1.253 | G92: -7977.388 | H92: -7960.849 | I92: 16.539 | J92: 0.0008450200075 | L92: 17 | M92: 44083323 | N92: rs17652337 | O92: T | P92: C | Q92: M_Disease | R92: 0.9997439803 | S92: M_Disease
A93: 17 | B93: 44083323 | C93: rs17652337 | D93: T | E93: C | F93: 1.251 | G93: -7977.388 | H93: -7960.853 | I93: 16.535 | J93: 0.0008416466787 | L93: 17 | M93: 44096553 | N93: rs62062288 | O93: A | P93: G | Q93: M_Disease | R93: 0.9997439803 | S93: M_Disease
A94: 17 | B94: 44106219 | C94: rs78681971 | D94: T | E94: C | F94: 1.252 | G94: -7977.388 | H94: -7960.854 | I94: 16.534 | J94: 0.0008408054527 | L94: 17 | M94: 44106219 | N94: rs78681971 | O94: T | P94: C | Q94: M_Disease | R94: 0.9997439803 | S94: M_Disease
A95: 17 | B95: 44106220 | C95: rs79772576 | D95: G | E95: A | F95: 1.252 | G95: -7977.388 | H95: -7960.854 | I95: 16.534 | J95: 0.0008408054527 | L95: 17 | M95: 44106220 | N95: rs79772576 | O95: G | P95: A | Q95: M_Disease | R95: 0.9997439803 | S95: M_Disease
A96: 17 | B96: 44244397 | C96: rs2696684 | D96: A | E96: G | F96: 1.251 | G96: -7977.388 | H96: -7960.856 | I96: 16.532 | J96: 0.0008391255223 | L96: 17 | M96: 44244397 | N96: rs2696684 | O96: A | P96: G | Q96: M_Disease | R96: 0.9997439803 | S96: M_Disease
A97: 17 | B97: 44067508 | C97: rs79447161 | D97: G | E97: A | F97: 1.251 | G97: -7977.388 | H97: -7960.865 | I97: 16.523 | J97: 0.0008316072754 | L97: 17 | M97: 44067508 | N97: rs79447161 | O97: G | P97: A | Q97: M_Disease | R97: 0.9997426973 | S97: M_Disease
A98: 17 | B98: 44067546 | C98: rs17651754 | D98: C | E98: T | F98: 1.251 | G98: -7977.388 | H98: -7960.865 | I98: 16.523 | J98: 0.0008316072754 | L98: 17 | M98: 44067546 | N98: rs17651754 | O98: C | P98: T | Q98: M_Disease | R98: 0.9997426973 | S98: M_Disease
A99: 17 | B99: 44067682 | C99: rs10445338 | D99: A | E99: G | F99: 1.251 | G99: -7977.388 | H99: -7960.865 | I99: 16.523 | J99: 0.0008316072754 | L99: 17 | M99: 44067682 | N99: rs10445338 | O99: A | P99: G | Q99: M_Disease | R99: 0.9997426973 | S99: M_Disease
A100: 17 | B100: 44067831 | C100: rs111652694 | D100: C | E100: T | F100: 1.251 | G100: -7977.388 | H100: -7960.865 | I100: 16.523 | J100: 0.0008316072754 | L100: 17 | M100: 44067831 | N100: rs111652694 | O100: C | P100: T | Q100: M_Disease | R100: 0.9997426973 | S100: M_Disease
A101: 17 | B101: 44068112 | C101: rs75743061 | D101: G | E101: C | F101: 1.251 | G101: -7977.388 | H101: -7960.865 | I101: 16.523 | J101: 0.0008316072754 | L101: 17 | M101: 44068112 | N101: rs75743061 | O101: G | P101: C | Q101: M_Disease | R101: 0.9997426973 | S101: M_Disease
A102: 17 | B102: 44027366 | C102: rs62062797 | D102: G | E102: T | F102: 1.252 | G102: -7977.388 | H102: -7960.869 | I102: 16.519 | J102: 0.0008282874903 | L102: 17 | M102: 44027366 | N102: rs62062797 | O102: G | P102: T | Q102: M_Disease | R102: 0.9997414079 | S102: M_Disease
A103: 17 | B103: 44075535 | C103: rs62063855 | D103: C | E103: T | F103: 1.251 | G103: -7977.388 | H103: -7960.869 | I103: 16.519 | J103: 0.0008282874903 | L103: 17 | M103: 44075535 | N103: rs62063855 | O103: C | P103: T | Q103: M_Disease | R103: 0.9997414079 | S103: M_Disease
A104: 17 | B104: 44075837 | C104: rs1078269 | D104: C | E104: T | F104: 1.251 | G104: -7977.388 | H104: -7960.869 | I104: 16.519 | J104: 0.0008282874903 | L104: 17 | M104: 44075837 | N104: rs1078269 | O104: C | P104: T | Q104: M_Disease | R104: 0.9997414079 | S104: M_Disease
A105: 17 | B105: 44075901 | C105: rs1078268 | D105: G | E105: A | F105: 1.251 | G105: -7977.388 | H105: -7960.869 | I105: 16.519 | J105: 0.0008282874903 | L105: 17 | M105: 44075901 | N105: rs1078268 | O105: G | P105: A | Q105: M_Disease | R105: 0.9997414079 | S105: M_Disease
A106: 17 | B106: 44249800 | C106: rs2532270 | D106: A | E106: G | F106: 1.251 | G106: -7977.388 | H106: -7960.875 | I106: 16.513 | J106: 0.0008233326448 | L106: 17 | M106: 44249800 | N106: rs2532270 | O106: A | P106: G | Q106: M_Disease | R106: 0.9997414079 | S106: M_Disease
A107: 17 | B107: 44250616 | C107: rs2532267 | D107: A | E107: G | F107: 1.251 | G107: -7977.388 | H107: -7960.875 | I107: 16.513 | J107: 0.0008233326448 | L107: 17 | M107: 44250616 | N107: rs2532267 | O107: A | P107: G | Q107: M_Disease | R107: 0.9997414079 | S107: M_Disease
A108: 17 | B108: 44251230 | C108: rs956329 | D108: C | E108: T | F108: 1.251 | G108: -7977.388 | H108: -7960.875 | I108: 16.513 | J108: 0.0008233326448 | L108: 17 | M108: 44251230 | N108: rs956329 | O108: C | P108: T | Q108: M_Disease | R108: 0.9997414079 | S108: M_Disease
A109: 17 | B109: 44251582 | C109: rs62060916 | D109: C | E109: T | F109: 1.251 | G109: -7977.388 | H109: -7960.875 | I109: 16.513 | J109: 0.0008233326448 | L109: 17 | M109: 44251582 | N109: rs62060916 | O109: C | P109: T | Q109: M_Disease | R109: 0.9997414079 | S109: M_Disease
A110: 17 | B110: 44251769 | C110: rs2696665 | D110: G | E110: A | F110: 1.251 | G110: -7977.388 | H110: -7960.875 | I110: 16.513 | J110: 0.0008233326448 | L110: 17 | M110: 44251769 | N110: rs2696665 | O110: G | P110: A | Q110: M_Disease | R110: 0.9997414079 | S110: M_Disease
A111: 17 | B111: 44251972 | C111: rs2696666 | D111: A | E111: G | F111: 1.251 | G111: -7977.388 | H111: -7960.875 | I111: 16.513 | J111: 0.0008233326448 | L111: 17 | M111: 44251972 | N111: rs2696666 | O111: A | P111: G | Q111: M_Disease | R111: 0.9997414079 | S111: M_Disease
A112: 17 | B112: 44252098 | C112: rs2732644 | D112: T | E112: C | F112: 1.251 | G112: -7977.388 | H112: -7960.875 | I112: 16.513 | J112: 0.0008233326448 | L112: 17 | M112: 44252098 | N112: rs2732644 | O112: T | P112: C | Q112: M_Disease | R112: 0.9997414079 | S112: M_Disease
A113: 17 | B113: 44252197 | C113: rs2532265 | D113: T | E113: G | F113: 1.251 | G113: -7977.388 | H113: -7960.875 | I113: 16.513 | J113: 0.0008233326448 | L113: 17 | M113: 44252197 | N113: rs2532265 | O113: T | P113: G | Q113: M_Disease | R113: 0.9997414079 | S113: M_Disease
A114: 17 | B114: 44252416 | C114: rs2532264 | D114: C | E114: G | F114: 1.251 | G114: -7977.388 | H114: -7960.875 | I114: 16.513 | J114: 0.0008233326448 | L114: 17 | M114: 44252416 | N114: rs2532264 | O114: C | P114: G | Q114: M_Disease | R114: 0.9997414079 | S114: M_Disease
A115: 17 | B115: 44253364 | C115: rs2532259 | D115: A | E115: G | F115: 1.251 | G115: -7977.388 | H115: -7960.875 | I115: 16.513 | J115: 0.0008233326448 | L115: 17 | M115: 44253364 | N115: rs2532259 | O115: A | P115: G | Q115: M_Disease | R115: 0.9997414079 | S115: M_Disease
A116: 17 | B116: 44254379 | C116: rs2732646 | D116: T | E116: C | F116: 1.251 | G116: -7977.388 | H116: -7960.875 | I116: 16.513 | J116: 0.0008233326448 | L116: 17 | M116: 44254379 | N116: rs2732646 | O116: T | P116: C | Q116: M_Disease | R116: 0.9997414079 | S116: M_Disease
A117: 17 | B117: 44254413 | C117: rs2732647 | D117: G | E117: A | F117: 1.251 | G117: -7977.388 | H117: -7960.875 | I117: 16.513 | J117: 0.0008233326448 | L117: 17 | M117: 44254413 | N117: rs2732647 | O117: G | P117: A | Q117: M_Disease | R117: 0.9997414079 | S117: M_Disease
A118: 17 | B118: 44254494 | C118: rs2532257 | D118: C | E118: T | F118: 1.251 | G118: -7977.388 | H118: -7960.875 | I118: 16.513 | J118: 0.0008233326448 | L118: 17 | M118: 44254494 | N118: rs2532257 | O118: C | P118: T | Q118: M_Disease | R118: 0.9997414079 | S118: M_Disease
A119: 17 | B119: 44255532 | C119: rs2532255 | D119: C | E119: T | F119: 1.251 | G119: -7977.388 | H119: -7960.875 | I119: 16.513 | J119: 0.0008233326448 | L119: 17 | M119: 44255532 | N119: rs2532255 | O119: C | P119: T | Q119: M_Disease | R119: 0.9997414079 | S119: M_Disease
A120: 17 | B120: 44255777 | C120: rs2696696 | D120: A | E120: G | F120: 1.251 | G120: -7977.388 | H120: -7960.875 | I120: 16.513 | J120: 0.0008233326448 | L120: 17 | M120: 44255777 | N120: rs2696696 | O120: A | P120: G | Q120: M_Disease | R120: 0.9997414079 | S120: M_Disease
A121: 17 | B121: 44248769 | C121: rs1881193 | D121: C | E121: T | F121: 1.251 | G121: -7977.388 | H121: -7960.879 | I121: 16.509 | J121: 0.0008200458921 | L121: 17 | M121: 44248769 | N121: rs1881193 | O121: C | P121: T | Q121: M_Disease | R121: 0.999740112 | S121: M_Disease
A122: 17 | B122: 44248814 | C122: rs1881194 | D122: A | E122: G | F122: 1.251 | G122: -7977.388 | H122: -7960.879 | I122: 16.509 | J122: 0.0008200458921 | L122: 17 | M122: 44248814 | N122: rs1881194 | O122: A | P122: G | Q122: M_Disease | R122: 0.999740112 | S122: M_Disease
A123: 17 | B123: 44077708 | C123: rs79959255 | D123: T | E123: G | F123: 1.251 | G123: -7977.388 | H123: -7960.89 | I123: 16.499 | J123: 0.0008118862991 | L123: 17 | M123: 44077708 | N123: rs79959255 | O123: T | P123: G | Q123: M_Disease | R123: 0.9997388097 | S123: M_Disease
A124: 17 | B124: 44204739 | C124: rs4581739 | D124: C | E124: T | F124: 1.251 | G124: -7977.388 | H124: -7960.895 | I124: 16.494 | J124: 0.0008078369993 | L124: 17 | M124: 44204739 | N124: rs4581739 | O124: C | P124: T | Q124: M_Disease | R124: 0.9997388097 | S124: M_Disease
A125: 17 | B125: 44204749 | C125: rs113638513 | D125: G | E125: A | F125: 1.251 | G125: -7977.388 | H125: -7960.895 | I125: 16.494 | J125: 0.0008078369993 | L125: 17 | M125: 44204749 | N125: rs113638513 | O125: G | P125: A | Q125: M_Disease | R125: 0.9997388097 | S125: M_Disease
A126: 17 | B126: 44067400 | C126: rs10445337 | D126: C | E126: T | F126: 1.251 | G126: -7977.388 | H126: -7960.898 | I126: 16.49 | J126: 0.0008046121054 | L126: 17 | M126: 44067400 | N126: rs10445337 | O126: C | P126: T | Q126: M_Disease | R126: 0.9997375008 | S126: M_Disease
A127: 17 | B127: 44352131 | C127: rs2668622 | D127: T | E127: G | F127: 1.252 | G127: -7977.388 | H127: -7960.9 | I127: 16.488 | J127: 0.0008030044893 | L127: 17 | M127: 44258354 | N127: rs740706 | O127: C | P127: G | Q127: M_Disease | R127: 0.9997375008 | S127: M_Disease
A128: 17 | B128: 44267227 | C128: rs2732595 | D128: G | E128: A | F128: 1.251 | G128: -7977.388 | H128: -7960.904 | I128: 16.485 | J128: 0.0008005990858 | L128: 17 | M128: 44258422 | N128: rs758523 | O128: T | P128: G | Q128: M_Disease | R128: 0.9997375008 | S128: M_Disease
A129: 17 | B129: 44267617 | C129: rs1918788 | D129: G | E129: A | F129: 1.251 | G129: -7977.388 | H129: -7960.904 | I129: 16.485 | J129: 0.0008005990858 | L129: 17 | M129: 44267227 | N129: rs2732595 | O129: G | P129: A | Q129: M_Disease | R129: 0.9997375008 | S129: M_Disease
A130: 17 | B130: 44267863 | C130: rs2696526 | D130: A | E130: G | F130: 1.251 | G130: -7977.388 | H130: -7960.904 | I130: 16.485 | J130: 0.0008005990858 | L130: 17 | M130: 44267617 | N130: rs1918788 | O130: G | P130: A | Q130: M_Disease | R130: 0.9997375008 | S130: M_Disease
A131: 17 | B131: 44267904 | C131: rs2696523 | D131: C | E131: T | F131: 1.251 | G131: -7977.388 | H131: -7960.904 | I131: 16.485 | J131: 0.0008005990858 | L131: 17 | M131: 44267863 | N131: rs2696526 | O131: A | P131: G | Q131: M_Disease | R131: 0.9997375008 | S131: M_Disease
A132: 17 | B132: 44268488 | C132: 17:44268488 | D132: T | E132: C | F132: 1.251 | G132: -7977.388 | H132: -7960.904 | I132: 16.485 | J132: 0.0008005990858 | L132: 17 | M132: 44267904 | N132: rs2696523 | O132: C | P132: T | Q132: M_Disease | R132: 0.9997375008 | S132: M_Disease
A133: 17 | B133: 44258354 | C133: rs740706 | D133: C | E133: G | F133: 1.251 | G133: -7977.388 | H133: -7960.906 | I133: 16.483 | J133: 0.0007989994877 | L133: 17 | M133: 44268488 | N133: 17:44268488 | O133: T | P133: C | Q133: M_Disease | R133: 0.9997375008 | S133: M_Disease
A134: 17 | B134: 44258422 | C134: rs758523 | D134: T | E134: G | F134: 1.251 | G134: -7977.388 | H134: -7960.906 | I134: 16.483 | J134: 0.0007989994877 | L134: 17 | M134: 44352131 | N134: rs2668622 | O134: T | P134: G | Q134: M_Disease | R134: 0.9997375008 | S134: M_Disease
A135: 17 | B135: 44236725 | C135: rs1528072 | D135: A | E135: C | F135: 1.251 | G135: -7977.388 | H135: -7960.912 | I135: 16.476 | J135: 0.0007934260212 | L135: 17 | M135: 44236725 | N135: rs1528072 | O135: A | P135: C | Q135: M_Disease | R135: 0.9997361854 | S135: M_Disease
A136: 17 | B136: 44237068 | C136: rs2532292 | D136: T | E136: A | F136: 1.251 | G136: -7977.388 | H136: -7960.912 | I136: 16.476 | J136: 0.0007934260212 | L136: 17 | M136: 44237068 | N136: rs2532292 | O136: T | P136: A | Q136: M_Disease | R136: 0.9997361854 | S136: M_Disease
A137: 17 | B137: 44237372 | C137: rs2696571 | D137: C | E137: G | F137: 1.251 | G137: -7977.388 | H137: -7960.912 | I137: 16.476 | J137: 0.0007934260212 | L137: 17 | M137: 44237372 | N137: rs2696571 | O137: C | P137: G | Q137: M_Disease | R137: 0.9997361854 | S137: M_Disease
A138: 17 | B138: 44237790 | C138: rs2696570 | D138: A | E138: G | F138: 1.251 | G138: -7977.388 | H138: -7960.912 | I138: 16.476 | J138: 0.0007934260212 | L138: 17 | M138: 44237790 | N138: rs2696570 | O138: A | P138: G | Q138: M_Disease | R138: 0.9997361854 | S138: M_Disease
A139: 17 | B139: 44242788 | C139: rs4792845 | D139: T | E139: C | F139: 1.251 | G139: -7977.388 | H139: -7960.912 | I139: 16.476 | J139: 0.0007934260212 | L139: 17 | M139: 44242788 | N139: rs4792845 | O139: T | P139: C | Q139: M_Disease | R139: 0.9997361854 | S139: M_Disease
A140: 17 | B140: 44125704 | C140: rs12150336 | D140: T | E140: C | F140: 1.251 | G140: -7977.388 | H140: -7960.918 | I140: 16.47 | J140: 0.0007886797182 | L140: 17 | M140: 44028183 | N140: rs62062803 | O140: C | P140: T | Q140: M_Disease | R140: 0.9997348633 | S140: M_Disease
A141: 17 | B141: 44081064 | C141: rs8070723 | D141: G | E141: A | F141: 1.251 | G141: -7977.388 | H141: -7960.921 | I141: 16.468 | J141: 0.0007871039351 | L141: 17 | M141: 44076466 | N141: rs62063856 | O141: G | P141: A | Q141: M_Disease | R141: 0.9997348633 | S141: M_Disease
A142: 17 | B142: 44028183 | C142: rs62062803 | D142: C | E142: T | F142: 1.251 | G142: -7977.388 | H142: -7960.922 | I142: 16.467 | J142: 0.0007863172246 | L142: 17 | M142: 44076665 | N142: rs62063857 | O142: G | P142: A | Q142: M_Disease | R142: 0.9997348633 | S142: M_Disease
A143: 17 | B143: 44076466 | C143: rs62063856 | D143: G | E143: A | F143: 1.251 | G143: -7977.388 | H143: -7960.922 | I143: 16.466 | J143: 0.0007855313004 | L143: 17 | M143: 44078616 | N143: rs62063859 | O143: A | P143: G | Q143: M_Disease | R143: 0.9997348633 | S143: M_Disease
A144: 17 | B144: 44076665 | C144: rs62063857 | D144: G | E144: A | F144: 1.251 | G144: -7977.388 | H144: -7960.922 | I144: 16.466 | J144: 0.0007855313004 | L144: 17 | M144: 44078832 | N144: rs62064660 | O144: A | P144: G | Q144: M_Disease | R144: 0.9997348633 | S144: M_Disease
A145: 17 | B145: 44078616 | C145: rs62063859 | D145: A | E145: G | F145: 1.251 | G145: -7977.388 | H145: -7960.922 | I145: 16.466 | J145: 0.0007855313004 | L145: 17 | M145: 44078892 | N145: rs62064661 | O145: A | P145: G | Q145: M_Disease | R145: 0.9997348633 | S145: M_Disease
A146: 17 | B146: 44078832 | C146: rs62064660 | D146: A | E146: G | F146: 1.251 | G146: -7977.388 | H146: -7960.922 | I146: 16.466 | J146: 0.0007855313004 | L146: 17 | M146: 44081064 | N146: rs8070723 | O146: G | P146: A | Q146: M_Disease | R146: 0.9997348633 | S146: M_Disease
A147: 17 | B147: 44078892 | C147: rs62064661 | D147: A | E147: G | F147: 1.251 | G147: -7977.388 | H147: -7960.922 | I147: 16.466 | J147: 0.0007855313004 | L147: 17 | M147: 44082603 | N147: rs17573593 | O147: C | P147: A | Q147: M_Disease | R147: 0.9997348633 | S147: M_Disease
A148: 17 | B148: 44082603 | C148: rs17573593 | D148: C | E148: A | F148: 1.251 | G148: -7977.388 | H148: -7960.924 | I148: 16.465 | J148: 0.0007847461617 | L148: 17 | M148: 44082981 | N148: rs62064668 | O148: A | P148: G | Q148: M_Disease | R148: 0.9997348633 | S148: M_Disease
A149: 17 | B149: 44082981 | C149: rs62064668 | D149: A | E149: G | F149: 1.251 | G149: -7977.388 | H149: -7960.924 | I149: 16.465 | J149: 0.0007847461617 | L149: 17 | M149: 44125704 | N149: rs12150336 | O149: T | P149: C | Q149: M_Disease | R149: 0.9997348633 | S149: M_Disease
A150: 17 | B150: 44066634 | C150: rs17651700 | D150: G | E150: C | F150: 1.251 | G150: -7977.388 | H150: -7960.929 | I150: 16.459 | J150: 0.000780051782 | L150: 17 | M150: 44027521 | N150: rs62062799 | O150: T | P150: G | Q150: M_Disease | R150: 0.9997335347 | S150: M_Disease
A151: 17 | B151: 44066995 | C151: rs113134013 | D151: T | E151: C | F151: 1.251 | G151: -7977.388 | H151: -7960.929 | I151: 16.459 | J151: 0.000780051782 | L151: 17 | M151: 44066634 | N151: rs17651700 | O151: G | P151: C | Q151: M_Disease | R151: 0.9997335347 | S151: M_Disease
A152: 17 | B152: 44067046 | C152: rs76357066 | D152: A | E152: G | F152: 1.251 | G152: -7977.388 | H152: -7960.929 | I152: 16.459 | J152: 0.000780051782 | L152: 17 | M152: 44066995 | N152: rs113134013 | O152: T | P152: C | Q152: M_Disease | R152: 0.9997335347 | S152: M_Disease
A153: 17 | B153: 44027521 | C153: rs62062799 | D153: T | E153: G | F153: 1.251 | G153: -7977.388 | H153: -7960.93 | I153: 16.458 | J153: 0.0007792721201 | L153: 17 | M153: 44067046 | N153: rs76357066 | O153: A | P153: G | Q153: M_Disease | R153: 0.9997335347 | S153: M_Disease
A154: 17 | B154: 44258954 | C154: rs2141301 | D154: C | E154: G | F154: 1.251 | G154: -7977.388 | H154: -7960.931 | I154: 16.457 | J154: 0.0007784932375 | L154: 17 | M154: 44258954 | N154: rs2141301 | O154: C | P154: G | Q154: M_Disease | R154: 0.9997335347 | S154: M_Disease
A155: 17 | B155: 44259040 | C155: rs2141302 | D155: C | E155: G | F155: 1.251 | G155: -7977.388 | H155: -7960.931 | I155: 16.457 | J155: 0.0007784932375 | L155: 17 | M155: 44259040 | N155: rs2141302 | O155: C | P155: G | Q155: M_Disease | R155: 0.9997335347 | S155: M_Disease
A156: 17 | B156: 44259792 | C156: rs2696700 | D156: A | E156: G | F156: 1.251 | G156: -7977.388 | H156: -7960.931 | I156: 16.457 | J156: 0.0007784932375 | L156: 17 | M156: 44259792 | N156: rs2696700 | O156: A | P156: G | Q156: M_Disease | R156: 0.9997335347 | S156: M_Disease
A157: 17 | B157: 44260416 | C157: rs2696702 | D157: C | E157: T | F157: 1.251 | G157: -7977.388 | H157: -7960.931 | I157: 16.457 | J157: 0.0007784932375 | L157: 17 | M157: 44260416 | N157: rs2696702 | O157: C | P157: T | Q157: M_Disease | R157: 0.9997335347 | S157: M_Disease
A158: 17 | B158: 44276821 | C158: rs2696443 | D158: A | E158: G | F158: 1.251 | G158: -7977.388 | H158: -7960.931 | I158: 16.457 | J158: 0.0007784932375 | L158: 17 | M158: 44276821 | N158: rs2696443 | O158: A | P158: G | Q158: M_Disease | R158: 0.9997335347 | S158: M_Disease
A159: 17 | B159: 44235893 | C159: rs62060864 | D159: T | E159: C | F159: 1.251 | G159: -7977.388 | H159: -7960.938 | I159: 16.45 | J159: 0.0007730628135 | L159: 17 | M159: 44186055 | N159: rs62061821 | O159: A | P159: G | Q159: M_Disease | R159: 0.9997321994 | S159: M_Disease
A160: 17 | B160: 44186055 | C160: rs62061821 | D160: A | E160: G | F160: 1.251 | G160: -7977.388 | H160: -7960.94 | I160: 16.448 | J160: 0.0007715182329 | L160: 17 | M160: 44235893 | N160: rs62060864 | O160: T | P160: C | Q160: M_Disease | R160: 0.9997321994 | S160: M_Disease
A161: 17 | B161: 44238424 | C161: rs2532291 | D161: A | E161: G | F161: 1.251 | G161: -7977.388 | H161: -7960.945 | I161: 16.443 | J161: 0.0007676702697 | L161: 17 | M161: 44238424 | N161: rs2532291 | O161: A | P161: G | Q161: M_Disease | R161: 0.9997321994 | S161: M_Disease
A162: 17 | B162: 44238938 | C162: rs17662403 | D162: C | E162: T | F162: 1.251 | G162: -7977.388 | H162: -7960.945 | I162: 16.443 | J162: 0.0007676702697 | L162: 17 | M162: 44238938 | N162: rs17662403 | O162: C | P162: T | Q162: M_Disease | R162: 0.9997321994 | S162: M_Disease
A163: 17 | B163: 44238966 | C163: rs17585426 | D163: C | E163: T | F163: 1.251 | G163: -7977.388 | H163: -7960.945 | I163: 16.443 | J163: 0.0007676702697 | L163: 17 | M163: 44238966 | N163: rs17585426 | O163: C | P163: T | Q163: M_Disease | R163: 0.9997321994 | S163: M_Disease
A164: 17 | B164: 44239958 | C164: rs2532288 | D164: T | E164: C | F164: 1.251 | G164: -7977.388 | H164: -7960.945 | I164: 16.443 | J164: 0.0007676702697 | L164: 17 | M164: 44239958 | N164: rs2532288 | O164: T | P164: C | Q164: M_Disease | R164: 0.9997321994 | S164: M_Disease
A165: 17 | B165: 44240107 | C165: rs1918789 | D165: C | E165: T | F165: 1.251 | G165: -7977.388 | H165: -7960.945 | I165: 16.443 | J165: 0.0007676702697 | L165: 17 | M165: 44240107 | N165: rs1918789 | O165: C | P165: T | Q165: M_Disease | R165: 0.9997321994 | S165: M_Disease
A166: 17 | B166: 44240986 | C166: rs2141299 | D166: A | E166: C | F166: 1.251 | G166: -7977.388 | H166: -7960.945 | I166: 16.443 | J166: 0.0007676702697 | L166: 17 | M166: 44240986 | N166: rs2141299 | O166: A | P166: C | Q166: M_Disease | R166: 0.9997321994 | S166: M_Disease
A167: 17 | B167: 44241304 | C167: rs2696567 | D167: G | E167: C | F167: 1.251 | G167: -7977.388 | H167: -7960.945 | I167: 16.443 | J167: 0.0007676702697 | L167: 17 | M167: 44241304 | N167: rs2696567 | O167: G | P167: C | Q167: M_Disease | R167: 0.9997321994 | S167: M_Disease
A168: 17 | B168: 44241664 | C168: rs2532286 | D168: C | E168: T | F168: 1.251 | G168: -7977.388 | H168: -7960.945 | I168: 16.443 | J168: 0.0007676702697 | L168: 17 | M168: 44241664 | N168: rs2532286 | O168: C | P168: T | Q168: M_Disease | R168: 0.9997321994 | S168: M_Disease
A169: 17 | B169: 44242969 | C169: rs4792844 | D169: C | E169: T | F169: 1.251 | G169: -7977.388 | H169: -7960.945 | I169: 16.443 | J169: 0.0007676702697 | L169: 17 | M169: 44242969 | N169: rs4792844 | O169: C | P169: T | Q169: M_Disease | R169: 0.9997321994 | S169: M_Disease
A170: 17 | B170: 44243179 | C170: rs4792843 | D170: G | E170: A | F170: 1.251 | G170: -7977.388 | H170: -7960.945 | I170: 16.443 | J170: 0.0007676702697 | L170: 17 | M170: 44243179 | N170: rs4792843 | O170: G | P170: A | Q170: M_Disease | R170: 0.9997321994 | S170: M_Disease
A171: 17 | B171: 44243979 | C171: rs17585608 | D171: T | E171: C | F171: 1.251 | G171: -7977.388 | H171: -7960.945 | I171: 16.443 | J171: 0.0007676702697 | L171: 17 | M171: 44243979 | N171: rs17585608 | O171: T | P171: C | Q171: M_Disease | R171: 0.9997321994 | S171: M_Disease
A172: 17 | B172: 44244581 | C172: rs17585644 | D172: C | E172: T | F172: 1.251 | G172: -7977.388 | H172: -7960.945 | I172: 16.443 | J172: 0.0007676702697 | L172: 17 | M172: 44244581 | N172: rs17585644 | O172: C | P172: T | Q172: M_Disease | R172: 0.9997321994 | S172: M_Disease
A173: 17 | B173: 44244926 | C173: rs2696657 | D173: G | E173: T | F173: 1.251 | G173: -7977.388 | H173: -7960.945 | I173: 16.443 | J173: 0.0007676702697 | L173: 17 | M173: 44244926 | N173: rs2696657 | O173: G | P173: T | Q173: M_Disease | R173: 0.9997321994 | S173: M_Disease
A174: 17 | B174: 44245876 | C174: rs2696659 | D174: G | E174: A | F174: 1.251 | G174: -7977.388 | H174: -7960.945 | I174: 16.443 | J174: 0.0007676702697 | L174: 17 | M174: 44245876 | N174: rs2696659 | O174: G | P174: A | Q174: M_Disease | R174: 0.9997321994 | S174: M_Disease
A175: 17 | B175: 44246211 | C175: rs2696660 | D175: G | E175: A | F175: 1.251 | G175: -7977.388 | H175: -7960.945 | I175: 16.443 | J175: 0.0007676702697 | L175: 17 | M175: 44246211 | N175: rs2696660 | O175: G | P175: A | Q175: M_Disease | R175: 0.9997321994 | S175: M_Disease
A176: 17 | B176: 44246405 | C176: rs2532278 | D176: A | E176: C | F176: 1.251 | G176: -7977.388 | H176: -7960.945 | I176: 16.443 | J176: 0.0007676702697 | L176: 17 | M176: 44246405 | N176: rs2532278 | O176: A | P176: C | Q176: M_Disease | R176: 0.9997321994 | S176: M_Disease
A177: 17 | B177: 44246624 | C177: 17:44246624 | D177: A | E177: C | F177: 1.251 | G177: -7977.388 | H177: -7960.945 | I177: 16.443 | J177: 0.0007676702697 | L177: 17 | M177: 44246624 | N177: 17:44246624 | O177: A | P177: C | Q177: M_Disease | R177: 0.9997321994 | S177: M_Disease
A178: 17 | B178: 44246997 | C178: rs2532275 | D178: A | E178: G | F178: 1.251 | G178: -7977.388 | H178: -7960.945 | I178: 16.443 | J178: 0.0007676702697 | L178: 17 | M178: 44246997 | N178: rs2532275 | O178: A | P178: G | Q178: M_Disease | R178: 0.9997321994 | S178: M_Disease
A179: 17 | B179: 44247314 | C179: rs2532273 | D179: T | E179: C | F179: 1.251 | G179: -7977.388 | H179: -7960.945 | I179: 16.443 | J179: 0.0007676702697 | L179: 17 | M179: 44247314 | N179: rs2532273 | O179: T | P179: C | Q179: M_Disease | R179: 0.9997321994 | S179: M_Disease
A180: 17 | B180: 44247673 | C180: rs2532272 | D180: A | E180: G | F180: 1.251 | G180: -7977.388 | H180: -7960.945 | I180: 16.443 | J180: 0.0007676702697 | L180: 17 | M180: 44247673 | N180: rs2532272 | O180: A | P180: G | Q180: M_Disease | R180: 0.9997321994 | S180: M_Disease
A181: 17 | B181: 44084533 | C181: rs74829364 | D181: C | E181: T | F181: 1.251 | G181: -7977.388 | H181: -7960.949 | I181: 16.44 | J181: 0.00076537071 | L181: 17 | M181: 44084533 | N181: rs74829364 | O181: C | P181: T | Q181: M_Disease | R181: 0.9997308574 | S181: M_Disease
A182: 17 | B182: 44189855 | C182: rs79772780 | D182: A | E182: G | F182: 1.251 | G182: -7977.388 | H182: -7960.951 | I182: 16.438 | J182: 0.0007638414983 | L182: 17 | M182: 44189855 | N182: rs79772780 | O182: A | P182: G | Q182: M_Disease | R182: 0.9997308574 | S182: M_Disease
A183: 17 | B183: 44277265 | C183: 17:44277265 | D183: C | E183: A | F183: 1.251 | G183: -7977.388 | H183: -7960.954 | I183: 16.434 | J183: 0.0007607922349 | L183: 17 | M183: 44277265 | N183: 17:44277265 | O183: C | P183: A | Q183: M_Disease | R183: 0.9997308574 | S183: M_Disease
A184: 17 | B184: 44261137 | C184: rs2732587 | D184: T | E184: C | F184: 1.251 | G184: -7977.388 | H184: -7960.957 | I184: 16.431 | J184: 0.0007585132783 | L184: 17 | M184: 43964561 | N184: rs62055545 | O184: T | P184: C | Q184: M_Disease | R184: 0.9997295087 | S184: M_Disease
A185: 17 | B185: 44261753 | C185: rs2696704 | D185: C | E185: T | F185: 1.251 | G185: -7977.388 | H185: -7960.957 | I185: 16.431 | J185: 0.0007585132783 | L185: 17 | M185: 44027753 | N185: rs62062800 | O185: G | P185: A | Q185: M_Disease | R185: 0.9997295087 | S185: M_Disease
A186: 17 | B186: 44263479 | C186: rs62060921 | D186: C | E186: T | F186: 1.251 | G186: -7977.388 | H186: -7960.957 | I186: 16.431 | J186: 0.0007585132783 | L186: 17 | M186: 44192957 | N186: rs17661015 | O186: C | P186: T | Q186: M_Disease | R186: 0.9997295087 | S186: M_Disease
A187: 17 | B187: 44263729 | C187: rs62060922 | D187: G | E187: C | F187: 1.251 | G187: -7977.388 | H187: -7960.957 | I187: 16.431 | J187: 0.0007585132783 | L187: 17 | M187: 44261137 | N187: rs2732587 | O187: T | P187: C | Q187: M_Disease | R187: 0.9997295087 | S187: M_Disease
A188: 17 | B188: 44263965 | C188: rs2696705 | D188: C | E188: T | F188: 1.251 | G188: -7977.388 | H188: -7960.957 | I188: 16.431 | J188: 0.0007585132783 | L188: 17 | M188: 44261753 | N188: rs2696704 | O188: C | P188: T | Q188: M_Disease | R188: 0.9997295087 | S188: M_Disease
A189: 17 | B189: 44269546 | C189: rs2732596 | D189: T | E189: C | F189: 1.251 | G189: -7977.388 | H189: -7960.958 | I189: 16.431 | J189: 0.0007585132783 | L189: 17 | M189: 44263479 | N189: rs62060921 | O189: C | P189: T | Q189: M_Disease | R189: 0.9997295087 | S189: M_Disease
A190: 17 | B190: 44269964 | C190: 17:44269964 | D190: A | E190: T | F190: 1.251 | G190: -7977.388 | H190: -7960.958 | I190: 16.431 | J190: 0.0007585132783 | L190: 17 | M190: 44263729 | N190: rs62060922 | O190: G | P190: C | Q190: M_Disease | R190: 0.9997295087 | S190: M_Disease
A191: 17 | B191: 44270059 | C191: 17:44270059 | D191: T | E191: A | F191: 1.251 | G191: -7977.388 | H191: -7960.958 | I191: 16.431 | J191: 0.0007585132783 | L191: 17 | M191: 44263965 | N191: rs2696705 | O191: C | P191: T | Q191: M_Disease | R191: 0.9997295087 | S191: M_Disease
A192: 17 | B192: 44271152 | C192: rs2732658 | D192: A | E192: G | F192: 1.251 | G192: -7977.388 | H192: -7960.958 | I192: 16.431 | J192: 0.0007585132783 | L192: 17 | M192: 44269546 | N192: rs2732596 | O192: T | P192: C | Q192: M_Disease | R192: 0.9997295087 | S192: M_Disease
A193: 17 | B193: 44272000 | C193: rs2532235 | D193: A | E193: G | F193: 1.251 | G193: -7977.388 | H193: -7960.958 | I193: 16.431 | J193: 0.0007585132783 | L193: 17 | M193: 44269964 | N193: 17:44269964 | O193: A | P193: T | Q193: M_Disease | R193: 0.9997295087 | S193: M_Disease
A194: 17 | B194: 44272266 | C194: rs2532234 | D194: G | E194: A | F194: 1.251 | G194: -7977.388 | H194: -7960.958 | I194: 16.431 | J194: 0.0007585132783 | L194: 17 | M194: 44270059 | N194: 17:44270059 | O194: T | P194: A | Q194: M_Disease | R194: 0.9997295087 | S194: M_Disease
A195: 17 | B195: 44272552 | C195: rs17663792 | D195: T | E195: C | F195: 1.251 | G195: -7977.388 | H195: -7960.958 | I195: 16.431 | J195: 0.0007585132783 | L195: 17 | M195: 44271152 | N195: rs2732658 | O195: A | P195: G | Q195: M_Disease | R195: 0.9997295087 | S195: M_Disease
A196: 17 | B196: 44272679 | C196: rs2732660 | D196: C | E196: G | F196: 1.251 | G196: -7977.388 | H196: -7960.958 | I196: 16.431 | J196: 0.0007585132783 | L196: 17 | M196: 44272000 | N196: rs2532235 | O196: A | P196: G | Q196: M_Disease | R196: 0.9997295087 | S196: M_Disease
A197: 17 | B197: 44272928 | C197: rs2696438 | D197: A | E197: C | F197: 1.251 | G197: -7977.388 | H197: -7960.958 | I197: 16.431 | J197: 0.0007585132783 | L197: 17 | M197: 44272266 | N197: rs2532234 | O197: G | P197: A | Q197: M_Disease | R197: 0.9997295087 | S197: M_Disease
A198: 17 | B198: 44273218 | C198: 17:44273218 | D198: T | E198: C | F198: 1.251 | G198: -7977.388 | H198: -7960.958 | I198: 16.431 | J198: 0.0007585132783 | L198: 17 | M198: 44272552 | N198: rs17663792 | O198: T | P198: C | Q198: M_Disease | R198: 0.9997295087 | S198: M_Disease
A199: 17 | B199: 44273264 | C199: rs2696439 | D199: A | E199: G | F199: 1.251 | G199: -7977.388 | H199: -7960.958 | I199: 16.431 | J199: 0.0007585132783 | L199: 17 | M199: 44272679 | N199: rs2732660 | O199: C | P199: G | Q199: M_Disease | R199: 0.9997295087 | S199: M_Disease
A200: 17 | B200: 44274560 | C200: rs2696440 | D200: C | E200: T | F200: 1.251 | G200: -7977.388 | H200: -7960.958 | I200: 16.431 | J200: 0.0007585132783 | L200: 17 | M200: 44272928 | N200: rs2696438 | O200: A | P200: C | Q200: M_Disease | R200: 0.9997295087 | S200: M_Disease
A201: 17 | B201: 44275035 | C201: rs2696442 | D201: G | E201: T | F201: 1.251 | G201: -7977.388 | H201: -7960.958 | I201: 16.431 | J201: 0.0007585132783 | L201: 17 | M201: 44273218 | N201: 17:44273218 | O201: T | P201: C | Q201: M_Disease | R201: 0.9997295087 | S201: M_Disease
... 4299 more rows

Sheet Suppl Data 7
A1: Supplementary Data 7: CRHR1 Blood Traits
A2: Quary Variant | B2: Lead Variant | C2: Lead Variant rsID | D2: Tag Variant | E2: Study ID | F2: Trait | G2: Lead Variant P-value | H2: Beta | I2: PMID | J2: Author (Year) | K2: Study N | L2: LD (r²)
A3: rs7210219 | B3: 17_45638863_G_T | C3: rs372494195 | E3: GCST004601 | F3: Red blood cell count | G3: 4.15E-12 | H3: 0.0843625 | I3: PMID:27863252 | J3: Astle WJ | K3: 172952 | L3: 0.6172050694
A4: rs7210219 | B4: 17_45447800_C_CT | C4: rs373607110 | E4: NEALE2_30000_raw | F4: White blood cell (leukocyte) count | G4: 8.13E-10 | H4: 0.0388721 | J4: UKB Neale v2 | K4: 350470 | L4: 0.6036000249
A5: rs7210219 | B5: 17_45465717_T_A | C5: rs7219532 | E5: GCST004619 | F5: Reticulocyte fraction of red cells | G5: 5.92E-09 | H5: 0.02670138 | I5: PMID:27863252 | J5: Astle WJ | K5: 170690 | L5: 0.6771808681
A6: rs7210219 | B6: 17_45496053_C_T | C6: rs62065453 | E6: NEALE2_30210_raw | F6: Eosinophill percentage | G6: 3.05E-35 | H6: -0.0652818 | J6: UKB Neale v2 | K6: 349861 | L6: 0.9105968795
A7: rs7210219 | B7: 17_46247206_A_G | C7: rs62073112 | E7: GCST006804 | F7: Red cell distribution width | G7: 8.00E-28 | H7: 0.0516895 | I7: PMID:28957414 | J7: Pilling LC | K7: 116666 | L7: 0.8895375814
A8: rs7210219 | B8: 17_45941033_A_G | C8: rs62061733 | E8: GCST007065 | F8: Eosinophil counts | G8: 3.00E-29 | I8: PMID:30595370 | J8: Kichaev G | K8: 440000 | L8: 0.9212601913
A9: rs7210219 | B9: 17_45941737_T_G | C9: rs112568425 | E9: NEALE2_30280_raw | F9: Immature reticulocyte fraction | G9: 2.54E-10 | H9: 0.00108192 | J9: UKB Neale v2 | K9: 344728 | L9: 0.7196603956
A10: rs7210219 | B10: 17_46255965_A_G | C10: rs150592114 | E10: GCST004599 | F10: Mean platelet volume | G10: 2.48E-11 | H10: -0.030296 | I10: PMID:27863252 | J10: Astle WJ | K10: 164454 | L10: 0.9209127682
A11: rs7210219 | B11: 17_45592125_A_G | E11: NEALE2_30030_raw | F11: Haematocrit percentage | G11: 3.75E-55 | H11: 0.131191 | J11: UKB Neale v2 | K11: 350475 | L11: 0.8708921027
A12: rs7210219 | B12: 17_45592125_A_G | E12: NEALE2_30020_raw | F12: Haemoglobin concentration | G12: 1.54E-61 | H12: 0.0470801 | J12: UKB Neale v2 | K12: 350474 | L12: 0.8708921027
A13: rs7210219 | B13: 17_45960841_CAAA_C | C13: rs1364364714 | E13: NEALE2_30180_raw | F13: Lymphocyte percentage | G13: 6.84E-21 | H13: 0.181631 | J13: UKB Neale v2 | K13: 349861 | L13: 0.6362790242
A14: rs7210219 | B14: 17_46258269_G_A | C14: rs147431626 | E14: NEALE2_30270_raw | F14: Mean sphered cell volume | G14: 1.26E-71 | H14: -0.268717 | J14: UKB Neale v2 | K14: 344729 | L14: 0.8723840202
A15: rs7210219 | B15: 17_46261328_G_A | C15: rs2732687 | E15: NEALE2_30300_raw | F15: High light scatter reticulocyte count | G15: 2.68E-26 | H15: 0.000311946 | J15: UKB Neale v2 | K15: 344729 | L15: 0.8459363835
A16: rs7210219 | B16: 17_45729768_T_C | C16: rs4471726 | E16: GCST004615 | F16: Hemoglobin concentration | G16: 2.94E-26 | H16: 0.04285566 | I16: PMID:27863252 | J16: Astle WJ | K16: 172925 | L16: 0.9315666413
A17: rs7210219 | B17: 17_46276362_T_G | C17: rs2732702 | E17: NEALE2_30260_raw | F17: Mean reticulocyte volume | G17: 8.80E-62 | H17: -0.376921 | J17: UKB Neale v2 | K17: 344728 | L17: 0.8688495586
A18: rs7210219 | B18: 17_45618793_A_T | C18: rs675600 | E18: GCST004629 | F18: Neutrophil count | G18: 2.94E-11 | H18: 0.03035789 | I18: PMID:27863252 | J18: Astle WJ | K18: 170702 | L18: 0.7841492125
A19: rs7210219 | B19: 17_45618793_A_T | C19: rs675600 | E19: GCST004620 | F19: Sum basophil neutrophil counts | G19: 2.34E-11 | H19: 0.03056096 | I19: PMID:27863252 | J19: Astle WJ | K19: 170143 | L19: 0.7841492125
A20: rs7210219 | B20: 17_45733694_T_G | C20: rs62054395 | E20: GCST004604 | F20: Hematocrit | G20: 1.95E-28 | H20: 0.04515918 | I20: PMID:27863252 | J20: Astle WJ | K20: 173039 | L20: 0.9315666413
A21: rs7210219 | B21: 17_45749271_G_A | C21: rs12150672 | E21: GCST004008 | F21: Red blood cell count | G21: 4.00E-09 | I21: PMID:28017375 | J21: van Rooij FJA | K21: 88027 | L21: 0.9717858673
A22: rs7210219 | B22: 17_46005162_A_T | C22: rs62064667 | E22: NEALE2_30290_raw | F22: High light scatter reticulocyte percentage | G22: 1.19E-12 | H22: 0.00695085 | J22: UKB Neale v2 | K22: 344729 | L22: 0.926396625
A23: rs7210219 | B23: 17_46014622_T_C | C23: rs62062271 | E23: NEALE2_30010_raw | F23: Red blood cell (erythrocyte) count | G23: 6.23E-87 | H23: 0.0196486 | J23: UKB Neale v2 | K23: 350475 | L23: 0.8668801721
A24: rs7210219 | B24: 17_46018101_T_C | C24: rs58879558 | E24: GCST007069 | F24: Red blood cell count | G24: 3.00E-98 | I24: PMID:30595370 | J24: Kichaev G | K24: 445000 | L24: 0.8778490681
A25: rs7210219 | B25: 17_46112492_G_A | C25: rs76640332 | E25: GCST004632 | F25: Lymphocyte percentage of white cells | G25: 5.46e-13 | H25: -0.03067547 | I25: PMID:27863252 | J25: Astle WJ | K25: 171748 | L25: 0.860896344
A26: rs7210219 | B26: 17_45841730_A_G | C26: rs2106786 | E26: GCST004601 | F26: Red blood cell count | G26: 2.72E-36 | H26: 0.0537452 | I26: PMID:27863252 | J26: Astle WJ | K26: 172952 | L26: 0.9264235751
A27: rs7210219 | B27: 17_46115252_A_G | C27: rs4606752 | E27: GCST004622 | F27: Reticulocyte count | G27: 1.21E-17 | H27: 0.03608263 | I27: PMID:27863252 | J27: Astle WJ | K27: 170641 | L27: 0.9212467539
A28: rs7210219 | B28: 17_46115252_A_G | C28: rs4606752 | E28: GCST004611 | F28: High light scatter reticulocyte count | G28: 1.77E-16 | H28: 0.03470527 | I28: PMID:27863252 | J28: Astle WJ | K28: 170761 | L28: 0.9212467539
A29: rs7210219 | B29: 17_46134845_C_CA | C29: rs112421165 | E29: NEALE2_30150 | F29: Eosinophill count | G29: 1.60E-24 | H29: -0.0221039 | J29: UKB Neale v2 | K29: 349856 | L29: 0.8532660282
A30: rs7210219 | B30: 17_46140529_C_CA | C30: rs369541018 | E30: GCST004612 | F30: High light scatter reticulocyte percentage of red cells | G30: 3.36E-11 | H30: 0.03176167 | I30: PMID:27863252 | J30: Astle WJ | K30: 170763
A31: rs7210219 | B31: 17_46150027_T_A | C31: rs2696579 | E31: GCST004602 | F31: Mean corpuscular volume | G31: 2.26E-09 | H31: -0.02406112 | I31: PMID:27863252 | J31: Astle WJ | K31: 172433 | L31: 0.5775924
A32: rs7210219 | B32: 17_46150027_T_A | C32: rs2696579 | E32: GCST004630 | F32: Mean corpuscular hemoglobin | G32: 4.89E-10 | H32: -0.02511521 | I32: PMID:27863252 | J32: Astle WJ | K32: 172332 | L32: 0.5775924
A33: rs7210219 | B33: 17_46150065_C_CA | C33: rs369578560 | E33: GCST004628 | F33: Immature fraction of reticulocytes | G33: 3.82E-08 | H33: 0.02173495 | I33: PMID:27863252 | J33: Astle WJ | K33: 170548
A34: rs7210219 | B34: 17_45855432_G_T | C34: rs10445367 | E34: NEALE2_30140_raw | F34: Neutrophill count | G34: 1.39E-17 | H34: 0.0385911 | J34: UKB Neale v2 | K34: 349856 | L34: 0.7570270253
A35: rs7210219 | B35: 17_45899318_T_C | C35: rs9303523 | E35: GCST004614 | F35: Granulocyte count | G35: 2.03E-09 | H35: 0.02259961 | I35: PMID:27863252 | J35: Astle WJ | K35: 169822 | L35: 0.5195814724
A36: rs7210219 | B36: 17_45899318_T_C | C36: rs9303523 | E36: GCST004626 | F36: Myeloid white cell count | G36: 9.20E-10 | H36: 0.02313403 | I36: PMID:27863252 | J36: Astle WJ | K36: 169219 | L36: 0.5195814724
A37: rs7210219 | B37: 17_45899318_T_C | C37: rs9303523 | E37: GCST004613 | F37: Sum neutrophil eosinophil counts | G37: 2.95E-09 | H37: 0.02233337 | I37: PMID:27863252 | J37: Astle WJ | K37: 170384 | L37: 0.5195814724
A38: rs7350980 | B38: 17_45592125_A_G | E38: NEALE2_30030_raw | F38: Haematocrit percentage | G38: 3.75E-55 | H38: 0.131191 | J38: UKB Neale v2 | K38: 350475 | L38: 0.9126706942
A39: rs7350980 | B39: 17_45592125_A_G | E39: NEALE2_30020_raw | F39: Haemoglobin concentration | G39: 1.54E-61 | H39: 0.0470801 | J39: UKB Neale v2 | K39: 350474 | L39: 0.9126706942
A40: rs7350980 | B40: 17_45638863_G_T | C40: rs372494195 | E40: GCST004601 | F40: Red blood cell count | G40: 4.15E-12 | H40: 0.0843625 | I40: PMID:27863252 | J40: Astle WJ | K40: 172952 | L40: 0.6437558943
A41: rs7350980 | B41: 17_45618793_A_T | C41: rs675600 | E41: GCST004620 | F41: Sum basophil neutrophil counts | G41: 2.34E-11 | H41: 0.03056096 | I41: PMID:27863252 | J41: Astle WJ | K41: 170143 | L41: 0.8270720192
A42: rs7350980 | B42: 17_45618793_A_T | C42: rs675600 | E42: GCST004629 | F42: Neutrophil count | G42: 2.94E-11 | H42: 0.03035789 | I42: PMID:27863252 | J42: Astle WJ | K42: 170702 | L42: 0.8270720192
A43: rs7350980 | B43: 17_46247206_A_G | C43: rs62073112 | E43: GCST006804 | F43: Red cell distribution width | G43: 8.00E-28 | H43: 0.0516895 | I43: PMID:28957414 | J43: Pilling LC | K43: 116666 | L43: 0.918733752
A44: rs7350980 | B44: 17_45941033_A_G | C44: rs62061733 | E44: GCST007065 | F44: Eosinophil counts | G44: 3.00E-29 | I44: PMID:30595370 | J44: Kichaev G | K44: 440000 | L44: 0.9526579858
A45: rs7350980 | B45: 17_45941737_T_G | C45: rs112568425 | E45: NEALE2_30280_raw | F45: Immature reticulocyte fraction | G45: 2.54E-10 | H45: 0.00108192 | J45: UKB Neale v2 | K45: 344728 | L45: 0.7602723881
A46: rs7350980 | B46: 17_46255965_A_G | C46: rs150592114 | E46: GCST004599 | F46: Mean platelet volume | G46: 2.48E-11 | H46: -0.030296 | I46: PMID:27863252 | J46: Astle WJ | K46: 164454 | L46: 0.9632833609
A47: rs7350980 | B47: 17_45960841_CAAA_C | C47: rs1364364714 | E47: NEALE2_30180_raw | F47: Lymphocyte percentage | G47: 6.84E-21 | H47: 0.181631 | J47: UKB Neale v2 | K47: 349861 | L47: 0.62188996
A48: rs7350980 | B48: 17_45729768_T_C | C48: rs4471726 | E48: GCST004615 | F48: Hemoglobin concentration | G48: 2.94E-26 | H48: 0.04285566 | I48: PMID:27863252 | J48: Astle WJ | K48: 172925 | L48: 0.9633893626
A49: rs7350980 | B49: 17_46258269_G_A | C49: rs147431626 | E49: NEALE2_30270_raw | F49: Mean sphered cell volume | G49: 1.26E-71 | H49: -0.268717 | J49: UKB Neale v2 | K49: 344729 | L49: 0.9018978005
A50: rs7350980 | B50: 17_46261328_G_A | C50: rs2732687 | E50: NEALE2_30300_raw | F50: High light scatter reticulocyte count | G50: 2.68E-26 | H50: 0.000311946 | J50: UKB Neale v2 | K50: 344729 | L50: 0.8712504945
A51: rs7350980 | B51: 17_46276362_T_G | C51: rs2732702 | E51: NEALE2_30260_raw | F51: Mean reticulocyte volume | G51: 8.80E-62 | H51: -0.376921 | J51: UKB Neale v2 | K51: 344728 | L51: 0.8981087546
A52: rs7350980 | B52: 17_45733694_T_G | C52: rs62054395 | E52: GCST004604 | F52: Hematocrit | G52: 1.95E-28 | H52: 0.04515918 | I52: PMID:27863252 | J52: Astle WJ | K52: 173039 | L52: 0.9633893626
A53: rs7350980 | B53: 17_46437877_C_T | C53: rs199491 | E53: NEALE2_30250_raw | F53: Reticulocyte count | G53: 1.80E-11 | H53: 0.000759631 | J53: UKB Neale v2 | K53: 344729
A54: rs7350980 | B54: 17_45749271_G_A | C54: rs12150672 | E54: GCST004008 | F54: Red blood cell count | G54: 4.00E-09 | I54: PMID:28017375 | J54: van Rooij FJA | K54: 88027 | L54: 0.9787718702
A55: rs7350980 | B55: 17_46005162_A_T | C55: rs62064667 | E55: NEALE2_30290_raw | F55: High light scatter reticulocyte percentage | G55: 1.19E-12 | H55: 0.00695085 | J55: UKB Neale v2 | K55: 344729 | L55: 0.9685216982
A56: rs7350980 | B56: 17_46014622_T_C | C56: rs62062271 | E56: NEALE2_30010_raw | F56: Red blood cell (erythrocyte) count | G56: 6.23E-87 | H56: 0.0196486 | J56: UKB Neale v2 | K56: 350475 | L56: 0.9064582306
A57: rs7350980 | B57: 17_46018101_T_C | C57: rs58879558 | E57: GCST007069 | F57: Red blood cell count | G57: 3.00E-98 | I57: PMID:30595370 | J57: Kichaev G | K57: 445000 | L57: 0.9172103595
A58: rs7350980 | B58: 17_46096136_A_ATTC | E58: GCST004623 | F58: Neutrophil percentage of granulocytes | G58: 7.11E-25 | H58: 0.05390152 | I58: PMID:27863252 | J58: Astle WJ | K58: 170672
A59: rs7350980 | B59: 17_46112492_G_A | C59: rs76640332 | E59: GCST004632 | F59: Lymphocyte percentage of white cells | G59: 5.46e-13 | H59: -0.03067547 | I59: PMID:27863252 | J59: Astle WJ | K59: 171748 | L59: 0.9134848237
A60: rs7350980 | B60: 17_46115252_A_G | C60: rs4606752 | E60: GCST004622 | F60: Reticulocyte count | G60: 1.21E-17 | H60: 0.03608263 | I60: PMID:27863252 | J60: Astle WJ | K60: 170641 | L60: 0.9633893626
A61: rs7350980 | B61: 17_46115252_A_G | C61: rs4606752 | E61: GCST004611 | F61: High light scatter reticulocyte count | G61: 1.77E-16 | H61: 0.03470527 | I61: PMID:27863252 | J61: Astle WJ | K61: 170761 | L61: 0.9633893626
A62: rs7350980 | B62: 17_45841730_A_G | C62: rs2106786 | E62: GCST004601 | F62: Red blood cell count | G62: 2.72E-36 | H62: 0.0537452 | I62: PMID:27863252 | J62: Astle WJ | K62: 172952 | L62: 0.9582902399
A63: rs7350980 | B63: 17_46134845_C_CA | C63: rs112421165 | E63: NEALE2_30150 | F63: Eosinophill count | G63: 1.60E-24 | H63: -0.0221039 | J63: UKB Neale v2 | K63: 349856 | L63: 0.877618597
A64: rs7350980 | B64: 17_46140529_C_CA | C64: rs369541018 | E64: GCST004612 | F64: High light scatter reticulocyte percentage of red cells | G64: 3.36E-11 | H64: 0.03176167 | I64: PMID:27863252 | J64: Astle WJ | K64: 170763 | L64: 0.5296986624
A65: rs7350980 | B65: 17_46150027_T_A | C65: rs2696579 | E65: GCST004630 | F65: Mean corpuscular hemoglobin | G65: 4.89E-10 | H65: -0.02511521 | I65: PMID:27863252 | J65: Astle WJ | K65: 172332 | L65: 0.6262348225
A66: rs7350980 | B66: 17_46150027_T_A | C66: rs2696579 | E66: GCST004602 | F66: Mean corpuscular volume | G66: 2.26E-09 | H66: -0.02406112 | I66: PMID:27863252 | J66: Astle WJ | K66: 172433 | L66: 0.6262348225
A67: rs7350980 | B67: 17_45855432_G_T | C67: rs10445367 | E67: NEALE2_30140_raw | F67: Neutrophill count | G67: 1.39E-17 | H67: 0.0385911 | J67: UKB Neale v2 | K67: 349856 | L67: 0.7911906811
A68: rs7350980 | B68: 17_45899318_T_C | C68: rs9303523 | E68: GCST004626 | F68: Myeloid white cell count | G68: 9.20E-10 | H68: 0.02313403 | I68: PMID:27863252 | J68: Astle WJ | K68: 169219 | L68: 0.5515260519
A69: rs7350980 | B69: 17_45899318_T_C | C69: rs9303523 | E69: GCST004614 | F69: Granulocyte count | G69: 2.03E-09 | H69: 0.02259961 | I69: PMID:27863252 | J69: Astle WJ | K69: 169822 | L69: 0.5515260519
A70: rs7350980 | B70: 17_45899318_T_C | C70: rs9303523 | E70: GCST004613 | F70: Sum neutrophil eosinophil counts | G70: 2.95E-09 | H70: 0.02233337 | I70: PMID:27863252 | J70: Astle WJ | K70: 170384 | L70: 0.5515260519
A71: rs4597358 | B71: 17_45592125_A_G | E71: NEALE2_30030_raw | F71: Haematocrit percentage | G71: 3.75E-55 | H71: 0.131191 | J71: UKB Neale v2 | K71: 350475 | L71: 0.9126706942
A72: rs4597358 | B72: 17_45592125_A_G | E72: NEALE2_30020_raw | F72: Haemoglobin concentration | G72: 1.54E-61 | H72: 0.0470801 | J72: UKB Neale v2 | K72: 350474 | L72: 0.9126706942
A73: rs4597358 | B73: 17_45638863_G_T | C73: rs372494195 | E73: GCST004601 | F73: Red blood cell count | G73: 4.15E-12 | H73: 0.0843625 | I73: PMID:27863252 | J73: Astle WJ | K73: 172952 | L73: 0.6437558943
A74: rs4597358 | B74: 17_45618793_A_T | C74: rs675600 | E74: GCST004629 | F74: Neutrophil count | G74: 2.94E-11 | H74: 0.03035789 | I74: PMID:27863252 | J74: Astle WJ | K74: 170702 | L74: 0.8270720192
A75: rs4597358 | B75: 17_45618793_A_T | C75: rs675600 | E75: GCST004620 | F75: Sum basophil neutrophil counts | G75: 2.34E-11 | H75: 0.03056096 | I75: PMID:27863252 | J75: Astle WJ | K75: 170143 | L75: 0.8270720192
A76: rs4597358 | B76: 17_46247206_A_G | C76: rs62073112 | E76: GCST006804 | F76: Red cell distribution width | G76: 8.00E-28 | H76: 0.0516895 | I76: PMID:28957414 | J76: Pilling LC | K76: 116666 | L76: 0.918733752
A77: rs4597358 | B77: 17_46255965_A_G | C77: rs150592114 | E77: GCST004599 | F77: Mean platelet volume | G77: 2.48E-11 | H77: -0.030296 | I77: PMID:27863252 | J77: Astle WJ | K77: 164454 | L77: 0.9632833609
A78: rs4597358 | B78: 17_45729768_T_C | C78: rs4471726 | E78: GCST004615 | F78: Hemoglobin concentration | G78: 2.94E-26 | H78: 0.04285566 | I78: PMID:27863252 | J78: Astle WJ | K78: 172925 | L78: 0.9633893626
A79: rs4597358 | B79: 17_46258269_G_A | C79: rs147431626 | E79: NEALE2_30270_raw | F79: Mean sphered cell volume | G79: 1.26E-71 | H79: -0.268717 | J79: UKB Neale v2 | K79: 344729 | L79: 0.9018978005
A80: rs4597358 | B80: 17_46261328_G_A | C80: rs2732687 | E80: NEALE2_30300_raw | F80: High light scatter reticulocyte count | G80: 2.68E-26 | H80: 0.000311946 | J80: UKB Neale v2 | K80: 344729 | L80: 0.8712504945
A81: rs4597358 | B81: 17_45941033_A_G | C81: rs62061733 | E81: GCST007065 | F81: Eosinophil counts | G81: 3.00E-29 | I81: PMID:30595370 | J81: Kichaev G | K81: 440000 | L81: 0.9526579858
A82: rs4597358 | B82: 17_45941737_T_G | C82: rs112568425 | E82: NEALE2_30280_raw | F82: Immature reticulocyte fraction | G82: 2.54E-10 | H82: 0.00108192 | J82: UKB Neale v2 | K82: 344728 | L82: 0.7602723881
A83: rs4597358 | B83: 17_46276362_T_G | C83: rs2732702 | E83: NEALE2_30260_raw | F83: Mean reticulocyte volume | G83: 8.80E-62 | H83: -0.376921 | J83: UKB Neale v2 | K83: 344728 | L83: 0.8981087546
A84: rs4597358 | B84: 17_45733694_T_G | C84: rs62054395 | E84: GCST004604 | F84: Hematocrit | G84: 1.95E-28 | H84: 0.04515918 | I84: PMID:27863252 | J84: Astle WJ | K84: 173039 | L84: 0.9633893626
A85: rs4597358 | B85: 17_46437877_C_T | C85: rs199491 | E85: NEALE2_30250_raw | F85: Reticulocyte count | G85: 1.80E-11 | H85: 0.000759631 | J85: UKB Neale v2 | K85: 344729
A86: rs4597358 | B86: 17_45749271_G_A | C86: rs12150672 | E86: GCST004008 | F86: Red blood cell count | G86: 4.00E-09 | I86: PMID:28017375 | J86: van Rooij FJA | K86: 88027 | L86: 0.9787718702
A87: rs4597358 | B87: 17_45960841_CAAA_C | C87: rs1364364714 | E87: NEALE2_30180_raw | F87: Lymphocyte percentage | G87: 6.84E-21 | H87: 0.181631 | J87: UKB Neale v2 | K87: 349861 | L87: 0.62188996
A88: rs4597358 | B88: 17_46005162_A_T | C88: rs62064667 | E88: NEALE2_30290_raw | F88: High light scatter reticulocyte percentage | G88: 1.19E-12 | H88: 0.00695085 | J88: UKB Neale v2 | K88: 344729 | L88: 0.9685216982
A89: rs4597358 | B89: 17_46014622_T_C | C89: rs62062271 | E89: NEALE2_30010_raw | F89: Red blood cell (erythrocyte) count | G89: 6.23E-87 | H89: 0.0196486 | J89: UKB Neale v2 | K89: 350475 | L89: 0.9064582306
A90: rs4597358 | B90: 17_46018101_T_C | C90: rs58879558 | E90: GCST007069 | F90: Red blood cell count | G90: 3.00E-98 | I90: PMID:30595370 | J90: Kichaev G | K90: 445000 | L90: 0.9172103595
A91: rs4597358 | B91: 17_45841730_A_G | C91: rs2106786 | E91: GCST004601 | F91: Red blood cell count | G91: 2.72E-36 | H91: 0.0537452 | I91: PMID:27863252 | J91: Astle WJ | K91: 172952 | L91: 0.9582902399
A92: rs4597358 | B92: 17_46096136_A_ATTC | E92: GCST004623 | F92: Neutrophil percentage of granulocytes | G92: 7.11E-25 | H92: 0.05390152 | I92: PMID:27863252 | J92: Astle WJ | K92: 170672
A93: rs4597358 | B93: 17_46112492_G_A | C93: rs76640332 | E93: GCST004632 | F93: Lymphocyte percentage of white cells | G93: 5.46e-13 | H93: -0.03067547 | I93: PMID:27863252 | J93: Astle WJ | K93: 171748 | L93: 0.9134848237
A94: rs4597358 | B94: 17_46115252_A_G | C94: rs4606752 | E94: GCST004622 | F94: Reticulocyte count | G94: 1.21E-17 | H94: 0.03608263 | I94: PMID:27863252 | J94: Astle WJ | K94: 170641 | L94: 0.9633893626
A95: rs4597358 | B95: 17_46115252_A_G | C95: rs4606752 | E95: GCST004611 | F95: High light scatter reticulocyte count | G95: 1.77E-16 | H95: 0.03470527 | I95: PMID:27863252 | J95: Astle WJ | K95: 170761 | L95: 0.9633893626
A96: rs4597358 | B96: 17_45855432_G_T | C96: rs10445367 | E96: NEALE2_30140_raw | F96: Neutrophill count | G96: 1.39E-17 | H96: 0.0385911 | J96: UKB Neale v2 | K96: 349856 | L96: 0.7911906811
A97: rs4597358 | B97: 17_46134845_C_CA | C97: rs112421165 | E97: NEALE2_30150 | F97: Eosinophill count | G97: 1.60E-24 | H97: -0.0221039 | J97: UKB Neale v2 | K97: 349856 | L97: 0.877618597
A98: rs4597358 | B98: 17_46140529_C_CA | C98: rs369541018 | E98: GCST004612 | F98: High light scatter reticulocyte percentage of red cells | G98: 3.36E-11 | H98: 0.03176167 | I98: PMID:27863252 | J98: Astle WJ | K98: 170763 | L98: 0.5296986624
A99: rs4597358 | B99: 17_45899318_T_C | C99: rs9303523 | E99: GCST004614 | F99: Granulocyte count | G99: 2.03E-09 | H99: 0.02259961 | I99: PMID:27863252 | J99: Astle WJ | K99: 169822 | L99: 0.5515260519
A100: rs4597358 | B100: 17_45899318_T_C | C100: rs9303523 | E100: GCST004626 | F100: Myeloid white cell count | G100: 9.20E-10 | H100: 0.02313403 | I100: PMID:27863252 | J100: Astle WJ | K100: 169219 | L100: 0.5515260519
A101: rs4597358 | B101: 17_45899318_T_C | C101: rs9303523 | E101: GCST004613 | F101: Sum neutrophil eosinophil counts | G101: 2.95E-09 | H101: 0.02233337 | I101: PMID:27863252 | J101: Astle WJ | K101: 170384 | L101: 0.5515260519
A102: rs4597358 | B102: 17_46150027_T_A | C102: rs2696579 | E102: GCST004602 | F102: Mean corpuscular volume | G102: 2.26E-09 | H102: -0.02406112 | I102: PMID:27863252 | J102: Astle WJ | K102: 172433 | L102: 0.6262348225
A103: rs4597358 | B103: 17_46150027_T_A | C103: rs2696579 | E103: GCST004630 | F103: Mean corpuscular hemoglobin | G103: 4.89E-10 | H103: -0.02511521 | I103: PMID:27863252 | J103: Astle WJ | K103: 172332 | L103: 0.6262348225
A104: rs2696609 | B104: 17_45899318_T_C | C104: rs9303523 | E104: GCST004614 | F104: Granulocyte count | G104: 2.03E-09 | H104: 0.02259961 | I104: PMID:27863252 | J104: Astle WJ | K104: 169822 | L104: 0.543751386
A105: rs2696609 | B105: 17_45899318_T_C | C105: rs9303523 | E105: GCST004626 | F105: Myeloid white cell count | G105: 9.20E-10 | H105: 0.02313403 | I105: PMID:27863252 | J105: Astle WJ | K105: 169219 | L105: 0.543751386
A106: rs2696609 | B106: 17_45899318_T_C | C106: rs9303523 | E106: GCST004613 | F106: Sum neutrophil eosinophil counts | G106: 2.95E-09 | H106: 0.02233337 | I106: PMID:27863252 | J106: Astle WJ | K106: 170384 | L106: 0.543751386
A107: rs2696609 | B107: 17_45729768_T_C | C107: rs4471726 | E107: GCST004615 | F107: Hemoglobin concentration | G107: 2.94E-26 | H107: 0.04285566 | I107: PMID:27863252 | J107: Astle WJ | K107: 172925 | L107: 0.9539507036
A108: rs2696609 | B108: 17_45733694_T_G | C108: rs62054395 | E108: GCST004604 | F108: Hematocrit | G108: 1.95E-28 | H108: 0.04515918 | I108: PMID:27863252 | J108: Astle WJ | K108: 173039 | L108: 0.9539507036
A109: rs2696609 | B109: 17_46247206_A_G | C109: rs62073112 | E109: GCST006804 | F109: Red cell distribution width | G109: 8.00E-28 | H109: 0.0516895 | I109: PMID:28957414 | J109: Pilling LC | K109: 116666 | L109: 0.9093491456
A110: rs2696609 | B110: 17_45941033_A_G | C110: rs62061733 | E110: GCST007065 | F110: Eosinophil counts | G110: 3.00E-29 | I110: PMID:30595370 | J110: Kichaev G | K110: 440000 | L110: 0.9432993677
A111: rs2696609 | B111: 17_45749271_G_A | C111: rs12150672 | E111: GCST004008 | F111: Red blood cell count | G111: 4.00E-09 | I111: PMID:28017375 | J111: van Rooij FJA | K111: 88027 | L111: 0.975837744
A112: rs2696609 | B112: 17_45941737_T_G | C112: rs112568425 | E112: NEALE2_30280_raw | F112: Immature reticulocyte fraction | G112: 2.54E-10 | H112: 0.00108192 | J112: UKB Neale v2 | K112: 344728 | L112: 0.752044512
A113: rs2696609 | B113: 17_46255965_A_G | C113: rs150592114 | E113: GCST004599 | F113: Mean platelet volume | G113: 2.48E-11 | H113: -0.030296 | I113: PMID:27863252 | J113: Astle WJ | K113: 164454 | L113: 0.9539057758
A114: rs2696609 | B114: 17_45960841_CAAA_C | C114: rs1364364714 | E114: NEALE2_30180_raw | F114: Lymphocyte percentage | G114: 6.84E-21 | H114: 0.181631 | J114: UKB Neale v2 | K114: 349861 | L114: 0.6144694222
A115: rs2696609 | B115: 17_46258269_G_A | C115: rs147431626 | E115: NEALE2_30270_raw | F115: Mean sphered cell volume | G115: 1.26E-71 | H115: -0.268717 | J115: UKB Neale v2 | K115: 344729 | L115: 0.8929683009
A116: rs2696609 | B116: 17_46261328_G_A | C116: rs2732687 | E116: NEALE2_30300_raw | F116: High light scatter reticulocyte count | G116: 2.68E-26 | H116: 0.000311946 | J116: UKB Neale v2 | K116: 344729 | L116: 0.8705897669
A117: rs2696609 | B117: 17_46276362_T_G | C117: rs2732702 | E117: NEALE2_30260_raw | F117: Mean reticulocyte volume | G117: 8.80E-62 | H117: -0.376921 | J117: UKB Neale v2 | K117: 344728 | L117: 0.8891735616
A118: rs2696609 | B118: 17_46005162_A_T | C118: rs62064667 | E118: NEALE2_30290_raw | F118: High light scatter reticulocyte percentage | G118: 1.19E-12 | H118: 0.00695085 | J118: UKB Neale v2 | K118: 344729 | L118: 0.9589618988
A119: rs2696609 | B119: 17_45841730_A_G | C119: rs2106786 | E119: GCST004601 | F119: Red blood cell count | G119: 2.72E-36 | H119: 0.0537452 | I119: PMID:27863252 | J119: Astle WJ | K119: 172952 | L119: 0.9489721191
A120: rs2696609 | B120: 17_46014622_T_C | C120: rs62062271 | E120: NEALE2_30010_raw | F120: Red blood cell (erythrocyte) count | G120: 6.23E-87 | H120: 0.0196486 | J120: UKB Neale v2 | K120: 350475 | L120: 0.8974720225
A121: rs2696609 | B121: 17_46018101_T_C | C121: rs58879558 | E121: GCST007069 | F121: Red blood cell count | G121: 3.00E-98 | I121: PMID:30595370 | J121: Kichaev G | K121: 445000 | L121: 0.9079250282
A122: rs2696609 | B122: 17_45855432_G_T | C122: rs10445367 | E122: NEALE2_30140_raw | F122: Neutrophill count | G122: 1.39E-17 | H122: 0.0385911 | J122: UKB Neale v2 | K122: 349856 | L122: 0.7764288471
A123: rs2696609 | B123: 17_46112492_G_A | C123: rs76640332 | E123: GCST004632 | F123: Lymphocyte percentage of white cells | G123: 5.46e-13 | H123: -0.03067547 | I123: PMID:27863252 | J123: Astle WJ | K123: 171748 | L123: 0.9052894521
A124: rs2696609 | B124: 17_46115252_A_G | C124: rs4606752 | E124: GCST004622 | F124: Reticulocyte count | G124: 1.21E-17 | H124: 0.03608263 | I124: PMID:27863252 | J124: Astle WJ | K124: 170641 | L124: 0.9539507036
A125: rs2696609 | B125: 17_46115252_A_G | C125: rs4606752 | E125: GCST004611 | F125: High light scatter reticulocyte count | G125: 1.77E-16 | H125: 0.03470527 | I125: PMID:27863252 | J125: Astle WJ | K125: 170761 | L125: 0.9539507036
A126: rs2696609 | B126: 17_46134845_C_CA | C126: rs112421165 | E126: NEALE2_30150 | F126: Eosinophill count | G126: 1.60E-24 | H126: -0.0221039 | J126: UKB Neale v2 | K126: 349856 | L126: 0.8711086222
A127: rs2696609 | B127: 17_46140529_C_CA | C127: rs369541018 | E127: GCST004612 | F127: High light scatter reticulocyte percentage of red cells | G127: 3.36E-11 | H127: 0.03176167 | I127: PMID:27863252 | J127: Astle WJ | K127: 170763 | L127: 0.5329277404
A128: rs2696609 | B128: 17_46150027_T_A | C128: rs2696579 | E128: GCST004602 | F128: Mean corpuscular volume | G128: 2.26E-09 | H128: -0.02406112 | I128: PMID:27863252 | J128: Astle WJ | K128: 172433 | L128: 0.6186011261
A129: rs2696609 | B129: 17_46150027_T_A | C129: rs2696579 | E129: GCST004630 | F129: Mean corpuscular hemoglobin | G129: 4.89E-10 | H129: -0.02511521 | I129: PMID:27863252 | J129: Astle WJ | K129: 172332 | L129: 0.6186011261
A130: rs16940904 | B130: 17_45465717_T_A | C130: rs7219532 | E130: GCST004619 | F130: Reticulocyte fraction of red cells | G130: 5.92E-09 | H130: 0.02670138 | I130: PMID:27863252 | J130: Astle WJ | K130: 170690
A131: rs16940904 | B131: 17_45618793_A_T | C131: rs675600 | E131: GCST004629 | F131: Neutrophil count | G131: 2.94E-11 | H131: 0.03035789 | I131: PMID:27863252 | J131: Astle WJ | K131: 170702 | L131: 0.8270720192
A132: rs16940904 | B132: 17_45618793_A_T | C132: rs675600 | E132: GCST004620 | F132: Sum basophil neutrophil counts | G132: 2.34E-11 | H132: 0.03056096 | I132: PMID:27863252 | J132: Astle WJ | K132: 170143 | L132: 0.8270720192
A133: rs16940904 | B133: 17_45638863_G_T | C133: rs372494195 | E133: GCST004601 | F133: Red blood cell count | G133: 4.15E-12 | H133: 0.0843625 | I133: PMID:27863252 | J133: Astle WJ | K133: 172952 | L133: 0.6437558943
A134: rs16940904 | B134: 17_45899318_T_C | C134: rs9303523 | E134: GCST004613 | F134: Sum neutrophil eosinophil counts | G134: 2.95E-09 | H134: 0.02233337 | I134: PMID:27863252 | J134: Astle WJ | K134: 170384 | L134: 0.5515260519
A135: rs16940904 | B135: 17_45899318_T_C | C135: rs9303523 | E135: GCST004626 | F135: Myeloid white cell count | G135: 9.20E-10 | H135: 0.02313403 | I135: PMID:27863252 | J135: Astle WJ | K135: 169219 | L135: 0.5515260519
A136: rs16940904 | B136: 17_45899318_T_C | C136: rs9303523 | E136: GCST004614 | F136: Granulocyte count | G136: 2.03E-09 | H136: 0.02259961 | I136: PMID:27863252 | J136: Astle WJ | K136: 169822 | L136: 0.5515260519
A137: rs16940904 | B137: 17_46247206_A_G | C137: rs62073112 | E137: GCST006804 | F137: Red cell distribution width | G137: 8.00E-28 | H137: 0.0516895 | I137: PMID:28957414 | J137: Pilling LC | K137: 116666 | L137: 0.918733752
A138: rs16940904 | B138: 17_46255965_A_G | C138: rs150592114 | E138: GCST004599 | F138: Mean platelet volume | G138: 2.48E-11 | H138: -0.030296 | I138: PMID:27863252 | J138: Astle WJ | K138: 164454 | L138: 0.9632833609
A139: rs16940904 | B139: 17_45941033_A_G | C139: rs62061733 | E139: GCST007065 | F139: Eosinophil counts | G139: 3.00E-29 | I139: PMID:30595370 | J139: Kichaev G | K139: 440000 | L139: 0.9526579858
A140: rs16940904 | B140: 17_45729768_T_C | C140: rs4471726 | E140: GCST004615 | F140: Hemoglobin concentration | G140: 2.94E-26 | H140: 0.04285566 | I140: PMID:27863252 | J140: Astle WJ | K140: 172925 | L140: 0.9633893626
A141: rs16940904 | B141: 17_45941737_T_G | C141: rs112568425 | E141: NEALE2_30280_raw | F141: Immature reticulocyte fraction | G141: 2.54E-10 | H141: 0.00108192 | J141: UKB Neale v2 | K141: 344728 | L141: 0.7602723881
A142: rs16940904 | B142: 17_46258269_G_A | C142: rs147431626 | E142: NEALE2_30270_raw | F142: Mean sphered cell volume | G142: 1.26E-71 | H142: -0.268717 | J142: UKB Neale v2 | K142: 344729 | L142: 0.9018978005
A143: rs16940904 | B143: 17_46261328_G_A | C143: rs2732687 | E143: NEALE2_30300_raw | F143: High light scatter reticulocyte count | G143: 2.68E-26 | H143: 0.000311946 | J143: UKB Neale v2 | K143: 344729 | L143: 0.8712504945
A144: rs16940904 | B144: 17_45733694_T_G | C144: rs62054395 | E144: GCST004604 | F144: Hematocrit | G144: 1.95E-28 | H144: 0.04515918 | I144: PMID:27863252 | J144: Astle WJ | K144: 173039 | L144: 0.9633893626
A145: rs16940904 | B145: 17_45960841_CAAA_C | C145: rs1364364714 | E145: NEALE2_30180_raw | F145: Lymphocyte percentage | G145: 6.84E-21 | H145: 0.181631 | J145: UKB Neale v2 | K145: 349861 | L145: 0.62188996
A146: rs16940904 | B146: 17_46276362_T_G | C146: rs2732702 | E146: NEALE2_30260_raw | F146: Mean reticulocyte volume | G146: 8.80E-62 | H146: -0.376921 | J146: UKB Neale v2 | K146: 344728 | L146: 0.8981087546
A147: rs16940904 | B147: 17_45749271_G_A | C147: rs12150672 | E147: GCST004008 | F147: Red blood cell count | G147: 4.00E-09 | I147: PMID:28017375 | J147: van Rooij FJA | K147: 88027 | L147: 0.9787382333
A148: rs16940904 | B148: 17_46437877_C_T | C148: rs199491 | E148: NEALE2_30250_raw | F148: Reticulocyte count | G148: 1.80E-11 | H148: 0.000759631 | J148: UKB Neale v2 | K148: 344729
A149: rs16940904 | B149: 17_46005162_A_T | C149: rs62064667 | E149: NEALE2_30290_raw | F149: High light scatter reticulocyte percentage | G149: 1.19E-12 | H149: 0.00695085 | J149: UKB Neale v2 | K149: 344729 | L149: 0.9685216982
A150: rs16940904 | B150: 17_46014622_T_C | C150: rs62062271 | E150: NEALE2_30010_raw | F150: Red blood cell (erythrocyte) count | G150: 6.23E-87 | H150: 0.0196486 | J150: UKB Neale v2 | K150: 350475 | L150: 0.9064582306
A151: rs16940904 | B151: 17_46018101_T_C | C151: rs58879558 | E151: GCST007069 | F151: Red blood cell count | G151: 3.00E-98 | I151: PMID:30595370 | J151: Kichaev G | K151: 445000 | L151: 0.9172103595
A152: rs16940904 | B152: 17_46096136_A_ATTC | E152: GCST004623 | F152: Neutrophil percentage of granulocytes | G152: 7.11E-25 | H152: 0.05390152 | I152: PMID:27863252 | J152: Astle WJ | K152: 170672
A153: rs16940904 | B153: 17_45841730_A_G | C153: rs2106786 | E153: GCST004601 | F153: Red blood cell count | G153: 2.72E-36 | H153: 0.0537452 | I153: PMID:27863252 | J153: Astle WJ | K153: 172952 | L153: 0.9582902399
A154: rs16940904 | B154: 17_46112492_G_A | C154: rs76640332 | E154: GCST004632 | F154: Lymphocyte percentage of white cells | G154: 5.46e-13 | H154: -0.03067547 | I154: PMID:27863252 | J154: Astle WJ | K154: 171748 | L154: 0.9134848237
A155: rs16940904 | B155: 17_46115252_A_G | C155: rs4606752 | E155: GCST004622 | F155: Reticulocyte count | G155: 1.21E-17 | H155: 0.03608263 | I155: PMID:27863252 | J155: Astle WJ | K155: 170641 | L155: 0.9633893626
A156: rs16940904 | B156: 17_46115252_A_G | C156: rs4606752 | E156: GCST004611 | F156: High light scatter reticulocyte count | G156: 1.77E-16 | H156: 0.03470527 | I156: PMID:27863252 | J156: Astle WJ | K156: 170761 | L156: 0.9633893626
A157: rs16940904 | B157: 17_45855432_G_T | C157: rs10445367 | E157: NEALE2_30140_raw | F157: Neutrophill count | G157: 1.39E-17 | H157: 0.0385911 | J157: UKB Neale v2 | K157: 349856 | L157: 0.7911906811
A158: rs16940904 | B158: 17_46134845_C_CA | C158: rs112421165 | E158: NEALE2_30150 | F158: Eosinophill count | G158: 1.60E-24 | H158: -0.0221039 | J158: UKB Neale v2 | K158: 349856 | L158: 0.877618597
A159: rs16940904 | B159: 17_46138530_C_T | C159: rs2696602 | E159: GCST004633 | F159: Neutrophil percentage of white cells | G159: 1.00E-14 | H159: 0.03628083 | I159: PMID:27863252 | J159: Astle WJ | K159: 171542
A160: rs16940904 | B160: 17_46140529_C_CA | C160: rs369541018 | E160: GCST004612 | F160: High light scatter reticulocyte percentage of red cells | G160: 3.36E-11 | H160: 0.03176167 | I160: PMID:27863252 | J160: Astle WJ | K160: 170763 | L160: 0.5296986624
A161: rs16940904 | B161: 17_46150027_T_A | C161: rs2696579 | E161: GCST004630 | F161: Mean corpuscular hemoglobin | G161: 4.89E-10 | H161: -0.02511521 | I161: PMID:27863252 | J161: Astle WJ | K161: 172332 | L161: 0.6262348225
A162: rs16940904 | B162: 17_46150027_T_A | C162: rs2696579 | E162: GCST004602 | F162: Mean corpuscular volume | G162: 2.26E-09 | H162: -0.02406112 | I162: PMID:27863252 | J162: Astle WJ | K162: 172433 | L162: 0.6262348225

Sheet Suppl Data 8
A1: Supplementary Data 8: Association analysis in CD247 locus.
A2: Note: CHR=Chromosome; BP=Basepair; Maj=Major allele; Min=Minor allele; IC=Immunochip; OR=Odd ratio; P=P value; Q=P-value for Cochrane's Q statistic; I^2= heterogeneity index
D4: Alleles | F4: MAF | H4: Genotyped or Imputed | J4: IC Dataset | L4: GWAS | N4: Test of heterogeneity | P4: Meta Analysis
A5: SNP | B5: CHR | C5: BP (GRCh37/hg19) | D5: Maj | E5: Min | F5: Cases | G5: Controls | H5: IC | I5: GWAS | J5: OR(95%CI) | K5: P | L5: OR(95%CI) | M5: P | N5: Q | O5: I^2 | P5: Weight | Q5: Zscore | R5: P.value | S5: Direction
A6: rs7523907 | B6: 1 | C6: 167427247 | D6: C | E6: T | F6: 0.4014 | G6: 0.4325 | H6: Imputed | I6: Imputed | J6: 0.84(0.73-0.96) | K6: 0.01143 | L6: 0.86(0.81-0.91) | M6: 2.35E-07 | N6: 0.7683 | O6: 0 | P6: 26445 | Q6: -5.742 | R6: 9.33E-09 | S6: --
A7: rs1723018 | B7: 1 | C7: 167433420 | D7: G | E7: A | F7: 0.3606 | G7: 0.3882 | H7: Imputed | I7: Imputed | J7: 0.84(0.73-0.96) | K7: 0.01204 | L7: 0.86(0.81-0.91) | M7: 8.08E-07 | N7: 0.7426 | O7: 0 | P7: 26445 | Q7: -5.529 | R7: 3.22E-08 | S7: --
A8: rs1723016 | B8: 1 | C8: 167433056 | D8: C | E8: T | F8: 0.3611 | G8: 0.3887 | H8: Imputed | I8: Imputed | J8: 0.84(0.73-0.96) | K8: 0.01204 | L8: 0.86(0.81-0.91) | M8: 9.92E-07 | N8: 0.731 | O8: 0 | P8: 26445 | Q8: -5.494 | R8: 3.93E-08 | S8: --
A9: rs1773542 | B9: 1 | C9: 167432949 | D9: C | E9: T | F9: 0.3611 | G9: 0.3887 | H9: Imputed | I9: Imputed | J9: 0.84(0.73-0.96) | K9: 0.01204 | L9: 0.86(0.81-0.91) | M9: 9.92E-07 | N9: 0.731 | O9: 0 | P9: 26445 | Q9: -5.494 | R9: 3.93E-08 | S9: --
A10: rs2988279 | B10: 1 | C10: 167419839 | D10: A | E10: G | F10: 0.3772 | G10: 0.4041 | H10: Imputed | I10: Imputed | J10: 0.84(0.73-0.96) | K10: 0.01109 | L10: 0.86(0.82-0.92) | M10: 1.34E-06 | N10: 0.678 | O10: 0 | P10: 26445 | Q10: -5.457 | R10: 4.83E-08 | S10: --
A11: rs2056626 | B11: 1 | C11: 167420425 | D11: G | E11: T | F11: 0.3773 | G11: 0.404 | H11: Genotyped | I11: Imputed | J11: 0.84(0.73-0.96) | K11: 0.01109 | L11: 0.87(0.82-0.92) | M11: 1.65E-06 | N11: 0.6657 | O11: 0 | P11: 26445 | Q11: -5.421 | R11: 5.94E-08 | S11: --
A12: rs2995089 | B12: 1 | C12: 167431193 | D12: A | E12: G | F12: 0.349 | G12: 0.378 | H12: Imputed | I12: Imputed | J12: 0.84(0.74-0.97) | K12: 0.01503 | L12: 0.86(0.81-0.92) | M12: 1.29E-06 | N12: 0.7734 | O12: 0 | P12: 26445 | Q12: -5.41 | R12: 6.32E-08 | S12: --
A13: rs1773560 | B13: 1 | C13: 167421763 | D13: G | E13: A | F13: 0.3773 | G13: 0.4041 | H13: Imputed | I13: Imputed | J13: 0.84(0.73-0.96) | K13: 0.01109 | L13: 0.87(0.82-0.92) | M13: 1.78E-06 | N13: 0.6613 | O13: 0 | P13: 26445 | Q13: -5.408 | R13: 6.38E-08 | S13: --
A14: rs2988277 | B14: 1 | C14: 167431352 | D14: T | E14: C | F14: 0.3495 | G14: 0.378 | H14: Imputed | I14: Imputed | J14: 0.84(0.74-0.97) | K14: 0.01429 | L14: 0.86(0.81-0.92) | M14: 1.41E-06 | N14: 0.7545 | O14: 0 | P14: 26445 | Q14: -5.404 | R14: 6.52E-08 | S14: --
A15: rs1214596 | B15: 1 | C15: 167427170 | D15: A | E15: T | F15: 0.348 | G15: 0.3771 | H15: Imputed | I15: Imputed | J15: 0.84(0.74-0.97) | K15: 0.01483 | L15: 0.86(0.81-0.92) | M15: 1.45E-06 | N15: 0.7652 | O15: 0 | P15: 26445 | Q15: -5.392 | R15: 6.97E-08 | S15: --
A16: rs1214595 | B16: 1 | C16: 167427557 | D16: A | E16: G | F16: 0.348 | G16: 0.3771 | H16: Imputed | I16: Imputed | J16: 0.85(0.74-0.97) | K16: 0.01695 | L16: 0.86(0.81-0.92) | M16: 1.42E-06 | N16: 0.8009 | O16: 0 | P16: 26445 | Q16: -5.371 | R16: 7.83E-08 | S16: --
A17: rs1773561 | B17: 1 | C17: 167421951 | D17: T | E17: C | F17: 0.3575 | G17: 0.3859 | H17: Imputed | I17: Imputed | J17: 0.84(0.73-0.96) | K17: 0.01331 | L17: 0.87(0.82-0.92) | M17: 2.28E-06 | N17: 0.7003 | O17: 0 | P17: 26445 | Q17: -5.332 | R17: 9.71E-08 | S17: --
A18: rs2949661 | B18: 1 | C18: 167424924 | D18: T | E18: C | F18: 0.3522 | G18: 0.3812 | H18: Imputed | I18: Imputed | J18: 0.84(0.74-0.97) | K18: 0.01417 | L18: 0.87(0.82-0.92) | M18: 2.20E-06 | N18: 0.7223 | O18: 0 | P18: 26445 | Q18: -5.327 | R18: 9.99E-08 | S18: --
A19: rs2056625 | B19: 1 | C19: 167420299 | D19: A | E19: G | F19: 0.3577 | G19: 0.3858 | H19: Imputed | I19: Imputed | J19: 0.84(0.73-0.96) | K19: 0.01331 | L19: 0.87(0.82-0.92) | M19: 2.52E-06 | N19: 0.6936 | O19: 0 | P19: 26445 | Q19: -5.314 | R19: 1.07E-07 | S19: --
A20: rs2995091 | B20: 1 | C20: 167434277 | D20: C | E20: T | F20: 0.349 | G20: 0.3771 | H20: Imputed | I20: Imputed | J20: 0.85(0.74-0.97) | K20: 0.01632 | L20: 0.87(0.82-0.92) | M20: 2.52E-06 | N20: 0.7541 | O20: 0 | P20: 26445 | Q20: -5.278 | R20: 1.31E-07 | S20: --
A21: rs34276574 | B21: 1 | C21: 167418468 | D21: T | E21: C | F21: 0.3578 | G21: 0.3856 | H21: Imputed | I21: Imputed | J21: 0.84(0.73-0.97) | K21: 0.01391 | L21: 0.87(0.82-0.92) | M21: 3.22E-06 | N21: 0.6905 | O21: 0 | P21: 26445 | Q21: -5.263 | R21: 1.42E-07 | S21: --
A22: rs2949668 | B22: 1 | C22: 167434721 | D22: C | E22: T | F22: 0.4501 | G22: 0.4782 | H22: Imputed | I22: Imputed | J22: 0.86(0.75-0.98) | K22: 0.02603 | L22: 0.87(0.82-0.92) | M22: 2.17E-06 | N22: 0.8189 | O22: 0 | P22: 26445 | Q22: -5.217 | R22: 1.82E-07 | S22: --
A23: rs2949669 | B23: 1 | C23: 167417884 | D23: T | E23: C | F23: 0.3577 | G23: 0.3855 | H23: Imputed | I23: Imputed | J23: 0.85(0.74-0.98) | K23: 0.02066 | L23: 0.87(0.82-0.92) | M23: 3.13E-06 | N23: 0.7935 | O23: 0 | P23: 26445 | Q23: -5.196 | R23: 2.04E-07 | S23: --
A24: rs35014055 | B24: 1 | C24: 167418449 | D24: A | E24: G | F24: 0.359 | G24: 0.386 | H24: Imputed | I24: Imputed | J24: 0.84(0.73-0.96) | K24: 0.01136 | L24: 0.87(0.82-0.93) | M24: 6.01E-06 | N24: 0.6061 | O24: 0 | P24: 26445 | Q24: -5.186 | R24: 2.15E-07 | S24: --
A25: rs1214598 | B25: 1 | C25: 167426424 | D25: A | E25: G | F25: 0.3393 | G25: 0.3678 | H25: Imputed | I25: Imputed | J25: 0.85(0.74-0.97) | K25: 0.01743 | L25: 0.87(0.82-0.92) | M25: 4.85E-06 | N25: 0.7398 | O25: 0 | P25: 26445 | Q25: -5.148 | R25: 2.63E-07 | S25: --
A26: rs840012 | B26: 1 | C26: 167414872 | D26: T | E26: C | F26: 0.3655 | G26: 0.3904 | H26: Imputed | I26: Imputed | J26: 0.85(0.74-0.98) | K26: 0.02081 | L26: 0.88(0.83-0.94) | M26: 3.63E-05 | N26: 0.6148 | O26: 0 | P26: 26445 | Q26: -4.732 | R26: 2.22E-06 | S26: --
A27: rs2462552 | B27: 1 | C27: 167408306 | D27: C | E27: T | F27: 0.4154 | G27: 0.433 | H27: Imputed | I27: Imputed | J27: 0.83(0.72-0.95) | K27: 0.006509 | L27: 0.92(0.87-0.98) | M27: 5.64E-03 | N27: 0.1504 | O27: 51.65 | P27: 26445 | Q27: -3.754 | R27: 0.0001737 | S27: --
A28: rs1723022 | B28: 1 | C28: 167405418 | D28: T | E28: G | F28: 0.345 | G28: 0.3599 | H28: Imputed | I28: Imputed | J28: 0.81(0.7-0.93) | K28: 0.003807 | L28: 0.92(0.87-0.98) | M28: 7.71E-03 | N28: 0.1024 | O28: 62.5 | P28: 26445 | Q28: -3.75 | R28: 0.0001766 | S28: --
A29: rs864537 | B29: 1 | C29: 167411384 | D29: G | E29: A | F29: 0.3791 | G29: 0.3947 | H29: Genotyped | I29: Genotyped | J29: 0.83(0.72-0.95) | K29: 0.006493 | L29: 0.92(0.87-0.98) | M29: 7.81E-03 | N29: 0.1443 | O29: 53.08 | P29: 26445 | Q29: -3.661 | R29: 0.000251 | S29: --
A30: rs840016 | B30: 1 | C30: 167408670 | D30: T | E30: C | F30: 0.3778 | G30: 0.3925 | H30: Imputed | I30: Imputed | J30: 0.83(0.72-0.95) | K30: 0.006614 | L30: 0.92(0.87-0.98) | M30: 8.38E-03 | N30: 0.1437 | O30: 53.22 | P30: 26445 | Q30: -3.637 | R30: 0.0002753 | S30: --
A31: rs840015 | B31: 1 | C31: 167409114 | D31: A | E31: G | F31: 0.3775 | G31: 0.3922 | H31: Imputed | I31: Imputed | J31: 0.83(0.72-0.95) | K31: 0.006614 | L31: 0.92(0.87-0.98) | M31: 8.69E-03 | N31: 0.1422 | O31: 53.58 | P31: 26445 | Q31: -3.627 | R31: 0.0002871 | S31: --
A32: rs1723023 | B32: 1 | C32: 167405132 | D32: A | E32: G | F32: 0.3841 | G32: 0.3974 | H32: Imputed | I32: Imputed | J32: 0.83(0.72-0.95) | K32: 0.006614 | L32: 0.93(0.88-0.99) | M32: 1.91E-02 | N32: 0.1137 | O32: 60.03 | P32: 26445 | Q32: -3.383 | R32: 0.000716 | S32: --
A33: rs2995082 | B33: 1 | C33: 167406245 | D33: C | E33: T | F33: 0.4823 | G33: 0.4977 | H33: Imputed | I33: Imputed | J33: 0.83(0.72-0.95) | K33: 0.007125 | L33: 0.94(0.89-1) | M33: 4.09E-02 | N33: 0.0889 | O33: 65.45 | P33: 26445 | Q33: -3.112 | R33: 0.001861 | S33: --
A34: rs11801482 | B34: 1 | C34: 167546603 | D34: G | E34: A | F34: 0.3345 | G34: 0.3396 | H34: Imputed | I34: Imputed | J34: 0.86(0.75-0.99) | K34: 0.03878 | L34: 0.93(0.88-0.99) | M34: 1.97E-02 | N34: 0.3341 | O34: 0 | P34: 26445 | Q34: -3.051 | R34: 0.002281 | S34: --
A35: rs7543683 | B35: 1 | C35: 167542337 | D35: A | E35: G | F35: 0.3352 | G35: 0.3389 | H35: Genotyped | I35: Imputed | J35: 0.86(0.74-0.99) | K35: 0.03245 | L35: 0.93(0.88-0.99) | M35: 2.53E-02 | N35: 0.2849 | O35: 12.57 | P35: 26445 | Q35: -3.005 | R35: 0.002659 | S35: --
A36: rs56093414 | B36: 1 | C36: 167542977 | D36: A | E36: G | F36: 0.3358 | G36: 0.3392 | H36: Imputed | I36: Imputed | J36: 0.86(0.74-0.99) | K36: 0.03245 | L36: 0.93(0.88-0.99) | M36: 2.62E-02 | N36: 0.2824 | O36: 13.46 | P36: 26445 | Q36: -2.993 | R36: 0.002764 | S36: --
A37: rs7545757 | B37: 1 | C37: 167546221 | D37: T | E37: C | F37: 0.335 | G37: 0.3389 | H37: Imputed | I37: Imputed | J37: 0.86(0.75-0.99) | K37: 0.03543 | L37: 0.93(0.88-0.99) | M37: 2.64E-02 | N37: 0.2962 | O37: 8.37 | P37: 26445 | Q37: -2.972 | R37: 0.002963 | S37: --
A38: rs6681478 | B38: 1 | C38: 167558637 | D38: A | E38: G | F38: 0.3317 | G38: 0.3363 | H38: Imputed | I38: Imputed | J38: 0.88(0.76-1.01) | K38: 0.06903 | L38: 0.93(0.87-0.99) | M38: 1.76E-02 | N38: 0.4726 | O38: 0 | P38: 26445 | Q38: -2.963 | R38: 0.003046 | S38: --
A39: rs7513712 | B39: 1 | C39: 167546460 | D39: A | E39: G | F39: 0.335 | G39: 0.3387 | H39: Imputed | I39: Imputed | J39: 0.86(0.75-0.99) | K39: 0.03585 | L39: 0.93(0.88-0.99) | M39: 2.85E-02 | N39: 0.2932 | O39: 9.49 | P39: 26445 | Q39: -2.943 | R39: 0.003248 | S39: --
A40: rs2862862 | B40: 1 | C40: 167560414 | D40: A | E40: G | F40: 0.4239 | G40: 0.4273 | H40: Imputed | I40: Imputed | J40: 0.9(0.78-1.03) | K40: 0.1337 | L40: 0.93(0.88-0.98) | M40: 1.14E-02 | N40: 0.6825 | O40: 0 | P40: 26445 | Q40: -2.941 | R40: 0.00327 | S40: --
A41: rs4657674 | B41: 1 | C41: 167561258 | D41: G | E41: A | F41: 0.4244 | G41: 0.4273 | H41: Imputed | I41: Imputed | J41: 0.9(0.78-1.03) | K41: 0.1337 | L41: 0.93(0.88-0.98) | M41: 1.32E-02 | N41: 0.6682 | O41: 0 | P41: 26445 | Q41: -2.897 | R41: 0.003769 | S41: --
A42: rs2143299 | B42: 1 | C42: 167548054 | D42: A | E42: G | F42: 0.3349 | G42: 0.3393 | H42: Imputed | I42: Imputed | J42: 0.87(0.75-1) | K42: 0.05281 | L42: 0.93(0.88-0.99) | M42: 2.74E-02 | N42: 0.3711 | O42: 0 | P42: 26445 | Q42: -2.876 | R42: 0.004024 | S42: --
A43: rs4657678 | B43: 1 | C43: 167561752 | D43: T | E43: C | F43: 0.3324 | G43: 0.3363 | H43: Imputed | I43: Imputed | J43: 0.88(0.76-1.01) | K43: 0.06903 | L43: 0.93(0.88-0.99) | M43: 2.31E-02 | N43: 0.4476 | O43: 0 | P43: 26445 | Q43: -2.875 | R43: 0.00404 | S43: --
A44: rs12404345 | B44: 1 | C44: 167559398 | D44: A | E44: G | F44: 0.4392 | G44: 0.4414 | H44: Imputed | I44: Imputed | J44: 0.9(0.78-1.03) | K44: 0.1303 | L44: 0.93(0.88-0.99) | M44: 1.45E-02 | N44: 0.6466 | O44: 0 | P44: 26445 | Q44: -2.874 | R44: 0.004049 | S44: --
A45: rs12075684 | B45: 1 | C45: 169620673 | D45: G | E45: A | F45: 0.2832 | G45: 0.2998 | H45: Imputed | I45: Imputed | J45: 0.84(0.72-0.97) | K45: 0.0208 | L45: 0.94(0.88-1) | M45: 4.75E-02 | N45: 0.1729 | O45: 46.17 | P45: 26445 | Q45: -2.869 | R45: 0.004119 | S45: --
A46: rs6677911 | B46: 1 | C46: 167557483 | D46: A | E46: G | F46: 0.4382 | G46: 0.4406 | H46: Imputed | I46: Imputed | J46: 0.9(0.78-1.03) | K46: 0.1303 | L46: 0.93(0.88-0.99) | M46: 1.48E-02 | N46: 0.6446 | O46: 0 | P46: 26445 | Q46: -2.868 | R46: 0.004132 | S46: --
A47: rs6683618 | B47: 1 | C47: 167547219 | D47: G | E47: A | F47: 0.441 | G47: 0.4437 | H47: Imputed | I47: Imputed | J47: 0.89(0.78-1.03) | K47: 0.1178 | L47: 0.93(0.88-0.99) | M47: 1.61E-02 | N47: 0.606 | O47: 0 | P47: 26445 | Q47: -2.865 | R47: 0.004168 | S47: --
A48: rs6427094 | B48: 1 | C48: 167557702 | D48: G | E48: A | F48: 0.4382 | G48: 0.4406 | H48: Imputed | I48: Imputed | J48: 0.9(0.78-1.03) | K48: 0.1303 | L48: 0.93(0.88-0.99) | M48: 1.51E-02 | N48: 0.6427 | O48: 0 | P48: 26445 | Q48: -2.86 | R48: 0.004235 | S48: --
A49: rs6427093 | B49: 1 | C49: 167556997 | D49: G | E49: A | F49: 0.4382 | G49: 0.4407 | H49: Imputed | I49: Imputed | J49: 0.9(0.78-1.03) | K49: 0.1303 | L49: 0.93(0.88-0.99) | M49: 1.54E-02 | N49: 0.6407 | O49: 0 | P49: 26445 | Q49: -2.855 | R49: 0.004302 | S49: --
A50: rs4625254 | B50: 1 | C50: 167555584 | D50: T | E50: C | F50: 0.4385 | G50: 0.4408 | H50: Imputed | I50: Imputed | J50: 0.9(0.78-1.03) | K50: 0.1303 | L50: 0.93(0.88-0.99) | M50: 1.71E-02 | N50: 0.6298 | O50: 0 | P50: 26445 | Q50: -2.821 | R50: 0.004788 | S50: --
A51: rs7522503 | B51: 1 | C51: 167554559 | D51: A | E51: T | F51: 0.3332 | G51: 0.3373 | H51: Imputed | I51: Imputed | J51: 0.88(0.76-1.01) | K51: 0.06903 | L51: 0.93(0.88-0.99) | M51: 2.74E-02 | N51: 0.4314 | O51: 0 | P51: 26445 | Q51: -2.818 | R51: 0.004829 | S51: --
A52: rs7554445 | B52: 1 | C52: 167554337 | D52: T | E52: G | F52: 0.3332 | G52: 0.3373 | H52: Genotyped | I52: Imputed | J52: 0.88(0.76-1.01) | K52: 0.06903 | L52: 0.93(0.88-0.99) | M52: 2.80E-02 | N52: 0.4298 | O52: 0 | P52: 26445 | Q52: -2.811 | R52: 0.004941 | S52: --
A53: rs4657672 | B53: 1 | C53: 167552890 | D53: G | E53: A | F53: 0.439 | G53: 0.4414 | H53: Imputed | I53: Imputed | J53: 0.9(0.78-1.03) | K53: 0.1308 | L53: 0.93(0.88-0.99) | M53: 1.82E-02 | N53: 0.6259 | O53: 0 | P53: 26445 | Q53: -2.801 | R53: 0.005102 | S53: --
A54: rs4657680 | B54: 1 | C54: 167575104 | D54: C | E54: T | F54: 0.3299 | G54: 0.3317 | H54: Imputed | I54: Imputed | J54: 0.88(0.76-1.01) | K54: 0.07081 | L54: 0.93(0.88-0.99) | M54: 2.87E-02 | N54: 0.4353 | O54: 0 | P54: 26445 | Q54: -2.796 | R54: 0.005176 | S54: --
A55: rs10800319 | B55: 1 | C55: 167553649 | D55: G | E55: A | F55: 0.4393 | G55: 0.4416 | H55: Imputed | I55: Imputed | J55: 0.9(0.78-1.03) | K55: 0.1308 | L55: 0.93(0.88-0.99) | M55: 1.93E-02 | N55: 0.6191 | O55: 0 | P55: 26445 | Q55: -2.781 | R55: 0.005427 | S55: --
A56: rs72695367 | B56: 1 | C56: 167562164 | D56: G | E56: A | F56: 0.4428 | G56: 0.4441 | H56: Imputed | I56: Imputed | J56: 0.9(0.78-1.03) | K56: 0.1303 | L56: 0.93(0.88-0.99) | M56: 1.96E-02 | N56: 0.6151 | O56: 0 | P56: 26445 | Q56: -2.777 | R56: 0.00548 | S56: --
A57: rs7553753 | B57: 1 | C57: 167553590 | D57: T | E57: C | F57: 0.4393 | G57: 0.4416 | H57: Imputed | I57: Imputed | J57: 0.9(0.78-1.03) | K57: 0.1308 | L57: 0.93(0.88-0.99) | M57: 1.96E-02 | N57: 0.6181 | O57: 0 | P57: 26445 | Q57: -2.777 | R57: 0.005491 | S57: --
A58: rs1723015 | B58: 1 | C58: 167432894 | D58: T | E58: C | F58: 0.5235 | G58: 0.495 | H58: Imputed | I58: Imputed | J58: 0.86(0.75-0.98) | K58: 0.0243 | L58: 1.14(1.08-1.21) | M58: 7.16E-06 | N58: NA | O58: NA | P58: 26445 | Q58: 2.776 | R58: 0.005509 | S58: +-
A59: rs1984835 | B59: 1 | C59: 167548962 | D59: T | E59: C | F59: 0.3336 | G59: 0.3376 | H59: Imputed | I59: Imputed | J59: 0.88(0.76-1.01) | K59: 0.07201 | L59: 0.93(0.88-0.99) | M59: 3.02E-02 | N59: 0.4335 | O59: 0 | P59: 26445 | Q59: -2.776 | R59: 0.005511 | S59: --
A60: rs6702305 | B60: 1 | C60: 167548483 | D60: T | E60: C | F60: 0.334 | G60: 0.3379 | H60: Imputed | I60: Imputed | J60: 0.87(0.75-1) | K60: 0.05369 | L60: 0.94(0.88-1) | M60: 3.65E-02 | N60: 0.3494 | O60: 0 | P60: 26445 | Q60: -2.773 | R60: 0.005547 | S60: --
A61: rs4657679 | B61: 1 | C61: 167572558 | D61: C | E61: T | F61: 0.3317 | G61: 0.3332 | H61: Imputed | I61: Imputed | J61: 0.88(0.76-1.01) | K61: 0.07048 | L61: 0.94(0.88-0.99) | M61: 3.09E-02 | N61: 0.4271 | O61: 0 | P61: 26445 | Q61: -2.772 | R61: 0.005571 | S61: --
A62: rs2244529 | B62: 1 | C62: 169587032 | D62: G | E62: A | F62: 0.2848 | G62: 0.3015 | H62: Imputed | I62: Imputed | J62: 0.84(0.72-0.98) | K62: 0.02545 | L62: 0.94(0.88-1) | M62: 5.56E-02 | N62: 0.1862 | O62: 42.78 | P62: 26445 | Q62: -2.771 | R62: 0.005582 | S62: --
A63: rs7514302 | B63: 1 | C63: 167569730 | D63: G | E63: T | F63: 0.3326 | G63: 0.3338 | H63: Imputed | I63: Genotyped | J63: 0.88(0.76-1.01) | K63: 0.07048 | L63: 0.94(0.88-0.99) | M63: 3.16E-02 | N63: 0.4247 | O63: 0 | P63: 26445 | Q63: -2.765 | R63: 0.005697 | S63: --
A64: rs59164061 | B64: 1 | C64: 167165647 | D64: A | E64: G | F64: 0.09216 | G64: 0.08392 | H64: Imputed | I64: Imputed | J64: 1.29(1.04-1.6) | K64: 0.0221 | L64: 1.1(1-1.21) | M64: 6.18E-02 | N64: 0.1929 | O64: 41.01 | P64: 26445 | Q64: 2.758 | R64: 0.005811 | S64: ++
A65: rs72695368 | B65: 1 | C65: 167562170 | D65: G | E65: C | F65: 0.4429 | G65: 0.4441 | H65: Imputed | I65: Imputed | J65: 0.9(0.78-1.03) | K65: 0.1303 | L65: 0.93(0.88-0.99) | M65: 2.08E-02 | N65: 0.6092 | O65: 0 | P65: 26445 | Q65: -2.758 | R65: 0.005816 | S65: --
A66: rs72695366 | B66: 1 | C66: 167562046 | D66: C | E66: T | F66: 0.4429 | G66: 0.4441 | H66: Imputed | I66: Imputed | J66: 0.9(0.78-1.03) | K66: 0.1303 | L66: 0.93(0.88-0.99) | M66: 2.10E-02 | N66: 0.6083 | O66: 0 | P66: 26445 | Q66: -2.755 | R66: 0.005867 | S66: --
A67: rs4657673 | B67: 1 | C67: 167561136 | D67: A | E67: G | F67: 0.4426 | G67: 0.4437 | H67: Imputed | I67: Imputed | J67: 0.9(0.78-1.03) | K67: 0.1303 | L67: 0.93(0.88-0.99) | M67: 2.15E-02 | N67: 0.6064 | O67: 0 | P67: 26445 | Q67: -2.748 | R67: 0.006001 | S67: --
A68: rs7545037 | B68: 1 | C68: 167560390 | D68: G | E68: A | F68: 0.4426 | G68: 0.4436 | H68: Imputed | I68: Imputed | J68: 0.9(0.78-1.03) | K68: 0.1303 | L68: 0.93(0.88-0.99) | M68: 2.17E-02 | N68: 0.6054 | O68: 0 | P68: 26445 | Q68: -2.744 | R68: 0.006071 | S68: --
A69: rs767707 | B69: 1 | C69: 167560542 | D69: G | E69: A | F69: 0.4426 | G69: 0.4436 | H69: Imputed | I69: Genotyped | J69: 0.9(0.78-1.03) | K69: 0.1303 | L69: 0.93(0.88-0.99) | M69: 2.17E-02 | N69: 0.6054 | O69: 0 | P69: 26445 | Q69: -2.744 | R69: 0.006071 | S69: --
A70: rs4657677 | B70: 1 | C70: 167561590 | D70: T | E70: C | F70: 0.4426 | G70: 0.4438 | H70: Imputed | I70: Imputed | J70: 0.9(0.78-1.03) | K70: 0.1303 | L70: 0.93(0.88-0.99) | M70: 2.17E-02 | N70: 0.6054 | O70: 0 | P70: 26445 | Q70: -2.743 | R70: 0.006082 | S70: --
A71: rs7544667 | B71: 1 | C71: 167560023 | D71: G | E71: T | F71: 0.4426 | G71: 0.4436 | H71: Imputed | I71: Imputed | J71: 0.9(0.78-1.03) | K71: 0.1303 | L71: 0.93(0.88-0.99) | M71: 2.20E-02 | N71: 0.6045 | O71: 0 | P71: 26445 | Q71: -2.74 | R71: 0.006147 | S71: --
A72: rs4656544 | B72: 1 | C72: 167561496 | D72: C | E72: T | F72: 0.4426 | G72: 0.4438 | H72: Imputed | I72: Imputed | J72: 0.9(0.78-1.03) | K72: 0.1303 | L72: 0.93(0.88-0.99) | M72: 2.20E-02 | N72: 0.6035 | O72: 0 | P72: 26445 | Q72: -2.739 | R72: 0.006158 | S72: --
A73: rs17536605 | B73: 1 | C73: 167559890 | D73: T | E73: C | F73: 0.4426 | G73: 0.4436 | H73: Imputed | I73: Imputed | J73: 0.9(0.78-1.03) | K73: 0.1303 | L73: 0.93(0.88-0.99) | M73: 2.22E-02 | N73: 0.6035 | O73: 0 | P73: 26445 | Q73: -2.736 | R73: 0.006217 | S73: --
A74: rs4657675 | B74: 1 | C74: 167561342 | D74: C | E74: T | F74: 0.4428 | G74: 0.4437 | H74: Imputed | I74: Imputed | J74: 0.9(0.78-1.03) | K74: 0.1303 | L74: 0.94(0.88-0.99) | M74: 2.24E-02 | N74: 0.6025 | O74: 0 | P74: 26445 | Q74: -2.734 | R74: 0.006256 | S74: --
A75: rs4657676 | B75: 1 | C75: 167561482 | D75: T | E75: C | F75: 0.4428 | G75: 0.4438 | H75: Imputed | I75: Imputed | J75: 0.9(0.78-1.03) | K75: 0.1303 | L75: 0.94(0.88-0.99) | M75: 2.35E-02 | N75: 0.5968 | O75: 0 | P75: 26445 | Q75: -2.717 | R75: 0.006582 | S75: --
A76: rs1311453 | B76: 1 | C76: 167596470 | D76: A | E76: G | F76: 0.338 | G76: 0.3393 | H76: Imputed | I76: Imputed | J76: 0.88(0.76-1.01) | K76: 0.0734 | L76: 0.94(0.88-1) | M76: 4.02E-02 | N76: 0.4077 | O76: 0 | P76: 26445 | Q76: -2.67 | R76: 0.007583 | S76: --
A77: rs1194104814 | B77: 1 | C77: 167594308 | D77: C | E77: T | F77: 0.3434 | G77: 0.3441 | H77: Imputed | I77: Imputed | J77: 0.88(0.76-1.01) | K77: 0.07277 | L77: 0.94(0.88-1) | M77: 4.08E-02 | N77: 0.4036 | O77: 0 | P77: 26445 | Q77: -2.667 | R77: 0.007656 | S77: --
A78: rs1229403 | B78: 1 | C78: 167589943 | D78: T | E78: C | F78: 0.3378 | G78: 0.3388 | H78: Imputed | I78: Genotyped | J78: 0.88(0.76-1.01) | K78: 0.06569 | L78: 0.94(0.89-1) | M78: 4.85E-02 | N78: 0.3661 | O78: 0 | P78: 26445 | Q78: -2.627 | R78: 0.008619 | S78: --
A79: rs6698444 | B79: 1 | C79: 167583141 | D79: T | E79: G | F79: 0.345 | G79: 0.3455 | H79: Imputed | I79: Imputed | J79: 0.88(0.76-1.01) | K79: 0.07021 | L79: 0.94(0.89-1) | M79: 4.77E-02 | N79: 0.3812 | O79: 0 | P79: 26445 | Q79: -2.618 | R79: 0.008842 | S79: --
A80: rs4657671 | B80: 1 | C80: 167552665 | D80: G | E80: A | F80: 0.3514 | G80: 0.3534 | H80: Imputed | I80: Imputed | J80: 0.88(0.76-1.01) | K80: 0.06846 | L80: 0.94(0.89-1) | M80: 4.86E-02 | N80: 0.3724 | O80: 0 | P80: 26445 | Q80: -2.617 | R80: 0.008867 | S80: --
A81: rs6698572 | B81: 1 | C81: 167583263 | D81: T | E81: C | F81: 0.345 | G81: 0.3454 | H81: Imputed | I81: Imputed | J81: 0.88(0.76-1.01) | K81: 0.07021 | L81: 0.94(0.89-1) | M81: 4.81E-02 | N81: 0.3804 | O81: 0 | P81: 26445 | Q81: -2.615 | R81: 0.008922 | S81: --
A82: rs1311454 | B82: 1 | C82: 167590001 | D82: G | E82: T | F82: 0.338 | G82: 0.3389 | H82: Imputed | I82: Imputed | J82: 0.88(0.76-1.01) | K82: 0.06569 | L82: 0.94(0.89-1) | M82: 5.04E-02 | N82: 0.3625 | O82: 0 | P82: 26445 | Q82: -2.612 | R82: 0.00899 | S82: --
A83: rs57928671 | B83: 1 | C83: 167552410 | D83: C | E83: T | F83: 0.3514 | G83: 0.3533 | H83: Imputed | I83: Imputed | J83: 0.88(0.76-1.01) | K83: 0.06846 | L83: 0.94(0.89-1) | M83: 4.96E-02 | N83: 0.3702 | O83: 0 | P83: 26445 | Q83: -2.609 | R83: 0.009071 | S83: --
A84: rs10918719 | B84: 1 | C84: 167559001 | D84: G | E84: A | F84: 0.3222 | G84: 0.3256 | H84: Imputed | I84: Imputed | J84: 0.88(0.76-1.01) | K84: 0.06903 | L84: 0.94(0.88-1) | M84: 5.01E-02 | N84: 0.3816 | O84: 0 | P84: 26445 | Q84: -2.604 | R84: 0.009212 | S84: --
A85: rs1229398 | B85: 1 | C85: 167594790 | D85: T | E85: C | F85: 0.3385 | G85: 0.3394 | H85: Imputed | I85: Imputed | J85: 0.88(0.76-1.01) | K85: 0.0734 | L85: 0.94(0.89-1) | M85: 4.97E-02 | N85: 0.388 | O85: 0 | P85: 26445 | Q85: -2.593 | R85: 0.009513 | S85: --
A86: rs6685643 | B86: 1 | C86: 167583062 | D86: C | E86: T | F86: 0.3449 | G86: 0.3451 | H86: Imputed | I86: Imputed | J86: 0.88(0.76-1.01) | K86: 0.06993 | L86: 0.94(0.89-1) | M86: 5.27E-02 | N86: 0.3709 | O86: 0 | P86: 26445 | Q86: -2.582 | R86: 0.009815 | S86: --
A87: rs12041616 | B87: 1 | C87: 167585636 | D87: T | E87: C | F87: 0.3454 | G87: 0.3453 | H87: Imputed | I87: Imputed | J87: 0.88(0.76-1.01) | K87: 0.07021 | L87: 0.94(0.89-1) | M87: 5.28E-02 | N87: 0.3717 | O87: 0 | P87: 26445 | Q87: -2.581 | R87: 0.009863 | S87: --
A88: rs4507984 | B88: 1 | C88: 167582663 | D88: T | E88: C | F88: 0.3449 | G88: 0.3449 | H88: Imputed | I88: Imputed | J88: 0.88(0.76-1.01) | K88: 0.07021 | L88: 0.94(0.89-1) | M88: 5.62E-02 | N88: 0.3659 | O88: 0 | P88: 26445 | Q88: -2.557 | R88: 0.01057 | S88: --
A89: rs28641593 | B89: 1 | C89: 167586861 | D89: C | E89: T | F89: 0.3449 | G89: 0.345 | H89: Imputed | I89: Imputed | J89: 0.88(0.76-1.01) | K89: 0.07021 | L89: 0.94(0.89-1) | M89: 5.63E-02 | N89: 0.3659 | O89: 0 | P89: 26445 | Q89: -2.556 | R89: 0.01059 | S89: --
A90: rs9287085 | B90: 1 | C90: 167581711 | D90: A | E90: T | F90: 0.3449 | G90: 0.3448 | H90: Imputed | I90: Imputed | J90: 0.88(0.76-1.01) | K90: 0.06993 | L90: 0.94(0.89-1) | M90: 5.84E-02 | N90: 0.3616 | O90: 0 | P90: 26445 | Q90: -2.543 | R90: 0.01098 | S90: --
A91: rs1013057 | B91: 1 | C91: 167580349 | D91: T | E91: C | F91: 0.345 | G91: 0.3447 | H91: Imputed | I91: Imputed | J91: 0.88(0.76-1.01) | K91: 0.06993 | L91: 0.94(0.89-1) | M91: 6.10E-02 | N91: 0.358 | O91: 0 | P91: 26445 | Q91: -2.526 | R91: 0.01152 | S91: --
A92: rs1072325 | B92: 1 | C92: 167582272 | D92: T | E92: C | F92: 0.3452 | G92: 0.3448 | H92: Imputed | I92: Imputed | J92: 0.88(0.76-1.01) | K92: 0.07021 | L92: 0.95(0.89-1) | M92: 6.63E-02 | N92: 0.351 | O92: 0 | P92: 26445 | Q92: -2.493 | R92: 0.01265 | S92: --
A93: rs1072327 | B93: 1 | C93: 167582285 | D93: T | E93: C | F93: 0.3452 | G93: 0.3448 | H93: Imputed | I93: Imputed | J93: 0.88(0.76-1.01) | K93: 0.07021 | L93: 0.95(0.89-1) | M93: 6.63E-02 | N93: 0.351 | O93: 0 | P93: 26445 | Q93: -2.493 | R93: 0.01265 | S93: --
A94: rs10800313 | B94: 1 | C94: 167429985 | D94: T | E94: C | F94: 0.5154 | G94: 0.4861 | H94: Imputed | I94: Imputed | J94: 0.83(0.73-0.95) | K94: 0.00747 | L94: 1.14(1.07-1.2) | M94: 1.06E-05 | N94: NA | O94: NA | P94: 26445 | Q94: 2.493 | R94: 0.01267 | S94: +-
A95: rs7513428 | B95: 1 | C95: 167515272 | D95: T | E95: C | F95: 0.1558 | G95: 0.1651 | H95: Imputed | I95: Imputed | J95: 0.94(0.75-1.17) | K95: 0.5634 | L95: 0.9(0.83-0.98) | M95: 1.12E-02 | N95: 0.755 | O95: 0 | P95: 26445 | Q95: -2.489 | R95: 0.0128 | S95: --
A96: rs16858712 | B96: 1 | C96: 167170270 | D96: G | E96: A | F96: 0.09282 | G96: 0.0879 | H96: Genotyped | I96: Imputed | J96: 1.31(1.06-1.63) | K96: 0.01378 | L96: 1.07(0.97-1.18) | M96: 1.68E-01 | N96: 0.0957 | O96: 63.98 | P96: 26445 | Q96: 2.42 | R96: 0.01554 | S96: ++
A97: rs4633268 | B97: 1 | C97: 167174515 | D97: T | E97: C | F97: 0.1063 | G97: 0.1001 | H97: Imputed | I97: Imputed | J97: 1.25(1.02-1.54) | K97: 0.03108 | L97: 1.08(0.98-1.18) | M97: 1.21E-01 | N97: 0.1886 | O97: 42.16 | P97: 26445 | Q97: 2.417 | R97: 0.01563 | S97: ++
A98: rs2995081 | B98: 1 | C98: 167568441 | D98: C | E98: T | F98: 0.3457 | G98: 0.3452 | H98: Imputed | I98: Imputed | J98: 0.88(0.76-1.01) | K98: 0.06682 | L98: 0.95(0.89-1.01) | M98: 8.28E-02 | N98: 0.3214 | O98: 0 | P98: 26445 | Q98: -2.416 | R98: 0.01568 | S98: --
A99: rs9287084 | B99: 1 | C99: 167581544 | D99: C | E99: T | F99: 0.3457 | G99: 0.3445 | H99: Imputed | I99: Imputed | J99: 0.88(0.76-1.01) | K99: 0.06993 | L99: 0.95(0.89-1.01) | M99: 8.10E-02 | N99: 0.3318 | O99: 0 | P99: 26445 | Q99: -2.415 | R99: 0.01574 | S99: --
A100: rs12127503 | B100: 1 | C100: 167171571 | D100: G | E100: A | F100: 0.1064 | G100: 0.1003 | H100: Genotyped | I100: Imputed | J100: 1.25(1.02-1.54) | K100: 0.03108 | L100: 1.08(0.98-1.18) | M100: 1.23E-01 | N100: 0.1858 | O100: 42.87 | P100: 26445 | Q100: 2.412 | R100: 0.01588 | S100: ++
A101: rs12127632 | B101: 1 | C101: 167171982 | D101: G | E101: A | F101: 0.09806 | G101: 0.0925 | H101: Imputed | I101: Imputed | J101: 1.34(1.08-1.65) | K101: 0.007305 | L101: 1.06(0.97-1.17) | M101: 2.17E-01 | N101: 0.0542 | O101: 73.02 | P101: 26445 | Q101: 2.406 | R101: 0.01614 | S101: ++
A102: rs12128577 | B102: 1 | C102: 167172758 | D102: C | E102: A | F102: 0.1063 | G102: 0.1003 | H102: Imputed | I102: Imputed | J102: 1.25(1.02-1.54) | K102: 0.03108 | L102: 1.07(0.98-1.18) | M102: 1.30E-01 | N102: 0.1832 | O102: 43.56 | P102: 26445 | Q102: 2.384 | R102: 0.01712 | S102: ++
A103: rs10919202 | B103: 1 | C103: 169613794 | D103: G | E103: A | F103: 0.1543 | G103: 0.1659 | H103: Imputed | I103: Imputed | J103: 0.82(0.68-0.99) | K103: 0.03466 | L103: 0.95(0.88-1.03) | M103: 1.83E-01 | N103: 0.1567 | O103: 50.14 | P103: 26445 | Q103: -2.205 | R103: 0.02745 | S103: --
A104: rs12042693 | B104: 1 | C104: 167513723 | D104: A | E104: G | F104: 0.09118 | G104: 0.09935 | H104: Genotyped | I104: Imputed | J104: 0.94(0.76-1.18) | K104: 0.6168 | L104: 0.89(0.81-0.99) | M104: 2.62E-02 | N104: 0.65 | O104: 0 | P104: 26445 | Q104: -2.177 | R104: 0.02945 | S104: --
A105: rs12035288 | B105: 1 | C105: 167514575 | D105: T | E105: A | F105: 0.09118 | G105: 0.09929 | H105: Imputed | I105: Imputed | J105: 0.94(0.76-1.18) | K105: 0.6168 | L105: 0.89(0.81-0.99) | M105: 2.72E-02 | N105: 0.6546 | O105: 0 | P105: 26445 | Q105: -2.165 | R105: 0.0304 | S105: --
A106: rs12022039 | B106: 1 | C106: 167514197 | D106: G | E106: C | F106: 0.09118 | G106: 0.09926 | H106: Imputed | I106: Imputed | J106: 0.94(0.76-1.18) | K106: 0.6168 | L106: 0.89(0.81-0.99) | M106: 2.76E-02 | N106: 0.6559 | O106: 0 | P106: 26445 | Q106: -2.16 | R106: 0.03078 | S106: --
A107: rs12041165 | B107: 1 | C107: 167505038 | D107: G | E107: C | F107: 0.09134 | G107: 0.09923 | H107: Imputed | I107: Imputed | J107: 0.94(0.76-1.18) | K107: 0.6168 | L107: 0.89(0.81-0.99) | M107: 2.78E-02 | N107: 0.6565 | O107: 0 | P107: 26445 | Q107: -2.158 | R107: 0.03091 | S107: --
A108: rs1473690 | B108: 1 | C108: 167513011 | D108: G | E108: T | F108: 0.092 | G108: 0.09972 | H108: Imputed | I108: Imputed | J108: 0.94(0.76-1.18) | K108: 0.6168 | L108: 0.9(0.81-0.99) | M108: 2.88E-02 | N108: 0.6622 | O108: 0 | P108: 26445 | Q108: -2.146 | R108: 0.03188 | S108: --
A109: rs10489191 | B109: 1 | C109: 167505895 | D109: C | E109: T | F109: 0.09151 | G109: 0.09943 | H109: Imputed | I109: Imputed | J109: 0.94(0.76-1.18) | K109: 0.6168 | L109: 0.9(0.81-0.99) | M109: 3.05E-02 | N109: 0.6682 | O109: 0 | P109: 26445 | Q109: -2.126 | R109: 0.03347 | S109: --
A110: rs6691334 | B110: 1 | C110: 169602383 | D110: A | E110: G | F110: 0.1545 | G110: 0.1658 | H110: Genotyped | I110: Genotyped | J110: 0.83(0.69-1) | K110: 0.0497 | L110: 0.95(0.88-1.03) | M110: 1.97E-01 | N110: 0.1964 | O110: 40.07 | P110: 26445 | Q110: -2.096 | R110: 0.03606 | S110: --
A111: rs10919270 | B111: 1 | C111: 169903460 | D111: C | E111: T | F111: 0.1478 | G111: 0.1556 | H111: Imputed | I111: Imputed | J111: 0.89(0.74-1.06) | K111: 0.1756 | L111: 0.94(0.87-1.02) | M111: 1.21E-01 | N111: 0.5671 | O111: 0 | P111: 26445 | Q111: -2.021 | R111: 0.04333 | S111: --
A112: rs1773541 | B112: 1 | C112: 167389821 | D112: G | E112: A | F112: 0.2717 | G112: 0.2734 | H112: Imputed | I112: Imputed | J112: 0.91(0.79-1.04) | K112: 0.1687 | L112: 0.95(0.89-1.01) | M112: 1.24E-01 | N112: 0.5551 | O112: 0 | P112: 26445 | Q112: -2.018 | R112: 0.04358 | S112: --
A113: rs10919271 | B113: 1 | C113: 169905053 | D113: A | E113: G | F113: 0.1479 | G113: 0.1556 | H113: Imputed | I113: Imputed | J113: 0.89(0.74-1.06) | K113: 0.1749 | L113: 0.94(0.87-1.02) | M113: 1.22E-01 | N113: 0.5656 | O113: 0 | P113: 26445 | Q113: -2.018 | R113: 0.04359 | S113: --
A114: rs10489183 | B114: 1 | C114: 169649531 | D114: A | E114: G | F114: 0.1186 | G114: 0.1248 | H114: Imputed | I114: Imputed | J114: 0.9(0.72-1.14) | K114: 0.3857 | L114: 0.92(0.84-1.01) | M114: 6.77E-02 | N114: 0.8872 | O114: 0 | P114: 26445 | Q114: -2.016 | R114: 0.04375 | S114: --
A115: rs76004681 | B115: 1 | C115: 169913861 | D115: C | E115: T | F115: 0.1482 | G115: 0.1557 | H115: Imputed | I115: Imputed | J115: 0.89(0.75-1.06) | K115: 0.1951 | L115: 0.94(0.87-1.02) | M115: 1.32E-01 | N115: 0.5915 | O115: 0 | P115: 26445 | Q115: -1.951 | R115: 0.05102 | S115: --
A116: rs10919272 | B116: 1 | C116: 169918865 | D116: A | E116: G | F116: 0.1482 | G116: 0.1559 | H116: Imputed | I116: Imputed | J116: 0.9(0.75-1.07) | K116: 0.2179 | L116: 0.94(0.87-1.02) | M116: 1.24E-01 | N116: 0.6412 | O116: 0 | P116: 26445 | Q116: -1.946 | R116: 0.0516 | S116: --
A117: rs6427160 | B117: 1 | C117: 168892181 | D117: C | E117: T | F117: 0.4183 | G117: 0.4079 | H117: Genotyped | I117: Genotyped | J117: 1.05(0.92-1.2) | K117: 0.4702 | L117: 1.05(0.99-1.11) | M117: 9.41E-02 | N117: 1 | O117: 0 | P117: 26445 | Q117: 1.812 | R117: 0.07003 | S117: ++
A118: rs12096067 | B118: 1 | C118: 168894359 | D118: A | E118: C | F118: 0.4177 | G118: 0.4073 | H118: Imputed | I118: Imputed | J118: 1.05(0.92-1.2) | K118: 0.4702 | L118: 1.05(0.99-1.11) | M118: 9.67E-02 | N118: 1 | O118: 0 | P118: 26445 | Q118: 1.8 | R118: 0.07179 | S118: ++
A119: rs59728189 | B119: 1 | C119: 168979921 | D119: T | E119: G | F119: 0.06264 | G119: 0.06413 | H119: Imputed | I119: Imputed | J119: 0.72(0.53-0.98) | K119: 0.03451 | L119: 0.95(0.84-1.07) | M119: 3.95E-01 | N119: 0.0969 | O119: 63.72 | P119: 26445 | Q119: -1.789 | R119: 0.07354 | S119: --
A120: rs4656170 | B120: 1 | C120: 168896778 | D120: A | E120: G | F120: 0.416 | G120: 0.4059 | H120: Imputed | I120: Imputed | J120: 1.05(0.92-1.2) | K120: 0.4702 | L120: 1.05(0.99-1.11) | M120: 1.04E-01 | N120: 0.9898 | O120: 0 | P120: 26445 | Q120: 1.77 | R120: 0.07678 | S120: ++
A121: rs1737487 | B121: 1 | C121: 167523387 | D121: C | E121: T | F121: 0.0997 | G121: 0.1067 | H121: Imputed | I121: Genotyped | J121: 0.95(0.76-1.19) | K121: 0.6513 | L121: 0.92(0.83-1.01) | M121: 7.60E-02 | N121: 0.7743 | O121: 0 | P121: 26445 | Q121: -1.764 | R121: 0.07766 | S121: --
A122: rs1407476 | B122: 1 | C122: 168987087 | D122: C | E122: T | F122: 0.06117 | G122: 0.06293 | H122: Imputed | I122: Imputed | J122: 0.72(0.53-0.98) | K122: 0.03471 | L122: 0.95(0.84-1.07) | M122: 4.15E-01 | N122: 0.0956 | O122: 64.01 | P122: 26445 | Q122: -1.758 | R122: 0.0788 | S122: --
A123: rs10919219 | B123: 1 | C123: 169642676 | D123: T | E123: C | F123: 0.1268 | G123: 0.1331 | H123: Imputed | I123: Imputed | J123: 0.9(0.72-1.13) | K123: 0.3633 | L123: 0.94(0.86-1.02) | M123: 1.44E-01 | N123: 0.741 | O123: 0 | P123: 26445 | Q123: -1.721 | R123: 0.08521 | S123: --
A124: rs139866820 | B124: 1 | C124: 168967735 | D124: A | E124: G | F124: 0.06117 | G124: 0.06259 | H124: Imputed | I124: Imputed | J124: 0.72(0.53-0.98) | K124: 0.03451 | L124: 0.95(0.85-1.08) | M124: 4.45E-01 | N124: 0.0916 | O124: 64.85 | P124: 26445 | Q124: -1.714 | R124: 0.08657 | S124: --
A125: rs2093486 | B125: 1 | C125: 168897164 | D125: C | E125: A | F125: 0.429 | G125: 0.42 | H125: Imputed | I125: Imputed | J125: 1.05(0.92-1.2) | K125: 0.4723 | L125: 1.05(0.99-1.11) | M125: 1.21E-01 | N125: 0.9693 | O125: 0 | P125: 26445 | Q125: 1.702 | R125: 0.08875 | S125: ++
A126: rs57748075 | B126: 1 | C126: 168973222 | D126: C | E126: T | F126: 0.06182 | G126: 0.06302 | H126: Imputed | I126: Imputed | J126: 0.72(0.53-0.98) | K126: 0.03451 | L126: 0.96(0.85-1.08) | M126: 4.58E-01 | N126: 0.0897 | O126: 65.27 | P126: 26445 | Q126: -1.695 | R126: 0.09012 | S126: --
A127: rs60220949 | B127: 1 | C127: 168973195 | D127: T | E127: C | F127: 0.06182 | G127: 0.06296 | H127: Imputed | I127: Imputed | J127: 0.72(0.53-0.98) | K127: 0.03451 | L127: 0.96(0.85-1.08) | M127: 4.69E-01 | N127: 0.0886 | O127: 65.52 | P127: 26445 | Q127: -1.68 | R127: 0.093 | S127: --
A128: rs12569208 | B128: 1 | C128: 168770313 | D128: A | E128: C | F128: 0.1551 | G128: 0.1483 | H128: Imputed | I128: Imputed | J128: 1.02(0.86-1.2) | K128: 0.8536 | L128: 1.08(0.99-1.16) | M128: 6.82E-02 | N128: 0.5542 | O128: 0 | P128: 26445 | Q128: 1.674 | R128: 0.09408 | S128: ++
A129: rs141964466 | B129: 1 | C129: 169635884 | D129: A | E129: G | F129: 0.1269 | G129: 0.1329 | H129: Imputed | I129: Imputed | J129: 0.9(0.72-1.13) | K129: 0.3745 | L129: 0.94(0.86-1.02) | M129: 1.56E-01 | N129: 0.7449 | O129: 0 | P129: 26445 | Q129: -1.673 | R129: 0.09433 | S129: --
A130: rs1011266 | B130: 1 | C130: 169647046 | D130: A | E130: G | F130: 0.1269 | G130: 0.1333 | H130: Imputed | I130: Imputed | J130: 0.91(0.73-1.14) | K130: 0.4072 | L130: 0.94(0.86-1.02) | M130: 1.48E-01 | N130: 0.7968 | O130: 0 | P130: 26445 | Q130: -1.669 | R130: 0.09516 | S130: --
A131: rs16862199 | B131: 1 | C131: 169434120 | D131: C | E131: T | F131: 0.1663 | G131: 0.1801 | H131: Imputed | I131: Imputed | J131: 1.08(0.89-1.31) | K131: 0.422 | L131: 0.91(0.84-0.98) | M131: 1.73E-02 | N131: 0.1053 | O131: 61.87 | P131: 26445 | Q131: -1.666 | R131: 0.09565 | S131: -+
A132: rs12025624 | B132: 1 | C132: 167523029 | D132: T | E132: C | F132: 0.09872 | G132: 0.1056 | H132: Imputed | I132: Imputed | J132: 0.95(0.76-1.19) | K132: 0.6513 | L132: 0.92(0.84-1.02) | M132: 9.88E-02 | N132: 0.8103 | O132: 0 | P132: 26445 | Q132: -1.657 | R132: 0.09755 | S132: --
A133: rs9662048 | B133: 1 | C133: 167412947 | D133: T | E133: A | F133: 0.4908 | G133: 0.4666 | H133: Imputed | I133: Imputed | J133: 0.83(0.73-0.95) | K133: 0.007647 | L133: 1.1(1.04-1.17) | M133: 6.22E-04 | N133: NA | O133: NA | P133: 26445 | Q133: 1.644 | R133: 0.1002 | S133: +-
A134: rs1773548 | B134: 1 | C134: 167529639 | D134: A | E134: G | F134: 0.1 | G134: 0.1063 | H134: Imputed | I134: Imputed | J134: 0.95(0.76-1.19) | K134: 0.6513 | L134: 0.92(0.84-1.02) | M134: 1.02E-01 | N134: 0.817 | O134: 0 | P134: 26445 | Q134: -1.642 | R134: 0.1006 | S134: --
A135: rs112746264 | B135: 1 | C135: 168967281 | D135: C | E135: T | F135: 0.06182 | G135: 0.06281 | H135: Imputed | I135: Imputed | J135: 0.72(0.53-0.98) | K135: 0.03451 | L135: 0.96(0.85-1.08) | M135: 4.98E-01 | N135: 0.0855 | O135: 66.18 | P135: 26445 | Q135: -1.639 | R135: 0.1013 | S135: --
A136: rs11583391 | B136: 1 | C136: 168966484 | D136: G | E136: T | F136: 0.06182 | G136: 0.06281 | H136: Imputed | I136: Imputed | J136: 0.72(0.53-0.98) | K136: 0.03451 | L136: 0.96(0.85-1.08) | M136: 4.98E-01 | N136: 0.0855 | O136: 66.18 | P136: 26445 | Q136: -1.639 | R136: 0.1013 | S136: --
A137: rs11584025 | B137: 1 | C137: 168961910 | D137: C | E137: T | F137: 0.06182 | G137: 0.06281 | H137: Imputed | I137: Imputed | J137: 0.72(0.53-0.98) | K137: 0.03451 | L137: 0.96(0.85-1.08) | M137: 4.98E-01 | N137: 0.0855 | O137: 66.18 | P137: 26445 | Q137: -1.639 | R137: 0.1013 | S137: --
A138: rs139692038 | B138: 1 | C138: 168962915 | D138: C | E138: T | F138: 0.06182 | G138: 0.06281 | H138: Imputed | I138: Imputed | J138: 0.72(0.53-0.98) | K138: 0.03451 | L138: 0.96(0.85-1.08) | M138: 4.98E-01 | N138: 0.0855 | O138: 66.18 | P138: 26445 | Q138: -1.639 | R138: 0.1013 | S138: --
A139: rs145324617 | B139: 1 | C139: 168967736 | D139: A | E139: C | F139: 0.06182 | G139: 0.06281 | H139: Imputed | I139: Imputed | J139: 0.72(0.53-0.98) | K139: 0.03451 | L139: 0.96(0.85-1.08) | M139: 4.98E-01 | N139: 0.0855 | O139: 66.18 | P139: 26445 | Q139: -1.639 | R139: 0.1013 | S139: --
A140: rs3950026 | B140: 1 | C140: 168968170 | D140: A | E140: G | F140: 0.06182 | G140: 0.06281 | H140: Imputed | I140: Imputed | J140: 0.72(0.53-0.98) | K140: 0.03451 | L140: 0.96(0.85-1.08) | M140: 4.98E-01 | N140: 0.0855 | O140: 66.18 | P140: 26445 | Q140: -1.639 | R140: 0.1013 | S140: --
A141: rs74390282 | B141: 1 | C141: 168969800 | D141: G | E141: A | F141: 0.06182 | G141: 0.06281 | H141: Imputed | I141: Imputed | J141: 0.72(0.53-0.98) | K141: 0.03451 | L141: 0.96(0.85-1.08) | M141: 4.98E-01 | N141: 0.0855 | O141: 66.18 | P141: 26445 | Q141: -1.639 | R141: 0.1013 | S141: --
A142: rs12742061 | B142: 1 | C142: 167527741 | D142: A | E142: G | F142: 0.09921 | G142: 0.1056 | H142: Imputed | I142: Imputed | J142: 0.95(0.76-1.19) | K142: 0.6513 | L142: 0.92(0.84-1.02) | M142: 1.05E-01 | N142: 0.8198 | O142: 0 | P142: 26445 | Q142: -1.632 | R142: 0.1027 | S142: --
A143: rs12025160 | B143: 1 | C143: 167527534 | D143: A | E143: C | F143: 0.09921 | G143: 0.1056 | H143: Imputed | I143: Imputed | J143: 0.95(0.76-1.19) | K143: 0.6513 | L143: 0.92(0.84-1.02) | M143: 1.07E-01 | N143: 0.8232 | O143: 0 | P143: 26445 | Q143: -1.622 | R143: 0.1049 | S143: --
A144: rs77490705 | B144: 1 | C144: 168805586 | D144: A | E144: G | F144: 0.1615 | G144: 0.1563 | H144: Imputed | I144: Imputed | J144: 1.05(0.88-1.24) | K144: 0.6024 | L144: 1.06(0.98-1.15) | M144: 1.17E-01 | N144: 0.8504 | O144: 0 | P144: 26445 | Q144: 1.618 | R144: 0.1057 | S144: ++
A145: rs11585117 | B145: 1 | C145: 168966663 | D145: A | E145: G | F145: 0.06182 | G145: 0.0627 | H145: Imputed | I145: Imputed | J145: 0.72(0.53-0.98) | K145: 0.03451 | L145: 0.96(0.85-1.08) | M145: 5.14E-01 | N145: 0.0839 | O145: 66.52 | P145: 26445 | Q145: -1.617 | R145: 0.1058 | S145: --
A146: rs1407480 | B146: 1 | C146: 168901339 | D146: G | E146: C | F146: 0.4416 | G146: 0.4342 | H146: Imputed | I146: Imputed | J146: 1.05(0.92-1.2) | K146: 0.4974 | L146: 1.04(0.99-1.11) | M146: 1.41E-01 | N146: 0.9589 | O146: 0 | P146: 26445 | Q146: 1.615 | R146: 0.1063 | S146: ++
A147: rs10918996 | B147: 1 | C147: 168795713 | D147: C | E147: T | F147: 0.416 | G147: 0.4048 | H147: Imputed | I147: Imputed | J147: 1.02(0.89-1.17) | K147: 0.807 | L147: 1.05(0.99-1.12) | M147: 8.55E-02 | N147: 0.6573 | O147: 0 | P147: 26445 | Q147: 1.614 | R147: 0.1066 | S147: ++
A148: rs7513850 | B148: 1 | C148: 168798608 | D148: A | E148: C | F148: 0.416 | G148: 0.4047 | H148: Imputed | I148: Imputed | J148: 1.02(0.89-1.17) | K148: 0.8154 | L148: 1.05(0.99-1.12) | M148: 8.69E-02 | N148: 0.6573 | O148: 0 | P148: 26445 | Q148: 1.602 | R148: 0.1093 | S148: ++
A149: rs12564363 | B149: 1 | C149: 168757442 | D149: C | E149: A | F149: 0.1515 | G149: 0.145 | H149: Imputed | I149: Imputed | J149: 1.02(0.86-1.21) | K149: 0.8367 | L149: 1.07(0.99-1.16) | M149: 8.55E-02 | N149: 0.589 | O149: 0 | P149: 26445 | Q149: 1.594 | R149: 0.1108 | S149: ++
A150: rs6674527 | B150: 1 | C150: 168745308 | D150: C | E150: T | F150: 0.2045 | G150: 0.1983 | H150: Imputed | I150: Imputed | J150: 1.01(0.85-1.19) | K150: 0.9459 | L150: 1.07(0.99-1.15) | M150: 7.23E-02 | N150: 0.535 | O150: 0 | P150: 26445 | Q150: 1.593 | R150: 0.1111 | S150: ++
A151: rs2206300 | B151: 1 | C151: 168745136 | D151: C | E151: T | F151: 0.2043 | G151: 0.1982 | H151: Imputed | I151: Imputed | J151: 1.01(0.85-1.19) | K151: 0.9459 | L151: 1.07(0.99-1.14) | M151: 7.51E-02 | N151: 0.5417 | O151: 0 | P151: 26445 | Q151: 1.578 | R151: 0.1145 | S151: ++
A152: rs6695522 | B152: 1 | C152: 167531371 | D152: A | E152: G | F152: 0.09921 | G152: 0.1052 | H152: Imputed | I152: Imputed | J152: 0.95(0.76-1.19) | K152: 0.6513 | L152: 0.93(0.84-1.02) | M152: 1.24E-01 | N152: 0.8443 | O152: 0 | P152: 26445 | Q152: -1.561 | R152: 0.1186 | S152: --
A153: rs12087424 | B153: 1 | C153: 169631201 | D153: A | E153: G | F153: 0.1277 | G153: 0.1334 | H153: Imputed | I153: Imputed | J153: 0.9(0.72-1.13) | K153: 0.3835 | L153: 0.95(0.87-1.03) | M153: 2.00E-01 | N153: 0.7174 | O153: 0 | P153: 26445 | Q153: -1.545 | R153: 0.1224 | S153: --
A154: rs10489187 | B154: 1 | C154: 169391729 | D154: C | E154: T | F154: 0.115 | G154: 0.1265 | H154: Imputed | I154: Imputed | J154: 1.02(0.83-1.27) | K154: 0.8296 | L154: 0.92(0.84-1) | M154: 5.78E-02 | N154: 0.3522 | O154: 0 | P154: 26445 | Q154: -1.54 | R154: 0.1237 | S154: -+
A155: rs11487513 | B155: 1 | C155: 169629221 | D155: A | E155: G | F155: 0.1277 | G155: 0.1333 | H155: Imputed | I155: Imputed | J155: 0.91(0.72-1.13) | K155: 0.3854 | L155: 0.95(0.87-1.03) | M155: 2.05E-01 | N155: 0.7169 | O155: 0 | P155: 26445 | Q155: -1.532 | R155: 0.1255 | S155: --
A156: rs12081319 | B156: 1 | C156: 169630248 | D156: G | E156: A | F156: 0.1277 | G156: 0.1333 | H156: Imputed | I156: Imputed | J156: 0.91(0.72-1.13) | K156: 0.3854 | L156: 0.95(0.87-1.03) | M156: 2.05E-01 | N156: 0.7169 | O156: 0 | P156: 26445 | Q156: -1.532 | R156: 0.1255 | S156: --
A157: rs72703566 | B157: 1 | C157: 168745249 | D157: T | E157: G | F157: 0.1514 | G157: 0.1456 | H157: Imputed | I157: Imputed | J157: 1.02(0.86-1.21) | K157: 0.8153 | L157: 1.07(0.99-1.16) | M157: 1.04E-01 | N157: 0.6422 | O157: 0 | P157: 26445 | Q157: 1.526 | R157: 0.1271 | S157: ++
A158: rs59263117 | B158: 1 | C158: 168746717 | D158: T | E158: C | F158: 0.1769 | G158: 0.1705 | H158: Imputed | I158: Imputed | J158: 1.01(0.86-1.2) | K158: 0.8868 | L158: 1.07(0.99-1.15) | M158: 9.40E-02 | N158: 0.5881 | O158: 0 | P158: 26445 | Q158: 1.524 | R158: 0.1275 | S158: ++
A159: rs10800381 | B159: 1 | C159: 168744353 | D159: T | E159: C | F159: 0.201 | G159: 0.1953 | H159: Imputed | I159: Imputed | J159: 1.01(0.85-1.2) | K159: 0.9085 | L159: 1.06(0.99-1.14) | M159: 9.26E-02 | N159: 0.5913 | O159: 0 | P159: 26445 | Q159: 1.517 | R159: 0.1294 | S159: ++
A160: rs1407481 | B160: 1 | C160: 168901413 | D160: T | E160: C | F160: 0.4765 | G160: 0.4711 | H160: Imputed | I160: Imputed | J160: 1.05(0.92-1.2) | K160: 0.4607 | L160: 1.04(0.98-1.1) | M160: 1.86E-01 | N160: 0.8661 | O160: 0 | P160: 26445 | Q160: 1.513 | R160: 0.1302 | S160: ++
A161: rs12401978 | B161: 1 | C161: 169604785 | D161: T | E161: A | F161: 0.08937 | G161: 0.09208 | H161: Imputed | I161: Imputed | J161: 0.8(0.63-1.01) | K161: 0.06426 | L161: 0.97(0.87-1.07) | M161: 4.95E-01 | N161: 0.1498 | O161: 51.78 | P161: 26445 | Q161: -1.512 | R161: 0.1306 | S161: --
A162: rs9332673 | B162: 1 | C162: 169482678 | D162: A | E162: G | F162: 0.0569 | G162: 0.05646 | H162: Imputed | I162: Imputed | J162: 1.43(1.13-1.82) | K162: 0.003558 | L162: 1(0.88-1.13) | M162: 9.85E-01 | N162: 0.0095 | O162: 85.13 | P162: 26445 | Q162: 1.465 | R162: 0.143 | S162: ++
A163: rs9332676 | B163: 1 | C163: 169482305 | D163: A | E163: G | F163: 0.0569 | G163: 0.05646 | H163: Imputed | I163: Imputed | J163: 1.43(1.13-1.82) | K163: 0.003558 | L163: 1(0.88-1.13) | M163: 9.85E-01 | N163: 0.0095 | O163: 85.13 | P163: 26445 | Q163: 1.465 | R163: 0.143 | S163: ++
A164: rs6027 | B164: 1 | C164: 169483561 | D164: C | E164: T | F164: 0.0569 | G164: 0.05646 | H164: Genotyped | I164: Genotyped | J164: 1.43(1.13-1.82) | K164: 0.003558 | L164: 1(0.88-1.13) | M164: 9.86E-01 | N164: 0.0095 | O164: 85.13 | P164: 26445 | Q164: 1.464 | R164: 0.1433 | S164: ++
A165: rs10489188 | B165: 1 | C165: 169390327 | D165: T | E165: C | F165: 0.1151 | G165: 0.1265 | H165: Imputed | I165: Imputed | J165: 1.03(0.83-1.28) | K165: 0.7648 | L165: 0.92(0.84-1.01) | M165: 6.38E-02 | N165: 0.322 | O165: 0 | P165: 26445 | Q165: -1.46 | R165: 0.1443 | S165: -+
A166: rs17570453 | B166: 1 | C166: 168748586 | D166: A | E166: G | F166: 0.1778 | G166: 0.1717 | H166: Imputed | I166: Genotyped | J166: 1.01(0.86-1.2) | K166: 0.8868 | L166: 1.06(0.99-1.15) | M166: 1.13E-01 | N166: 0.6158 | O166: 0 | P166: 26445 | Q166: 1.448 | R166: 0.1476 | S166: ++
A167: rs2227243 | B167: 1 | C167: 169483762 | D167: G | E167: T | F167: 0.0569 | G167: 0.05652 | H167: Imputed | I167: Imputed | J167: 1.43(1.13-1.82) | K167: 0.003558 | L167: 1(0.88-1.13) | M167: 9.99E-01 | N167: 0.0093 | O167: 85.23 | P167: 26445 | Q167: 1.448 | R167: 0.1476 | S167: -+
A168: rs17522707 | B168: 1 | C168: 169563062 | D168: A | E168: G | F168: 0.09462 | G168: 0.09938 | H168: Imputed | I168: Imputed | J168: 1.02(0.81-1.28) | K168: 0.8835 | L168: 0.92(0.83-1.01) | M168: 8.11E-02 | N168: 0.417 | O168: 0 | P168: 26445 | Q168: -1.441 | R168: 0.1497 | S168: -+
A169: rs4657627 | B169: 1 | C169: 167033317 | D169: C | E169: T | F169: 0.49 | G169: 0.4859 | H169: Imputed | I169: Imputed | J169: 0.99(0.86-1.12) | K169: 0.826 | L169: 1.05(0.99-1.12) | M169: 7.45E-02 | N169: 0.3552 | O169: 0 | P169: 26445 | Q169: 1.439 | R169: 0.1503 | S169: +-
A170: rs966751 | B170: 1 | C170: 169486141 | D170: G | E170: C | F170: 0.05674 | G170: 0.05637 | H170: Imputed | I170: Imputed | J170: 1.43(1.13-1.82) | K170: 0.003558 | L170: 1(0.88-1.13) | M170: 9.90E-01 | N170: 0.0092 | O170: 85.27 | P170: 26445 | Q170: 1.438 | R170: 0.1504 | S170: -+
A171: rs59454169 | B171: 1 | C171: 168745615 | D171: A | E171: C | F171: 0.1765 | G171: 0.1707 | H171: Imputed | I171: Imputed | J171: 1.01(0.86-1.2) | K171: 0.8802 | L171: 1.06(0.99-1.14) | M171: 1.17E-01 | N171: 0.6233 | O171: 0 | P171: 26445 | Q171: 1.434 | R171: 0.1517 | S171: ++
A172: rs4657625 | B172: 1 | C172: 167026832 | D172: T | E172: C | F172: 0.4882 | G172: 0.4847 | H172: Imputed | I172: Imputed | J172: 0.99(0.86-1.12) | K172: 0.8217 | L172: 1.05(0.99-1.11) | M172: 7.54E-02 | N172: 0.3532 | O172: 0 | P172: 26445 | Q172: 1.431 | R172: 0.1525 | S172: +-
A173: rs2235195 | B173: 1 | C173: 169396620 | D173: G | E173: C | F173: 0.1159 | G173: 0.1271 | H173: Imputed | I173: Imputed | J173: 1.03(0.83-1.28) | K173: 0.7865 | L173: 0.92(0.84-1.01) | M173: 7.14E-02 | N173: 0.3455 | O173: 0 | P173: 26445 | Q173: -1.43 | R173: 0.1527 | S173: -+
A174: rs3917793 | B174: 1 | C174: 169567545 | D174: A | E174: C | F174: 0.09544 | G174: 0.1002 | H174: Imputed | I174: Imputed | J174: 1.02(0.81-1.28) | K174: 0.8835 | L174: 0.92(0.83-1.01) | M174: 8.45E-02 | N174: 0.4226 | O174: 0 | P174: 26445 | Q174: -1.424 | R174: 0.1544 | S174: -+
A175: rs3917810 | B175: 1 | C175: 169565520 | D175: G | E175: A | F175: 0.09495 | G175: 0.09983 | H175: Imputed | I175: Imputed | J175: 1.02(0.81-1.28) | K175: 0.8835 | L175: 0.92(0.83-1.01) | M175: 8.57E-02 | N175: 0.4238 | O175: 0 | P175: 26445 | Q175: -1.418 | R175: 0.1561 | S175: -+
A176: rs3917788 | B176: 1 | C176: 169568719 | D176: C | E176: T | F176: 0.09495 | G176: 0.09981 | H176: Imputed | I176: Imputed | J176: 1.02(0.81-1.28) | K176: 0.8835 | L176: 0.92(0.83-1.01) | M176: 8.70E-02 | N176: 0.4253 | O176: 0 | P176: 26445 | Q176: -1.412 | R176: 0.1579 | S176: -+
A177: rs3917789 | B177: 1 | C177: 169568646 | D177: G | E177: T | F177: 0.09495 | G177: 0.09981 | H177: Imputed | I177: Imputed | J177: 1.02(0.81-1.28) | K177: 0.8835 | L177: 0.92(0.83-1.01) | M177: 8.70E-02 | N177: 0.4253 | O177: 0 | P177: 26445 | Q177: -1.412 | R177: 0.1579 | S177: -+
A178: rs6679019 | B178: 1 | C178: 168985962 | D178: A | E178: G | F178: 0.05789 | G178: 0.05892 | H178: Imputed | I178: Imputed | J178: 0.72(0.53-0.98) | K178: 0.03471 | L178: 0.97(0.86-1.1) | M178: 6.78E-01 | N178: 0.0714 | O178: 69.24 | P178: 26445 | Q178: -1.41 | R178: 0.1584 | S178: --
A179: rs16862172 | B179: 1 | C179: 169410486 | D179: T | E179: C | F179: 0.1156 | G179: 0.1274 | H179: Imputed | I179: Imputed | J179: 1.08(0.87-1.34) | K179: 0.4976 | L179: 0.91(0.84-1) | M179: 4.42E-02 | N179: 0.1621 | O179: 48.85 | P179: 26445 | Q179: -1.409 | R179: 0.1589 | S179: -+
A180: rs9332654 | B180: 1 | C180: 169490601 | D180: T | E180: G | F180: 0.05658 | G180: 0.05632 | H180: Imputed | I180: Imputed | J180: 1.43(1.13-1.82) | K180: 0.003558 | L180: 1(0.88-1.13) | M180: 9.63E-01 | N180: 0.0088 | O180: 85.44 | P180: 26445 | Q180: 1.408 | R180: 0.1591 | S180: -+
A181: rs9332659 | B181: 1 | C181: 169489489 | D181: G | E181: C | F181: 0.05658 | G181: 0.05632 | H181: Imputed | I181: Imputed | J181: 1.43(1.13-1.82) | K181: 0.003558 | L181: 1(0.88-1.13) | M181: 9.63E-01 | N181: 0.0088 | O181: 85.44 | P181: 26445 | Q181: 1.408 | R181: 0.1591 | S181: -+
A182: rs3917794 | B182: 1 | C182: 169567513 | D182: T | E182: C | F182: 0.09495 | G182: 0.09978 | H182: Imputed | I182: Imputed | J182: 1.02(0.81-1.28) | K182: 0.8835 | L182: 0.92(0.83-1.01) | M182: 8.80E-02 | N182: 0.4263 | O182: 0 | P182: 26445 | Q182: -1.408 | R182: 0.1592 | S182: -+
A183: rs3917787 | B183: 1 | C183: 169568958 | D183: T | E183: C | F183: 0.09495 | G183: 0.09978 | H183: Imputed | I183: Imputed | J183: 1.02(0.81-1.28) | K183: 0.8835 | L183: 0.92(0.83-1.01) | M183: 8.82E-02 | N183: 0.4268 | O183: 0 | P183: 26445 | Q183: -1.406 | R183: 0.1596 | S183: -+
A184: rs3917873 | B184: 1 | C184: 169569285 | D184: A | E184: C | F184: 0.09495 | G184: 0.09978 | H184: Imputed | I184: Imputed | J184: 1.02(0.81-1.28) | K184: 0.8835 | L184: 0.92(0.83-1.01) | M184: 8.82E-02 | N184: 0.4268 | O184: 0 | P184: 26445 | Q184: -1.406 | R184: 0.1596 | S184: -+
A185: rs4486430 | B185: 1 | C185: 169000292 | D185: G | E185: A | F185: 0.0574 | G185: 0.05826 | H185: Imputed | I185: Imputed | J185: 0.69(0.51-0.95) | K185: 0.02203 | L185: 0.98(0.87-1.11) | M185: 7.59E-01 | N185: 0.044 | O185: 75.34 | P185: 26445 | Q185: -1.405 | R185: 0.1601 | S185: --
A186: rs2900884 | B186: 1 | C186: 168900288 | D186: A | E186: G | F186: 0.4495 | G186: 0.4425 | H186: Imputed | I186: Imputed | J186: 1.04(0.91-1.19) | K186: 0.5361 | L186: 1.04(0.98-1.1) | M186: 2.08E-01 | N186: 0.9378 | O186: 0 | P186: 26445 | Q186: 1.401 | R186: 0.1613 | S186: ++
A187: rs6013 | B187: 1 | C187: 169487821 | D187: T | E187: G | F187: 0.05658 | G187: 0.05634 | H187: Imputed | I187: Imputed | J187: 1.43(1.13-1.82) | K187: 0.003558 | L187: 1(0.88-1.13) | M187: 9.55E-01 | N187: 0.0087 | O187: 85.49 | P187: 26445 | Q187: 1.4 | R187: 0.1616 | S187: -+
A188: rs3917461 | B188: 1 | C188: 169695491 | D188: A | E188: T | F188: 0.04542 | G188: 0.04747 | H188: Imputed | I188: Imputed | J188: 0.81(0.54-1.2) | K188: 0.291 | L188: 0.93(0.81-1.07) | M188: 3.14E-01 | N188: 0.504 | O188: 0 | P188: 26445 | Q188: -1.398 | R188: 0.1621 | S188: --
A189: rs12065896 | B189: 1 | C189: 168787256 | D189: T | E189: C | F189: 0.2025 | G189: 0.1992 | H189: Imputed | I189: Imputed | J189: 1.02(0.86-1.21) | K189: 0.8038 | L189: 1.06(0.98-1.13) | M189: 1.42E-01 | N189: 0.7309 | O189: 0 | P189: 26445 | Q189: 1.397 | R189: 0.1624 | S189: ++
A190: rs3917818 | B190: 1 | C190: 169564918 | D190: A | E190: G | F190: 0.09495 | G190: 0.09972 | H190: Imputed | I190: Imputed | J190: 1.02(0.81-1.28) | K190: 0.8835 | L190: 0.92(0.83-1.01) | M190: 9.03E-02 | N190: 0.4293 | O190: 0 | P190: 26445 | Q190: -1.397 | R190: 0.1624 | S190: -+
A191: rs3917827 | B191: 1 | C191: 169564391 | D191: C | E191: A | F191: 0.09495 | G191: 0.09972 | H191: Imputed | I191: Imputed | J191: 1.02(0.81-1.28) | K191: 0.8835 | L191: 0.92(0.83-1.01) | M191: 9.03E-02 | N191: 0.4293 | O191: 0 | P191: 26445 | Q191: -1.397 | R191: 0.1624 | S191: -+
A192: rs79578829 | B192: 1 | C192: 169001293 | D192: T | E192: C | F192: 0.0574 | G192: 0.05823 | H192: Imputed | I192: Imputed | J192: 0.69(0.51-0.95) | K192: 0.02203 | L192: 0.98(0.87-1.11) | M192: 7.66E-01 | N192: 0.0437 | O192: 75.43 | P192: 26445 | Q192: -1.397 | R192: 0.1625 | S192: --
A193: rs913377 | B193: 1 | C193: 167028714 | D193: T | E193: C | F193: 0.4682 | G193: 0.4659 | H193: Imputed | I193: Imputed | J193: 0.98(0.86-1.12) | K193: 0.7576 | L193: 1.05(1-1.12) | M193: 7.40E-02 | N193: 0.3094 | O193: 3.23 | P193: 26445 | Q193: 1.397 | R193: 0.1625 | S193: +-
A194: rs72708013 | B194: 1 | C194: 169481731 | D194: G | E194: T | F194: 0.05674 | G194: 0.05654 | H194: Imputed | I194: Imputed | J194: 1.43(1.13-1.82) | K194: 0.003558 | L194: 1(0.88-1.13) | M194: 9.49E-01 | N194: 0.0085 | O194: 85.55 | P194: 26445 | Q194: 1.393 | R194: 0.1635 | S194: -+
A195: rs12064316 | B195: 1 | C195: 168786085 | D195: T | E195: C | F195: 0.2025 | G195: 0.1992 | H195: Imputed | I195: Imputed | J195: 1.02(0.86-1.21) | K195: 0.8038 | L195: 1.05(0.98-1.13) | M195: 1.43E-01 | N195: 0.7386 | O195: 0 | P195: 26445 | Q195: 1.393 | R195: 0.1636 | S195: ++
A196: rs4233414 | B196: 1 | C196: 167021041 | D196: T | E196: C | F196: 0.3721 | G196: 0.3754 | H196: Imputed | I196: Imputed | J196: 0.97(0.85-1.11) | K196: 0.7011 | L196: 0.96(0.9-1.02) | M196: 1.66E-01 | N196: NA | O196: NA | P196: 26445 | Q196: -1.393 | R196: 0.1636 | S196: --
A197: rs1327863 | B197: 1 | C197: 167021190 | D197: T | E197: C | F197: 0.3721 | G197: 0.3754 | H197: Imputed | I197: Imputed | J197: 0.98(0.85-1.11) | K197: 0.7062 | L197: 0.96(0.9-1.02) | M197: 1.66E-01 | N197: NA | O197: NA | P197: 26445 | Q197: -1.39 | R197: 0.1646 | S197: --
A198: rs11589804 | B198: 1 | C198: 168999781 | D198: G | E198: A | F198: 0.0574 | G198: 0.05821 | H198: Imputed | I198: Imputed | J198: 0.69(0.51-0.95) | K198: 0.02203 | L198: 0.98(0.87-1.11) | M198: 7.72E-01 | N198: 0.0433 | O198: 75.5 | P198: 26445 | Q198: -1.39 | R198: 0.1647 | S198: --
A199: rs112949233 | B199: 1 | C199: 169008494 | D199: T | E199: C | F199: 0.05707 | G199: 0.05769 | H199: Imputed | I199: Imputed | J199: 0.69(0.51-0.95) | K199: 0.02203 | L199: 0.98(0.87-1.11) | M199: 7.73E-01 | N199: 0.0435 | O199: 75.48 | P199: 26445 | Q199: -1.389 | R199: 0.165 | S199: --
A200: rs6686124 | B200: 1 | C200: 168745427 | D200: G | E200: A | F200: 0.1765 | G200: 0.171 | H200: Imputed | I200: Imputed | J200: 1.01(0.86-1.2) | K200: 0.8823 | L200: 1.06(0.98-1.14) | M200: 1.30E-01 | N200: 0.6375 | O200: 0 | P200: 26445 | Q200: 1.387 | R200: 0.1654 | S200: ++
A201: rs11736 | B201: 1 | C201: 167022262 | D201: T | E201: G | F201: 0.3721 | G201: 0.3754 | H201: Imputed | I201: Imputed | J201: 0.98(0.85-1.11) | K201: 0.7062 | L201: 0.96(0.9-1.02) | M201: 1.67E-01 | N201: NA | O201: NA | P201: 26445 | Q201: -1.385 | R201: 0.1659 | S201: --
... 1350 more rows

Sheet Suppl Data 9
A1: Supplementary Data 9: Bayesian Analysis in CD247 locus.
A2: Note: CHROM=chromosome; POS=basepair position; A1=major allele; A2=minor allele; OR=odd ratio; L+P0=The log null marginal likelihood; L+P1=The log alternative marginal likelihood; BF=Bayes factor; P_CAUSAL=The probability that this variant is the causal variant at this locus;
A4: FINEMAP | L4: CREDIBLE SET
A5: CHROM | B5: POS (GRCh37/hg19) | C5: RSID | D5: A1 | E5: A2 | F5: OR_Disease | G5: L+P0 | H5: L+P1 | I5: logBF | J5: P_CAUSAL | L5: CHROM | M5: POS (GRCh37/hg19) | N5: RSID | O5: A1 | P5: A2 | Q5: BestModel | R5: BestModelProb | S5: CredibleSet
A6: 1 | B6: 167427247 | C6: rs7523907 | D6: C | E6: T | F6: 1.16 | G6: -7977.388 | H6: -7966.461 | I6: 10.927 | J6: 0.2338355228 | L6: 1 | M6: 167427247 | N6: rs7523907 | O6: C | P6: T | Q6: M_Disease | R6: 0.9957854962 | S6: M_Disease
A7: 1 | B7: 167433420 | C7: rs1723018 | D7: G | E7: A | F7: 1.155 | G7: -7977.388 | H7: -7967.607 | I7: 9.781 | J7: 0.07433768131 | L7: 1 | M7: 167433420 | N7: rs1723018 | O7: G | P7: A | Q7: M_Disease | R7: 0.992534727 | S7: M_Disease
A8: 1 | B8: 167432949 | C8: rs1773542 | D8: C | E8: T | F8: 1.153 | G8: -7977.388 | H8: -7967.801 | I8: 9.587 | J8: 0.0612288188 | L8: 1 | M8: 167432949 | N8: rs1773542 | O8: C | P8: T | Q8: M_Disease | R8: 0.9917968494 | S8: M_Disease
A9: 1 | B9: 167433056 | C9: rs1723016 | D9: C | E9: T | F9: 1.153 | G9: -7977.388 | H9: -7967.801 | I9: 9.587 | J9: 0.0612288188 | L9: 1 | M9: 167433056 | N9: rs1723016 | O9: C | P9: T | Q9: M_Disease | R9: 0.9917968494 | S9: M_Disease
A10: 1 | B10: 167431193 | C10: rs2995089 | D10: A | E10: G | F10: 1.152 | G10: -7977.388 | H10: -7968.044 | I10: 9.345 | J10: 0.04806806244 | L10: 1 | M10: 167431193 | N10: rs2995089 | O10: A | P10: G | Q10: M_Disease | R10: 0.9907606368 | S10: M_Disease
A11: 1 | B11: 167419839 | C11: rs2988279 | D11: A | E11: G | F11: 1.15 | G11: -7977.388 | H11: -7968.087 | I11: 9.301 | J11: 0.04599892258 | L11: 1 | M11: 167419839 | N11: rs2988279 | O11: A | P11: G | Q11: M_Disease | R11: 0.9905289564 | S11: M_Disease
A12: 1 | B12: 167431352 | C12: rs2988277 | D12: T | E12: C | F12: 1.152 | G12: -7977.388 | H12: -7968.124 | I12: 9.264 | J12: 0.04432806394 | L12: 1 | M12: 167431352 | N12: rs2988277 | O12: T | P12: C | Q12: M_Disease | R12: 0.9903871959 | S12: M_Disease
A13: 1 | B13: 167427557 | C13: rs1214595 | D13: A | E13: G | F13: 1.152 | G13: -7977.388 | H13: -7968.135 | I13: 9.254 | J13: 0.04388699234 | L13: 1 | M13: 167427557 | N13: rs1214595 | O13: A | P13: G | Q13: M_Disease | R13: 0.990339477 | S13: M_Disease
A14: 1 | B14: 167427170 | C14: rs1214596 | D14: A | E14: T | F14: 1.152 | G14: -7977.388 | H14: -7968.152 | I14: 9.236 | J14: 0.0431040937 | L14: 1 | M14: 167427170 | N14: rs1214596 | O14: A | P14: T | Q14: M_Disease | R14: 0.9902433344 | S14: M_Disease
A15: 1 | B15: 167420425 | C15: rs2056626 | D15: G | E15: T | F15: 1.149 | G15: -7977.388 | H15: -7968.287 | I15: 9.101 | J15: 0.03766073253 | L15: 1 | M15: 167420425 | N15: rs2056626 | O15: G | P15: T | Q15: M_Disease | R15: 0.9895432938 | S15: M_Disease
A16: 1 | B16: 167421763 | C16: rs1773560 | D16: G | E16: A | F16: 1.148 | G16: -7977.388 | H16: -7968.355 | I16: 9.033 | J16: 0.0351849338 | L16: 1 | M16: 167421763 | N16: rs1773560 | O16: G | P16: A | Q16: M_Disease | R16: 0.98922827 | S16: M_Disease
A17: 1 | B17: 167424924 | C17: rs2949661 | D17: T | E17: C | F17: 1.148 | G17: -7977.388 | H17: -7968.549 | I17: 8.839 | J17: 0.02898034884 | L17: 1 | M17: 167424924 | N17: rs2949661 | O17: T | P17: C | Q17: M_Disease | R17: 0.9881088684 | S17: M_Disease
A18: 1 | B18: 167434721 | C18: rs2949668 | D18: C | E18: T | F18: 1.142 | G18: -7977.388 | H18: -7968.567 | I18: 8.821 | J18: 0.02846336933 | L18: 1 | M18: 167434721 | N18: rs2949668 | O18: C | P18: T | Q18: M_Disease | R18: 0.9879907957 | S18: M_Disease
A19: 1 | B19: 167421951 | C19: rs1773561 | D19: T | E19: C | F19: 1.148 | G19: -7977.388 | H19: -7968.582 | I19: 8.806 | J19: 0.02803960497 | L19: 1 | M19: 167421951 | N19: rs1773561 | O19: T | P19: C | Q19: M_Disease | R19: 0.9879313258 | S19: M_Disease
A20: 1 | B20: 167434277 | C20: rs2995091 | D20: C | E20: T | F20: 1.148 | G20: -7977.388 | H20: -7968.673 | I20: 8.715 | J20: 0.02560065595 | L20: 1 | M20: 167434277 | N20: rs2995091 | O20: C | P20: T | Q20: M_Disease | R20: 0.9873828393 | S20: M_Disease
A21: 1 | B21: 167420299 | C21: rs2056625 | D21: A | E21: G | F21: 1.147 | G21: -7977.388 | H21: -7968.677 | I21: 8.711 | J21: 0.02549845786 | L21: 1 | M21: 167420299 | N21: rs2056625 | O21: A | P21: G | Q21: M_Disease | R21: 0.9873203974 | S21: M_Disease
A22: 1 | B22: 167417884 | C22: rs2949669 | D22: T | E22: C | F22: 1.146 | G22: -7977.388 | H22: -7968.881 | I22: 8.507 | J22: 0.0207930329 | L22: 1 | M22: 167417884 | N22: rs2949669 | O22: T | P22: C | Q22: M_Disease | R22: 0.986005534 | S22: M_Disease
A23: 1 | B23: 167418468 | C23: rs34276574 | D23: T | E23: C | F23: 1.145 | G23: -7977.388 | H23: -7968.908 | I23: 8.481 | J23: 0.02025938158 | L23: 1 | M23: 167418468 | N23: rs34276574 | O23: T | P23: C | Q23: M_Disease | R23: 0.9857970386 | S23: M_Disease
A24: 1 | B24: 167432894 | C24: rs1723015 | D24: T | E24: C | F24: 0.879 | G24: -7977.388 | H24: -7969.216 | I24: 8.173 | J24: 0.01488892985 | L24: 1 | M24: 167432894 | N24: rs1723015 | O24: T | P24: C | Q24: M_Disease | R24: 0.9834551962 | S24: M_Disease
A25: 1 | B25: 167426424 | C25: rs1214598 | D25: A | E25: G | F25: 1.144 | G25: -7977.388 | H25: -7969.286 | I25: 8.102 | J25: 0.01386847077 | L25: 1 | M25: 167426424 | N25: rs1214598 | O25: A | P25: G | Q25: M_Disease | R25: 0.9828759667 | S25: M_Disease
A26: 1 | B26: 167418449 | C26: rs35014055 | D26: A | E26: G | F26: 1.141 | G26: -7977.388 | H26: -7969.492 | I26: 7.896 | J26: 0.01128662023 | L26: 1 | M26: 167418449 | N26: rs35014055 | O26: A | P26: G | Q26: M_Disease | R26: 0.9811090381 | S26: M_Disease
A27: 1 | B27: 167429985 | C27: rs10800313 | D27: T | E27: C | F27: 0.881 | G27: -7977.388 | H27: -7969.585 | I27: 7.803 | J27: 0.010284295 | L27: 1 | M27: 167429985 | N27: rs10800313 | O27: T | P27: C | Q27: M_Disease | R27: 0.9801596943 | S27: M_Disease
A28: 1 | B28: 167414872 | C28: rs840012 | D28: T | E28: C | F28: 1.127 | G28: -7977.388 | H28: -7971.168 | I28: 6.22 | J28: 0.002111963269 | L28: 1 | M28: 167414872 | N28: rs840012 | O28: T | P28: C | Q28: M_Disease | R28: 0.9573033558 | S28: M_Disease
A29: 1 | B29: 167642494 | C29: rs12081670 | D29: C | E29: T | F29: 0.88 | G29: -7977.388 | H29: -7971.525 | I29: 5.863 | J29: 0.001477893812 | L29: 1 | M29: 167642494 | N29: rs12081670 | O29: C | P29: T | Q29: M_Disease | R29: 0.9495497393 | S29: M_Disease&NULL
A30: 1 | B30: 167641944 | C30: rs6427098 | D30: A | E30: C | F30: 0.893 | G30: -7977.388 | H30: -7971.573 | I30: 5.815 | J30: 0.001408630526 | L30: 1 | M30: 167641944 | N30: rs6427098 | O30: A | P30: C | Q30: M_Disease | R30: 0.9483385645 | S30: M_Disease&NULL
A31: 1 | B31: 167430825 | C31: rs10918692 | D31: A | E31: G | F31: 0.894 | G31: -7977.388 | H31: -7971.79 | I31: 5.598 | J31: 0.001133848926 | L31: 1 | M31: 167430825 | N31: rs10918692 | O31: A | P31: G | Q31: M_Disease | R31: 0.9426758241 | S31: M_Disease&NULL
A32: 1 | B32: 167642110 | C32: rs1229353 | D32: G | E32: A | F32: 0.895 | G32: -7977.388 | H32: -7971.879 | I32: 5.509 | J32: 0.001037296671 | L32: 1 | M32: 167642110 | N32: rs1229353 | O32: G | P32: A | Q32: M_Disease | R32: 0.9401951107 | S32: M_Disease&NULL
A33: 1 | B33: 167641292 | C33: rs1229355 | D33: G | E33: A | F33: 0.895 | G33: -7977.388 | H33: -7971.891 | I33: 5.497 | J33: 0.001024923498 | L33: 1 | M33: 167641292 | N33: rs1229355 | O33: G | P33: A | Q33: M_Disease | R33: 0.9399133498 | S33: M_Disease&NULL
A34: 1 | B34: 167640839 | C34: rs1229356 | D34: C | E34: T | F34: 0.895 | G34: -7977.388 | H34: -7971.931 | I34: 5.457 | J34: 0.0009847356732 | L34: 1 | M34: 167640839 | N34: rs1229356 | O34: C | P34: T | Q34: M_Disease | R34: 0.9387738372 | S34: M_Disease&NULL
A35: 1 | B35: 167439010 | C35: rs61810480 | D35: C | E35: T | F35: 0.895 | G35: -7977.388 | H35: -7972.015 | I35: 5.373 | J35: 0.0009053967569 | L35: 1 | M35: 167439010 | N35: rs61810480 | O35: C | P35: T | Q35: M_Disease | R35: 0.9364339817 | S35: M_Disease&NULL
A36: 1 | B36: 167640711 | C36: rs1229358 | D36: A | E36: T | F36: 0.896 | G36: -7977.388 | H36: -7972.041 | I36: 5.347 | J36: 0.0008821598303 | L36: 1 | M36: 167640711 | N36: rs1229358 | O36: A | P36: T | Q36: M_Disease | R36: 0.9355352342 | S36: M_Disease&NULL
A37: 1 | B37: 167640827 | C37: rs1229357 | D37: G | E37: A | F37: 0.897 | G37: -7977.388 | H37: -7972.259 | I37: 5.13 | J37: 0.0007100768851 | L37: 1 | M37: 167640827 | N37: rs1229357 | O37: G | P37: A | Q37: M_Disease | R37: 0.9285747874 | S37: M_Disease&NULL
A38: 1 | B38: 167642317 | C38: rs1229352 | D38: A | E38: G | F38: 0.899 | G38: -7977.388 | H38: -7972.492 | I38: 4.896 | J38: 0.0005619277332 | L38: 1 | M38: 167642317 | N38: rs1229352 | O38: A | P38: G | Q38: M_Disease | R38: 0.9205614508 | S38: M_Disease&NULL
A39: 1 | B39: 167442107 | C39: rs61810481 | D39: T | E39: C | F39: 0.859 | G39: -7977.388 | H39: -7972.565 | I39: 4.823 | J39: 0.0005223684872 | L39: 1 | M39: 167442107 | N39: rs61810481 | O39: T | P39: C | Q39: M_Disease | R39: 0.9179640001 | S39: M_Disease&NULL
A40: 1 | B40: 167437047 | C40: rs12036775 | D40: T | E40: C | F40: 0.899 | G40: -7977.388 | H40: -7972.588 | I40: 4.801 | J40: 0.0005110018717 | L40: 1 | M40: 167437047 | N40: rs12036775 | O40: T | P40: C | Q40: M_Disease | R40: 0.9168273035 | S40: M_Disease&NULL
A41: 1 | B41: 167437953 | C41: rs10918695 | D41: T | E41: C | F41: 0.9 | G41: -7977.388 | H41: -7972.647 | I41: 4.741 | J41: 0.0004812434394 | L41: 1 | M41: 167437953 | N41: rs10918695 | O41: T | P41: C | Q41: M_Disease | R41: 0.9145108606 | S41: M_Disease&NULL
A42: 1 | B42: 167412947 | C42: rs9662048 | D42: T | E42: A | F42: 0.906 | G42: -7977.388 | H42: -7973.414 | I42: 3.975 | J42: 0.0002237150744 | L42: 1 | M42: 167412947 | N42: rs9662048 | O42: T | P42: A | Q42: M_Disease | R42: 0.8797431375 | S42: M_Disease&NULL
A43: 1 | B43: 166648219 | C43: rs150494806 | D43: T | E43: C | F43: 0.771 | G43: -7977.388 | H43: -7973.539 | I43: 3.85 | J43: 0.0001974278602 | L43: 1 | M43: 166648219 | N43: rs150494806 | O43: T | P43: C | Q43: M_Disease | R43: 0.8732494199 | S43: M_Disease&NULL
A44: 1 | B44: 167036864 | C44: rs72689397 | D44: A | E44: G | F44: 0.8 | G44: -7977.388 | H44: -7973.668 | I44: 3.721 | J44: 0.0001735339492 | L44: 1 | M44: 167036864 | N44: rs72689397 | O44: A | P44: G | Q44: M_Disease | R44: 0.865878675 | S44: M_Disease&NULL
A45: 1 | B45: 165617329 | C45: rs9333460 | D45: C | E45: T | F45: 0.846 | G45: -7977.388 | H45: -7973.7 | I45: 3.688 | J45: 0.0001679007873 | L45: 1 | M45: 165617329 | N45: rs9333460 | O45: C | P45: T | Q45: M_Disease | R45: 0.8635389762 | S45: M_Disease&NULL
A46: 1 | B46: 166696504 | C46: rs72703428 | D46: T | E46: C | F46: 0.775 | G46: -7977.388 | H46: -7973.793 | I46: 3.595 | J46: 0.0001529901061 | L46: 1 | M46: 166696504 | N46: rs72703428 | O46: T | P46: C | Q46: M_Disease | R46: 0.8581489351 | S46: M_Disease&NULL
A47: 1 | B47: 166692172 | C47: rs149828733 | D47: C | E47: T | F47: 0.779 | G47: -7977.388 | H47: -7973.962 | I47: 3.426 | J47: 0.0001292015067 | L47: 1 | M47: 166692172 | N47: rs149828733 | O47: C | P47: T | Q47: M_Disease | R47: 0.8474836831 | S47: M_Disease&NULL
A48: 1 | B48: 166864066 | C48: rs116498011 | D48: A | E48: G | F48: 0.793 | G48: -7977.388 | H48: -7974.104 | I48: 3.284 | J48: 0.0001120979736 | L48: 1 | M48: 166864066 | N48: rs116498011 | O48: A | P48: G | Q48: M_Disease | R48: 0.8382141406 | S48: M_Disease&NULL
A49: 1 | B49: 167080544 | C49: rs147546174 | D49: A | E49: G | F49: 0.798 | G49: -7977.388 | H49: -7974.551 | I49: 2.838 | J49: 7.18E-05 | L49: 1 | M49: 167080544 | N49: rs147546174 | O49: A | P49: G | Q49: M_Disease | R49: 0.8061210622 | S49: M_Disease&NULL
A50: 1 | B50: 166405300 | C50: rs2311322 | D50: T | E50: C | F50: 0.881 | G50: -7977.388 | H50: -7974.555 | I50: 2.833 | J50: 7.14E-05 | L50: 1 | M50: 166405300 | N50: rs2311322 | O50: T | P50: C | Q50: M_Disease | R50: 0.8053384164 | S50: M_Disease&NULL
A51: 1 | B51: 166592488 | C51: rs1183332651 | D51: T | E51: C | F51: 0.792 | G51: -7977.388 | H51: -7974.577 | I51: 2.811 | J51: 6.99E-05 | L51: 1 | M51: 166592488 | N51: rs1183332651 | O51: T | P51: C | Q51: M_Disease | R51: 0.8037659436 | S51: M_Disease&NULL
A52: 1 | B52: 167641379 | C52: rs72697715 | D52: G | E52: A | F52: 0.867 | G52: -7977.388 | H52: -7974.666 | I52: 2.722 | J52: 6.39E-05 | L52: 1 | M52: 167641379 | N52: rs72697715 | O52: G | P52: A | Q52: M_Disease | R52: 0.7965711271 | S52: M_Disease&NULL
A53: 1 | B53: 167450864 | C53: rs12130552 | D53: C | E53: A | F53: 0.887 | G53: -7977.388 | H53: -7974.725 | I53: 2.663 | J53: 6.02E-05 | L53: 1 | M53: 167450864 | N53: rs12130552 | O53: C | P53: A | Q53: M_Disease | R53: 0.7916664907 | S53: M_Disease&NULL
A54: 1 | B54: 167642121 | C54: rs56086037 | D54: C | E54: T | F54: 0.869 | G54: -7977.388 | H54: -7974.806 | I54: 2.582 | J54: 5.56E-05 | L54: 1 | M54: 167642121 | N54: rs56086037 | O54: C | P54: T | Q54: M_Disease | R54: 0.7849922886 | S54: M_Disease&NULL
A55: 1 | B55: 166462650 | C55: rs12048228 | D55: T | E55: C | F55: 0.855 | G55: -7977.388 | H55: -7974.831 | I55: 2.558 | J55: 5.42E-05 | L55: 1 | M55: 166462650 | N55: rs12048228 | O55: T | P55: C | Q55: M_Disease | R55: 0.7824497764 | S55: M_Disease&NULL
A56: 1 | B56: 167447687 | C56: rs12128094 | D56: C | E56: T | F56: 0.888 | G56: -7977.388 | H56: -7974.85 | I56: 2.538 | J56: 5.32E-05 | L56: 1 | M56: 167447687 | N56: rs12128094 | O56: C | P56: T | Q56: M_Disease | R56: 0.7807427479 | S56: M_Disease&NULL
A57: 1 | B57: 167448392 | C57: rs7518703 | D57: C | E57: A | F57: 0.889 | G57: -7977.388 | H57: -7974.901 | I57: 2.487 | J57: 5.05E-05 | L57: 1 | M57: 167448392 | N57: rs7518703 | O57: C | P57: A | Q57: M_Disease | R57: 0.7764331373 | S57: M_Disease&NULL
A58: 1 | B58: 167081290 | C58: rs72691522 | D58: A | E58: G | F58: 0.818 | G58: -7977.388 | H58: -7974.922 | I58: 2.466 | J58: 4.95E-05 | L58: 1 | M58: 167081290 | N58: rs72691522 | O58: A | P58: G | Q58: M_Disease | R58: 0.7746924929 | S58: M_Disease&NULL
A59: 1 | B59: 169893204 | C59: rs603246 | D59: T | E59: G | F59: 0.918 | G59: -7977.388 | H59: -7974.923 | I59: 2.465 | J59: 4.94E-05 | L59: 1 | M59: 169893204 | N59: rs603246 | O59: T | P59: G | Q59: M_Disease | R59: 0.7746924929 | S59: M_Disease&NULL
A60: 1 | B60: 166465878 | C60: rs61836875 | D60: T | E60: A | F60: 0.857 | G60: -7977.388 | H60: -7974.934 | I60: 2.455 | J60: 4.89E-05 | L60: 1 | M60: 166465878 | N60: rs61836875 | O60: T | P60: A | Q60: M_Disease | R60: 0.7738185743 | S60: M_Disease&NULL
A61: 1 | B61: 166465832 | C61: rs79013238 | D61: G | E61: A | F61: 0.858 | G61: -7977.388 | H61: -7974.981 | I61: 2.407 | J61: 4.66E-05 | L61: 1 | M61: 166465832 | N61: rs79013238 | O61: G | P61: A | Q61: M_Disease | R61: 0.7694130612 | S61: M_Disease&NULL
A62: 1 | B62: 166466221 | C62: rs61836876 | D62: C | E62: G | F62: 0.859 | G62: -7977.388 | H62: -7975 | I62: 2.388 | J62: 4.58E-05 | L62: 1 | M62: 166466221 | N62: rs61836876 | O62: C | P62: G | Q62: M_Disease | R62: 0.7676341173 | S62: M_Disease&NULL
A63: 1 | B63: 169923676 | C63: rs508063 | D63: A | E63: G | F63: 0.919 | G63: -7977.388 | H63: -7975.042 | I63: 2.346 | J63: 4.39E-05 | L63: 1 | M63: 169923676 | N63: rs508063 | O63: A | P63: G | Q63: M_Disease | R63: 0.7640475998 | S63: M_Disease&NULL
A64: 1 | B64: 165639630 | C64: rs1890080 | D64: T | E64: C | F64: 0.867 | G64: -7977.388 | H64: -7975.057 | I64: 2.331 | J64: 4.32E-05 | L64: 1 | M64: 165639630 | N64: rs1890080 | O64: T | P64: C | Q64: M_Disease | R64: 0.7631450157 | S64: M_Disease&NULL
A65: 1 | B65: 165623785 | C65: rs4147608 | D65: A | E65: G | F65: 0.898 | G65: -7977.388 | H65: -7975.066 | I65: 2.322 | J65: 4.28E-05 | L65: 1 | M65: 165623785 | N65: rs4147608 | O65: A | P65: G | Q65: M_Disease | R65: 0.7622400534 | S65: M_Disease&NULL
A66: 1 | B66: 169850666 | C66: rs12047487 | D66: A | E66: T | F66: 0.919 | G66: -7977.388 | H66: -7975.072 | I66: 2.316 | J66: 4.26E-05 | L66: 1 | M66: 166462364 | N66: rs116804278 | O66: T | P66: C | Q66: M_Disease | R66: 0.7613327148 | S66: M_Disease&NULL
A67: 1 | B67: 166462364 | C67: rs116804278 | D67: T | E67: C | F67: 0.859 | G67: -7977.388 | H67: -7975.073 | I67: 2.315 | J67: 4.25E-05 | L67: 1 | M67: 169850666 | N67: rs12047487 | O67: A | P67: T | Q67: M_Disease | R67: 0.7613327148 | S67: M_Disease&NULL
A68: 1 | B68: 169849227 | C68: rs10919262 | D68: A | E68: G | F68: 0.919 | G68: -7977.388 | H68: -7975.08 | I68: 2.308 | J68: 4.22E-05 | L68: 1 | M68: 169849227 | N68: rs10919262 | O68: A | P68: G | Q68: M_Disease | R68: 0.760423002 | S68: M_Disease&NULL
A69: 1 | B69: 168777466 | C69: rs80176211 | D69: A | E69: G | F69: 0.874 | G69: -7977.388 | H69: -7975.09 | I69: 2.298 | J69: 4.18E-05 | L69: 1 | M69: 168777466 | N69: rs80176211 | O69: A | P69: G | Q69: M_Disease | R69: 0.7595109169 | S69: M_Disease&NULL
A70: 1 | B70: 169848791 | C70: rs6427227 | D70: T | E70: C | F70: 0.919 | G70: -7977.388 | H70: -7975.101 | I70: 2.287 | J70: 4.14E-05 | L70: 1 | M70: 169848791 | N70: rs6427227 | O70: T | P70: C | Q70: M_Disease | R70: 0.7585964619 | S70: M_Disease&NULL
A71: 1 | B71: 169842292 | C71: rs10737551 | D71: A | E71: G | F71: 0.919 | G71: -7977.388 | H71: -7975.115 | I71: 2.273 | J71: 4.08E-05 | L71: 1 | M71: 169842292 | N71: rs10737551 | O71: A | P71: G | Q71: M_Disease | R71: 0.757679639 | S71: M_Disease&NULL
A72: 1 | B72: 169848367 | C72: rs6427226 | D72: T | E72: G | F72: 0.919 | G72: -7977.388 | H72: -7975.135 | I72: 2.254 | J72: 4.00E-05 | L72: 1 | M72: 169848367 | N72: rs6427226 | O72: T | P72: G | Q72: M_Disease | R72: 0.7558388991 | S72: M_Disease&NULL
A73: 1 | B73: 167455000 | C73: rs9645327 | D73: T | E73: C | F73: 0.889 | G73: -7977.388 | H73: -7975.17 | I73: 2.219 | J73: 3.86E-05 | L73: 1 | M73: 167455000 | N73: rs9645327 | O73: T | P73: C | Q73: M_Disease | R73: 0.7521291114 | S73: M_Disease&NULL
A74: 1 | B74: 169441677 | C74: rs7522245 | D74: A | E74: T | F74: 1.086 | G74: -7977.388 | H74: -7975.191 | I74: 2.197 | J74: 3.78E-05 | L74: 1 | M74: 169441677 | N74: rs7522245 | O74: A | P74: T | Q74: M_Disease | R74: 0.7502601056 | S74: M_Disease&NULL
A75: 1 | B75: 165635266 | C75: rs6657651 | D75: A | E75: C | F75: 0.898 | G75: -7977.388 | H75: -7975.219 | I75: 2.17 | J75: 3.68E-05 | L75: 1 | M75: 165635266 | N75: rs6657651 | O75: A | P75: C | Q75: M_Disease | R75: 0.7474390202 | S75: M_Disease&NULL
A76: 1 | B76: 169859717 | C76: rs3766155 | D76: C | E76: G | F76: 0.921 | G76: -7977.388 | H76: -7975.378 | I76: 2.011 | J76: 3.14E-05 | L76: 1 | M76: 166005031 | N76: rs35975734 | O76: T | P76: C | Q76: M_Disease | R76: 0.7320405018 | S76: M_Disease&NULL
A77: 1 | B77: 166005031 | C77: rs35975734 | D77: T | E77: C | F77: 0.915 | G77: -7977.388 | H77: -7975.381 | I77: 2.007 | J77: 3.13E-05 | L77: 1 | M77: 169859717 | N77: rs3766155 | O77: C | P77: G | Q77: M_Disease | R77: 0.7320405018 | S77: M_Disease&NULL
A78: 1 | B78: 169802760 | C78: rs7521700 | D78: G | E78: T | F78: 0.922 | G78: -7977.388 | H78: -7975.393 | I78: 1.995 | J78: 3.09E-05 | L78: 1 | M78: 169802760 | N78: rs7521700 | O78: G | P78: T | Q78: M_Disease | R78: 0.7310585786 | S78: M_Disease&NULL
A79: 1 | B79: 167515797 | C79: rs7516079 | D79: T | E79: C | F79: 1.089 | G79: -7977.388 | H79: -7975.481 | I79: 1.908 | J79: 2.83E-05 | L79: 1 | M79: 165364340 | N79: rs12723379 | O79: G | P79: A | Q79: NULL | R79: 0.7251194978 | S79: NULL&M_Disease
A80: 1 | B80: 166297851 | C80: rs10918427 | D80: A | E80: G | F80: 1.097 | G80: -7977.388 | H80: -7975.508 | I80: 1.88 | J80: 2.75E-05 | L80: 1 | M80: 165370757 | N80: rs283690 | O80: A | P80: G | Q80: NULL | R80: 0.7251194978 | S80: NULL&M_Disease
A81: 1 | B81: 166297690 | C81: rs4657542 | D81: G | E81: A | F81: 1.097 | G81: -7977.388 | H81: -7975.522 | I81: 1.866 | J81: 2.71E-05 | L81: 1 | M81: 166618118 | N81: rs3845541 | O81: T | P81: G | Q81: NULL | R81: 0.7251194978 | S81: NULL&M_Disease
A82: 1 | B82: 166298256 | C82: rs11580577 | D82: G | E82: C | F82: 1.096 | G82: -7977.388 | H82: -7975.559 | I82: 1.83 | J82: 2.62E-05 | L82: 1 | M82: 166641979 | N82: rs10918554 | O82: T | P82: C | Q82: NULL | R82: 0.7251194978 | S82: NULL&M_Disease
A83: 1 | B83: 168796788 | C83: rs2038098 | D83: A | E83: C | F83: 1.087 | G83: -7977.388 | H83: -7975.559 | I83: 1.829 | J83: 2.62E-05 | L83: 1 | M83: 166642670 | N83: rs10047082 | O83: G | P83: A | Q83: NULL | R83: 0.7251194978 | S83: NULL&M_Disease
A84: 1 | B84: 165645987 | C84: rs10918240 | D84: A | E84: C | F84: 0.903 | G84: -7977.388 | H84: -7975.57 | I84: 1.818 | J84: 2.59E-05 | L84: 1 | M84: 166646347 | N84: rs10918557 | O84: C | P84: T | Q84: NULL | R84: 0.7251194978 | S84: NULL&M_Disease
A85: 1 | B85: 165643502 | C85: rs12072664 | D85: C | E85: T | F85: 0.903 | G85: -7977.388 | H85: -7975.587 | I85: 1.802 | J85: 2.55E-05 | L85: 1 | M85: 166647292 | N85: rs12074816 | O85: A | P85: G | Q85: NULL | R85: 0.7251194978 | S85: NULL&M_Disease
A86: 1 | B86: 169921370 | C86: rs1334210004 | D86: A | E86: C | F86: 0.922 | G86: -7977.388 | H86: -7975.591 | I86: 1.797 | J86: 2.53E-05 | L86: 1 | M86: 166647691 | N86: rs3904700 | O86: T | P86: G | Q86: NULL | R86: 0.7251194978 | S86: NULL&M_Disease
A87: 1 | B87: 167755994 | C87: rs3738232 | D87: C | E87: G | F87: 1.094 | G87: -7977.388 | H87: -7975.599 | I87: 1.79 | J87: 2.52E-05 | L87: 1 | M87: 166652487 | N87: rs4657585 | O87: A | P87: T | Q87: NULL | R87: 0.7251194978 | S87: NULL&M_Disease
A88: 1 | B88: 168802234 | C88: rs1546880 | D88: C | E88: T | F88: 1.087 | G88: -7977.388 | H88: -7975.605 | I88: 1.783 | J88: 2.50E-05 | L88: 1 | M88: 166653587 | N88: rs61815015 | O88: T | P88: A | Q88: NULL | R88: 0.7251194978 | S88: NULL&M_Disease
A89: 1 | B89: 164951765 | C89: rs76112781 | D89: C | E89: G | F89: 0.819 | G89: -7977.388 | H89: -7975.607 | I89: 1.781 | J89: 2.49E-05 | L89: 1 | M89: 166654277 | N89: rs56304044 | O89: A | P89: G | Q89: NULL | R89: 0.7251194978 | S89: NULL&M_Disease
A90: 1 | B90: 169909102 | C90: rs2750016 | D90: C | E90: T | F90: 0.922 | G90: -7977.388 | H90: -7975.623 | I90: 1.766 | J90: 2.46E-05 | L90: 1 | M90: 166655162 | N90: rs61815018 | O90: T | P90: C | Q90: NULL | R90: 0.7251194978 | S90: NULL&M_Disease
A91: 1 | B91: 165644865 | C91: rs10918239 | D91: C | E91: T | F91: 0.904 | G91: -7977.388 | H91: -7975.65 | I91: 1.738 | J91: 2.39E-05 | L91: 1 | M91: 166659261 | N91: rs4657586 | O91: T | P91: C | Q91: NULL | R91: 0.7251194978 | S91: NULL&M_Disease
A92: 1 | B92: 166004814 | C92: rs2348840 | D92: A | E92: G | F92: 1.092 | G92: -7977.388 | H92: -7975.652 | I92: 1.736 | J92: 2.38E-05 | L92: 1 | M92: 166661828 | N92: rs4320765 | O92: G | P92: C | Q92: NULL | R92: 0.7251194978 | S92: NULL&M_Disease
A93: 1 | B93: 169926687 | C93: rs2491088 | D93: T | E93: A | F93: 0.922 | G93: -7977.388 | H93: -7975.652 | I93: 1.736 | J93: 2.38E-05 | L93: 1 | M93: 166663555 | N93: rs3904697 | O93: G | P93: A | Q93: NULL | R93: 0.7251194978 | S93: NULL&M_Disease
A94: 1 | B94: 167474430 | C94: rs1723000 | D94: C | E94: T | F94: 0.902 | G94: -7977.388 | H94: -7975.659 | I94: 1.73 | J94: 2.37E-05 | L94: 1 | M94: 168103545 | N94: rs4540637 | O94: G | P94: A | Q94: NULL | R94: 0.7251194978 | S94: NULL&M_Disease
A95: 1 | B95: 169821488 | C95: rs4656724 | D95: T | E95: C | F95: 0.925 | G95: -7977.388 | H95: -7975.678 | I95: 1.71 | J95: 2.32E-05 | L95: 1 | M95: 164984325 | N95: rs1544316 | O95: G | P95: A | Q95: NULL | R95: 0.7241217708 | S95: NULL&M_Disease
A96: 1 | B96: 169890037 | C96: rs2806388 | D96: G | E96: A | F96: 0.923 | G96: -7977.388 | H96: -7975.681 | I96: 1.708 | J96: 2.32E-05 | L96: 1 | M96: 165051974 | N96: rs12564912 | O96: T | P96: G | Q96: NULL | R96: 0.7241217708 | S96: NULL&M_Disease
A97: 1 | B97: 169832344 | C97: rs4656199 | D97: G | E97: A | F97: 0.925 | G97: -7977.388 | H97: -7975.685 | I97: 1.703 | J97: 2.31E-05 | L97: 1 | M97: 165413644 | N97: rs100537 | O97: A | P97: G | Q97: NULL | R97: 0.7241217708 | S97: NULL&M_Disease
A98: 1 | B98: 169832420 | C98: rs4656200 | D98: G | E98: T | F98: 0.925 | G98: -7977.388 | H98: -7975.685 | I98: 1.703 | J98: 2.31E-05 | L98: 1 | M98: 165693863 | N98: rs14223 | O98: G | P98: T | Q98: NULL | R98: 0.7241217708 | S98: NULL&M_Disease
A99: 1 | B99: 169835401 | C99: rs10800484 | D99: T | E99: G | F99: 0.925 | G99: -7977.388 | H99: -7975.694 | I99: 1.694 | J99: 2.29E-05 | L99: 1 | M99: 165702346 | N99: rs12723198 | O99: C | P99: T | Q99: NULL | R99: 0.7241217708 | S99: NULL&M_Disease
A100: 1 | B100: 169819605 | C100: rs6664099 | D100: A | E100: G | F100: 0.925 | G100: -7977.388 | H100: -7975.7 | I100: 1.688 | J100: 2.27E-05 | L100: 1 | M100: 165706950 | N100: rs12028087 | O100: G | P100: A | Q100: NULL | R100: 0.7241217708 | S100: NULL&M_Disease
A101: 1 | B101: 169819830 | C101: rs10919257 | D101: G | E101: A | F101: 0.925 | G101: -7977.388 | H101: -7975.7 | I101: 1.688 | J101: 2.27E-05 | L101: 1 | M101: 165709086 | N101: rs7540840 | O101: G | P101: A | Q101: NULL | R101: 0.7241217708 | S101: NULL&M_Disease
A102: 1 | B102: 168799899 | C102: rs2056971 | D102: C | E102: T | F102: 1.085 | G102: -7977.388 | H102: -7975.701 | I102: 1.687 | J102: 2.27E-05 | L102: 1 | M102: 165808987 | N102: rs10918291 | O102: G | P102: A | Q102: NULL | R102: 0.7241217708 | S102: NULL&M_Disease
A103: 1 | B103: 165642581 | C103: rs10918235 | D103: C | E103: T | F103: 0.905 | G103: -7977.388 | H103: -7975.702 | I103: 1.686 | J103: 2.27E-05 | L103: 1 | M103: 165809169 | N103: rs7539793 | O103: T | P103: C | Q103: NULL | R103: 0.7241217708 | S103: NULL&M_Disease
A104: 1 | B104: 166004989 | C104: rs2348839 | D104: G | E104: T | F104: 1.091 | G104: -7977.388 | H104: -7975.709 | I104: 1.68 | J104: 2.25E-05 | L104: 1 | M104: 165819980 | N104: rs34800847 | O104: C | P104: T | Q104: NULL | R104: 0.7241217708 | S104: NULL&M_Disease
A105: 1 | B105: 168538818 | C105: rs12062199 | D105: C | E105: T | F105: 0.892 | G105: -7977.388 | H105: -7975.722 | I105: 1.667 | J105: 2.23E-05 | L105: 1 | M105: 165967891 | N105: rs9426840 | O105: T | P105: C | Q105: NULL | R105: 0.7241217708 | S105: NULL&M_Disease
A106: 1 | B106: 167408306 | C106: rs2462552 | D106: C | E106: T | F106: 1.081 | G106: -7977.388 | H106: -7975.725 | I106: 1.664 | J106: 2.22E-05 | L106: 1 | M106: 165967961 | N106: rs9426841 | O106: A | P106: G | Q106: NULL | R106: 0.7241217708 | S106: NULL&M_Disease
A107: 1 | B107: 165449377 | C107: rs10800103 | D107: A | E107: G | F107: 0.865 | G107: -7977.388 | H107: -7975.735 | I107: 1.653 | J107: 2.19E-05 | L107: 1 | M107: 165971605 | N107: rs9427127 | O107: C | P107: T | Q107: NULL | R107: 0.7241217708 | S107: NULL&M_Disease
A108: 1 | B108: 168542041 | C108: rs16860928 | D108: G | E108: A | F108: 0.892 | G108: -7977.388 | H108: -7975.736 | I108: 1.652 | J108: 2.19E-05 | L108: 1 | M108: 165972397 | N108: rs9426842 | O108: G | P108: A | Q108: NULL | R108: 0.7241217708 | S108: NULL&M_Disease
A109: 1 | B109: 166013617 | C109: rs4656476 | D109: T | E109: C | F109: 0.92 | G109: -7977.388 | H109: -7975.74 | I109: 1.648 | J109: 2.18E-05 | L109: 1 | M109: 165974573 | N109: rs10918327 | O109: A | P109: G | Q109: NULL | R109: 0.7241217708 | S109: NULL&M_Disease
A110: 1 | B110: 169823718 | C110: rs4656197 | D110: T | E110: C | F110: 0.925 | G110: -7977.388 | H110: -7975.745 | I110: 1.643 | J110: 2.17E-05 | L110: 1 | M110: 165979485 | N110: rs6668741 | O110: C | P110: T | Q110: NULL | R110: 0.7241217708 | S110: NULL&M_Disease
A111: 1 | B111: 169808400 | C111: rs6684481 | D111: C | E111: T | F111: 0.925 | G111: -7977.388 | H111: -7975.753 | I111: 1.636 | J111: 2.16E-05 | L111: 1 | M111: 165981581 | N111: rs7530094 | O111: G | P111: C | Q111: NULL | R111: 0.7241217708 | S111: NULL&M_Disease
A112: 1 | B112: 169808669 | C112: rs6687377 | D112: G | E112: C | F112: 0.925 | G112: -7977.388 | H112: -7975.753 | I112: 1.636 | J112: 2.16E-05 | L112: 1 | M112: 165981690 | N112: rs7530032 | O112: C | P112: T | Q112: NULL | R112: 0.7241217708 | S112: NULL&M_Disease
A113: 1 | B113: 169895723 | C113: rs1030480608 | D113: A | E113: G | F113: 0.923 | G113: -7977.388 | H113: -7975.758 | I113: 1.63 | J113: 2.14E-05 | L113: 1 | M113: 165982405 | N113: rs7530904 | O113: G | P113: A | Q113: NULL | R113: 0.7241217708 | S113: NULL&M_Disease
A114: 1 | B114: 165643099 | C114: rs6667075 | D114: T | E114: G | F114: 0.906 | G114: -7977.388 | H114: -7975.759 | I114: 1.629 | J114: 2.14E-05 | L114: 1 | M114: 165984275 | N114: rs9287072 | O114: G | P114: T | Q114: NULL | R114: 0.7241217708 | S114: NULL&M_Disease
A115: 1 | B115: 165640925 | C115: rs2050619 | D115: G | E115: A | F115: 0.906 | G115: -7977.388 | H115: -7975.765 | I115: 1.623 | J115: 2.13E-05 | L115: 1 | M115: 165986067 | N115: rs9287073 | O115: T | P115: C | Q115: NULL | R115: 0.7241217708 | S115: NULL&M_Disease
A116: 1 | B116: 165641690 | C116: rs2184918 | D116: C | E116: T | F116: 0.906 | G116: -7977.388 | H116: -7975.769 | I116: 1.619 | J116: 2.12E-05 | L116: 1 | M116: 165987610 | N116: rs6426956 | O116: G | P116: C | Q116: NULL | R116: 0.7241217708 | S116: NULL&M_Disease
A117: 1 | B117: 169924733 | C117: rs2806393 | D117: C | E117: T | F117: 0.924 | G117: -7977.388 | H117: -7975.771 | I117: 1.617 | J117: 2.12E-05 | L117: 1 | M117: 165987630 | N117: rs6696253 | O117: C | P117: A | Q117: NULL | R117: 0.7241217708 | S117: NULL&M_Disease
A118: 1 | B118: 166011110 | C118: rs12119327 | D118: T | E118: C | F118: 0.922 | G118: -7977.388 | H118: -7975.776 | I118: 1.612 | J118: 2.11E-05 | L118: 1 | M118: 165989075 | N118: rs6675797 | O118: A | P118: G | Q118: NULL | R118: 0.7241217708 | S118: NULL&M_Disease
A119: 1 | B119: 166014715 | C119: rs4147481 | D119: A | E119: C | F119: 0.926 | G119: -7977.388 | H119: -7975.783 | I119: 1.605 | J119: 2.09E-05 | L119: 1 | M119: 165989344 | N119: rs6426958 | O119: A | P119: T | Q119: NULL | R119: 0.7241217708 | S119: NULL&M_Disease
A120: 1 | B120: 169857112 | C120: rs3766154 | D120: T | E120: C | F120: 0.922 | G120: -7977.388 | H120: -7975.787 | I120: 1.601 | J120: 2.08E-05 | L120: 1 | M120: 166430484 | N120: rs10918471 | O120: G | P120: A | Q120: NULL | R120: 0.7241217708 | S120: NULL&M_Disease
A121: 1 | B121: 169150333 | C121: rs12067018 | D121: G | E121: A | F121: 0.925 | G121: -7977.388 | H121: -7975.792 | I121: 1.596 | J121: 2.07E-05 | L121: 1 | M121: 166431020 | N121: rs7549089 | O121: C | P121: T | Q121: NULL | R121: 0.7241217708 | S121: NULL&M_Disease
A122: 1 | B122: 169150456 | C122: rs12067072 | D122: T | E122: A | F122: 0.925 | G122: -7977.388 | H122: -7975.792 | I122: 1.596 | J122: 2.07E-05 | L122: 1 | M122: 166431463 | N122: rs10753733 | O122: A | P122: G | Q122: NULL | R122: 0.7241217708 | S122: NULL&M_Disease
A123: 1 | B123: 166286822 | C123: rs7543185 | D123: T | E123: G | F123: 1.093 | G123: -7977.388 | H123: -7975.793 | I123: 1.595 | J123: 2.07E-05 | L123: 1 | M123: 166432463 | N123: rs1908312 | O123: T | P123: A | Q123: NULL | R123: 0.7241217708 | S123: NULL&M_Disease
A124: 1 | B124: 168539676 | C124: rs55920021 | D124: A | E124: G | F124: 0.893 | G124: -7977.388 | H124: -7975.797 | I124: 1.591 | J124: 2.06E-05 | L124: 1 | M124: 166435860 | N124: rs1874127 | O124: A | P124: G | Q124: NULL | R124: 0.7241217708 | S124: NULL&M_Disease
A125: 1 | B125: 169886210 | C125: rs2485462 | D125: A | E125: G | F125: 0.924 | G125: -7977.388 | H125: -7975.801 | I125: 1.587 | J125: 2.05E-05 | L125: 1 | M125: 166436454 | N125: rs977513 | O125: G | P125: C | Q125: NULL | R125: 0.7241217708 | S125: NULL&M_Disease
A126: 1 | B126: 169150534 | C126: rs12083287 | D126: T | E126: C | F126: 0.925 | G126: -7977.388 | H126: -7975.802 | I126: 1.586 | J126: 2.05E-05 | L126: 1 | M126: 166620218 | N126: rs3904703 | O126: C | P126: A | Q126: NULL | R126: 0.7241217708 | S126: NULL&M_Disease
A127: 1 | B127: 169151639 | C127: rs12747242 | D127: T | E127: G | F127: 0.925 | G127: -7977.388 | H127: -7975.804 | I127: 1.584 | J127: 2.05E-05 | L127: 1 | M127: 166620722 | N127: rs7547548 | O127: T | P127: A | Q127: NULL | R127: 0.7241217708 | S127: NULL&M_Disease
A128: 1 | B128: 167505072 | C128: rs12126239 | D128: A | E128: G | F128: 1.081 | G128: -7977.388 | H128: -7975.805 | I128: 1.583 | J128: 2.05E-05 | L128: 1 | M128: 166621519 | N128: rs4397638 | O128: T | P128: A | Q128: NULL | R128: 0.7241217708 | S128: NULL&M_Disease
A129: 1 | B129: 169152584 | C129: rs2032044 | D129: T | E129: A | F129: 0.925 | G129: -7977.388 | H129: -7975.806 | I129: 1.582 | J129: 2.04E-05 | L129: 1 | M129: 166622139 | N129: rs4427384 | O129: T | P129: C | Q129: NULL | R129: 0.7241217708 | S129: NULL&M_Disease
A130: 1 | B130: 166304410 | C130: rs10494458 | D130: G | E130: A | F130: 0.865 | G130: -7977.388 | H130: -7975.809 | I130: 1.579 | J130: 2.04E-05 | L130: 1 | M130: 166623447 | N130: rs10800251 | O130: G | P130: T | Q130: NULL | R130: 0.7241217708 | S130: NULL&M_Disease
A131: 1 | B131: 168676947 | C131: rs56324303 | D131: C | E131: G | F131: 0.889 | G131: -7977.388 | H131: -7975.814 | I131: 1.574 | J131: 2.03E-05 | L131: 1 | M131: 166624076 | N131: rs6692572 | O131: C | P131: T | Q131: NULL | R131: 0.7241217708 | S131: NULL&M_Disease
A132: 1 | B132: 166276000 | C132: rs7547418 | D132: G | E132: A | F132: 1.092 | G132: -7977.388 | H132: -7975.823 | I132: 1.565 | J132: 2.01E-05 | L132: 1 | M132: 166625743 | N132: rs10494466 | O132: A | P132: G | Q132: NULL | R132: 0.7241217708 | S132: NULL&M_Disease
A133: 1 | B133: 168542393 | C133: rs55748465 | D133: C | E133: T | F133: 0.894 | G133: -7977.388 | H133: -7975.833 | I133: 1.556 | J133: 1.99E-05 | L133: 1 | M133: 166629438 | N133: rs4393133 | O133: G | P133: A | Q133: NULL | R133: 0.7241217708 | S133: NULL&M_Disease
A134: 1 | B134: 169842527 | C134: rs4656725 | D134: G | E134: T | F134: 0.923 | G134: -7977.388 | H134: -7975.837 | I134: 1.551 | J134: 1.98E-05 | L134: 1 | M134: 166629570 | N134: rs10800253 | O134: A | P134: G | Q134: NULL | R134: 0.7241217708 | S134: NULL&M_Disease
A135: 1 | B135: 169852300 | C135: rs6427228 | D135: A | E135: G | F135: 0.923 | G135: -7977.388 | H135: -7975.838 | I135: 1.55 | J135: 1.98E-05 | L135: 1 | M135: 166629905 | N135: rs4068473 | O135: C | P135: T | Q135: NULL | R135: 0.7241217708 | S135: NULL&M_Disease
A136: 1 | B136: 169852094 | C136: rs6702969 | D136: A | E136: G | F136: 0.923 | G136: -7977.388 | H136: -7975.841 | I136: 1.548 | J136: 1.98E-05 | L136: 1 | M136: 166632831 | N136: rs3856215 | O136: G | P136: A | Q136: NULL | R136: 0.7241217708 | S136: NULL&M_Disease
A137: 1 | B137: 169850011 | C137: rs6671752 | D137: C | E137: T | F137: 0.923 | G137: -7977.388 | H137: -7975.843 | I137: 1.545 | J137: 1.97E-05 | L137: 1 | M137: 166633099 | N137: rs3856216 | O137: A | P137: G | Q137: NULL | R137: 0.7241217708 | S137: NULL&M_Disease
A138: 1 | B138: 166279184 | C138: rs7535016 | D138: T | E138: G | F138: 1.092 | G138: -7977.388 | H138: -7975.844 | I138: 1.544 | J138: 1.97E-05 | L138: 1 | M138: 166634268 | N138: rs3904701 | O138: G | P138: C | Q138: NULL | R138: 0.7241217708 | S138: NULL&M_Disease
A139: 1 | B139: 166280244 | C139: rs61835171 | D139: G | E139: A | F139: 1.092 | G139: -7977.388 | H139: -7975.844 | I139: 1.544 | J139: 1.97E-05 | L139: 1 | M139: 166635465 | N139: rs3843303 | O139: C | P139: T | Q139: NULL | R139: 0.7241217708 | S139: NULL&M_Disease
A140: 1 | B140: 166281184 | C140: rs56740140 | D140: T | E140: A | F140: 1.092 | G140: -7977.388 | H140: -7975.844 | I140: 1.544 | J140: 1.97E-05 | L140: 1 | M140: 166636006 | N140: rs28403330 | O140: C | P140: T | Q140: NULL | R140: 0.7241217708 | S140: NULL&M_Disease
A141: 1 | B141: 166286011 | C141: rs4656490 | D141: A | E141: G | F141: 1.092 | G141: -7977.388 | H141: -7975.847 | I141: 1.541 | J141: 1.96E-05 | L141: 1 | M141: 166637572 | N141: rs10918553 | O141: C | P141: T | Q141: NULL | R141: 0.7241217708 | S141: NULL&M_Disease
A142: 1 | B142: 169858728 | C142: rs10800486 | D142: T | E142: A | F142: 0.923 | G142: -7977.388 | H142: -7975.855 | I142: 1.533 | J142: 1.95E-05 | L142: 1 | M142: 166637976 | N142: rs4090281 | O142: G | P142: T | Q142: NULL | R142: 0.7241217708 | S142: NULL&M_Disease
A143: 1 | B143: 166286486 | C143: rs6426991 | D143: A | E143: G | F143: 1.092 | G143: -7977.388 | H143: -7975.857 | I143: 1.531 | J143: 1.94E-05 | L143: 1 | M143: 166639135 | N143: rs3845544 | O143: T | P143: A | Q143: NULL | R143: 0.7241217708 | S143: NULL&M_Disease
A144: 1 | B144: 166289093 | C144: rs7516426 | D144: G | E144: T | F144: 1.092 | G144: -7977.388 | H144: -7975.857 | I144: 1.531 | J144: 1.94E-05 | L144: 1 | M144: 166640886 | N144: rs12074717 | O144: T | P144: G | Q144: NULL | R144: 0.7241217708 | S144: NULL&M_Disease
A145: 1 | B145: 166290183 | C145: rs7536144 | D145: T | E145: C | F145: 1.092 | G145: -7977.388 | H145: -7975.857 | I145: 1.531 | J145: 1.94E-05 | L145: 1 | M145: 166642990 | N145: rs11585016 | O145: G | P145: A | Q145: NULL | R145: 0.7241217708 | S145: NULL&M_Disease
A146: 1 | B146: 169155814 | C146: rs12124744 | D146: C | E146: T | F146: 0.926 | G146: -7977.388 | H146: -7975.857 | I146: 1.531 | J146: 1.94E-05 | L146: 1 | M146: 166644487 | N146: rs12082938 | O146: G | P146: A | Q146: NULL | R146: 0.7241217708 | S146: NULL&M_Disease
A147: 1 | B147: 166284528 | C147: rs4469697 | D147: A | E147: G | F147: 1.092 | G147: -7977.388 | H147: -7975.858 | I147: 1.53 | J147: 1.94E-05 | L147: 1 | M147: 166647388 | N147: rs12074860 | O147: A | P147: G | Q147: NULL | R147: 0.7241217708 | S147: NULL&M_Disease
A148: 1 | B148: 166273476 | C148: rs4068928 | D148: A | E148: G | F148: 1.094 | G148: -7977.388 | H148: -7975.87 | I148: 1.518 | J148: 1.92E-05 | L148: 1 | M148: 166650963 | N148: rs4657582 | O148: A | P148: T | Q148: NULL | R148: 0.7241217708 | S148: NULL&M_Disease
A149: 1 | B149: 169155621 | C149: rs12127305 | D149: A | E149: G | F149: 0.926 | G149: -7977.388 | H149: -7975.876 | I149: 1.512 | J149: 1.91E-05 | L149: 1 | M149: 166652275 | N149: rs4657583 | O149: T | P149: C | Q149: NULL | R149: 0.7241217708 | S149: NULL&M_Disease
A150: 1 | B150: 169157353 | C150: rs12126032 | D150: C | E150: T | F150: 0.926 | G150: -7977.388 | H150: -7975.882 | I150: 1.506 | J150: 1.89E-05 | L150: 1 | M150: 166652313 | N150: rs4657584 | O150: A | P150: G | Q150: NULL | R150: 0.7241217708 | S150: NULL&M_Disease
A151: 1 | B151: 169156805 | C151: rs11803007 | D151: C | E151: A | F151: 0.926 | G151: -7977.388 | H151: -7975.888 | I151: 1.501 | J151: 1.88E-05 | L151: 1 | M151: 166656149 | N151: rs56343985 | O151: G | P151: A | Q151: NULL | R151: 0.7241217708 | S151: NULL&M_Disease
A152: 1 | B152: 166010221 | C152: rs1867555 | D152: C | E152: T | F152: 0.924 | G152: -7977.388 | H152: -7975.899 | I152: 1.489 | J152: 1.86E-05 | L152: 1 | M152: 166658662 | N152: rs7522168 | O152: G | P152: T | Q152: NULL | R152: 0.7241217708 | S152: NULL&M_Disease
A153: 1 | B153: 169849236 | C153: rs10919263 | D153: T | E153: C | F153: 0.924 | G153: -7977.388 | H153: -7975.913 | I153: 1.476 | J153: 1.84E-05 | L153: 1 | M153: 166660784 | N153: rs7523559 | O153: T | P153: C | Q153: NULL | R153: 0.7241217708 | S153: NULL&M_Disease
A154: 1 | B154: 167065922 | C154: rs137869546 | D154: C | E154: T | F154: 0.825 | G154: -7977.388 | H154: -7975.924 | I154: 1.464 | J154: 1.82E-05 | L154: 1 | M154: 166758542 | N154: rs480820 | O154: C | P154: A | Q154: NULL | R154: 0.7241217708 | S154: NULL&M_Disease
A155: 1 | B155: 168541956 | C155: rs1414324056 | D155: C | E155: T | F155: 0.895 | G155: -7977.388 | H155: -7975.93 | I155: 1.458 | J155: 1.81E-05 | L155: 1 | M155: 167075159 | N155: rs4656519 | O155: T | P155: A | Q155: NULL | R155: 0.7241217708 | S155: NULL&M_Disease
A156: 1 | B156: 167506734 | C156: rs10800316 | D156: T | E156: C | F156: 1.08 | G156: -7977.388 | H156: -7975.933 | I156: 1.455 | J156: 1.80E-05 | L156: 1 | M156: 167140959 | N156: rs6691080 | O156: G | P156: A | Q156: NULL | R156: 0.7241217708 | S156: NULL&M_Disease
A157: 1 | B157: 166003699 | C157: rs9427131 | D157: G | E157: A | F157: 1.088 | G157: -7977.388 | H157: -7975.94 | I157: 1.448 | J157: 1.79E-05 | L157: 1 | M157: 167488799 | N157: rs863454 | O157: A | P157: C | Q157: NULL | R157: 0.7241217708 | S157: NULL&M_Disease
A158: 1 | B158: 169154856 | C158: rs4656659 | D158: C | E158: T | F158: 0.927 | G158: -7977.388 | H158: -7975.94 | I158: 1.448 | J158: 1.79E-05 | L158: 1 | M158: 167492893 | N158: rs4657664 | O158: C | P158: G | Q158: NULL | R158: 0.7241217708 | S158: NULL&M_Disease
A159: 1 | B159: 168544994 | C159: rs61802563 | D159: T | E159: G | F159: 0.895 | G159: -7977.388 | H159: -7975.958 | I159: 1.43 | J159: 1.76E-05 | L159: 1 | M159: 167495094 | N159: rs2862133 | O159: C | P159: G | Q159: NULL | R159: 0.7241217708 | S159: NULL&M_Disease
A160: 1 | B160: 169158580 | C160: rs3766065 | D160: C | E160: T | F160: 0.927 | G160: -7977.388 | H160: -7975.966 | I160: 1.422 | J160: 1.74E-05 | L160: 1 | M160: 167988529 | N160: rs6700210 | O160: G | P160: A | Q160: NULL | R160: 0.7241217708 | S160: NULL&M_Disease
A161: 1 | B161: 169855576 | C161: rs3766151 | D161: A | E161: G | F161: 0.924 | G161: -7977.388 | H161: -7975.966 | I161: 1.422 | J161: 1.74E-05 | L161: 1 | M161: 168111495 | N161: rs2143415 | O161: T | P161: A | Q161: NULL | R161: 0.7241217708 | S161: NULL&M_Disease
A162: 1 | B162: 169153141 | C162: rs12075832 | D162: A | E162: G | F162: 0.927 | G162: -7977.388 | H162: -7975.968 | I162: 1.42 | J162: 1.74E-05 | L162: 1 | M162: 168167553 | N162: rs10753767 | O162: A | P162: G | Q162: NULL | R162: 0.7241217708 | S162: NULL&M_Disease
A163: 1 | B163: 169153227 | C163: rs12071277 | D163: T | E163: A | F163: 0.927 | G163: -7977.388 | H163: -7975.968 | I163: 1.42 | J163: 1.74E-05 | L163: 1 | M163: 168417630 | N163: rs858102 | O163: G | P163: A | Q163: NULL | R163: 0.7241217708 | S163: NULL&M_Disease
A164: 1 | B164: 165898654 | C164: rs523778 | D164: A | E164: G | F164: 1.079 | G164: -7977.388 | H164: -7975.969 | I164: 1.419 | J164: 1.74E-05 | L164: 1 | M164: 168423858 | N164: rs10158109 | O164: G | P164: A | Q164: NULL | R164: 0.7241217708 | S164: NULL&M_Disease
A165: 1 | B165: 166281944 | C165: rs144123981 | D165: G | E165: T | F165: 1.227 | G165: -7977.388 | H165: -7975.974 | I165: 1.414 | J165: 1.73E-05 | L165: 1 | M165: 168426904 | N165: rs72703776 | O165: T | P165: C | Q165: NULL | R165: 0.7241217708 | S165: NULL&M_Disease
A166: 1 | B166: 167645850 | C166: rs114252341 | D166: C | E166: T | F166: 1.196 | G166: -7977.388 | H166: -7975.979 | I166: 1.409 | J166: 1.72E-05 | L166: 1 | M166: 168435184 | N166: rs2206117 | O166: T | P166: C | Q166: NULL | R166: 0.7241217708 | S166: NULL&M_Disease
A167: 1 | B167: 167405418 | C167: rs1723022 | D167: T | E167: G | F167: 1.08 | G167: -7977.388 | H167: -7975.982 | I167: 1.406 | J167: 1.71E-05 | L167: 1 | M167: 168612609 | N167: rs1124020 | O167: T | P167: A | Q167: NULL | R167: 0.7241217708 | S167: NULL&M_Disease
A168: 1 | B168: 169154328 | C168: rs3766062 | D168: C | E168: T | F168: 0.927 | G168: -7977.388 | H168: -7975.992 | I168: 1.396 | J168: 1.70E-05 | L168: 1 | M168: 168612925 | N168: rs6427139 | O168: G | P168: A | Q168: NULL | R168: 0.7241217708 | S168: NULL&M_Disease
A169: 1 | B169: 165881479 | C169: rs492467 | D169: G | E169: A | F169: 1.079 | G169: -7977.388 | H169: -7975.996 | I169: 1.393 | J169: 1.69E-05 | L169: 1 | M169: 168613342 | N169: rs1415677 | O169: G | P169: A | Q169: NULL | R169: 0.7241217708 | S169: NULL&M_Disease
A170: 1 | B170: 167411384 | C170: rs864537 | D170: G | E170: A | F170: 1.079 | G170: -7977.388 | H170: -7976.001 | I170: 1.388 | J170: 1.68E-05 | L170: 1 | M170: 168619016 | N170: rs6427140 | O170: T | P170: C | Q170: NULL | R170: 0.7241217708 | S170: NULL&M_Disease
A171: 1 | B171: 165881250 | C171: rs544617 | D171: G | E171: A | F171: 1.079 | G171: -7977.388 | H171: -7976.008 | I171: 1.38 | J171: 1.67E-05 | L171: 1 | M171: 168933468 | N171: rs10489372 | O171: T | P171: G | Q171: NULL | R171: 0.7241217708 | S171: NULL&M_Disease
A172: 1 | B172: 168544307 | C172: rs74120954 | D172: T | E172: G | F172: 0.896 | G172: -7977.388 | H172: -7976.013 | I172: 1.376 | J172: 1.66E-05 | L172: 1 | M172: 169063007 | N172: rs12021894 | O172: G | P172: A | Q172: NULL | R172: 0.7241217708 | S172: NULL&M_Disease
A173: 1 | B173: 168544439 | C173: rs112685349 | D173: G | E173: A | F173: 0.896 | G173: -7977.388 | H173: -7976.013 | I173: 1.376 | J173: 1.66E-05 | L173: 1 | M173: 169067740 | N173: rs1922924 | O173: T | P173: C | Q173: NULL | R173: 0.7241217708 | S173: NULL&M_Disease
A174: 1 | B174: 166512203 | C174: rs151303967 | D174: T | E174: G | F174: 1.143 | G174: -7977.388 | H174: -7976.029 | I174: 1.359 | J174: 1.64E-05 | L174: 1 | M174: 169067843 | N174: rs10919057 | O174: G | P174: A | Q174: NULL | R174: 0.7241217708 | S174: NULL&M_Disease
A175: 1 | B175: 166010280 | C175: rs12752269 | D175: C | E175: A | F175: 1.087 | G175: -7977.388 | H175: -7976.03 | I175: 1.358 | J175: 1.63E-05 | L175: 1 | M175: 169068627 | N175: rs1892090 | O175: G | P175: A | Q175: NULL | R175: 0.7241217708 | S175: NULL&M_Disease
A176: 1 | B176: 168828980 | C176: rs200576 | D176: T | E176: C | F176: 1.081 | G176: -7977.388 | H176: -7976.055 | I176: 1.334 | J176: 1.59E-05 | L176: 1 | M176: 169071294 | N176: rs17349138 | O176: C | P176: T | Q176: NULL | R176: 0.7241217708 | S176: NULL&M_Disease
A177: 1 | B177: 167408670 | C177: rs840016 | D177: T | E177: C | F177: 1.078 | G177: -7977.388 | H177: -7976.062 | I177: 1.327 | J177: 1.58E-05 | L177: 1 | M177: 169073050 | N177: rs926516 | O177: A | P177: C | Q177: NULL | R177: 0.7241217708 | S177: NULL&M_Disease
A178: 1 | B178: 167644336 | C178: rs2902348 | D178: T | E178: C | F178: 0.865 | G178: -7977.388 | H178: -7976.072 | I178: 1.316 | J178: 1.57E-05 | L178: 1 | M178: 169073241 | N178: rs10919059 | O178: T | P178: C | Q178: NULL | R178: 0.7241217708 | S178: NULL&M_Disease
A179: 1 | B179: 166015335 | C179: rs74118960 | D179: A | E179: G | F179: 0.922 | G179: -7977.388 | H179: -7976.082 | I179: 1.306 | J179: 1.55E-05 | L179: 1 | M179: 169073948 | N179: rs3795613 | O179: A | P179: G | Q179: NULL | R179: 0.7241217708 | S179: NULL&M_Disease
A180: 1 | B180: 167913302 | C180: rs12136645 | D180: A | E180: G | F180: 1.112 | G180: -7977.388 | H180: -7976.082 | I180: 1.306 | J180: 1.55E-05 | L180: 1 | M180: 169549775 | N180: rs10753787 | O180: T | P180: C | Q180: NULL | R180: 0.7241217708 | S180: NULL&M_Disease
A181: 1 | B181: 169883039 | C181: rs2056980 | D181: G | E181: A | F181: 0.927 | G181: -7977.388 | H181: -7976.084 | I181: 1.304 | J181: 1.55E-05 | L181: 1 | M181: 169571076 | N181: rs3917775 | O181: C | P181: T | Q181: NULL | R181: 0.7241217708 | S181: NULL&M_Disease
A182: 1 | B182: 167409114 | C182: rs840015 | D182: A | E182: G | F182: 1.077 | G182: -7977.388 | H182: -7976.093 | I182: 1.295 | J182: 1.53E-05 | L182: 1 | M182: 169572947 | N182: rs3917768 | O182: G | P182: T | Q182: NULL | R182: 0.7241217708 | S182: NULL&M_Disease
A183: 1 | B183: 168826319 | C183: rs200568 | D183: T | E183: C | F183: 1.079 | G183: -7977.388 | H183: -7976.095 | I183: 1.293 | J183: 1.53E-05 | L183: 1 | M183: 169574166 | N183: rs1997664 | O183: T | P183: A | Q183: NULL | R183: 0.7241217708 | S183: NULL&M_Disease
A184: 1 | B184: 166003935 | C184: rs9427132 | D184: A | E184: T | F184: 1.083 | G184: -7977.388 | H184: -7976.096 | I184: 1.292 | J184: 1.53E-05 | L184: 1 | M184: 164947680 | N184: rs10918098 | O184: C | P184: T | Q184: NULL | R184: 0.7231218051 | S184: NULL&M_Disease
A185: 1 | B185: 166013210 | C185: rs9426851 | D185: G | E185: A | F185: 1.086 | G185: -7977.388 | H185: -7976.1 | I185: 1.288 | J185: 1.52E-05 | L185: 1 | M185: 165052803 | N185: rs6678814 | O185: C | P185: T | Q185: NULL | R185: 0.7231218051 | S185: NULL&M_Disease
A186: 1 | B186: 168804428 | C186: rs2206293 | D186: G | E186: A | F186: 1.079 | G186: -7977.388 | H186: -7976.107 | I186: 1.281 | J186: 1.51E-05 | L186: 1 | M186: 165052835 | N186: rs6666093 | O186: C | P186: G | Q186: NULL | R186: 0.7231218051 | S186: NULL&M_Disease
A187: 1 | B187: 166038135 | C187: rs116309455 | D187: A | E187: C | F187: 0.845 | G187: -7977.388 | H187: -7976.115 | I187: 1.274 | J187: 1.50E-05 | L187: 1 | M187: 165111001 | N187: rs4657403 | O187: G | P187: A | Q187: NULL | R187: 0.7231218051 | S187: NULL&M_Disease
A188: 1 | B188: 168815719 | C188: rs6656076 | D188: A | E188: C | F188: 1.081 | G188: -7977.388 | H188: -7976.114 | I188: 1.274 | J188: 1.50E-05 | L188: 1 | M188: 165111242 | N188: rs4657404 | O188: C | P188: A | Q188: NULL | R188: 0.7231218051 | S188: NULL&M_Disease
A189: 1 | B189: 168815720 | C189: rs6680820 | D189: G | E189: C | F189: 1.081 | G189: -7977.388 | H189: -7976.114 | I189: 1.274 | J189: 1.50E-05 | L189: 1 | M189: 165217356 | N189: rs1506946 | O189: A | P189: G | Q189: NULL | R189: 0.7231218051 | S189: NULL&M_Disease
A190: 1 | B190: 165902083 | C190: rs2001664 | D190: T | E190: C | F190: 0.915 | G190: -7977.388 | H190: -7976.115 | I190: 1.273 | J190: 1.50E-05 | L190: 1 | M190: 165217538 | N190: rs1506944 | O190: C | P190: G | Q190: NULL | R190: 0.7231218051 | S190: NULL&M_Disease
A191: 1 | B191: 169417525 | C191: rs7546361 | D191: A | E191: T | F191: 0.93 | G191: -7977.388 | H191: -7976.115 | I191: 1.273 | J191: 1.50E-05 | L191: 1 | M191: 165221696 | N191: rs1553607 | O191: C | P191: A | Q191: NULL | R191: 0.7231218051 | S191: NULL&M_Disease
A192: 1 | B192: 165623810 | C192: rs4147609 | D192: T | E192: C | F192: 0.909 | G192: -7977.388 | H192: -7976.128 | I192: 1.26 | J192: 1.48E-05 | L192: 1 | M192: 165361044 | N192: rs4657435 | O192: C | P192: A | Q192: NULL | R192: 0.7231218051 | S192: NULL&M_Disease
A193: 1 | B193: 168509045 | C193: rs115673660 | D193: A | E193: G | F193: 0.816 | G193: -7977.388 | H193: -7976.131 | I193: 1.258 | J193: 1.48E-05 | L193: 1 | M193: 165383621 | N193: rs4657437 | O193: A | P193: C | Q193: NULL | R193: 0.7231218051 | S193: NULL&M_Disease
A194: 1 | B194: 168510562 | C194: rs114579420 | D194: A | E194: G | F194: 0.816 | G194: -7977.388 | H194: -7976.131 | I194: 1.258 | J194: 1.48E-05 | L194: 1 | M194: 165387207 | N194: rs6676763 | O194: A | P194: G | Q194: NULL | R194: 0.7231218051 | S194: NULL&M_Disease
A195: 1 | B195: 168528906 | C195: rs1933103 | D195: G | E195: C | F195: 0.817 | G195: -7977.388 | H195: -7976.132 | I195: 1.256 | J195: 1.48E-05 | L195: 1 | M195: 165413042 | N195: rs41424948 | O195: T | P195: C | Q195: NULL | R195: 0.7231218051 | S195: NULL&M_Disease
A196: 1 | B196: 169150372 | C196: rs12068152 | D196: C | E196: T | F196: 0.928 | G196: -7977.388 | H196: -7976.139 | I196: 1.249 | J196: 1.46E-05 | L196: 1 | M196: 165457618 | N196: rs285484 | O196: A | P196: G | Q196: NULL | R196: 0.7231218051 | S196: NULL&M_Disease
A197: 1 | B197: 169403703 | C197: rs12021580 | D197: G | E197: A | F197: 0.93 | G197: -7977.388 | H197: -7976.147 | I197: 1.241 | J197: 1.45E-05 | L197: 1 | M197: 165694918 | N197: rs6426937 | O197: G | P197: C | Q197: NULL | R197: 0.7231218051 | S197: NULL&M_Disease
A198: 1 | B198: 165626342 | C198: rs4638106 | D198: T | E198: C | F198: 0.909 | G198: -7977.388 | H198: -7976.151 | I198: 1.237 | J198: 1.45E-05 | L198: 1 | M198: 165695726 | N198: rs1913846 | O198: T | P198: C | Q198: NULL | R198: 0.7231218051 | S198: NULL&M_Disease
A199: 1 | B199: 166008162 | C199: rs12759869 | D199: T | E199: C | F199: 1.085 | G199: -7977.388 | H199: -7976.151 | I199: 1.237 | J199: 1.45E-05 | L199: 1 | M199: 165698544 | N199: rs6670705 | O199: G | P199: C | Q199: NULL | R199: 0.7231218051 | S199: NULL&M_Disease
A200: 1 | B200: 165631670 | C200: rs1185116418 | D200: G | E200: T | F200: 0.909 | G200: -7977.388 | H200: -7976.156 | I200: 1.232 | J200: 1.44E-05 | L200: 1 | M200: 165733483 | N200: rs6426940 | O200: T | P200: C | Q200: NULL | R200: 0.7231218051 | S200: NULL&M_Disease
A201: 1 | B201: 166439103 | C201: rs77782844 | D201: C | E201: A | F201: 0.832 | G201: -7977.388 | H201: -7976.159 | I201: 1.229 | J201: 1.44E-05 | L201: 1 | M201: 165813862 | N201: rs11590711 | O201: G | P201: A | Q201: NULL | R201: 0.7231218051 | S201: NULL&M_Disease
... 4299 more rows

Sheet Suppl Data 10
A1: Supplementary Data 10: eQTL, Looping and Regulatory chromatin states for functional variants in CD247 locus.
A2: Note: Chr: Chromosome; Pos=basepair position (GRCh37/hg19); Ref=reference allele; Alt=alternative allele; IMP=imputed SNP (I); OBS=genotyped SNP (O); Gene names in highlighted in Pink, Yellow and Green are eQTLs wih P values between 5.0E-02 to 5.0E-04, 5.0E-04 to 5.0E-08 and <5.0E-08 respectively. In capture Hi-C column, Y and - represent the presence and absence of loops in that cell type respectively
A4: Variant ID | B4: Refseq Gene | C4: Chr | D4: Pos (GRCh37/hg19) | E4: Ref | F4: Alt | G4: P-value (Meta) | H4: Direction | I4: IMP/OBS | J4: No. of proteins bound by ChIP | K4: RegulomeDB Score | L4: eQTL reported | AV4: Capture Hi-C | BO4: Regulatory Chromatin States
C5: Chr | L5: salivary gland (GTEx/v8) | M5: Lepik_2017_ge_blood | N5: TwinsUK_ge_blood | O5: B_Cell (sc-eQTL) | P5: B_Cell(QTLbase) | Q5: Fairfax_2012_B-cell_CD19 | R5: CEDAR_B-cell_CD19 | S5: Blood-T_Cell (QTLbase) | T5: T_CD4_naive_TREG (DICE) | U5: Blood-T_cell_CD4_Naive (QTLbase) | V5: CEDAR_T-cell_CD4 | W5: Kasela_2017_T-cell_CD4 | X5: T_Cell_CD4 (QTLbase) | Y5: GENCORD_ge_T-cell | Z5: BLUEPRINT_ge_T-cell | AA5: Kasela_2017_T-cell_CD8 | AB5: CEDAR_T-cell_CD8 | AC5: BLUEPRINT_ge_monocyte | AD5: CEDAR_monocyte_CD14 | AE5: Blood-Monocytes_CD14 (QTLbase) | AF5: Quach_2016_ge_monocyte_naive | AG5: Quach_2016_ge_monocyte_LPS | AH5: Quach_2016_ge_monocyte_IAV | AI5: Quach_2016_ge_monocyte_Pam3CSK4 | AJ5: Quach_2016_ge_monocyte_R848 | AK5: Blood-Neutrophils_CD16+ (QTLbase) | AL5: Naranbhai_2015_neutrophil_CD16 | AM5: CEDAR_neutrophil_CD15 | AN5: BLUEPRINT_ge_neutrophil | AO5: Alasoo_2018_ge_macrophage_IFNg_Salmonella | AP5: Alasoo_2018_ge_macrophage_naive | AQ5: Nedelec_2016_ge_macrophage_Listeria | AR5: Fairfax_2014_naive | AS5: Fairfax_2014_IFN24 | AT5: Fairfax_2014_LPS2 | AU5: Cells_EBV-transformed_lymphocytes | AV5: GM12878 | AW5: B_Naive | AX5: B_Total | AY5: CD34 | AZ5: CD4_Activated | BA5: CD4_Naive | BB5: CD4_Nonactivated | BC5: CD4_Total | BD5: CD8_Naive | BE5: CD8_Total | BF5: Macrophages_M0 | BG5: Macrophages_M1 | BH5: Macrophages_M2 | BI5: Monocytes | BJ5: Neutrophils | BK5: LOOPS | BL5: Loop startRegion | BM5: Loop endRegion | BN5: SNP-Site (Anchor-site)
A6: rs1214595 | B6: CD247 | C6: 1 | D6: 167427557 | E6: A | F6: G | G6: 7.83e-08 | H6: -- | I6: I | J6: 3 | K6: 2b | L6: POGK | M6: CD247 | N6: CD247 | O6: CREG1 | P6: CREG1 | Q6: POU2F1 | R6: CREG1 | S6: - | T6: CD247 | U6: - | V6: MAEL | W6: TIPRL | X6: CD247 | Y6: CD247 | Z6: CREG1 | AA6: CREG1 | AB6: CD247 | AC6: CD247 | AD6: SFT2D2 | AE6: - | AF6: - | AG6: - | AH6: CD247 | AI6: - | AJ6: - | AK6: - | AL6: TIPRL | AM6: GPR161 | AN6: POU2F1 | AO6: DUSP27 | AP6: TADA1 | AQ6: - | AR6: ILDR2 | AS6: TBX19 | AT6: MAEL | AU6: ILDR2 | AV6: Y | AW6: - | AX6: - | AY6: Y | AZ6: Y | BA6: Y | BB6: Y | BC6: Y | BD6: Y | BE6: Y | BF6: - | BG6: - | BH6: - | BI6: - | BJ6: - | BK6: L1 | BL6: L1:start:chr1:167485364-167489324 | BM6: L1:end:chr1:167419405-167431408 | BN6: Enhancer
P7: AL359962.2 | Q7: SFT2D2 | V7: TADA1 | W7: CD247 | Z7: CD247 | AB7: GPR161 | AC7: DCAF6 | AD7: TBX19 | AL7: POU2F1 | AM7: ILDR2 | AO7: TIPRL | AR7: POU2F1 | AU7: RCSD1 | AV7: Y | AW7: - | AX7: - | AY7: - | AZ7: Y | BA7: Y | BB7: Y | BC7: Y | BD7: Y | BE7: Y | BF7: - | BG7: - | BH7: - | BI7: - | BJ7: - | BK7: L2 | BL7: L2:Start:chr1:167485364-167489324 | BM7: L2:end:chr1:167431409-167433752 | BN7: Enhancer
V8: POU2F1 | AC8: TBX19 | AU8: TIPRL | AV8: Promoter | BD8: Enhancer
AU9: MAEL | AV9: chr1:167485364-167489324 | BD9: chr1:167419405-167431408 | BK9: L1
V10: CD247 | AU10: GPA33 | AV10: chr1:167485364-167489324 | BD10: chr1:167431409-167433752 | BK10: L2
A11: rs2949661 | B11: CD247 | C11: 1 | D11: 167424924 | E11: T | F11: C | G11: 9.99E-08 | H11: -- | I11: I | J11: 122 | K11: 3a | L11: TIPRL | M11: POGK | N11: CD247 | O11: CREG1 | P11: CREG1 | Q11: SFT2D2 | R11: CREG1 | S11: - | T11: CD247 | U11: - | V11: MAEL | W11: CD247 | X11: CD247 | Y11: CD247 | Z11: CREG1 | AA11: CREG1 | AB11: GPR161 | AC11: CD247 | AD11: TBX19 | AE11: - | AF11: - | AG11: - | AH11: CD247 | AI11: - | AJ11: - | AK11: - | AL11: POU2F1 | AM11: ILDR2 | AN11: - | AO11: DUSP27 | AP11: - | AQ11: - | AR11: MAEL | AS11: CREG1 | AT11: MAEL | AU11: RCSD1 | AV11: Y | AW11: Y | AX11: Y | AY11: Y | AZ11: - | BA11: Y | BB11: - | BC11: Y | BD11: Y | BE11: - | BF11: Y | BG11: - | BH11: - | BI11: Y | BJ11: Y | BK11: L1 | BL11: L1:start:chr1:167056089-167060383 | BM11: L1:end:chr1:167414030-167419305 | BN11: Enhancer
M12: CD247 | P12: AL359962.2 | Q12: POU2F1 | V12: TADA1 | W12: TIPRL | Z12: CD247 | AA12: MAEL | AB12: CD247 | AC12: DCAF6 | AD12: SFT2D2 | AL12: TIPRL | AM12: GPR161 | AO12: TIPRL | AR12: POU2F1 | AS12: TBX19 | AU12: TIPRL | AV12: Y | AW12: - | AX12: Y | AY12: Y | AZ12: Y | BA12: Y | BB12: Y | BC12: Y | BD12: Y | BE12: Y | BF12: - | BG12: - | BH12: - | BI12: - | BJ12: - | BK12: L2 | BL12: L2:start:chr1:167485364-167489324 | BM12: L2:end:chr1:167414030-167419305 | BN12: Enhancer
V13: POU2F1 | W13: ILDR2 | AC13: TBX19 | AU13: ILDR2 | AV13: Y | AW13: Y | AX13: Y | AY13: Y | AZ13: - | BB13: - | BC13: - | BD13: Y | BE13: Y | BF13: Y | BG13: - | BH13: - | BI13: - | BJ13: - | BK13: L3 | BL13: L3:start:chr1:167521892-167524978 | BM13: L3:end:chr1:167414030-167419305 | BN13: Enhancer
V14: GPR161 | AU14: MAEL | AV14: Promoter | BD14: Enhancer
V15: CD247 | AV15: chr1:167056089-167060383 | BD15: chr1:167414030-167419305 | BK15: L1
AV16: chr1:167485364-167489324 | BD16: chr1:167414030-167419305 | BK16: L2
AV17: chr1:167521892-167524978 | BD17: chr1:167414030-167419305 | BK17: L3
A18: rs1723018 | B18: CD247 | C18: 1 | D18: 167433420 | E18: G | F18: A | G18: 3.22e-08 | H18: -- | I18: I | J18: 5 | K18: 3a | L18: POGK | M18: CD247 | N18: CD247 | O18: CREG1 | P18: CREG1 | Q18: POU2F1 | R18: DUSP27 | S18: - | T18: CD247 | U18: - | V18: CD247 | W18: CD247 | X18: CD247 | Y18: CD247 | Z18: CREG1 | AA18: GPA33 | AB18: GPR161 | AC18: CD247 | AD18: SFT2D2 | AE18: - | AF18: CREG1 | AG18: TIPRL | AH18: - | AI18: - | AJ18: - | AK18: - | AL18: POU2F1 | AM18: GPR161 | AN18: POU2F1 | AO18: TIPRL | AP18: TADA1 | AQ18: - | AR18: POU2F1 | AS18: TBX19 | AT18: CREG1 | AU18: MAEL | AV18: Y | AW18: - | AX18: - | AY18: Y | AZ18: Y | BA18: Y | BB18: Y | BC18: Y | BD18: Y | BE18: Y | BF18: - | BG18: - | BH18: - | BI18: - | BJ18: - | BK18: L1 | BL18: L1:start:chr1:167485364-167489324 | BM18: L1:end:chr1:167436474-167447629 | BN18: Enhancer
P19: AL359962.2 | Q19: GPR161 | R19: CREG1 | V19: TADA1 | Z19: CD247 | AA19: CREG1 | AC19: TBX19 | AD19: TBX19 | AR19: ILDR2 | AT19: MAEL | AU19: RCSD1 | AV19: Y | AW19: - | AX19: - | AY19: Y | AZ19: Y | BA19: Y | BB19: Y | BC19: Y | BD19: Y | BE19: Y | BF19: - | BG19: - | BH19: - | BI19: - | BJ19: - | BK19: L2 | BL19: L2:start:chr1:167485364-167489324 | BM19: L2:end:chr1:167419405-167431408 | BN19: Enhancer
Q20: SFT2D2 | V20: POU2F1 | AC20: DCAF6 | AU20: ILDR2 | AV20: Y | AW20: - | AX20: - | AY20: - | AZ20: Y | BA20: Y | BB20: Y | BC20: Y | BD20: Y | BE20: Y | BF20: - | BG20: - | BH20: - | BI20: - | BJ20: - | BK20: L3 | BL20: L3:start:chr1:167485364-167489324 | BM20: L3:end:chr1:167431409-167433752 | BN20: Enhancer
Q21: MAEL | AU21: TIPRL | AV21: Y | AW21: - | AX21: - | AY21: - | AZ21: Y | BA21: Y | BB21: Y | BC21: Y | BD21: Y | BE21: Y | BF21: - | BG21: - | BH21: - | BI21: - | BJ21: - | BK21: L4 | BL21: L4:start:chr1:167485364-167489324 | BM21: L4:end:chr1:167431409-167433752 | BN21: Enhancer
AV22: Y | AW22: - | AX22: - | AY22: Y | AZ22: Y | BA22: Y | BB22: Y | BC22: Y | BD22: Y | BE22: Y | BF22: - | BG22: - | BH22: - | BI22: - | BJ22: - | BK22: L5 | BL22: L5:start:chr1:167485364-167489324 | BM22: L5:end:chr1:167436474-167447629 | BN22: Enhancer
AV23: Promoter | BD23: Enhancer
AV24: chr1:167485364-167489324 | BD24: chr1:167436474-167447629 | BK24: L1
AV25: chr1:167485364-167489324 | BD25: chr1:167419405-167431408 | BK25: L2
AV26: chr1:167485364-167489324 | BD26: chr1:167431409-167433752 | BK26: L3
AV27: chr1:167485364-167489324 | BD27: chr1:167433753-167436473 | BK27: L4
AV28: chr1:167485364-167489324 | BD28: chr1:167436474-167447629 | BK28: L5
A29: rs7523907 | B29: CD247 | C29: 1 | D29: 167427247 | E29: C | F29: T | G29: 9.33e-09 | H29: -- | I29: I | J29: 1 | K29: 4 | L29: - | M29: - | N29: CD247 | O29: CREG1 | P29: CREG1 | Q29: POU2F1 | R29: - | S29: CD247 | T29: CD247 | U29: AKR1D1P1 | V29: POU2F1 | W29: ILDR2 | X29: CD247 | Y29: CD247 | Z29: CD247 | AA29: SFT2D2 | AB29: GPR161 | AC29: DCAF6 | AD29: CREG1 | AE29: DCAF6 | AF29: CREG1 | AG29: TBX19 | AH29: CD247 | AI29: TBX19 | AJ29: TBX19 | AK29: POU2F1 | AL29: POU2F1 | AM29: GPA33 | AN29: - | AO29: DUSP27 | AP29: - | AQ29: DCAF6 | AR29: MPZL1 | AS29: TBX19 | AT29: DCAF6 | AU29: - | AV29: - | AW29: Y | AX29: Y | AY29: Y | AZ29: - | BA29: Y | BB29: - | BC29: Y | BD29: Y | BE29: - | BF29: Y | BG29: - | BH29: - | BI29: Y | BJ29: Y | BK29: L1 | BL29: L1:start:chr1:167056089-167060383 | BM29: L1:end:chr1:167414030-167419305 | BN29: Enhancer
P30: AL359962.2 | Q30: GPR161 | U30: CD247 | V30: TADA1 | Z30: CREG1 | AB30: ILDR2 | AC30: TBX19 | AD30: TBX19 | AE30: TBX19 | AF30: TBX19 | AG30: POGK | AK30: RCSD1 | AR30: ILDR2 | AS30: CD247 | AT30: CREG1 | AV30: - | AW30: - | AX30: Y | AY30: Y | AZ30: Y | BA30: Y | BB30: Y | BC30: Y | BD30: Y | BE30: Y | BF30: - | BG30: - | BH30: - | BI30: - | BJ30: - | BK30: L2 | BL30: L2:start:chr1:167485364-167489324 | BM30: L2:end:chr1:167414030-167419305 | BN30: Enhancer
U31: CREG1 | V31: MPC2 | Z31: SFT2D2 | AE31: POU2F1 | AK31: RCSD1 | AR31: POU2F1 | AT31: MAEL | AV31: - | AW31: Y | AX31: Y | AY31: Y | AZ31: - | BA31: - | BB31: - | BC31: - | BD31: Y | BE31: Y | BF31: Y | BG31: - | BH31: - | BI31: - | BJ31: - | BK31: L3 | BL31: L3:start:chr1:167521892-167524978 | BM31: L3:end:chr1:167414030-167419305 | BN31: Enhancer
U32: AL359962.1 | V32: CD247 | AE32: GPR161 | AK32: CD247 | AR32: GPA33 | AV32: Y | AW32: - | AX32: - | AY32: Y | AZ32: Y | BA32: Y | BB32: Y | BC32: Y | BD32: Y | BE32: Y | BF32: - | BG32: - | BH32: - | BI32: - | BJ32: - | BK32: L4 | BL32: L4:start:chr1:167485364-167489324 | BM32: L4:end:chr1:167419405-167431408 | BN32: Enhancer
AE33: RCSD1 | AK33: CREG1 | AV33: Y | AW33: - | AX33: - | AY33: - | AZ33: Y | BA33: Y | BB33: Y | BC33: Y | BD33: Y | BE33: Y | BF33: - | BG33: - | BH33: - | BI33: - | BJ33: - | BK33: L5 | BL33: L5:start:chr1:167485364-167489324 | BM33: L5:end:chr1:167431409-167433752 | BN33: Enhancer
AE34: CD247 | AK34: SFT2D2 | AV34: - | AW34: - | AX34: - | AY34: Y | AZ34: Y | BA34: Y | BB34: Y | BC34: Y | BD34: Y | BE34: Y | BF34: - | BG34: - | BH34: - | BI34: - | BJ34: - | BK34: L6 | BL34: L6:start:chr1:167485364-167489324 | BM34: L6:end:chr1:167436474-167447629 | BN34: Enhancer
AE35: CREG1 | AV35: - | AW35: - | AX35: - | AY35: - | AZ35: Y | BA35: Y | BB35: Y | BC35: Y | BD35: Y | BE35: Y | BF35: - | BG35: - | BH35: - | BI35: - | BJ35: - | BK35: L7 | BL35: L7:start:chr1:167485364-167489324 | BM35: L7:end:chr1:167433753-167436473 | BN35: Enhancer
AV36: Promoter | BD36: Enhancer
AV37: chr1:167056089-167060383 | BD37: chr1:167414030-167419305 | BK37: L1
AV38: chr1:167485364-167489324 | BD38: chr1:167414030-167419305 | BK38: L2
AV39: chr1:167521892-167524978 | BD39: chr1:167414030-167419305 | BK39: L3
AV40: chr1:167485364-167489324 | BD40: chr1:167419405-167431408 | BK40: L4
AV41: chr1:167485364-167489324 | BD41: chr1:167431409-167433752 | BK41: L5
AV42: chr1:167485364-167489324 | BD42: chr1:167436474-167447629 | BK42: L6
AV43: chr1:167485364-167489324 | BD43: chr1:167433753-167436473 | BK43: L7

Sheet Suppl Data 11
A1: Supplementary Data 11: Association analysis in XKR6 locus.
A2: Note: CHR=Chromosome; BP=Basepair; Maj=Major allele; Min=Minor allele; IC=Immunochip; OR=Odd ratio; P=P value; Q=P-value for Cochrane's Q statistic; I^2= heterogeneity index
D3: Alleles | F3: MAF | H3: Genotyped or Imputed | J3: IC Dataset | L3: GWAS | N3: Test of heterogeneity | P3: Meta Analysis
A4: SNP | B4: CHR | C4: BP (GRCh37/hg19) | D4: Maj | E4: Min | F4: Cases | G4: Controls | H4: IC | I4: GWAS | J4: OR (95% CI) | K4: P | L4: OR (95% CI) | M4: P | N4: Q | O4: I^2 | P4: Weight | Q4: Zscore | R4: P.value | S4: Direction
A5: rs4841466 | B5: 8 | C5: 10828909 | D5: T | E5: C | F5: 0.4966 | G5: 0.463 | H5: Imputed | I5: Imputed | J5: 1.41(1.23-1.6) | K5: 3.46E-07 | L5: 1.18(1.11-1.25) | M5: 3.77E-08 | N5: 0.0154 | O5: 82.96 | P5: 26445 | Q5: 7.307 | R5: 2.73e-13 | S5: ++
A6: rs4841465 | B6: 8 | C6: 10819854 | D6: C | E6: T | F6: 0.5123 | G6: 0.4788 | H6: Imputed | I6: Genotyped | J6: 1.42(1.25-1.62) | K6: 1.72E-07 | L6: 1.17(1.1-1.24) | M6: 9.42E-08 | N6: 0.0083 | O6: 85.63 | P6: 26445 | Q6: 7.23 | R6: 4.85E-13 | S6: ++
